Workbook

Sheet Calc Cover Sheet
A2: Computation for: | B2: ESTIMATED QUANTITIES
A3: SFN: | B3: 3108680
A7: Structure: | B7: HAM-00145-0203
A9: PID: | B9: 110563
A11: Design: | B11: BMV | C11: Date | D11: 2024-04-19
A12: Check: | B12: TLC | C12: Date | D12: 2024-04-25
A13: Update: | C13: Date
A14: Recheck: | C14: Date
A16: File Names
A20: Comments

Sheet 202E11003
G1: DESIGN: | H1: =IF('Calc Cover Sheet'!B11="","",'Calc Cover Sheet'!B11) -> BMV | I1: DATE: | J1: =IF('Calc Cover Sheet'!D11="","",'Calc Cover Sheet'!D11) -> 2024-04-19 | K1: UPDATE: | L1: =IF('Calc Cover Sheet'!B13="","",'Calc Cover Sheet'!B13) ->  | M1: DATE: | N1: =IF('Calc Cover Sheet'!D13="","",'Calc Cover Sheet'!D13) -> 
G2: CHECK: | H2: =IF('Calc Cover Sheet'!B12="","",'Calc Cover Sheet'!B12) -> TLC | I2: DATE: | J2: =IF('Calc Cover Sheet'!D12="","",'Calc Cover Sheet'!D12) -> 2024-04-25 | K2: RECHECK: | L2: =IF('Calc Cover Sheet'!B14="","",'Calc Cover Sheet'!B14) ->  | M2: DATE: | N2: =IF('Calc Cover Sheet'!D14="","",'Calc Cover Sheet'!D14) -> 
G3: STRUCTURE: | H3: =IF('Calc Cover Sheet'!B7="","",'Calc Cover Sheet'!B7) -> HAM-00145-0203 | K3: SFN: | L3: =IF('Calc Cover Sheet'!B3="","",'Calc Cover Sheet'!B3) -> 3108680 | M3: PID: | N3: =IF('Calc Cover Sheet'!B9="","",'Calc Cover Sheet'!B9) -> 110563
Q4: Lump Sum Tags (Items with a "LS" Pay Unit can be tagged with one or several categories)
G5: ITEM: | H5: =MID(RIGHT(CELL("filename",D2),LEN(CELL("filename",D2))-FIND("]",CELL("filename",D2))),1,9) -> 202E11003 | J5: PAY UNIT: | K5: =INDEX(QryItemE2019!B:B,MATCH(H5,QryItemE2019!A:A,0)) -> LS
G6: SUBJECT: | H6: =IF('Calc Cover Sheet'!B2="","",'Calc Cover Sheet'!B2) -> ESTIMATED QUANTITIES
D7: DESCRIPTION: | E7: =INDEX(QryItemE2019!C:C,MATCH(H5,QryItemE2019!A:A,0)) -> STRUCTURE REMOVED, OVER 20 FOOT SPAN, AS PER PLAN
D8: SUPPLEMENTAL DESCRIPTION:
M9: SUBTOTAL | N9: TOTAL | Q9: GROUP | R9: <<<<<Tag each subtotal value with a group from this column
N10: =IF(M10="","",M10+MAX(N$9:N9)) -> 
C11: Assume Removal = $30/sf | N11: =IF(M11="","",M11+MAX(N$9:N10)) -> 
N12: =IF(M12="","",M12+MAX(N$9:N11)) -> 
D13: Existing Bridge Length = | E13: 254 | F13: ft | N13: =IF(M13="","",M13+MAX(N$9:N12)) -> 
D14: Existing Bridge Width = | E14: 40.3333 | F14: ft | N14: =IF(M14="","",M14+MAX(N$9:N13)) -> 
D15: Deck Area = | E15: =E13*E14 -> 10244.6582 | F15: sf | N15: =IF(M15="","",M15+MAX(N$9:N14)) -> 
N16: =IF(M16="","",M16+MAX(N$9:N15)) -> 
D17: Removal Cost = | E17: =CEILING(30*E15,500) -> 307500 | N17: =IF(M17="","",M17+MAX(N$9:N16)) -> 
N18: =IF(M18="","",M18+MAX(N$9:N17)) -> 
N20: =IF(M20="","",M20+MAX(N$9:N19)) -> 
N21: =IF(M21="","",M21+MAX(N$9:N20)) -> 
N22: =IF(M22="","",M22+MAX(N$9:N21)) -> 
N23: =IF(M23="","",M23+MAX(N$9:N22)) -> 
N24: =IF(M24="","",M24+MAX(N$9:N23)) -> 
N25: =IF(M25="","",M25+MAX(N$9:N24)) -> 
N26: =IF(M26="","",M26+MAX(N$9:N25)) -> 
N27: =IF(M27="","",M27+MAX(N$9:N26)) -> 
N28: =IF(M28="","",M28+MAX(N$9:N27)) -> 
N29: =IF(M29="","",M29+MAX(N$9:N28)) -> 
N30: =IF(M30="","",M30+MAX(N$9:N29)) -> 
N31: =IF(M31="","",M31+MAX(N$9:N30)) -> 
N32: =IF(M32="","",M32+MAX(N$9:N31)) -> 
N33: =IF(M33="","",M33+MAX(N$9:N32)) -> 
N34: =IF(M34="","",M34+MAX(N$9:N33)) -> 
N35: =IF(M35="","",M35+MAX(N$9:N34)) -> 
N36: =IF(M36="","",M36+MAX(N$9:N35)) -> 
N37: =IF(M37="","",M37+MAX(N$10:N36)) -> 
N38: =IF(M38="","",M38+MAX(N$10:N37)) -> 
N39: =IF(M39="","",M39+MAX(N$10:N38)) -> 
N40: =IF(M40="","",M40+MAX(N$10:N39)) -> 
N41: =IF(M41="","",M41+MAX(N$10:N40)) -> 
N42: =IF(M42="","",M42+MAX(N$10:N41)) -> 
N43: =IF(M43="","",M43+MAX(N$10:N42)) -> 
N44: =IF(M44="","",M44+MAX(N$10:N43)) -> 
N45: =IF(M45="","",M45+MAX(N$10:N44)) -> 
N46: =IF(M46="","",M46+MAX(N$10:N45)) -> 
N47: =IF(M47="","",M47+MAX(N$10:N46)) -> 
N48: =IF(M48="","",M48+MAX(N$10:N47)) -> 
N49: =IF(M49="","",M49+MAX(N$10:N48)) -> 
N50: =IF(M50="","",M50+MAX(N$10:N49)) -> 
N51: =IF(M51="","",M51+MAX(N$10:N50)) -> 
N52: =IF(M52="","",M52+MAX(N$10:N51)) -> 
N53: =IF(M53="","",M53+MAX(N$10:N52)) -> 
N54: =IF(M54="","",M54+MAX(N$10:N53)) -> 
N55: =IF(M55="","",M55+MAX(N$10:N54)) -> 
N56: =IF(M56="","",M56+MAX(N$10:N55)) -> 
N57: =IF(M57="","",M57+MAX(N$10:N56)) -> 
N58: =IF(M58="","",M58+MAX(N$10:N57)) -> 
N59: =IF(M59="","",M59+MAX(N$10:N58)) -> 
N60: =IF(M60="","",M60+MAX(N$10:N59)) -> 
N61: =IF(M61="","",M61+MAX(N$10:N60)) -> 
N62: =IF(M62="","",M62+MAX(N$10:N61)) -> 
N63: =IF(M63="","",M63+MAX(N$10:N62)) -> 
D64: SPECIAL INSTRUCTIONS: | E64: =INDEX(QryItemE2019!F:F,MATCH(H5,QryItemE2019!A:A,0)) ->  | M64: TOTAL | N64: =IF(K5="LS","LS"," ") -> LS

Sheet 202E22900
G1: DESIGN: | H1: =IF('Calc Cover Sheet'!B11="","",'Calc Cover Sheet'!B11) -> BMV | I1: DATE: | J1: =IF('Calc Cover Sheet'!D11="","",'Calc Cover Sheet'!D11) -> 2024-04-19 | K1: UPDATE: | L1: =IF('Calc Cover Sheet'!B13="","",'Calc Cover Sheet'!B13) ->  | M1: DATE: | N1: =IF('Calc Cover Sheet'!D13="","",'Calc Cover Sheet'!D13) -> 
G2: CHECK: | H2: =IF('Calc Cover Sheet'!B12="","",'Calc Cover Sheet'!B12) -> TLC | I2: DATE: | J2: =IF('Calc Cover Sheet'!D12="","",'Calc Cover Sheet'!D12) -> 2024-04-25 | K2: RECHECK: | L2: =IF('Calc Cover Sheet'!B14="","",'Calc Cover Sheet'!B14) ->  | M2: DATE: | N2: =IF('Calc Cover Sheet'!D14="","",'Calc Cover Sheet'!D14) -> 
G3: STRUCTURE: | H3: =IF('Calc Cover Sheet'!B7="","",'Calc Cover Sheet'!B7) -> HAM-00145-0203 | K3: SFN: | L3: =IF('Calc Cover Sheet'!B3="","",'Calc Cover Sheet'!B3) -> 3108680 | M3: PID: | N3: =IF('Calc Cover Sheet'!B9="","",'Calc Cover Sheet'!B9) -> 110563
Q4: Lump Sum Tags (Items with a "LS" Pay Unit can be tagged with one or several categories)
G5: ITEM: | H5: =MID(RIGHT(CELL("filename",D2),LEN(CELL("filename",D2))-FIND("]",CELL("filename",D2))),1,9) -> 202E22900 | J5: PAY UNIT: | K5: =INDEX(QryItemE2019!B:B,MATCH(H5,QryItemE2019!A:A,0)) -> SY
G6: SUBJECT: | H6: =IF('Calc Cover Sheet'!B2="","",'Calc Cover Sheet'!B2) -> ESTIMATED QUANTITIES
D7: DESCRIPTION: | E7: =INDEX(QryItemE2019!C:C,MATCH(H5,QryItemE2019!A:A,0)) -> APPROACH SLAB REMOVED
D8: SUPPLEMENTAL DESCRIPTION:
M9: SUBTOTAL | N9: TOTAL | Q9: GROUP | R9: <<<<<Tag each subtotal value with a group from this column
N10: =IF(M10="","",M10+MAX(N$9:N9)) -> 
N11: =IF(M11="","",M11+MAX(N$9:N10)) -> 
D12: # of Approaches = | E12: 2 | F12: each | N12: =IF(M12="","",M12+MAX(N$9:N11)) -> 
D13: Length = | E13: 25 | F13: ft | N13: =IF(M13="","",M13+MAX(N$9:N12)) -> 
D14: Width = | E14: 30 | F14: ft | N14: =IF(M14="","",M14+MAX(N$9:N13)) -> 
N15: =IF(M15="","",M15+MAX(N$9:N14)) -> 
D16: Area = | E16: =E12*E13*E14/9 -> 166.6666667 | F16: sy | M16: =CEILING(E16,1) -> 167 | N16: =IF(M16="","",M16+MAX(N$9:N15)) -> 167 | Q16: GEN.
N17: =IF(M17="","",M17+MAX(N$9:N16)) -> 
N18: =IF(M18="","",M18+MAX(N$9:N17)) -> 
N20: =IF(M20="","",M20+MAX(N$9:N19)) -> 
N21: =IF(M21="","",M21+MAX(N$9:N20)) -> 
N22: =IF(M22="","",M22+MAX(N$9:N21)) -> 
N23: =IF(M23="","",M23+MAX(N$9:N22)) -> 
N24: =IF(M24="","",M24+MAX(N$9:N23)) -> 
N25: =IF(M25="","",M25+MAX(N$9:N24)) -> 
N26: =IF(M26="","",M26+MAX(N$9:N25)) -> 
N27: =IF(M27="","",M27+MAX(N$9:N26)) -> 
N28: =IF(M28="","",M28+MAX(N$9:N27)) -> 
N29: =IF(M29="","",M29+MAX(N$9:N28)) -> 
N30: =IF(M30="","",M30+MAX(N$9:N29)) -> 
N31: =IF(M31="","",M31+MAX(N$9:N30)) -> 
N32: =IF(M32="","",M32+MAX(N$9:N31)) -> 
N33: =IF(M33="","",M33+MAX(N$9:N32)) -> 
N34: =IF(M34="","",M34+MAX(N$9:N33)) -> 
N35: =IF(M35="","",M35+MAX(N$9:N34)) -> 
N36: =IF(M36="","",M36+MAX(N$9:N35)) -> 
N37: =IF(M37="","",M37+MAX(N$10:N36)) -> 
N38: =IF(M38="","",M38+MAX(N$10:N37)) -> 
N39: =IF(M39="","",M39+MAX(N$10:N38)) -> 
N40: =IF(M40="","",M40+MAX(N$10:N39)) -> 
N41: =IF(M41="","",M41+MAX(N$10:N40)) -> 
N42: =IF(M42="","",M42+MAX(N$10:N41)) -> 
N43: =IF(M43="","",M43+MAX(N$10:N42)) -> 
N44: =IF(M44="","",M44+MAX(N$10:N43)) -> 
N45: =IF(M45="","",M45+MAX(N$10:N44)) -> 
N46: =IF(M46="","",M46+MAX(N$10:N45)) -> 
N47: =IF(M47="","",M47+MAX(N$10:N46)) -> 
N48: =IF(M48="","",M48+MAX(N$10:N47)) -> 
N49: =IF(M49="","",M49+MAX(N$10:N48)) -> 
N50: =IF(M50="","",M50+MAX(N$10:N49)) -> 
N51: =IF(M51="","",M51+MAX(N$10:N50)) -> 
N52: =IF(M52="","",M52+MAX(N$10:N51)) -> 
N53: =IF(M53="","",M53+MAX(N$10:N52)) -> 
N54: =IF(M54="","",M54+MAX(N$10:N53)) -> 
N55: =IF(M55="","",M55+MAX(N$10:N54)) -> 
N56: =IF(M56="","",M56+MAX(N$10:N55)) -> 
N57: =IF(M57="","",M57+MAX(N$10:N56)) -> 
N58: =IF(M58="","",M58+MAX(N$10:N57)) -> 
N59: =IF(M59="","",M59+MAX(N$10:N58)) -> 
N60: =IF(M60="","",M60+MAX(N$10:N59)) -> 
N61: =IF(M61="","",M61+MAX(N$10:N60)) -> 
N62: =IF(M62="","",M62+MAX(N$10:N61)) -> 
N63: =IF(M63="","",M63+MAX(N$10:N62)) -> 
D64: SPECIAL INSTRUCTIONS: | E64: =INDEX(QryItemE2019!F:F,MATCH(H5,QryItemE2019!A:A,0)) ->  | M64: TOTAL | N64: =IF(K5="LS","LS"," ") -> 

Sheet 202E23500
G1: DESIGN: | H1: =IF('Calc Cover Sheet'!B11="","",'Calc Cover Sheet'!B11) -> BMV | I1: DATE: | J1: =IF('Calc Cover Sheet'!D11="","",'Calc Cover Sheet'!D11) -> 2024-04-19 | K1: UPDATE: | L1: =IF('Calc Cover Sheet'!B13="","",'Calc Cover Sheet'!B13) ->  | M1: DATE: | N1: =IF('Calc Cover Sheet'!D13="","",'Calc Cover Sheet'!D13) -> 
G2: CHECK: | H2: =IF('Calc Cover Sheet'!B12="","",'Calc Cover Sheet'!B12) -> TLC | I2: DATE: | J2: =IF('Calc Cover Sheet'!D12="","",'Calc Cover Sheet'!D12) -> 2024-04-25 | K2: RECHECK: | L2: =IF('Calc Cover Sheet'!B14="","",'Calc Cover Sheet'!B14) ->  | M2: DATE: | N2: =IF('Calc Cover Sheet'!D14="","",'Calc Cover Sheet'!D14) -> 
G3: STRUCTURE: | H3: =IF('Calc Cover Sheet'!B7="","",'Calc Cover Sheet'!B7) -> HAM-00145-0203 | K3: SFN: | L3: =IF('Calc Cover Sheet'!B3="","",'Calc Cover Sheet'!B3) -> 3108680 | M3: PID: | N3: =IF('Calc Cover Sheet'!B9="","",'Calc Cover Sheet'!B9) -> 110563
Q4: Lump Sum Tags (Items with a "LS" Pay Unit can be tagged with one or several categories)
G5: ITEM: | H5: =MID(RIGHT(CELL("filename",D2),LEN(CELL("filename",D2))-FIND("]",CELL("filename",D2))),1,9) -> 202E23500 | J5: PAY UNIT: | K5: =INDEX(QryItemE2019!B:B,MATCH(H5,QryItemE2019!A:A,0)) -> SY
G6: SUBJECT: | H6: =IF('Calc Cover Sheet'!B2="","",'Calc Cover Sheet'!B2) -> ESTIMATED QUANTITIES
D7: DESCRIPTION: | E7: =INDEX(QryItemE2019!C:C,MATCH(H5,QryItemE2019!A:A,0)) -> WEARING COURSE REMOVED
D8: SUPPLEMENTAL DESCRIPTION:
M9: SUBTOTAL | N9: TOTAL | Q9: GROUP | R9: <<<<<Tag each subtotal value with a group from this column
N10: =IF(M10="","",M10+MAX(N$9:N9)) -> 
N11: =IF(M11="","",M11+MAX(N$9:N10)) -> 
D12: # of Approaches = | E12: 2 | N12: =IF(M12="","",M12+MAX(N$9:N11)) -> 
D13: Approach Length = | E13: 25 | F13: ft | N13: =IF(M13="","",M13+MAX(N$9:N12)) -> 
D14: Roadway Width = | E14: 30 | F14: ft | N14: =IF(M14="","",M14+MAX(N$9:N13)) -> 
N15: =IF(M15="","",M15+MAX(N$9:N14)) -> 
D16: Area = | E16: =E12*E13*E14/9 -> 166.6666667 | F16: sy | M16: =CEILING(E16,1) -> 167 | N16: =IF(M16="","",M16+MAX(N$9:N15)) -> 167 | Q16: GEN.
N17: =IF(M17="","",M17+MAX(N$9:N16)) -> 
N18: =IF(M18="","",M18+MAX(N$9:N17)) -> 
N20: =IF(M20="","",M20+MAX(N$9:N19)) -> 
N21: =IF(M21="","",M21+MAX(N$9:N20)) -> 
N22: =IF(M22="","",M22+MAX(N$9:N21)) -> 
N23: =IF(M23="","",M23+MAX(N$9:N22)) -> 
N24: =IF(M24="","",M24+MAX(N$9:N23)) -> 
N25: =IF(M25="","",M25+MAX(N$9:N24)) -> 
N26: =IF(M26="","",M26+MAX(N$9:N25)) -> 
N27: =IF(M27="","",M27+MAX(N$9:N26)) -> 
N28: =IF(M28="","",M28+MAX(N$9:N27)) -> 
N29: =IF(M29="","",M29+MAX(N$9:N28)) -> 
N30: =IF(M30="","",M30+MAX(N$9:N29)) -> 
N31: =IF(M31="","",M31+MAX(N$9:N30)) -> 
N32: =IF(M32="","",M32+MAX(N$9:N31)) -> 
N33: =IF(M33="","",M33+MAX(N$9:N32)) -> 
N34: =IF(M34="","",M34+MAX(N$9:N33)) -> 
N35: =IF(M35="","",M35+MAX(N$9:N34)) -> 
N36: =IF(M36="","",M36+MAX(N$9:N35)) -> 
N37: =IF(M37="","",M37+MAX(N$10:N36)) -> 
N38: =IF(M38="","",M38+MAX(N$10:N37)) -> 
N39: =IF(M39="","",M39+MAX(N$10:N38)) -> 
N40: =IF(M40="","",M40+MAX(N$10:N39)) -> 
N41: =IF(M41="","",M41+MAX(N$10:N40)) -> 
N42: =IF(M42="","",M42+MAX(N$10:N41)) -> 
N43: =IF(M43="","",M43+MAX(N$10:N42)) -> 
N44: =IF(M44="","",M44+MAX(N$10:N43)) -> 
N45: =IF(M45="","",M45+MAX(N$10:N44)) -> 
N46: =IF(M46="","",M46+MAX(N$10:N45)) -> 
N47: =IF(M47="","",M47+MAX(N$10:N46)) -> 
N48: =IF(M48="","",M48+MAX(N$10:N47)) -> 
N49: =IF(M49="","",M49+MAX(N$10:N48)) -> 
N50: =IF(M50="","",M50+MAX(N$10:N49)) -> 
N51: =IF(M51="","",M51+MAX(N$10:N50)) -> 
N52: =IF(M52="","",M52+MAX(N$10:N51)) -> 
N53: =IF(M53="","",M53+MAX(N$10:N52)) -> 
N54: =IF(M54="","",M54+MAX(N$10:N53)) -> 
N55: =IF(M55="","",M55+MAX(N$10:N54)) -> 
N56: =IF(M56="","",M56+MAX(N$10:N55)) -> 
N57: =IF(M57="","",M57+MAX(N$10:N56)) -> 
N58: =IF(M58="","",M58+MAX(N$10:N57)) -> 
N59: =IF(M59="","",M59+MAX(N$10:N58)) -> 
N60: =IF(M60="","",M60+MAX(N$10:N59)) -> 
N61: =IF(M61="","",M61+MAX(N$10:N60)) -> 
N62: =IF(M62="","",M62+MAX(N$10:N61)) -> 
N63: =IF(M63="","",M63+MAX(N$10:N62)) -> 
D64: SPECIAL INSTRUCTIONS: | E64: =INDEX(QryItemE2019!F:F,MATCH(H5,QryItemE2019!A:A,0)) ->  | M64: TOTAL | N64: =IF(K5="LS","LS"," ") -> 

Sheet 203E35111
G1: DESIGN: | H1: =IF('Calc Cover Sheet'!B11="","",'Calc Cover Sheet'!B11) -> BMV | I1: DATE: | J1: =IF('Calc Cover Sheet'!D11="","",'Calc Cover Sheet'!D11) -> 2024-04-19 | K1: UPDATE: | L1: =IF('Calc Cover Sheet'!B13="","",'Calc Cover Sheet'!B13) ->  | M1: DATE: | N1: =IF('Calc Cover Sheet'!D13="","",'Calc Cover Sheet'!D13) -> 
G2: CHECK: | H2: =IF('Calc Cover Sheet'!B12="","",'Calc Cover Sheet'!B12) -> TLC | I2: DATE: | J2: =IF('Calc Cover Sheet'!D12="","",'Calc Cover Sheet'!D12) -> 2024-04-25 | K2: RECHECK: | L2: =IF('Calc Cover Sheet'!B14="","",'Calc Cover Sheet'!B14) ->  | M2: DATE: | N2: =IF('Calc Cover Sheet'!D14="","",'Calc Cover Sheet'!D14) -> 
G3: STRUCTURE: | H3: =IF('Calc Cover Sheet'!B7="","",'Calc Cover Sheet'!B7) -> HAM-00145-0203 | K3: SFN: | L3: =IF('Calc Cover Sheet'!B3="","",'Calc Cover Sheet'!B3) -> 3108680 | M3: PID: | N3: =IF('Calc Cover Sheet'!B9="","",'Calc Cover Sheet'!B9) -> 110563
Q4: Lump Sum Tags (Items with a "LS" Pay Unit can be tagged with one or several categories)
G5: ITEM: | H5: =MID(RIGHT(CELL("filename",D2),LEN(CELL("filename",D2))-FIND("]",CELL("filename",D2))),1,9) -> 203E35111 | J5: PAY UNIT: | K5: =INDEX(QryItemE2019!B:B,MATCH(H5,QryItemE2019!A:A,0)) -> CY
G6: SUBJECT: | H6: =IF('Calc Cover Sheet'!B2="","",'Calc Cover Sheet'!B2) -> ESTIMATED QUANTITIES
D7: DESCRIPTION: | E7: =INDEX(QryItemE2019!C:C,MATCH(H5,QryItemE2019!A:A,0)) -> GRANULAR MATERIAL, TYPE B, AS PER PLAN
D8: SUPPLEMENTAL DESCRIPTION:
M9: SUBTOTAL | N9: TOTAL | Q9: GROUP | R9: <<<<<Tag each subtotal value with a group from this column
N10: =IF(M10="","",M10+MAX(N$9:N9)) -> 
N11: =IF(M11="","",M11+MAX(N$9:N10)) -> 
D12: Approach Slab Thickness = | E12: 17 | F12: in | H12: Abut. Footing Width = | I12: 6.5 | J12: ft | N12: =IF(M12="","",M12+MAX(N$9:N11)) -> 
D13: Deck thickness = | E13: 8.5 | F13: in | N13: =IF(M13="","",M13+MAX(N$9:N12)) -> 
D14: Beam Height = | E14: 42 | F14: in | N14: =IF(M14="","",M14+MAX(N$9:N13)) -> 
D15: Haunch = | E15: 4.75 | F15: in | N15: =IF(M15="","",M15+MAX(N$9:N14)) -> 
D16: Bearing height = | E16: 11.8125 | F16: in | N16: =IF(M16="","",M16+MAX(N$9:N15)) -> 
D17: Abut. Stem Height = | E17: 24 | F17: in | N17: =IF(M17="","",M17+MAX(N$9:N16)) -> 
D18: Abut. Footing Height = | E18: 36 | F18: in | N18: =IF(M18="","",M18+MAX(N$9:N17)) -> 
C20: Granular Material Behind Abutment Stem: | G20: APP | N20: =IF(M20="","",M20+MAX(N$9:N19)) -> 
D21: Width = | E21: 38.8333 | F21: ft | N21: =IF(M21="","",M21+MAX(N$9:N20)) -> 
D22: Length at Rear Abut. = | E22: 23.4167 | F22: ft | N22: =IF(M22="","",M22+MAX(N$9:N21)) -> 
D23: Length at Fwd. Abut. = | E23: 26.4167 | F23: ft | N23: =IF(M23="","",M23+MAX(N$9:N22)) -> 
D24: Depth = | E24: =SUM(E13:E17)/12+0.5-E12/12 -> 6.671875 | F24: ft | N24: =IF(M24="","",M24+MAX(N$9:N22)) -> 
N25: =IF(M25="","",M25+MAX(N$9:N24)) -> 
D26: Volume = | E26: =E21*(E22+E23)*E24/27 -> 478.1993194 | F26: CY | M26: =CEILING(E26,1) -> 479 | N26: =IF(M26="","",M26+MAX(N$9:N25)) -> 479 | Q26: ABUT.
N27: =IF(M27="","",M27+MAX(N$9:N26)) -> 
N28: =IF(M28="","",M28+MAX(N$9:N27)) -> 
N29: =IF(M29="","",M29+MAX(N$9:N28)) -> 
N30: =IF(M30="","",M30+MAX(N$9:N29)) -> 
N31: =IF(M31="","",M31+MAX(N$10:N30)) -> 
N32: =IF(M32="","",M32+MAX(N$10:N31)) -> 
N33: =IF(M33="","",M33+MAX(N$10:N32)) -> 
N34: =IF(M34="","",M34+MAX(N$10:N33)) -> 
N35: =IF(M35="","",M35+MAX(N$10:N34)) -> 
N36: =IF(M36="","",M36+MAX(N$10:N35)) -> 
N37: =IF(M37="","",M37+MAX(N$10:N36)) -> 
N38: =IF(M38="","",M38+MAX(N$10:N37)) -> 
N39: =IF(M39="","",M39+MAX(N$10:N38)) -> 
N40: =IF(M40="","",M40+MAX(N$10:N39)) -> 
N41: =IF(M41="","",M41+MAX(N$10:N40)) -> 
N42: =IF(M42="","",M42+MAX(N$10:N41)) -> 
N43: =IF(M43="","",M43+MAX(N$10:N42)) -> 
N44: =IF(M44="","",M44+MAX(N$10:N43)) -> 
N45: =IF(M45="","",M45+MAX(N$10:N44)) -> 
N46: =IF(M46="","",M46+MAX(N$10:N45)) -> 
N47: =IF(M47="","",M47+MAX(N$10:N46)) -> 
N48: =IF(M48="","",M48+MAX(N$10:N47)) -> 
N49: =IF(M49="","",M49+MAX(N$10:N48)) -> 
N50: =IF(M50="","",M50+MAX(N$10:N49)) -> 
N51: =IF(M51="","",M51+MAX(N$10:N50)) -> 
N52: =IF(M52="","",M52+MAX(N$10:N51)) -> 
N53: =IF(M53="","",M53+MAX(N$10:N52)) -> 
N54: =IF(M54="","",M54+MAX(N$10:N53)) -> 
N55: =IF(M55="","",M55+MAX(N$10:N54)) -> 
N56: =IF(M56="","",M56+MAX(N$10:N55)) -> 
N57: =IF(M57="","",M57+MAX(N$10:N56)) -> 
D58: SPECIAL INSTRUCTIONS: | E58: =INDEX(QryItemE2019!F:F,MATCH(H5,QryItemE2019!A:A,0)) ->  | M58: TOTAL | N58: =IF(K5="LS","LS"," ") -> 

Sheet 203E35120
G1: DESIGN: | H1: =IF('Calc Cover Sheet'!B11="","",'Calc Cover Sheet'!B11) -> BMV | I1: DATE: | J1: =IF('Calc Cover Sheet'!D11="","",'Calc Cover Sheet'!D11) -> 2024-04-19 | K1: UPDATE: | L1: =IF('Calc Cover Sheet'!B13="","",'Calc Cover Sheet'!B13) ->  | M1: DATE: | N1: =IF('Calc Cover Sheet'!D13="","",'Calc Cover Sheet'!D13) -> 
G2: CHECK: | H2: =IF('Calc Cover Sheet'!B12="","",'Calc Cover Sheet'!B12) -> TLC | I2: DATE: | J2: =IF('Calc Cover Sheet'!D12="","",'Calc Cover Sheet'!D12) -> 2024-04-25 | K2: RECHECK: | L2: =IF('Calc Cover Sheet'!B14="","",'Calc Cover Sheet'!B14) ->  | M2: DATE: | N2: =IF('Calc Cover Sheet'!D14="","",'Calc Cover Sheet'!D14) -> 
G3: STRUCTURE: | H3: =IF('Calc Cover Sheet'!B7="","",'Calc Cover Sheet'!B7) -> HAM-00145-0203 | K3: SFN: | L3: =IF('Calc Cover Sheet'!B3="","",'Calc Cover Sheet'!B3) -> 3108680 | M3: PID: | N3: =IF('Calc Cover Sheet'!B9="","",'Calc Cover Sheet'!B9) -> 110563
Q4: Lump Sum Tags (Items with a "LS" Pay Unit can be tagged with one or several categories)
G5: ITEM: | H5: =MID(RIGHT(CELL("filename",D2),LEN(CELL("filename",D2))-FIND("]",CELL("filename",D2))),1,9) -> 203E35120 | J5: PAY UNIT: | K5: =INDEX(QryItemE2019!B:B,MATCH(H5,QryItemE2019!A:A,0)) -> CY
G6: SUBJECT: | H6: =IF('Calc Cover Sheet'!B2="","",'Calc Cover Sheet'!B2) -> ESTIMATED QUANTITIES
D7: DESCRIPTION: | E7: =INDEX(QryItemE2019!C:C,MATCH(H5,QryItemE2019!A:A,0)) -> GRANULAR MATERIAL, TYPE C
D8: SUPPLEMENTAL DESCRIPTION:
M9: SUBTOTAL | N9: TOTAL | Q9: GROUP | R9: <<<<<Tag each subtotal value with a group from this column
N10: =IF(M10="","",M10+MAX(N$9:N9)) -> 
C11: 1ft depth below mse wall for limits of excavation | N11: =IF(M11="","",M11+MAX(N$9:N10)) -> 
N12: =IF(M12="","",M12+MAX(N$9:N11)) -> 
C13: Abutments & Turnbacks: | N13: =IF(M13="","",M13+MAX(N$9:N12)) -> 
D14: Type C depth = | E14: 1 | F14: ft
D15: MSE Wall Width = | E15: 0.458 | F15: ft
D16: MSE Wall Base Width = | E16: 2 | F16: ft
D17: Rear Soil Reinforcement length = | E17: 20 | F17: ft | N17: =IF(M17="","",M17+MAX(N$9:N13)) -> 
D18: Fwd. Soil Reinforcement length = | E18: 23 | F18: ft
D19: Rear Limits of Wall Excavation = | E19: =1+0.5*E16+0.5*E15+E17+2 -> 24.229 | F19: ft | N19: =IF(M19="","",M19+MAX(N$9:N17)) -> 
D20: Fwd. Limits of Wall Excavation = | E20: =1+0.5*E16+0.5*E15+E18+2 -> 27.229 | F20: ft
B22: → Required strap length will result in overlap, therefore, excavation area will be full plan area under wall limits. (BDM Fig. 201-6)
D24: Abutment Face MSE Wall Length = | E24: 40.09 | F24: ft | N24: =IF(M24="","",M24+MAX(N$9:N19)) -> 
D25: Turnback Length, Rear Abut. = | E25: 48 | F25: ft | N25: =IF(M25="","",M25+MAX(N$9:N24)) -> 
D26: Turnback Length, Fwd. Abut. = | E26: 65 | F26: ft | N26: =IF(M26="","",M26+MAX(N$9:N25)) -> 
D28: Width = | E28: =E24+(1-E15/2)*2+2 -> 43.632 | F28: ft
D29: Length = | E29: =E25+(1-E15/2)+1 -> 49.771 | F29: ft
D30: Rear Abut. Area = | E30: =E28*E29 -> 2171.608272 | F30: SF
D32: Width = | E32: =E24+(1-E15/2)*2+2 -> 43.632 | F32: ft
D33: Length = | E33: =E26+(1-E15/2)+1 -> 66.771 | F33: ft
D34: Fwd. Abut Area = | E34: =E33*E32 -> 2913.352272 | F34: SF | N34: =IF(M34="","",M34+MAX(N$9:N33)) -> 
N35: =IF(M35="","",M35+MAX(N$9:N34)) -> 
D36: Volume = | E36: =(E30+E34)*E14/27 -> 188.331872 | F36: CY | M36: =CEILING(E36,1) -> 189 | N36: =IF(M36="","",M36+MAX(N$9:N35)) -> 189 | Q36: ABUT.
N37: =IF(M37="","",M37+MAX(N$9:N36)) -> 
N38: =IF(M38="","",M38+MAX(N$9:N37)) -> 
N39: =IF(M39="","",M39+MAX(N$9:N38)) -> 
N40: =IF(M40="","",M40+MAX(N$9:N39)) -> 
N41: =IF(M41="","",M41+MAX(N$9:N40)) -> 
N42: =IF(M42="","",M42+MAX(N$9:N41)) -> 
N43: =IF(M43="","",M43+MAX(N$9:N42)) -> 
N44: =IF(M44="","",M44+MAX(N$9:N43)) -> 
N45: =IF(M45="","",M45+MAX(N$9:N44)) -> 
N46: =IF(M46="","",M46+MAX(N$9:N45)) -> 
N47: =IF(M47="","",M47+MAX(N$9:N46)) -> 
N48: =IF(M48="","",M48+MAX(N$9:N47)) -> 
N49: =IF(M49="","",M49+MAX(N$9:N48)) -> 
N50: =IF(M50="","",M50+MAX(N$10:N49)) -> 
N51: =IF(M51="","",M51+MAX(N$10:N50)) -> 
N52: =IF(M52="","",M52+MAX(N$10:N51)) -> 
N53: =IF(M53="","",M53+MAX(N$10:N52)) -> 
N54: =IF(M54="","",M54+MAX(N$10:N53)) -> 
N55: =IF(M55="","",M55+MAX(N$10:N54)) -> 
N56: =IF(M56="","",M56+MAX(N$10:N55)) -> 
N57: =IF(M57="","",M57+MAX(N$10:N56)) -> 
N58: =IF(M58="","",M58+MAX(N$10:N57)) -> 
N59: =IF(M59="","",M59+MAX(N$10:N58)) -> 
N60: =IF(M60="","",M60+MAX(N$10:N59)) -> 
N61: =IF(M61="","",M61+MAX(N$10:N60)) -> 
N62: =IF(M62="","",M62+MAX(N$10:N61)) -> 
N63: =IF(M63="","",M63+MAX(N$10:N62)) -> 
N64: =IF(M64="","",M64+MAX(N$10:N63)) -> 
N65: =IF(M65="","",M65+MAX(N$10:N64)) -> 
N66: =IF(M66="","",M66+MAX(N$10:N65)) -> 
N67: =IF(M67="","",M67+MAX(N$10:N66)) -> 
N68: =IF(M68="","",M68+MAX(N$10:N67)) -> 
N69: =IF(M69="","",M69+MAX(N$10:N68)) -> 
N70: =IF(M70="","",M70+MAX(N$10:N69)) -> 
N71: =IF(M71="","",M71+MAX(N$10:N70)) -> 
N72: =IF(M72="","",M72+MAX(N$10:N71)) -> 
N73: =IF(M73="","",M73+MAX(N$10:N72)) -> 
N74: =IF(M74="","",M74+MAX(N$10:N73)) -> 
N75: =IF(M75="","",M75+MAX(N$10:N74)) -> 
N76: =IF(M76="","",M76+MAX(N$10:N75)) -> 
D77: SPECIAL INSTRUCTIONS: | E77: =INDEX(QryItemE2019!F:F,MATCH(H5,QryItemE2019!A:A,0)) ->  | M77: TOTAL | N77: =IF(K5="LS","LS"," ") -> 

Sheet 503E11101
G1: DESIGN: | H1: =IF('Calc Cover Sheet'!B11="","",'Calc Cover Sheet'!B11) -> BMV | I1: DATE: | J1: =IF('Calc Cover Sheet'!D11="","",'Calc Cover Sheet'!D11) -> 2024-04-19 | K1: UPDATE: | L1: =IF('Calc Cover Sheet'!B13="","",'Calc Cover Sheet'!B13) ->  | M1: DATE: | N1: =IF('Calc Cover Sheet'!D13="","",'Calc Cover Sheet'!D13) -> 
G2: CHECK: | H2: =IF('Calc Cover Sheet'!B12="","",'Calc Cover Sheet'!B12) -> TLC | I2: DATE: | J2: =IF('Calc Cover Sheet'!D12="","",'Calc Cover Sheet'!D12) -> 2024-04-25 | K2: RECHECK: | L2: =IF('Calc Cover Sheet'!B14="","",'Calc Cover Sheet'!B14) ->  | M2: DATE: | N2: =IF('Calc Cover Sheet'!D14="","",'Calc Cover Sheet'!D14) -> 
G3: STRUCTURE: | H3: =IF('Calc Cover Sheet'!B7="","",'Calc Cover Sheet'!B7) -> HAM-00145-0203 | K3: SFN: | L3: =IF('Calc Cover Sheet'!B3="","",'Calc Cover Sheet'!B3) -> 3108680 | M3: PID: | N3: =IF('Calc Cover Sheet'!B9="","",'Calc Cover Sheet'!B9) -> 110563
Q4: Lump Sum Tags (Items with a "LS" Pay Unit can be tagged with one or several categories)
G5: ITEM: | H5: =MID(RIGHT(CELL("filename",D2),LEN(CELL("filename",D2))-FIND("]",CELL("filename",D2))),1,9) -> 503E11101 | J5: PAY UNIT: | K5: =INDEX(QryItemE2019!B:B,MATCH(H5,QryItemE2019!A:A,0)) -> LS
G6: SUBJECT: | H6: =IF('Calc Cover Sheet'!B2="","",'Calc Cover Sheet'!B2) -> ESTIMATED QUANTITIES
D7: DESCRIPTION: | E7: =INDEX(QryItemE2019!C:C,MATCH(H5,QryItemE2019!A:A,0)) -> COFFERDAMS AND EXCAVATION BRACING, AS PER PLAN
D8: SUPPLEMENTAL DESCRIPTION:
M9: SUBTOTAL | N9: TOTAL | Q9: GROUP | R9: <<<<<Tag each subtotal value with a group from this column
N10: =IF(M10="","",M10+MAX(N$9:N9)) -> 
D11: W18x76 | N11: =IF(M11="","",M11+MAX(N$9:N10)) -> 
N12: =IF(M12="","",M12+MAX(N$9:N11)) -> 
D13: Excavation Length = | E13: 52 | F13: ft | N13: =IF(M13="","",M13+MAX(N$9:N12)) -> 
D14: Excavation Width = | E14: 15.5 | F14: ft | N14: =IF(M14="","",M14+MAX(N$9:N13)) -> 
D15: Excavation Perimeter = | E15: =(E13+E14)*2 -> 135 | F15: ft | N15: =IF(M15="","",M15+MAX(N$9:N14)) -> 
D16: Max beam spa. = | E16: 5 | F16: ft
D17: # beams = | E17: =E15/E16 -> 27 | F17: each | N17: =IF(M17="","",M17+MAX(N$9:N16)) -> 
N18: =IF(M18="","",M18+MAX(N$9:N17)) -> 
D19: Beam top El = | E19: 785.5 | N19: =IF(M19="","",M19+MAX(N$9:N18)) -> 
D20: Beam bott El = | E20: 760.5 | N20: =IF(M20="","",M20+MAX(N$9:N19)) -> 
D21: Beam Length = | E21: =E19-E20 -> 25 | F21: ft | N21: =IF(M21="","",M21+MAX(N$9:N20)) -> 
N22: =IF(M22="","",M22+MAX(N$9:N21)) -> 
D23: Steel cost = | E23: 95 | F23: $/ft | N23: =IF(M23="","",M23+MAX(N$9:N22)) -> 
N24: =IF(M24="","",M24+MAX(N$9:N23)) -> 
D25: Beam cost = | E25: =E21*E17*E23 -> 64125 | N25: =IF(M25="","",M25+MAX(N$9:N24)) -> 
N26: =IF(M26="","",M26+MAX(N$9:N25)) -> 
D27: Lagging | N27: =IF(M27="","",M27+MAX(N$9:N26)) -> 
N28: =IF(M28="","",M28+MAX(N$9:N27)) -> 
D29: Bott. Excavation = | E29: 770 | N29: =IF(M29="","",M29+MAX(N$9:N28)) -> 
D30: Excavation Depth = | E30: =E19-E29 -> 15.5 | F30: ft | N30: =IF(M30="","",M30+MAX(N$9:N29)) -> 
N31: =IF(M31="","",M31+MAX(N$9:N30)) -> 
D32: Area = | E32: =2*(E13+E14)*E30 -> 2092.5 | F32: sq ft | N32: =IF(M32="","",M32+MAX(N$9:N31)) -> 
D33: Lagging cost = | E33: 38 | F33: $/sq ft | N33: =IF(M33="","",M33+MAX(N$9:N32)) -> 
N34: =IF(M34="","",M34+MAX(N$10:N33)) -> 
D35: Total lagging cost = | E35: =E32*E33 -> 79515 | N35: =IF(M35="","",M35+MAX(N$10:N34)) -> 
N36: =IF(M36="","",M36+MAX(N$10:N35)) -> 
D38: Drilled Pier/shaft & Concrete
D40: Diameter = | E40: 30 | F40: in
D41: Length = | E41: 10 | F41: ft
D42: # piers = | E42: =E17 -> 27 | F42: each
D44: Length = | E44: =E41*E42 -> 270 | F44: ft
D45: Shaft cost = | E45: 300 | F45: $/ft
D47: Total lagging cost = | E47: =E44*E45 -> 81000
N50: =IF(M50="","",M50+MAX(N$10:N36)) -> 
D51: Total Cofferdam & Excavation = | G51: =ROUNDUP(E25+E35+E47,-3) -> 225000 | N51: =IF(M51="","",M51+MAX(N$10:N50)) -> 
N52: =IF(M52="","",M52+MAX(N$10:N51)) -> 
N53: =IF(M53="","",M53+MAX(N$10:N52)) -> 
N54: =IF(M54="","",M54+MAX(N$10:N53)) -> 
N55: =IF(M55="","",M55+MAX(N$10:N54)) -> 
N56: =IF(M56="","",M56+MAX(N$10:N55)) -> 
N57: =IF(M57="","",M57+MAX(N$10:N56)) -> 
N58: =IF(M58="","",M58+MAX(N$10:N57)) -> 
N59: =IF(M59="","",M59+MAX(N$10:N58)) -> 
N60: =IF(M60="","",M60+MAX(N$10:N59)) -> 
N61: =IF(M61="","",M61+MAX(N$10:N60)) -> 
N62: =IF(M62="","",M62+MAX(N$10:N61)) -> 
N63: =IF(M63="","",M63+MAX(N$10:N62)) -> 
N64: =IF(M64="","",M64+MAX(N$10:N63)) -> 
N65: =IF(M65="","",M65+MAX(N$10:N64)) -> 
N66: =IF(M66="","",M66+MAX(N$10:N65)) -> 
D67: SPECIAL INSTRUCTIONS: | E67: =INDEX(QryItemE2019!F:F,MATCH(H5,QryItemE2019!A:A,0)) ->  | M67: TOTAL | N67: =IF(K5="LS","LS"," ") -> LS

Sheet 503E21300
G1: DESIGN: | H1: =IF('Calc Cover Sheet'!B11="","",'Calc Cover Sheet'!B11) -> BMV | I1: DATE: | J1: =IF('Calc Cover Sheet'!D11="","",'Calc Cover Sheet'!D11) -> 2024-04-19 | K1: UPDATE: | L1: =IF('Calc Cover Sheet'!B13="","",'Calc Cover Sheet'!B13) ->  | M1: DATE: | N1: =IF('Calc Cover Sheet'!D13="","",'Calc Cover Sheet'!D13) -> 
G2: CHECK: | H2: =IF('Calc Cover Sheet'!B12="","",'Calc Cover Sheet'!B12) -> TLC | I2: DATE: | J2: =IF('Calc Cover Sheet'!D12="","",'Calc Cover Sheet'!D12) -> 2024-04-25 | K2: RECHECK: | L2: =IF('Calc Cover Sheet'!B14="","",'Calc Cover Sheet'!B14) ->  | M2: DATE: | N2: =IF('Calc Cover Sheet'!D14="","",'Calc Cover Sheet'!D14) -> 
G3: STRUCTURE: | H3: =IF('Calc Cover Sheet'!B7="","",'Calc Cover Sheet'!B7) -> HAM-00145-0203 | K3: SFN: | L3: =IF('Calc Cover Sheet'!B3="","",'Calc Cover Sheet'!B3) -> 3108680 | M3: PID: | N3: =IF('Calc Cover Sheet'!B9="","",'Calc Cover Sheet'!B9) -> 110563
Q4: Lump Sum Tags (Items with a "LS" Pay Unit can be tagged with one or several categories)
G5: ITEM: | H5: =MID(RIGHT(CELL("filename",D2),LEN(CELL("filename",D2))-FIND("]",CELL("filename",D2))),1,9) -> 503E21300 | J5: PAY UNIT: | K5: =INDEX(QryItemE2019!B:B,MATCH(H5,QryItemE2019!A:A,0)) -> LS
G6: SUBJECT: | H6: =IF('Calc Cover Sheet'!B2="","",'Calc Cover Sheet'!B2) -> ESTIMATED QUANTITIES
D7: DESCRIPTION: | E7: =INDEX(QryItemE2019!C:C,MATCH(H5,QryItemE2019!A:A,0)) -> UNCLASSIFIED EXCAVATION
D8: SUPPLEMENTAL DESCRIPTION:
M9: SUBTOTAL | N9: TOTAL | Q9: GROUP | R9: <<<<<Tag each subtotal value with a group from this column
N10: =IF(M10="","",M10+MAX(N$9:N9)) -> 
N11: =IF(M11="","",M11+MAX(N$9:N10)) -> 
C12: Pier Excavation | N12: =IF(M12="","",M12+MAX('840E21000'!N$9:N11)) -> 
N13: =IF(M13="","",M13+MAX(N$12:N12)) -> 
E14: Depth beyond btm of structure removed = | F14: 7 | G14: ft | N14: =IF(M14="","",M14+MAX(N$12:N13)) -> 
E15: Width of Pier Footing = | F15: 9 | G15: ft | N15: =IF(M15="","",M15+MAX(N$12:N14)) -> 
E16: Width of Excavation = | F16: 16.5 | G16: ft | H16: Inside dimension of shoring walls | N16: =IF(M16="","",M16+MAX(N$12:N15)) -> 
E17: Length of Excavation = | F17: 53 | G17: ft | N17: =IF(M17="","",M17+MAX(N$12:N15)) -> 
N18: =IF(M18="","",M18+MAX(N$12:N16)) -> 
E19: Volume = | F19: =F14*F16*F17/27 -> 226.7222222 | G19: CY | N19: =IF(M19="","",M19+MAX(N$12:N17)) ->  | Q19: PIER
E21: Unit cost = | F21: 75 | G21: $/CY | N21: =IF(M21="","",M21+MAX(N$12:N19)) -> 
N22: =IF(M22="","",M22+MAX(N$9:N11)) -> 
E23: Total = | F23: =ROUNDUP(F19*F21,-2) -> 17100 | N23: =IF(M23="","",M23+MAX(N$9:N22)) -> 
N24: =IF(M24="","",M24+MAX(N$9:N23)) -> 
N25: =IF(M25="","",M25+MAX(N$9:N24)) -> 
N26: =IF(M26="","",M26+MAX(N$9:N25)) -> 
N27: =IF(M27="","",M27+MAX(N$9:N26)) -> 
N29: =IF(M29="","",M29+MAX(N$12:N27)) -> 
N30: =IF(M30="","",M30+MAX(N$12:N28)) -> 
N32: =IF(M32="","",M32+MAX(N$9:N30)) -> 
N33: =IF(M33="","",M33+MAX(N$9:N32)) -> 
N34: =IF(M34="","",M34+MAX(N$9:N33)) -> 
N35: =IF(M35="","",M35+MAX(N$9:N34)) -> 
N36: =IF(M36="","",M36+MAX(N$9:N35)) -> 
N37: =IF(M37="","",M37+MAX(N$9:N36)) -> 
N38: =IF(M38="","",M38+MAX(N$9:N37)) -> 
N39: =IF(M39="","",M39+MAX(N$9:N38)) -> 
N40: =IF(M40="","",M40+MAX(N$9:N39)) -> 
N41: =IF(M41="","",M41+MAX(N$9:N40)) -> 
N42: =IF(M42="","",M42+MAX(N$9:N41)) -> 
N43: =IF(M43="","",M43+MAX(N$9:N42)) -> 
N44: =IF(M44="","",M44+MAX(N$9:N43)) -> 
N45: =IF(M45="","",M45+MAX(N$9:N44)) -> 
N46: =IF(M46="","",M46+MAX(N$9:N45)) -> 
N47: =IF(M47="","",M47+MAX(N$9:N46)) -> 
N48: =IF(M48="","",M48+MAX(N$10:N47)) -> 
N49: =IF(M49="","",M49+MAX(N$10:N48)) -> 
N50: =IF(M50="","",M50+MAX(N$10:N49)) -> 
N51: =IF(M51="","",M51+MAX(N$10:N50)) -> 
N52: =IF(M52="","",M52+MAX(N$10:N51)) -> 
N53: =IF(M53="","",M53+MAX(N$10:N52)) -> 
N54: =IF(M54="","",M54+MAX(N$10:N53)) -> 
N55: =IF(M55="","",M55+MAX(N$10:N54)) -> 
N56: =IF(M56="","",M56+MAX(N$10:N55)) -> 
N57: =IF(M57="","",M57+MAX(N$10:N56)) -> 
N58: =IF(M58="","",M58+MAX(N$10:N57)) -> 
N59: =IF(M59="","",M59+MAX(N$10:N58)) -> 
N60: =IF(M60="","",M60+MAX(N$10:N59)) -> 
N61: =IF(M61="","",M61+MAX(N$10:N60)) -> 
N62: =IF(M62="","",M62+MAX(N$10:N61)) -> 
N63: =IF(M63="","",M63+MAX(N$10:N62)) -> 
N64: =IF(M64="","",M64+MAX(N$10:N63)) -> 
N65: =IF(M65="","",M65+MAX(N$10:N64)) -> 
N66: =IF(M66="","",M66+MAX(N$10:N65)) -> 
N67: =IF(M67="","",M67+MAX(N$10:N66)) -> 
N68: =IF(M68="","",M68+MAX(N$10:N67)) -> 
N69: =IF(M69="","",M69+MAX(N$10:N68)) -> 
N70: =IF(M70="","",M70+MAX(N$10:N69)) -> 
N71: =IF(M71="","",M71+MAX(N$10:N70)) -> 
N72: =IF(M72="","",M72+MAX(N$10:N71)) -> 
N73: =IF(M73="","",M73+MAX(N$10:N72)) -> 
N74: =IF(M74="","",M74+MAX(N$10:N73)) -> 
D75: SPECIAL INSTRUCTIONS: | E75: =INDEX(QryItemE2019!F:F,MATCH(H5,QryItemE2019!A:A,0)) -> CHECK UNIT OF MEASURE | M75: TOTAL | N75: =IF(K5="LS","LS"," ") -> LS

Sheet 507E00101
G1: DESIGN: | H1: =IF('Calc Cover Sheet'!B11="","",'Calc Cover Sheet'!B11) -> BMV | I1: DATE: | J1: =IF('Calc Cover Sheet'!D11="","",'Calc Cover Sheet'!D11) -> 2024-04-19 | K1: UPDATE: | L1: =IF('Calc Cover Sheet'!B13="","",'Calc Cover Sheet'!B13) ->  | M1: DATE: | N1: =IF('Calc Cover Sheet'!D13="","",'Calc Cover Sheet'!D13) -> 
G2: CHECK: | H2: =IF('Calc Cover Sheet'!B12="","",'Calc Cover Sheet'!B12) -> TLC | I2: DATE: | J2: =IF('Calc Cover Sheet'!D12="","",'Calc Cover Sheet'!D12) -> 2024-04-25 | K2: RECHECK: | L2: =IF('Calc Cover Sheet'!B14="","",'Calc Cover Sheet'!B14) ->  | M2: DATE: | N2: =IF('Calc Cover Sheet'!D14="","",'Calc Cover Sheet'!D14) -> 
G3: STRUCTURE: | H3: =IF('Calc Cover Sheet'!B7="","",'Calc Cover Sheet'!B7) -> HAM-00145-0203 | K3: SFN: | L3: =IF('Calc Cover Sheet'!B3="","",'Calc Cover Sheet'!B3) -> 3108680 | M3: PID: | N3: =IF('Calc Cover Sheet'!B9="","",'Calc Cover Sheet'!B9) -> 110563
Q4: Lump Sum Tags (Items with a "LS" Pay Unit can be tagged with one or several categories)
G5: ITEM: | H5: =MID(RIGHT(CELL("filename",D2),LEN(CELL("filename",D2))-FIND("]",CELL("filename",D2))),1,9) -> 507E00101 | J5: PAY UNIT: | K5: =INDEX(QryItemE2019!B:B,MATCH(H5,QryItemE2019!A:A,0)) -> FT
G6: SUBJECT: | H6: =IF('Calc Cover Sheet'!B2="","",'Calc Cover Sheet'!B2) -> ESTIMATED QUANTITIES
D7: DESCRIPTION: | E7: =INDEX(QryItemE2019!C:C,MATCH(H5,QryItemE2019!A:A,0)) -> STEEL PILES HP10X42, FURNISHED, AS PER PLAN
D8: SUPPLEMENTAL DESCRIPTION:
M9: SUBTOTAL | N9: TOTAL | Q9: GROUP | R9: <<<<<Tag each subtotal value with a group from this column
N10: =IF(M10="","",M10+MAX(N$9:N9)) -> 
N11: =IF(M11="","",M11+MAX(N$9:N10)) -> 
N12: =IF(M12="","",M12+MAX(N$9:N11)) -> 
D13: Rear Abut. Pile Length = | E13: 40 | F13: ft | N13: =IF(M13="","",M13+MAX(N$9:N12)) -> 
D14: # of Rear Abut. Piles = | E14: 12 | F14: each | N14: =IF(M14="","",M14+MAX(N$9:N13)) -> 
N15: =IF(M15="","",M15+MAX(N$9:N14)) -> 
D16: Fwd. Abut. Pile Length = | E16: 35 | F16: ft | N16: =IF(M16="","",M16+MAX(N$9:N15)) -> 
D17: # of Fwd. Abut. Piles = | E17: 12 | F17: each | N17: =IF(M17="","",M17+MAX(N$9:N16)) -> 
N18: =IF(M18="","",M18+MAX(N$9:N17)) -> 
D19: Total Length = | E19: =E13*E14+E16*E17 -> 900 | F19: ft | M19: =CEILING(E19,1) -> 900 | N19: =IF(M19="","",M19+MAX(N$9:N18)) -> 900 | Q19: ABUT.
N20: =IF(M20="","",M20+MAX(N$9:N19)) -> 
N21: =IF(M21="","",M21+MAX(N$9:N20)) -> 
N22: =IF(M22="","",M22+MAX(N$9:N21)) -> 
N23: =IF(M23="","",M23+MAX(N$9:N22)) -> 
N24: =IF(M24="","",M24+MAX(N$9:N23)) -> 
N25: =IF(M25="","",M25+MAX(N$9:N24)) -> 
N26: =IF(M26="","",M26+MAX(N$9:N25)) -> 
N27: =IF(M27="","",M27+MAX(N$9:N26)) -> 
N28: =IF(M28="","",M28+MAX(N$9:N27)) -> 
N29: =IF(M29="","",M29+MAX(N$9:N28)) -> 
N30: =IF(M30="","",M30+MAX(N$9:N29)) -> 
N31: =IF(M31="","",M31+MAX(N$9:N30)) -> 
N32: =IF(M32="","",M32+MAX(N$9:N31)) -> 
N33: =IF(M33="","",M33+MAX(N$9:N32)) -> 
N34: =IF(M34="","",M34+MAX(N$9:N33)) -> 
N35: =IF(M35="","",M35+MAX(N$9:N34)) -> 
N36: =IF(M36="","",M36+MAX(N$9:N35)) -> 
N37: =IF(M37="","",M37+MAX(N$9:N36)) -> 
N38: =IF(M38="","",M38+MAX(N$9:N37)) -> 
N39: =IF(M39="","",M39+MAX(N$9:N38)) -> 
N40: =IF(M40="","",M40+MAX(N$9:N39)) -> 
N41: =IF(M41="","",M41+MAX(N$9:N40)) -> 
N42: =IF(M42="","",M42+MAX(N$9:N41)) -> 
N43: =IF(M43="","",M43+MAX(N$9:N42)) -> 
N44: =IF(M44="","",M44+MAX(N$9:N43)) -> 
N45: =IF(M45="","",M45+MAX(N$9:N44)) -> 
N46: =IF(M46="","",M46+MAX(N$9:N45)) -> 
N47: =IF(M47="","",M47+MAX(N$9:N46)) -> 
N48: =IF(M48="","",M48+MAX(N$9:N47)) -> 
N49: =IF(M49="","",M49+MAX(N$9:N48)) -> 
N50: =IF(M50="","",M50+MAX(N$9:N49)) -> 
N51: =IF(M51="","",M51+MAX(N$9:N50)) -> 
N52: =IF(M52="","",M52+MAX(N$9:N51)) -> 
N53: =IF(M53="","",M53+MAX(N$9:N52)) -> 
N54: =IF(M54="","",M54+MAX(N$9:N53)) -> 
N55: =IF(M55="","",M55+MAX(N$9:N54)) -> 
N56: =IF(M56="","",M56+MAX(N$9:N55)) -> 
N57: =IF(M57="","",M57+MAX(N$9:N56)) -> 
N58: =IF(M58="","",M58+MAX(N$9:N57)) -> 
N59: =IF(M59="","",M59+MAX(N$9:N58)) -> 
N60: =IF(M60="","",M60+MAX(N$9:N59)) -> 
N61: =IF(M61="","",M61+MAX(N$9:N60)) -> 
N62: =IF(M62="","",M62+MAX(N$9:N61)) -> 
N63: =IF(M63="","",M63+MAX(N$9:N62)) -> 
D64: SPECIAL INSTRUCTIONS: | E64: =INDEX(QryItemE2019!F:F,MATCH(H5,QryItemE2019!A:A,0)) ->  | M64: TOTAL | N64: =IF(K5="LS","LS"," ") -> 

Sheet 507E92201
G1: DESIGN: | H1: =IF('Calc Cover Sheet'!B11="","",'Calc Cover Sheet'!B11) -> BMV | I1: DATE: | J1: =IF('Calc Cover Sheet'!D11="","",'Calc Cover Sheet'!D11) -> 2024-04-19 | K1: UPDATE: | L1: =IF('Calc Cover Sheet'!B13="","",'Calc Cover Sheet'!B13) ->  | M1: DATE: | N1: =IF('Calc Cover Sheet'!D13="","",'Calc Cover Sheet'!D13) -> 
G2: CHECK: | H2: =IF('Calc Cover Sheet'!B12="","",'Calc Cover Sheet'!B12) -> TLC | I2: DATE: | J2: =IF('Calc Cover Sheet'!D12="","",'Calc Cover Sheet'!D12) -> 2024-04-25 | K2: RECHECK: | L2: =IF('Calc Cover Sheet'!B14="","",'Calc Cover Sheet'!B14) ->  | M2: DATE: | N2: =IF('Calc Cover Sheet'!D14="","",'Calc Cover Sheet'!D14) -> 
G3: STRUCTURE: | H3: =IF('Calc Cover Sheet'!B7="","",'Calc Cover Sheet'!B7) -> HAM-00145-0203 | K3: SFN: | L3: =IF('Calc Cover Sheet'!B3="","",'Calc Cover Sheet'!B3) -> 3108680 | M3: PID: | N3: =IF('Calc Cover Sheet'!B9="","",'Calc Cover Sheet'!B9) -> 110563
Q4: Lump Sum Tags (Items with a "LS" Pay Unit can be tagged with one or several categories)
G5: ITEM: | H5: =MID(RIGHT(CELL("filename",D2),LEN(CELL("filename",D2))-FIND("]",CELL("filename",D2))),1,9) -> 507E92201 | J5: PAY UNIT: | K5: =INDEX(QryItemE2019!B:B,MATCH(H5,QryItemE2019!A:A,0)) -> FT
G6: SUBJECT: | H6: =IF('Calc Cover Sheet'!B2="","",'Calc Cover Sheet'!B2) -> ESTIMATED QUANTITIES
D7: DESCRIPTION: | E7: =INDEX(QryItemE2019!C:C,MATCH(H5,QryItemE2019!A:A,0)) -> PREBORED HOLES, AS PER PLAN
D8: SUPPLEMENTAL DESCRIPTION:
M9: SUBTOTAL | N9: TOTAL | Q9: GROUP | R9: <<<<<Tag each subtotal value with a group from this column
N10: =IF(M10="","",M10+MAX(N$9:N9)) -> 
N11: =IF(M11="","",M11+MAX(N$9:N10)) -> 
N12: =IF(M12="","",M12+MAX(N$9:N11)) -> 
D13: # of Rear Abut. Piles = | E13: 12 | F13: each | N13: =IF(M13="","",M13+MAX(N$9:N12)) -> 
D14: Exist Ground El = | E14: 780.5 | F14: ft | G14: Bottom of MSE wall excavation
D15: Top of Rock El = | E15: 772.33 | F15: ft
D16: Prebore Depth = | E16: 5 | F16: ft
D17: Total = | E17: =E13*((E14-E15)+E16) -> 158.04 | F17: ft | N17: =IF(M17="","",M17+MAX(N$9:N16)) -> 
N18: =IF(M18="","",M18+MAX(N$9:N17)) -> 
D19: # of Fwd. Abut. Piles = | E19: 12 | F19: each
D20: Exist Ground El = | E20: 783.5 | F20: ft | G20: Bottom of MSE wall excavation
D21: Top of Rock El = | E21: 779.91 | F21: ft
D22: Prebore Depth = | E22: 5 | F22: ft | N22: =IF(M22="","",M22+MAX(N$9:N19)) -> 
D23: Total = | E23: =E19*((E20-E21)+E22) -> 103.08 | F23: ft | N23: =IF(M23="","",M23+MAX(N$9:N22)) -> 
N24: =IF(M24="","",M24+MAX(N$9:N23)) -> 
N25: =IF(M25="","",M25+MAX(N$9:N24)) -> 
D26: Total = | E26: =E17+E23 -> 261.12 | F26: each | M26: =CEILING(E26,1) -> 262 | N26: =IF(M26="","",M26+MAX(N$9:N25)) -> 262 | Q26: ABUT.
N27: =IF(M27="","",M27+MAX(N$9:N26)) -> 
N28: =IF(M28="","",M28+MAX(N$9:N27)) -> 
N29: =IF(M29="","",M29+MAX(N$9:N28)) -> 
N30: =IF(M30="","",M30+MAX(N$9:N29)) -> 
N31: =IF(M31="","",M31+MAX(N$9:N30)) -> 
N32: =IF(M32="","",M32+MAX(N$9:N31)) -> 
N33: =IF(M33="","",M33+MAX(N$9:N32)) -> 
N34: =IF(M34="","",M34+MAX(N$9:N33)) -> 
N35: =IF(M35="","",M35+MAX(N$9:N34)) -> 
N36: =IF(M36="","",M36+MAX(N$9:N35)) -> 
N37: =IF(M37="","",M37+MAX(N$9:N36)) -> 
N38: =IF(M38="","",M38+MAX(N$9:N37)) -> 
N39: =IF(M39="","",M39+MAX(N$9:N38)) -> 
N40: =IF(M40="","",M40+MAX(N$9:N39)) -> 
N41: =IF(M41="","",M41+MAX(N$9:N40)) -> 
N42: =IF(M42="","",M42+MAX(N$9:N41)) -> 
N43: =IF(M43="","",M43+MAX(N$9:N42)) -> 
N44: =IF(M44="","",M44+MAX(N$9:N43)) -> 
N45: =IF(M45="","",M45+MAX(N$9:N44)) -> 
N46: =IF(M46="","",M46+MAX(N$9:N45)) -> 
N47: =IF(M47="","",M47+MAX(N$9:N46)) -> 
N48: =IF(M48="","",M48+MAX(N$9:N47)) -> 
N49: =IF(M49="","",M49+MAX(N$9:N48)) -> 
N50: =IF(M50="","",M50+MAX(N$9:N49)) -> 
N51: =IF(M51="","",M51+MAX(N$9:N50)) -> 
N52: =IF(M52="","",M52+MAX(N$9:N51)) -> 
N53: =IF(M53="","",M53+MAX(N$9:N52)) -> 
N54: =IF(M54="","",M54+MAX(N$9:N53)) -> 
N55: =IF(M55="","",M55+MAX(N$9:N54)) -> 
N56: =IF(M56="","",M56+MAX(N$9:N55)) -> 
N57: =IF(M57="","",M57+MAX(N$9:N56)) -> 
N58: =IF(M58="","",M58+MAX(N$9:N57)) -> 
N59: =IF(M59="","",M59+MAX(N$9:N58)) -> 
N60: =IF(M60="","",M60+MAX(N$9:N59)) -> 
N61: =IF(M61="","",M61+MAX(N$9:N60)) -> 
N62: =IF(M62="","",M62+MAX(N$9:N61)) -> 
N63: =IF(M63="","",M63+MAX(N$9:N62)) -> 
D64: SPECIAL INSTRUCTIONS: | E64: =INDEX(QryItemE2019!F:F,MATCH(H5,QryItemE2019!A:A,0)) ->  | M64: TOTAL | N64: =IF(K5="LS","LS"," ") -> 

Sheet 509E26000
G1: DESIGN: | H1: =IF('Calc Cover Sheet'!B11="","",'Calc Cover Sheet'!B11) -> BMV | I1: DATE: | J1: =IF('Calc Cover Sheet'!D11="","",'Calc Cover Sheet'!D11) -> 2024-04-19 | K1: UPDATE: | L1: =IF('Calc Cover Sheet'!B13="","",'Calc Cover Sheet'!B13) ->  | M1: DATE: | N1: =IF('Calc Cover Sheet'!D13="","",'Calc Cover Sheet'!D13) -> 
G2: CHECK: | H2: =IF('Calc Cover Sheet'!B12="","",'Calc Cover Sheet'!B12) -> TLC | I2: DATE: | J2: =IF('Calc Cover Sheet'!D12="","",'Calc Cover Sheet'!D12) -> 2024-04-25 | K2: RECHECK: | L2: =IF('Calc Cover Sheet'!B14="","",'Calc Cover Sheet'!B14) ->  | M2: DATE: | N2: =IF('Calc Cover Sheet'!D14="","",'Calc Cover Sheet'!D14) -> 
G3: STRUCTURE: | H3: =IF('Calc Cover Sheet'!B7="","",'Calc Cover Sheet'!B7) -> HAM-00145-0203 | K3: SFN: | L3: =IF('Calc Cover Sheet'!B3="","",'Calc Cover Sheet'!B3) -> 3108680 | M3: PID: | N3: =IF('Calc Cover Sheet'!B9="","",'Calc Cover Sheet'!B9) -> 110563
Q4: Lump Sum Tags (Items with a "LS" Pay Unit can be tagged with one or several categories)
G5: ITEM: | H5: =MID(RIGHT(CELL("filename",D2),LEN(CELL("filename",D2))-FIND("]",CELL("filename",D2))),1,9) -> 509E26000 | J5: PAY UNIT: | K5: =INDEX(QryItemE2019!B:B,MATCH(H5,QryItemE2019!A:A,0)) -> LB
G6: SUBJECT: | H6: =IF('Calc Cover Sheet'!B2="","",'Calc Cover Sheet'!B2) -> ESTIMATED QUANTITIES
D7: DESCRIPTION: | E7: =INDEX(QryItemE2019!C:C,MATCH(H5,QryItemE2019!A:A,0)) -> GALVANIZED STEEL REINFORCEMENT
D8: SUPPLEMENTAL DESCRIPTION:
M9: SUBTOTAL | N9: TOTAL | Q9: GROUP | R9: <<<<<Tag each subtotal value with a group from this column
N10: =IF(M10="","",M10+MAX(N$9:N9)) -> 
N11: =IF(M11="","",M11+MAX(N$9:N10)) -> 
N12: =IF(M12="","",M12+MAX(N$9:N11)) -> 
D13: Abutments = | E13: 5021 | F13: lb | M13: =E13 -> 5021 | N13: =IF(M13="","",M13+MAX(N$9:N12)) -> 5021 | Q13: ABUT.
D14: Diaphragms = | E14: 4659 | F14: lb | M14: =E14 -> 4659 | N14: =IF(M14="","",M14+MAX(N$9:N13)) -> 9680 | Q14: ABUT.
D15: Piers = | E15: 15063 | F15: lb | M15: =E15 -> 15063 | N15: =IF(M15="","",M15+MAX(N$9:N14)) -> 24743 | Q15: PIER
N16: =IF(M16="","",M16+MAX(N$9:N15)) -> 
N17: =IF(M17="","",M17+MAX(N$9:N16)) -> 
D18: Superstructure = | E18: 61557 | F18: lb | M18: =E18 -> 61557 | N18: =IF(M18="","",M18+MAX(N$9:N17)) -> 86300 | Q18: SUPER.
D19: Bridge Railing = | E19: 19390 | F19: lb | M19: =E19 -> 19390 | N19: =IF(M19="","",M19+MAX(N$9:N18)) -> 105690 | Q19: SUPER.
N20: =IF(M20="","",M20+MAX(N$9:N19)) -> 
D21: Approach Sidewalk = | E21: 1177 | F21: lb | M21: =E21 -> 1177 | N21: =IF(M21="","",M21+MAX(N$9:N20)) -> 106867 | Q21: GEN.
D22: Moment Slab = | E22: 7671 | F22: lb | M22: =E22 -> 7671 | N22: =IF(M22="","",M22+MAX(N$9:N21)) -> 114538 | Q22: GEN.
N23: =IF(M23="","",M23+MAX(N$9:N22)) -> 
N24: =IF(M24="","",M24+MAX(N$9:N21)) -> 
N26: =IF(M26="","",M26+MAX(N$9:N25)) -> 
N27: =IF(M27="","",M27+MAX(N$9:N26)) -> 
N28: =IF(M28="","",M28+MAX(N$9:N27)) -> 
N29: =IF(M29="","",M29+MAX(N$9:N28)) -> 
N30: =IF(M30="","",M30+MAX(N$9:N29)) -> 
N31: =IF(M31="","",M31+MAX(N$9:N30)) -> 
N32: =IF(M32="","",M32+MAX(N$9:N31)) -> 
N33: =IF(M33="","",M33+MAX(N$9:N32)) -> 
N34: =IF(M34="","",M34+MAX(N$9:N33)) -> 
N35: =IF(M35="","",M35+MAX(N$10:N34)) -> 
N36: =IF(M36="","",M36+MAX(N$10:N35)) -> 
N37: =IF(M37="","",M37+MAX(N$10:N36)) -> 
N38: =IF(M38="","",M38+MAX(N$10:N37)) -> 
N39: =IF(M39="","",M39+MAX(N$10:N38)) -> 
N40: =IF(M40="","",M40+MAX(N$10:N39)) -> 
N41: =IF(M41="","",M41+MAX(N$10:N40)) -> 
N42: =IF(M42="","",M42+MAX(N$10:N41)) -> 
N43: =IF(M43="","",M43+MAX(N$10:N42)) -> 
N44: =IF(M44="","",M44+MAX(N$10:N43)) -> 
N45: =IF(M45="","",M45+MAX(N$10:N44)) -> 
N46: =IF(M46="","",M46+MAX(N$10:N45)) -> 
N47: =IF(M47="","",M47+MAX(N$10:N46)) -> 
N48: =IF(M48="","",M48+MAX(N$10:N47)) -> 
N49: =IF(M49="","",M49+MAX(N$10:N48)) -> 
N50: =IF(M50="","",M50+MAX(N$10:N49)) -> 
N51: =IF(M51="","",M51+MAX(N$10:N50)) -> 
N52: =IF(M52="","",M52+MAX(N$10:N51)) -> 
N53: =IF(M53="","",M53+MAX(N$10:N52)) -> 
N54: =IF(M54="","",M54+MAX(N$10:N53)) -> 
N55: =IF(M55="","",M55+MAX(N$10:N54)) -> 
N56: =IF(M56="","",M56+MAX(N$10:N55)) -> 
N57: =IF(M57="","",M57+MAX(N$10:N56)) -> 
N58: =IF(M58="","",M58+MAX(N$10:N57)) -> 
N59: =IF(M59="","",M59+MAX(N$10:N58)) -> 
N60: =IF(M60="","",M60+MAX(N$10:N59)) -> 
N61: =IF(M61="","",M61+MAX(N$10:N60)) -> 
D62: SPECIAL INSTRUCTIONS: | E62: =INDEX(QryItemE2019!F:F,MATCH(H5,QryItemE2019!A:A,0)) ->  | M62: TOTAL | N62: =IF(K5="LS","LS"," ") -> 

Sheet 509E30020
G1: DESIGN: | H1: =IF('Calc Cover Sheet'!B11="","",'Calc Cover Sheet'!B11) -> BMV | I1: DATE: | J1: =IF('Calc Cover Sheet'!D11="","",'Calc Cover Sheet'!D11) -> 2024-04-19 | K1: UPDATE: | L1: =IF('Calc Cover Sheet'!B13="","",'Calc Cover Sheet'!B13) ->  | M1: DATE: | N1: =IF('Calc Cover Sheet'!D13="","",'Calc Cover Sheet'!D13) -> 
G2: CHECK: | H2: =IF('Calc Cover Sheet'!B12="","",'Calc Cover Sheet'!B12) -> TLC | I2: DATE: | J2: =IF('Calc Cover Sheet'!D12="","",'Calc Cover Sheet'!D12) -> 2024-04-25 | K2: RECHECK: | L2: =IF('Calc Cover Sheet'!B14="","",'Calc Cover Sheet'!B14) ->  | M2: DATE: | N2: =IF('Calc Cover Sheet'!D14="","",'Calc Cover Sheet'!D14) -> 
G3: STRUCTURE: | H3: =IF('Calc Cover Sheet'!B7="","",'Calc Cover Sheet'!B7) -> HAM-00145-0203 | K3: SFN: | L3: =IF('Calc Cover Sheet'!B3="","",'Calc Cover Sheet'!B3) -> 3108680 | M3: PID: | N3: =IF('Calc Cover Sheet'!B9="","",'Calc Cover Sheet'!B9) -> 110563
Q4: Lump Sum Tags (Items with a "LS" Pay Unit can be tagged with one or several categories)
G5: ITEM: | H5: =MID(RIGHT(CELL("filename",D2),LEN(CELL("filename",D2))-FIND("]",CELL("filename",D2))),1,9) -> 509E30020 | J5: PAY UNIT: | K5: =INDEX(QryItemE2019!B:B,MATCH(H5,QryItemE2019!A:A,0)) -> FT
G6: SUBJECT: | H6: =IF('Calc Cover Sheet'!B2="","",'Calc Cover Sheet'!B2) -> ESTIMATED QUANTITIES
D7: DESCRIPTION: | E7: =INDEX(QryItemE2019!C:C,MATCH(H5,QryItemE2019!A:A,0)) -> NO. 4 DEFORMED GFRP REINFORCEMENT
D8: SUPPLEMENTAL DESCRIPTION:
M9: SUBTOTAL | N9: TOTAL | Q9: GROUP | R9: <<<<<Tag each subtotal value with a group from this column
N10: =IF(M10="","",M10+MAX(N$9:N9)) -> 
C11: Right Barrier (SBR-1-20) | N11: =IF(M11="","",M11+MAX(N$10:N10)) -> 
C12: See reinforcing steel list | N12: =IF(M12="","",M12+MAX(N$10:N11)) -> 
N16: =IF(M16="","",M16+MAX(N$10:N13)) -> 
N17: =IF(M17="","",M17+MAX(N$10:N16)) -> 
E18: Total Length = | F18: 4602.25 | G18: FT | M18: =CEILING(F18,1) -> 4603 | N18: =IF(M18="","",M18+MAX(N$10:N17)) -> 4603 | Q18: SUPER.
N19: =IF(M19="","",M19+MAX(N$10:N18)) -> 
N20: =IF(M20="","",M20+MAX(N$10:N18)) -> 
N21: =IF(M21="","",M21+MAX(N$9:N20)) -> 
N23: =IF(M23="","",M23+MAX(N$9:N22)) -> 
N24: =IF(M24="","",M24+MAX(N$9:N23)) -> 
N25: =IF(M25="","",M25+MAX(N$9:N24)) -> 
N26: =IF(M26="","",M26+MAX(N$9:N25)) -> 
N27: =IF(M27="","",M27+MAX(N$9:N26)) -> 
N28: =IF(M28="","",M28+MAX(N$9:N27)) -> 
N29: =IF(M29="","",M29+MAX(N$9:N28)) -> 
N30: =IF(M30="","",M30+MAX(N$9:N29)) -> 
N31: =IF(M31="","",M31+MAX(N$9:N30)) -> 
N32: =IF(M32="","",M32+MAX(N$9:N31)) -> 
N33: =IF(M33="","",M33+MAX(N$9:N32)) -> 
N34: =IF(M34="","",M34+MAX(N$9:N33)) -> 
N35: =IF(M35="","",M35+MAX(N$9:N34)) -> 
N36: =IF(M36="","",M36+MAX(N$9:N35)) -> 
N37: =IF(M37="","",M37+MAX(N$9:N36)) -> 
N38: =IF(M38="","",M38+MAX(N$9:N37)) -> 
N39: =IF(M39="","",M39+MAX(N$9:N38)) -> 
N40: =IF(M40="","",M40+MAX(N$10:N39)) -> 
N41: =IF(M41="","",M41+MAX(N$10:N40)) -> 
N42: =IF(M42="","",M42+MAX(N$10:N41)) -> 
N43: =IF(M43="","",M43+MAX(N$10:N42)) -> 
N44: =IF(M44="","",M44+MAX(N$10:N43)) -> 
N45: =IF(M45="","",M45+MAX(N$10:N44)) -> 
N46: =IF(M46="","",M46+MAX(N$10:N45)) -> 
N47: =IF(M47="","",M47+MAX(N$10:N46)) -> 
N48: =IF(M48="","",M48+MAX(N$10:N47)) -> 
N49: =IF(M49="","",M49+MAX(N$10:N48)) -> 
N50: =IF(M50="","",M50+MAX(N$10:N49)) -> 
N51: =IF(M51="","",M51+MAX(N$10:N50)) -> 
N52: =IF(M52="","",M52+MAX(N$10:N51)) -> 
N53: =IF(M53="","",M53+MAX(N$10:N52)) -> 
N54: =IF(M54="","",M54+MAX(N$10:N53)) -> 
N55: =IF(M55="","",M55+MAX(N$10:N54)) -> 
N56: =IF(M56="","",M56+MAX(N$10:N55)) -> 
N57: =IF(M57="","",M57+MAX(N$10:N56)) -> 
N58: =IF(M58="","",M58+MAX(N$10:N57)) -> 
N59: =IF(M59="","",M59+MAX(N$10:N58)) -> 
N60: =IF(M60="","",M60+MAX(N$10:N59)) -> 
N61: =IF(M61="","",M61+MAX(N$10:N60)) -> 
N62: =IF(M62="","",M62+MAX(N$10:N61)) -> 
N63: =IF(M63="","",M63+MAX(N$10:N62)) -> 
N64: =IF(M64="","",M64+MAX(N$10:N63)) -> 
N65: =IF(M65="","",M65+MAX(N$10:N64)) -> 
N66: =IF(M66="","",M66+MAX(N$10:N65)) -> 
D67: SPECIAL INSTRUCTIONS: | E67: =INDEX(QryItemE2019!F:F,MATCH(H5,QryItemE2019!A:A,0)) ->  | M67: TOTAL | N67: =IF(K5="LS","LS"," ") -> 

Sheet 511E33500
G1: DESIGN: | H1: =IF('Calc Cover Sheet'!B11="","",'Calc Cover Sheet'!B11) -> BMV | I1: DATE: | J1: =IF('Calc Cover Sheet'!D11="","",'Calc Cover Sheet'!D11) -> 2024-04-19 | K1: UPDATE: | L1: =IF('Calc Cover Sheet'!B13="","",'Calc Cover Sheet'!B13) ->  | M1: DATE: | N1: =IF('Calc Cover Sheet'!D13="","",'Calc Cover Sheet'!D13) -> 
G2: CHECK: | H2: =IF('Calc Cover Sheet'!B12="","",'Calc Cover Sheet'!B12) -> TLC | I2: DATE: | J2: =IF('Calc Cover Sheet'!D12="","",'Calc Cover Sheet'!D12) -> 2024-04-25 | K2: RECHECK: | L2: =IF('Calc Cover Sheet'!B14="","",'Calc Cover Sheet'!B14) ->  | M2: DATE: | N2: =IF('Calc Cover Sheet'!D14="","",'Calc Cover Sheet'!D14) -> 
G3: STRUCTURE: | H3: =IF('Calc Cover Sheet'!B7="","",'Calc Cover Sheet'!B7) -> HAM-00145-0203 | K3: SFN: | L3: =IF('Calc Cover Sheet'!B3="","",'Calc Cover Sheet'!B3) -> 3108680 | M3: PID: | N3: =IF('Calc Cover Sheet'!B9="","",'Calc Cover Sheet'!B9) -> 110563
Q4: Lump Sum Tags (Items with a "LS" Pay Unit can be tagged with one or several categories)
G5: ITEM: | H5: =MID(RIGHT(CELL("filename",D2),LEN(CELL("filename",D2))-FIND("]",CELL("filename",D2))),1,9) -> 511E33500 | J5: PAY UNIT: | K5: =INDEX(QryItemE2019!B:B,MATCH(H5,QryItemE2019!A:A,0)) -> EACH
G6: SUBJECT: | H6: =IF('Calc Cover Sheet'!B2="","",'Calc Cover Sheet'!B2) -> ESTIMATED QUANTITIES
D7: DESCRIPTION: | E7: =INDEX(QryItemE2019!C:C,MATCH(H5,QryItemE2019!A:A,0)) -> SEMI-INTEGRAL DIAPHRAGM GUIDE
D8: SUPPLEMENTAL DESCRIPTION:
M9: SUBTOTAL | N9: TOTAL | Q9: GROUP | R9: <<<<<Tag each subtotal value with a group from this column
N10: =IF(M10="","",M10+MAX(N$9:N9)) -> 
N11: =IF(M11="","",M11+MAX(N$9:N10)) -> 
N12: =IF(M12="","",M12+MAX(N$9:N11)) -> 
D13: Total = | E13: 2 | F13: each | M13: =E13 -> 2 | N13: =IF(M13="","",M13+MAX(N$9:N12)) -> 2 | Q13: ABUT.
N14: =IF(M14="","",M14+MAX(N$9:N13)) -> 
N15: =IF(M15="","",M15+MAX(N$9:N14)) -> 
N16: =IF(M16="","",M16+MAX(N$9:N15)) -> 
N17: =IF(M17="","",M17+MAX(N$9:N16)) -> 
N18: =IF(M18="","",M18+MAX(N$9:N17)) -> 
N20: =IF(M20="","",M20+MAX(N$9:N19)) -> 
N21: =IF(M21="","",M21+MAX(N$9:N20)) -> 
N22: =IF(M22="","",M22+MAX(N$9:N21)) -> 
N23: =IF(M23="","",M23+MAX(N$9:N22)) -> 
N24: =IF(M24="","",M24+MAX(N$9:N23)) -> 
N25: =IF(M25="","",M25+MAX(N$9:N24)) -> 
N26: =IF(M26="","",M26+MAX(N$9:N25)) -> 
N27: =IF(M27="","",M27+MAX(N$9:N26)) -> 
N28: =IF(M28="","",M28+MAX(N$9:N27)) -> 
N29: =IF(M29="","",M29+MAX(N$9:N28)) -> 
N30: =IF(M30="","",M30+MAX(N$9:N29)) -> 
N31: =IF(M31="","",M31+MAX(N$9:N30)) -> 
N32: =IF(M32="","",M32+MAX(N$9:N31)) -> 
N33: =IF(M33="","",M33+MAX(N$9:N32)) -> 
N34: =IF(M34="","",M34+MAX(N$9:N33)) -> 
N35: =IF(M35="","",M35+MAX(N$9:N34)) -> 
N36: =IF(M36="","",M36+MAX(N$9:N35)) -> 
N37: =IF(M37="","",M37+MAX(N$10:N36)) -> 
N38: =IF(M38="","",M38+MAX(N$10:N37)) -> 
N39: =IF(M39="","",M39+MAX(N$10:N38)) -> 
N40: =IF(M40="","",M40+MAX(N$10:N39)) -> 
N41: =IF(M41="","",M41+MAX(N$10:N40)) -> 
N42: =IF(M42="","",M42+MAX(N$10:N41)) -> 
N43: =IF(M43="","",M43+MAX(N$10:N42)) -> 
N44: =IF(M44="","",M44+MAX(N$10:N43)) -> 
N45: =IF(M45="","",M45+MAX(N$10:N44)) -> 
N46: =IF(M46="","",M46+MAX(N$10:N45)) -> 
N47: =IF(M47="","",M47+MAX(N$10:N46)) -> 
N48: =IF(M48="","",M48+MAX(N$10:N47)) -> 
N49: =IF(M49="","",M49+MAX(N$10:N48)) -> 
N50: =IF(M50="","",M50+MAX(N$10:N49)) -> 
N51: =IF(M51="","",M51+MAX(N$10:N50)) -> 
N52: =IF(M52="","",M52+MAX(N$10:N51)) -> 
N53: =IF(M53="","",M53+MAX(N$10:N52)) -> 
N54: =IF(M54="","",M54+MAX(N$10:N53)) -> 
N55: =IF(M55="","",M55+MAX(N$10:N54)) -> 
N56: =IF(M56="","",M56+MAX(N$10:N55)) -> 
N57: =IF(M57="","",M57+MAX(N$10:N56)) -> 
N58: =IF(M58="","",M58+MAX(N$10:N57)) -> 
N59: =IF(M59="","",M59+MAX(N$10:N58)) -> 
N60: =IF(M60="","",M60+MAX(N$10:N59)) -> 
N61: =IF(M61="","",M61+MAX(N$10:N60)) -> 
N62: =IF(M62="","",M62+MAX(N$10:N61)) -> 
N63: =IF(M63="","",M63+MAX(N$10:N62)) -> 
D64: SPECIAL INSTRUCTIONS: | E64: =INDEX(QryItemE2019!F:F,MATCH(H5,QryItemE2019!A:A,0)) ->  | M64: TOTAL | N64: =IF(K5="LS","LS"," ") -> 

Sheet 511E34460
G1: DESIGN: | H1: =IF('Calc Cover Sheet'!B11="","",'Calc Cover Sheet'!B11) -> BMV | I1: DATE: | J1: =IF('Calc Cover Sheet'!D11="","",'Calc Cover Sheet'!D11) -> 2024-04-19 | K1: UPDATE: | L1: =IF('Calc Cover Sheet'!B13="","",'Calc Cover Sheet'!B13) ->  | M1: DATE: | N1: =IF('Calc Cover Sheet'!D13="","",'Calc Cover Sheet'!D13) -> 
G2: CHECK: | H2: =IF('Calc Cover Sheet'!B12="","",'Calc Cover Sheet'!B12) -> TLC | I2: DATE: | J2: =IF('Calc Cover Sheet'!D12="","",'Calc Cover Sheet'!D12) -> 2024-04-25 | K2: RECHECK: | L2: =IF('Calc Cover Sheet'!B14="","",'Calc Cover Sheet'!B14) ->  | M2: DATE: | N2: =IF('Calc Cover Sheet'!D14="","",'Calc Cover Sheet'!D14) -> 
G3: STRUCTURE: | H3: =IF('Calc Cover Sheet'!B7="","",'Calc Cover Sheet'!B7) -> HAM-00145-0203 | K3: SFN: | L3: =IF('Calc Cover Sheet'!B3="","",'Calc Cover Sheet'!B3) -> 3108680 | M3: PID: | N3: =IF('Calc Cover Sheet'!B9="","",'Calc Cover Sheet'!B9) -> 110563
Q4: Lump Sum Tags (Items with a "LS" Pay Unit can be tagged with one or several categories)
G5: ITEM: | H5: =MID(RIGHT(CELL("filename",D2),LEN(CELL("filename",D2))-FIND("]",CELL("filename",D2))),1,9) -> 511E34460 | J5: PAY UNIT: | K5: =INDEX(QryItemE2019!B:B,MATCH(H5,QryItemE2019!A:A,0)) -> CY
G6: SUBJECT: | H6: =IF('Calc Cover Sheet'!B2="","",'Calc Cover Sheet'!B2) -> ESTIMATED QUANTITIES
D7: DESCRIPTION: | E7: =INDEX(QryItemE2019!C:C,MATCH(H5,QryItemE2019!A:A,0)) -> CLASS QC SCC CONCRETE, BRIDGE DECK (PARAPET)
D8: SUPPLEMENTAL DESCRIPTION:
M9: SUBTOTAL | N9: TOTAL | Q9: GROUP | R9: <<<<<Tag each subtotal value with a group from this column
N10: =IF(M10="","",M10+MAX(N$9:N9)) -> 
C11: SBR-1-20 (Applies to Alt 1 and Alt 2) | N11: =IF(M11="","",M11+MAX(N$9:N10)) -> 
D12: Bridge Length = | E12: 182.6667 | F12: ft | N12: =IF(M12="","",M12+MAX(N$9:N11)) -> 
D13: Approach Length = | E13: 30 | F13: ft | N13: =IF(M13="","",M13+MAX(N$9:N12)) -> 
D14: Barrier Area = | E14: =588/(12^2) -> 4.083333333 | F14: sf
N15: =IF(M15="","",M15+MAX(N$9:N13)) -> 
D16: SBR-1-20 Volume = | E16: =(E12+E13*2)*E14/27 -> 36.69959352 | F16: CY | M16: =CEILING(E16,1) -> 37 | N16: =IF(M16="","",M16+MAX(N$9:N15)) -> 37 | Q16: SUPER.
N17: =IF(M17="","",M17+MAX(N$9:N16)) -> 
N18: =IF(M18="","",M18+MAX(N$9:N17)) -> 
C19: BR-2-15 Modified (Applies to Alt 1 and Alt 2)
N20: =IF(M20="","",M20+MAX(N$9:N19)) -> 
D21: Barrier Ht = | E21: 3.75 | F21: ft | N21: =IF(M21="","",M21+MAX(N$9:N20)) -> 
D22: Barrier Width = | E22: 1 | F22: ft | N22: =IF(M22="","",M22+MAX(N$9:N21)) -> 
N23: =IF(M23="","",M23+MAX(N$9:N22)) -> 
D24: BR-2-15 Volume = | E24: =(E21*E22*(E12+2*E13))/27 -> 33.70370833 | F24: CY | M24: =CEILING(E24,1) -> 34 | N24: =IF(M24="","",M24+MAX(N$9:N23)) -> 71 | Q24: SUPER.
N25: =IF(M25="","",M25+MAX(N$9:N24)) -> 
N26: =IF(M26="","",M26+MAX(N$9:N25)) -> 
N27: =IF(M27="","",M27+MAX(N$9:N26)) -> 
N28: =IF(M28="","",M28+MAX(N$9:N27)) -> 
N29: =IF(M29="","",M29+MAX(N$9:N28)) -> 
N30: =IF(M30="","",M30+MAX(N$9:N29)) -> 
N31: =IF(M31="","",M31+MAX(N$9:N30)) -> 
N32: =IF(M32="","",M32+MAX(N$9:N31)) -> 
N33: =IF(M33="","",M33+MAX(N$9:N32)) -> 
N34: =IF(M34="","",M34+MAX(N$9:N33)) -> 
N35: =IF(M35="","",M35+MAX(N$9:N34)) -> 
N36: =IF(M36="","",M36+MAX(N$9:N35)) -> 
N37: =IF(M37="","",M37+MAX(N$10:N36)) -> 
N38: =IF(M38="","",M38+MAX(N$10:N37)) -> 
N39: =IF(M39="","",M39+MAX(N$10:N38)) -> 
N40: =IF(M40="","",M40+MAX(N$10:N39)) -> 
N41: =IF(M41="","",M41+MAX(N$10:N40)) -> 
N42: =IF(M42="","",M42+MAX(N$10:N41)) -> 
N43: =IF(M43="","",M43+MAX(N$10:N42)) -> 
N44: =IF(M44="","",M44+MAX(N$10:N43)) -> 
N45: =IF(M45="","",M45+MAX(N$10:N44)) -> 
N46: =IF(M46="","",M46+MAX(N$10:N45)) -> 
N47: =IF(M47="","",M47+MAX(N$10:N46)) -> 
N48: =IF(M48="","",M48+MAX(N$10:N47)) -> 
N49: =IF(M49="","",M49+MAX(N$10:N48)) -> 
N50: =IF(M50="","",M50+MAX(N$10:N49)) -> 
N51: =IF(M51="","",M51+MAX(N$10:N50)) -> 
N52: =IF(M52="","",M52+MAX(N$10:N51)) -> 
N53: =IF(M53="","",M53+MAX(N$10:N52)) -> 
N54: =IF(M54="","",M54+MAX(N$10:N53)) -> 
N55: =IF(M55="","",M55+MAX(N$10:N54)) -> 
N56: =IF(M56="","",M56+MAX(N$10:N55)) -> 
N57: =IF(M57="","",M57+MAX(N$10:N56)) -> 
N58: =IF(M58="","",M58+MAX(N$10:N57)) -> 
N59: =IF(M59="","",M59+MAX(N$10:N58)) -> 
N60: =IF(M60="","",M60+MAX(N$10:N59)) -> 
N61: =IF(M61="","",M61+MAX(N$10:N60)) -> 
N62: =IF(M62="","",M62+MAX(N$10:N61)) -> 
N63: =IF(M63="","",M63+MAX(N$10:N62)) -> 
D64: SPECIAL INSTRUCTIONS: | E64: =INDEX(QryItemE2019!F:F,MATCH(H5,QryItemE2019!A:A,0)) ->  | M64: TOTAL | N64: =IF(K5="LS","LS"," ") -> 

Sheet 511E43510
G1: DESIGN: | H1: =IF('Calc Cover Sheet'!B11="","",'Calc Cover Sheet'!B11) -> BMV | I1: DATE: | J1: =IF('Calc Cover Sheet'!D11="","",'Calc Cover Sheet'!D11) -> 2024-04-19 | K1: UPDATE: | L1: =IF('Calc Cover Sheet'!B13="","",'Calc Cover Sheet'!B13) ->  | M1: DATE: | N1: =IF('Calc Cover Sheet'!D13="","",'Calc Cover Sheet'!D13) -> 
G2: CHECK: | H2: =IF('Calc Cover Sheet'!B12="","",'Calc Cover Sheet'!B12) -> TLC | I2: DATE: | J2: =IF('Calc Cover Sheet'!D12="","",'Calc Cover Sheet'!D12) -> 2024-04-25 | K2: RECHECK: | L2: =IF('Calc Cover Sheet'!B14="","",'Calc Cover Sheet'!B14) ->  | M2: DATE: | N2: =IF('Calc Cover Sheet'!D14="","",'Calc Cover Sheet'!D14) -> 
G3: STRUCTURE: | H3: =IF('Calc Cover Sheet'!B7="","",'Calc Cover Sheet'!B7) -> HAM-00145-0203 | K3: SFN: | L3: =IF('Calc Cover Sheet'!B3="","",'Calc Cover Sheet'!B3) -> 3108680 | M3: PID: | N3: =IF('Calc Cover Sheet'!B9="","",'Calc Cover Sheet'!B9) -> 110563
Q4: Lump Sum Tags (Items with a "LS" Pay Unit can be tagged with one or several categories)
G5: ITEM: | H5: =MID(RIGHT(CELL("filename",D2),LEN(CELL("filename",D2))-FIND("]",CELL("filename",D2))),1,9) -> 511E43510 | J5: PAY UNIT: | K5: =INDEX(QryItemE2019!B:B,MATCH(H5,QryItemE2019!A:A,0)) -> CY
G6: SUBJECT: | H6: =IF('Calc Cover Sheet'!B2="","",'Calc Cover Sheet'!B2) -> ESTIMATED QUANTITIES
D7: DESCRIPTION: | E7: =INDEX(QryItemE2019!C:C,MATCH(H5,QryItemE2019!A:A,0)) -> CLASS QC1 CONCRETE, ABUTMENT INCLUDING FOOTING
D8: SUPPLEMENTAL DESCRIPTION:
M9: SUBTOTAL | N9: TOTAL | Q9: GROUP | R9: <<<<<Tag each subtotal value with a group from this column
N10: =IF(M10="","",M10+MAX(N$9:N9)) -> 
N11: =IF(M11="","",M11+MAX(N$9:N10)) -> 
N12: =IF(M12="","",M12+MAX(N$9:N11)) -> 
D13: Abut. Length = | E13: 38.8333 | F13: ft | N13: =IF(M13="","",M13+MAX(N$9:N12)) -> 
D14: Abut. Stem Height = | E14: 2 | F14: ft | G14: Average | N14: =IF(M14="","",M14+MAX(N$9:N13)) -> 
D15: Abut. Stem Width = | E15: 3.6667 | F15: ft | N15: =IF(M15="","",M15+MAX(N$9:N14)) -> 
D16: Abut. Footing Height = | E16: 3 | F16: ft | N16: =IF(M16="","",M16+MAX(N$9:N15)) -> 
D17: Abut. Footing Width = | E17: 6.5 | F17: ft
N18: =IF(M18="","",M18+MAX(N$9:N17)) -> 
D19: Volume = | E19: =2*E13*(E14*E15+E16*E17)/27 -> 77.18736831 | F19: CY | M19: =CEILING(E19,1) -> 78 | N19: =IF(M19="","",M19+MAX(N$9:N18)) -> 78 | Q19: ABUT.
N20: =IF(M20="","",M20+MAX(N$9:N19)) -> 
N21: =IF(M21="","",M21+MAX(N$9:N20)) -> 
N22: =IF(M22="","",M22+MAX(N$9:N21)) -> 
N23: =IF(M23="","",M23+MAX(N$9:N22)) -> 
N24: =IF(M24="","",M24+MAX(N$9:N23)) -> 
N25: =IF(M25="","",M25+MAX(N$9:N24)) -> 
N26: =IF(M26="","",M26+MAX(N$9:N25)) -> 
N27: =IF(M27="","",M27+MAX(N$9:N26)) -> 
N28: =IF(M28="","",M28+MAX(N$9:N27)) -> 
N29: =IF(M29="","",M29+MAX(N$9:N28)) -> 
N30: =IF(M30="","",M30+MAX(N$9:N29)) -> 
N31: =IF(M31="","",M31+MAX(N$9:N30)) -> 
N32: =IF(M32="","",M32+MAX(N$9:N31)) -> 
N33: =IF(M33="","",M33+MAX(N$9:N32)) -> 
N34: =IF(M34="","",M34+MAX(N$9:N33)) -> 
N35: =IF(M35="","",M35+MAX(N$10:N34)) -> 
N36: =IF(M36="","",M36+MAX(N$10:N35)) -> 
N37: =IF(M37="","",M37+MAX(N$10:N36)) -> 
N38: =IF(M38="","",M38+MAX(N$10:N37)) -> 
N39: =IF(M39="","",M39+MAX(N$10:N38)) -> 
N40: =IF(M40="","",M40+MAX(N$10:N39)) -> 
N41: =IF(M41="","",M41+MAX(N$10:N40)) -> 
N42: =IF(M42="","",M42+MAX(N$10:N41)) -> 
N43: =IF(M43="","",M43+MAX(N$10:N42)) -> 
N44: =IF(M44="","",M44+MAX(N$10:N43)) -> 
N45: =IF(M45="","",M45+MAX(N$10:N44)) -> 
N46: =IF(M46="","",M46+MAX(N$10:N45)) -> 
N47: =IF(M47="","",M47+MAX(N$10:N46)) -> 
N48: =IF(M48="","",M48+MAX(N$10:N47)) -> 
N49: =IF(M49="","",M49+MAX(N$10:N48)) -> 
N50: =IF(M50="","",M50+MAX(N$10:N49)) -> 
N51: =IF(M51="","",M51+MAX(N$10:N50)) -> 
N52: =IF(M52="","",M52+MAX(N$10:N51)) -> 
N53: =IF(M53="","",M53+MAX(N$10:N52)) -> 
N54: =IF(M54="","",M54+MAX(N$10:N53)) -> 
N55: =IF(M55="","",M55+MAX(N$10:N54)) -> 
N56: =IF(M56="","",M56+MAX(N$10:N55)) -> 
N57: =IF(M57="","",M57+MAX(N$10:N56)) -> 
N58: =IF(M58="","",M58+MAX(N$10:N57)) -> 
N59: =IF(M59="","",M59+MAX(N$10:N58)) -> 
N60: =IF(M60="","",M60+MAX(N$10:N59)) -> 
N61: =IF(M61="","",M61+MAX(N$10:N60)) -> 
D62: SPECIAL INSTRUCTIONS: | E62: =INDEX(QryItemE2019!F:F,MATCH(H5,QryItemE2019!A:A,0)) ->  | M62: TOTAL | N62: =IF(K5="LS","LS"," ") -> 

Sheet 511E46510
G1: DESIGN: | H1: =IF('Calc Cover Sheet'!B11="","",'Calc Cover Sheet'!B11) -> BMV | I1: DATE: | J1: =IF('Calc Cover Sheet'!D11="","",'Calc Cover Sheet'!D11) -> 2024-04-19 | K1: UPDATE: | L1: =IF('Calc Cover Sheet'!B13="","",'Calc Cover Sheet'!B13) ->  | M1: DATE: | N1: =IF('Calc Cover Sheet'!D13="","",'Calc Cover Sheet'!D13) -> 
G2: CHECK: | H2: =IF('Calc Cover Sheet'!B12="","",'Calc Cover Sheet'!B12) -> TLC | I2: DATE: | J2: =IF('Calc Cover Sheet'!D12="","",'Calc Cover Sheet'!D12) -> 2024-04-25 | K2: RECHECK: | L2: =IF('Calc Cover Sheet'!B14="","",'Calc Cover Sheet'!B14) ->  | M2: DATE: | N2: =IF('Calc Cover Sheet'!D14="","",'Calc Cover Sheet'!D14) -> 
G3: STRUCTURE: | H3: =IF('Calc Cover Sheet'!B7="","",'Calc Cover Sheet'!B7) -> HAM-00145-0203 | K3: SFN: | L3: =IF('Calc Cover Sheet'!B3="","",'Calc Cover Sheet'!B3) -> 3108680 | M3: PID: | N3: =IF('Calc Cover Sheet'!B9="","",'Calc Cover Sheet'!B9) -> 110563
Q4: Lump Sum Tags (Items with a "LS" Pay Unit can be tagged with one or several categories)
G5: ITEM: | H5: =MID(RIGHT(CELL("filename",D2),LEN(CELL("filename",D2))-FIND("]",CELL("filename",D2))),1,9) -> 511E46510 | J5: PAY UNIT: | K5: =INDEX(QryItemE2019!B:B,MATCH(H5,QryItemE2019!A:A,0)) -> CY
G6: SUBJECT: | H6: =IF('Calc Cover Sheet'!B2="","",'Calc Cover Sheet'!B2) -> ESTIMATED QUANTITIES
D7: DESCRIPTION: | E7: =INDEX(QryItemE2019!C:C,MATCH(H5,QryItemE2019!A:A,0)) -> CLASS QC1 CONCRETE, FOOTING
D8: SUPPLEMENTAL DESCRIPTION:
M9: SUBTOTAL | N9: TOTAL | Q9: GROUP | R9: <<<<<Tag each subtotal value with a group from this column
N10: =IF(M10="","",M10+MAX(N$9:N9)) -> 
N11: =IF(M11="","",M11+MAX(N$9:N10)) -> 
D12: Footing Length = | E12: 9 | F12: ft | N12: =IF(M12="","",M12+MAX(N$9:N11)) -> 
D13: Footing Width = | E13: 9 | F13: ft | N13: =IF(M13="","",M13+MAX(N$9:N12)) -> 
D14: Footing Height = | E14: 3 | F14: ft | N14: =IF(M14="","",M14+MAX(N$9:N13)) -> 
D15: # of Footings = | E15: 3 | F15: each
D16: Columns Volume = | E16: =E12*E13*E14*E15/27 -> 27 | F16: CY | M16: =E16 -> 27 | N16: =IF(M16="","",M16+MAX(N$9:N15)) -> 27 | Q16: PIER
N17: =IF(M17="","",M17+MAX(N$9:N16)) -> 
N18: =IF(M18="","",M18+MAX(N$9:N17)) -> 
N19: =IF(M19="","",M19+MAX(N$9:N18)) -> 
N20: =IF(M20="","",M20+MAX(N$9:N19)) -> 
N21: =IF(M21="","",M21+MAX(N$9:N20)) -> 
N22: =IF(M22="","",M22+MAX(N$9:N21)) -> 
N23: =IF(M23="","",M23+MAX(N$9:N22)) -> 
N24: =IF(M24="","",M24+MAX(N$9:N23)) -> 
N25: =IF(M25="","",M25+MAX(N$9:N24)) -> 
N26: =IF(M26="","",M26+MAX(N$9:N25)) -> 
N27: =IF(M27="","",M27+MAX(N$9:N26)) -> 
N28: =IF(M28="","",M28+MAX(N$9:N27)) -> 
N29: =IF(M29="","",M29+MAX(N$9:N28)) -> 
N30: =IF(M30="","",M30+MAX(N$9:N29)) -> 
N31: =IF(M31="","",M31+MAX(N$9:N30)) -> 
N32: =IF(M32="","",M32+MAX(N$9:N31)) -> 
N33: =IF(M33="","",M33+MAX(N$10:N32)) -> 
N34: =IF(M34="","",M34+MAX(N$10:N33)) -> 
N35: =IF(M35="","",M35+MAX(N$10:N34)) -> 
N36: =IF(M36="","",M36+MAX(N$10:N35)) -> 
N37: =IF(M37="","",M37+MAX(N$10:N36)) -> 
N38: =IF(M38="","",M38+MAX(N$10:N37)) -> 
N39: =IF(M39="","",M39+MAX(N$10:N38)) -> 
N40: =IF(M40="","",M40+MAX(N$10:N39)) -> 
N41: =IF(M41="","",M41+MAX(N$10:N40)) -> 
N42: =IF(M42="","",M42+MAX(N$10:N41)) -> 
N43: =IF(M43="","",M43+MAX(N$10:N42)) -> 
N44: =IF(M44="","",M44+MAX(N$10:N43)) -> 
N45: =IF(M45="","",M45+MAX(N$10:N44)) -> 
N46: =IF(M46="","",M46+MAX(N$10:N45)) -> 
N47: =IF(M47="","",M47+MAX(N$10:N46)) -> 
N48: =IF(M48="","",M48+MAX(N$10:N47)) -> 
N49: =IF(M49="","",M49+MAX(N$10:N48)) -> 
N50: =IF(M50="","",M50+MAX(N$10:N49)) -> 
N51: =IF(M51="","",M51+MAX(N$10:N50)) -> 
N52: =IF(M52="","",M52+MAX(N$10:N51)) -> 
N53: =IF(M53="","",M53+MAX(N$10:N52)) -> 
N54: =IF(M54="","",M54+MAX(N$10:N53)) -> 
N55: =IF(M55="","",M55+MAX(N$10:N54)) -> 
N56: =IF(M56="","",M56+MAX(N$10:N55)) -> 
N57: =IF(M57="","",M57+MAX(N$10:N56)) -> 
N58: =IF(M58="","",M58+MAX(N$10:N57)) -> 
N59: =IF(M59="","",M59+MAX(N$10:N58)) -> 
D60: SPECIAL INSTRUCTIONS: | E60: =INDEX(QryItemE2019!F:F,MATCH(H5,QryItemE2019!A:A,0)) ->  | M60: TOTAL | N60: =IF(K5="LS","LS"," ") -> 

Sheet 511E53012
G1: DESIGN: | H1: =IF('Calc Cover Sheet'!B11="","",'Calc Cover Sheet'!B11) -> BMV | I1: DATE: | J1: =IF('Calc Cover Sheet'!D11="","",'Calc Cover Sheet'!D11) -> 2024-04-19 | K1: UPDATE: | L1: =IF('Calc Cover Sheet'!B13="","",'Calc Cover Sheet'!B13) ->  | M1: DATE: | N1: =IF('Calc Cover Sheet'!D13="","",'Calc Cover Sheet'!D13) -> 
G2: CHECK: | H2: =IF('Calc Cover Sheet'!B12="","",'Calc Cover Sheet'!B12) -> TLC | I2: DATE: | J2: =IF('Calc Cover Sheet'!D12="","",'Calc Cover Sheet'!D12) -> 2024-04-25 | K2: RECHECK: | L2: =IF('Calc Cover Sheet'!B14="","",'Calc Cover Sheet'!B14) ->  | M2: DATE: | N2: =IF('Calc Cover Sheet'!D14="","",'Calc Cover Sheet'!D14) -> 
G3: STRUCTURE: | H3: =IF('Calc Cover Sheet'!B7="","",'Calc Cover Sheet'!B7) -> HAM-00145-0203 | K3: SFN: | L3: =IF('Calc Cover Sheet'!B3="","",'Calc Cover Sheet'!B3) -> 3108680 | M3: PID: | N3: =IF('Calc Cover Sheet'!B9="","",'Calc Cover Sheet'!B9) -> 110563
Q4: Lump Sum Tags (Items with a "LS" Pay Unit can be tagged with one or several categories)
G5: ITEM: | H5: =MID(RIGHT(CELL("filename",D2),LEN(CELL("filename",D2))-FIND("]",CELL("filename",D2))),1,9) -> 511E53012 | J5: PAY UNIT: | K5: =INDEX(QryItemE2019!B:B,MATCH(H5,QryItemE2019!A:A,0)) -> CY
G6: SUBJECT: | H6: =IF('Calc Cover Sheet'!B2="","",'Calc Cover Sheet'!B2) -> ESTIMATED QUANTITIES
D7: DESCRIPTION: | E7: =INDEX(QryItemE2019!C:C,MATCH(H5,QryItemE2019!A:A,0)) -> CLASS QC2 CONCRETE, MISC.:
D8: SUPPLEMENTAL DESCRIPTION: | E8: MOMENT SLAB
M9: SUBTOTAL | N9: TOTAL | Q9: GROUP | R9: <<<<<Tag each subtotal value with a group from this column
N10: =IF(M10="","",M10+MAX(N$9:N9)) -> 
N11: =IF(M11="","",M11+MAX(N$9:N10)) -> 
N12: =IF(M12="","",M12+MAX(N$9:N11)) -> 
E13: Rear Moment Slab Length = | F13: 23.833 | G13: ft | N13: =IF(M13="","",M13+MAX(N$9:N12)) -> 
E14: Fwd Moment Slab Length = | F14: 40.833 | G14: ft | N14: =IF(M14="","",M14+MAX(N$9:N13)) -> 
E15: West Moment Slab Width = | F15: 7.166 | G15: ft | N15: =IF(M15="","",M15+MAX(N$9:N14)) -> 
E16: Avg. West Moment Slab Thickness = | F16: 1 | G16: ft | N16: =IF(M16="","",M16+MAX(N$9:N15)) -> 
E17: East Moment Slab Width = | F17: 8.1667 | G17: ft | N17: =IF(M17="","",M17+MAX(N$9:N16)) -> 
E18: East Moment Slab Area = | F18: 14.5 | G18: ft2 | H18: Measured in Microstation | N18: =IF(M18="","",M18+MAX(N$9:N17)) -> 
E20: Sidewalk Thickness = | F20: 0.6667 | G20: ft
E21: Sidwalk width = | F21: 6 | G21: ft
E22: Barrier Height = | F22: 3.75 | G22: ft
E23: Barrier Width = | F23: 1 | G23: ft
E25: SBR-1-20 Area = | F25: =588/144 -> 4.083333333 | G25: ft2
E27: Left Concrete Area = | F27: =(F15*F16+F20*F21+F22*F23)*(F13+F14) -> 964.5709892 | G27: ft2
E28: Right Concrete Area = | F28: =(F18+F25)*(F13+F14) -> 1201.709833 | G28: ft2
N29: =IF(M29="","",M29+MAX(N$9:N18)) -> 
E30: Volume = | F30: =SUM(F27:F28)/27 -> 80.23262306 | G30: CY | M30: =CEILING(F30,1) -> 81 | N30: =IF(M30="","",M30+MAX(N$9:N29)) -> 81 | Q30: GEN.
N31: =IF(M31="","",M31+MAX(N$9:N30)) -> 
N32: =IF(M32="","",M32+MAX(N$9:N31)) -> 
N33: =IF(M33="","",M33+MAX(N$9:N32)) -> 
N34: =IF(M34="","",M34+MAX(N$9:N33)) -> 
N35: =IF(M35="","",M35+MAX(N$9:N34)) -> 
N36: =IF(M36="","",M36+MAX(N$9:N35)) -> 
N37: =IF(M37="","",M37+MAX(N$9:N36)) -> 
N38: =IF(M38="","",M38+MAX(N$9:N37)) -> 
N39: =IF(M39="","",M39+MAX(N$9:N38)) -> 
N40: =IF(M40="","",M40+MAX(N$9:N39)) -> 
N41: =IF(M41="","",M41+MAX(N$9:N40)) -> 
N42: =IF(M42="","",M42+MAX(N$9:N41)) -> 
N43: =IF(M43="","",M43+MAX(N$10:N42)) -> 
N44: =IF(M44="","",M44+MAX(N$10:N43)) -> 
N45: =IF(M45="","",M45+MAX(N$10:N44)) -> 
N46: =IF(M46="","",M46+MAX(N$10:N45)) -> 
N47: =IF(M47="","",M47+MAX(N$10:N46)) -> 
N48: =IF(M48="","",M48+MAX(N$10:N47)) -> 
N49: =IF(M49="","",M49+MAX(N$10:N48)) -> 
N50: =IF(M50="","",M50+MAX(N$10:N49)) -> 
N51: =IF(M51="","",M51+MAX(N$10:N50)) -> 
N52: =IF(M52="","",M52+MAX(N$10:N51)) -> 
N53: =IF(M53="","",M53+MAX(N$10:N52)) -> 
N54: =IF(M54="","",M54+MAX(N$10:N53)) -> 
N55: =IF(M55="","",M55+MAX(N$10:N54)) -> 
N56: =IF(M56="","",M56+MAX(N$10:N55)) -> 
N57: =IF(M57="","",M57+MAX(N$10:N56)) -> 
N58: =IF(M58="","",M58+MAX(N$10:N57)) -> 
N59: =IF(M59="","",M59+MAX(N$10:N58)) -> 
N60: =IF(M60="","",M60+MAX(N$10:N59)) -> 
N61: =IF(M61="","",M61+MAX(N$10:N60)) -> 
N62: =IF(M62="","",M62+MAX(N$10:N61)) -> 
N63: =IF(M63="","",M63+MAX(N$10:N62)) -> 
N64: =IF(M64="","",M64+MAX(N$10:N63)) -> 
N65: =IF(M65="","",M65+MAX(N$10:N64)) -> 
N66: =IF(M66="","",M66+MAX(N$10:N65)) -> 
N67: =IF(M67="","",M67+MAX(N$10:N66)) -> 
N68: =IF(M68="","",M68+MAX(N$10:N67)) -> 
N69: =IF(M69="","",M69+MAX(N$10:N68)) -> 
D70: SPECIAL INSTRUCTIONS: | E70: =INDEX(QryItemE2019!F:F,MATCH(H5,QryItemE2019!A:A,0)) -> ADD SUPPLEMENTAL DESCRIPTION | M70: TOTAL | N70: =IF(K5="LS","LS"," ") -> 

Sheet 511E53014
G1: DESIGN: | H1: =IF('Calc Cover Sheet'!B11="","",'Calc Cover Sheet'!B11) -> BMV | I1: DATE: | J1: =IF('Calc Cover Sheet'!D11="","",'Calc Cover Sheet'!D11) -> 2024-04-19 | K1: UPDATE: | L1: =IF('Calc Cover Sheet'!B13="","",'Calc Cover Sheet'!B13) ->  | M1: DATE: | N1: =IF('Calc Cover Sheet'!D13="","",'Calc Cover Sheet'!D13) -> 
G2: CHECK: | H2: =IF('Calc Cover Sheet'!B12="","",'Calc Cover Sheet'!B12) -> TLC | I2: DATE: | J2: =IF('Calc Cover Sheet'!D12="","",'Calc Cover Sheet'!D12) -> 2024-04-25 | K2: RECHECK: | L2: =IF('Calc Cover Sheet'!B14="","",'Calc Cover Sheet'!B14) ->  | M2: DATE: | N2: =IF('Calc Cover Sheet'!D14="","",'Calc Cover Sheet'!D14) -> 
G3: STRUCTURE: | H3: =IF('Calc Cover Sheet'!B7="","",'Calc Cover Sheet'!B7) -> HAM-00145-0203 | K3: SFN: | L3: =IF('Calc Cover Sheet'!B3="","",'Calc Cover Sheet'!B3) -> 3108680 | M3: PID: | N3: =IF('Calc Cover Sheet'!B9="","",'Calc Cover Sheet'!B9) -> 110563
Q4: Lump Sum Tags (Items with a "LS" Pay Unit can be tagged with one or several categories)
G5: ITEM: | H5: =MID(RIGHT(CELL("filename",D2),LEN(CELL("filename",D2))-FIND("]",CELL("filename",D2))),1,9) -> 511E53014 | J5: PAY UNIT: | K5: =INDEX(QryItemE2019!B:B,MATCH(H5,QryItemE2019!A:A,0)) -> CY
G6: SUBJECT: | H6: =IF('Calc Cover Sheet'!B2="","",'Calc Cover Sheet'!B2) -> ESTIMATED QUANTITIES
D7: DESCRIPTION: | E7: =INDEX(QryItemE2019!C:C,MATCH(H5,QryItemE2019!A:A,0)) -> CLASS QC3 CONCRETE, MISC.:
D8: SUPPLEMENTAL DESCRIPTION: | E8: WITH QC/QA, SUPERSTRUCTURE
M9: SUBTOTAL | N9: TOTAL | Q9: GROUP | R9: <<<<<Tag each subtotal value with a group from this column
N10: =IF(M10="","",M10+MAX(N$9:N9)) -> 
C11: Abut. Diaphragm | N11: =IF(M11="","",M11+MAX(#REF!)) -> 
N12: =IF(M12="","",M12+MAX(N$9:N11)) -> 
D13: Beam Height = | E13: 42 | F13: in | N13: =IF(M13="","",M13+MAX(N$9:N12)) -> 
D14: Assumed bearing height = | E14: =1.5+6.25+1.5+(2+9/16) -> 11.8125 | F14: in | N14: =IF(M14="","",M14+MAX(N$9:N13)) -> 
D15: Diaphragm Length = | E15: 38.8333 | F15: ft
D16: Diaphragm Height = | E16: =(E13+E14)/12 -> 4.484375 | F16: ft | N16: =IF(M16="","",M16+MAX(N$9:N14)) -> 
D17: Diaphragm Width = | E17: 3.6667 | F17: ft | N17: =IF(M17="","",M17+MAX(N$9:N16)) -> 
D18: WF42-49 Area = | E18: =926.3/(12^2) -> 6.432638889 | F18: ft2 | N18: =IF(M18="","",M18+MAX(N$9:N17)) -> 
D19: # of Beams = | E19: 5 | N19: =IF(M19="","",M19+MAX(N$9:N18)) -> 
D20: Beam Projection into Diaph. = | E20: 2.67 | F20: ft | N20: =IF(M20="","",M20+MAX(N$9:N19)) -> 
N21: =IF(M21="","",M21+MAX(N$9:N20)) -> 
D22: Diaphragm Volume = | E22: =2*(E15*E16*E17-E19*E18*E20)/27 -> 40.93738527 | F22: CY | M22: =CEILING(E22,1) -> 41 | N22: =IF(M22="","",M22+MAX(N$9:N21)) -> 41 | Q22: ABUT.
N23: =IF(M23="","",M23+MAX(N$9:N22)) -> 
N24: =IF(M24="","",M24+MAX(N$9:N23)) -> 
C25: Pier Diaphragm | N25: =IF(M25="","",M25+MAX(N$9:N24)) -> 
N26: =IF(M26="","",M26+MAX(N$9:N25)) -> 
D27: Beam Height = | E27: 42 | F27: in | N27: =IF(M27="","",M27+MAX(N$9:N26)) -> 
D28: Diaphragm Length = | E28: 32.6667 | F28: ft | N28: =IF(M28="","",M28+MAX(N$9:N27)) -> 
D29: Diaphragm Height = | E29: =(42+4.75)/12 -> 3.895833333 | F29: ft | N29: =IF(M29="","",M29+MAX(N$9:N28)) -> 
D30: Diaphragm Width = | E30: 1.5 | F30: ft | N30: =IF(M30="","",M30+MAX(N$9:N29)) ->  | T30: Pier Diaphragm Load for RCPier = | U30: =E35*27*0.15/E28 -> 0.7584121104 | V30: klf
D31: WF42-49 Area = | E31: =926.3/(12^2) -> 6.432638889 | F31: ft2 | N31: =IF(M31="","",M31+MAX(N$9:N30)) -> 
D32: # of Beams = | E32: 5 | N32: =IF(M32="","",M32+MAX(N$9:N31)) -> 
D33: Beam overhang into dia. = | E33: 6 | F33: in | N33: =IF(M33="","",M33+MAX(N$9:N32)) -> 
N34: =IF(M34="","",M34+MAX(N$9:N33)) -> 
D35: Diaphragm Volume = | E35: =(E29*E30*E28-E31*(E32-1)*(2*E33/12))/27 -> 6.117239725 | F35: CY | M35: =CEILING(E35,1) -> 7 | N35: =IF(M35="","",M35+MAX(N$9:N34)) -> 48 | Q35: PIER
N36: =IF(M36="","",M36+MAX(N$9:N35)) -> 
N37: =IF(M37="","",M37+MAX(N$9:N36)) -> 
N38: =IF(M38="","",M38+MAX(N$9:N37)) -> 
N39: =IF(M39="","",M39+MAX(N$9:N38)) -> 
N40: =IF(M40="","",M40+MAX(N$9:N39)) -> 
N41: =IF(M41="","",M41+MAX(N$9:N40)) -> 
N42: =IF(M42="","",M42+MAX(N$9:N41)) -> 
N43: =IF(M43="","",M43+MAX(N$9:N42)) -> 
N44: =IF(M44="","",M44+MAX(N$9:N43)) -> 
N45: =IF(M45="","",M45+MAX(N$9:N44)) -> 
N46: =IF(M46="","",M46+MAX(N$9:N45)) -> 
N47: =IF(M47="","",M47+MAX(N$9:N46)) -> 
N48: =IF(M48="","",M48+MAX(N$9:N47)) -> 
N49: =IF(M49="","",M49+MAX(N$9:N48)) -> 
N50: =IF(M50="","",M50+MAX(N$9:N49)) -> 
N51: =IF(M51="","",M51+MAX(N$9:N50)) -> 
N52: =IF(M52="","",M52+MAX(N$9:N51)) -> 
N53: =IF(M53="","",M53+MAX(N$9:N52)) -> 
N54: =IF(M54="","",M54+MAX(N$9:N53)) -> 
N55: =IF(M55="","",M55+MAX(N$9:N54)) -> 
N56: =IF(M56="","",M56+MAX(N$9:N55)) -> 
N57: =IF(M57="","",M57+MAX(N$9:N56)) -> 
N58: =IF(M58="","",M58+MAX(N$9:N57)) -> 
N59: =IF(M59="","",M59+MAX(N$9:N58)) -> 
N60: =IF(M60="","",M60+MAX(N$9:N59)) -> 
N61: =IF(M61="","",M61+MAX(N$9:N60)) -> 
N62: =IF(M62="","",M62+MAX(N$9:N61)) -> 
N63: =IF(M63="","",M63+MAX(N$9:N62)) -> 
N64: =IF(M64="","",M64+MAX(N$9:N63)) -> 
N65: =IF(M65="","",M65+MAX(N$9:N64)) -> 
N66: =IF(M66="","",M66+MAX(N$9:N65)) -> 
N67: =IF(M67="","",M67+MAX(N$9:N66)) -> 
N68: =IF(M68="","",M68+MAX(N$9:N67)) -> 
N69: =IF(M69="","",M69+MAX(N$9:N68)) -> 
N70: =IF(M70="","",M70+MAX(N$9:N69)) -> 
N71: =IF(M71="","",M71+MAX(N$9:N70)) -> 
N72: =IF(M72="","",M72+MAX(N$9:N71)) -> 
N73: =IF(M73="","",M73+MAX(N$9:N72)) -> 
N74: =IF(M74="","",M74+MAX(N$9:N73)) -> 
N75: =IF(M75="","",M75+MAX(N$9:N74)) -> 
N76: =IF(M76="","",M76+MAX(N$9:N75)) -> 
N77: =IF(M77="","",M77+MAX(N$9:N76)) -> 
N78: =IF(M78="","",M78+MAX(N$9:N77)) -> 
N79: =IF(M79="","",M79+MAX(N$9:N78)) -> 
N80: =IF(M80="","",M80+MAX(N$9:N79)) -> 
N81: =IF(M81="","",M81+MAX(N$9:N80)) -> 
N82: =IF(M82="","",M82+MAX(N$9:N81)) -> 
N83: =IF(M83="","",M83+MAX(N$9:N82)) -> 
N84: =IF(M84="","",M84+MAX(N$9:N83)) -> 
N85: =IF(M85="","",M85+MAX(N$9:N84)) -> 
D86: SPECIAL INSTRUCTIONS: | E86: =INDEX(QryItemE2019!F:F,MATCH(H5,QryItemE2019!A:A,0)) -> ADD SUPPLEMENTAL DESCRIPTION | M86: TOTAL | N86: =IF(K5="LS","LS"," ") -> 

Sheet 511E53014-02
G1: DESIGN: | H1: =IF('Calc Cover Sheet'!B11="","",'Calc Cover Sheet'!B11) -> BMV | I1: DATE: | J1: =IF('Calc Cover Sheet'!D11="","",'Calc Cover Sheet'!D11) -> 2024-04-19 | K1: UPDATE: | L1: =IF('Calc Cover Sheet'!B13="","",'Calc Cover Sheet'!B13) ->  | M1: DATE: | N1: =IF('Calc Cover Sheet'!D13="","",'Calc Cover Sheet'!D13) -> 
G2: CHECK: | H2: =IF('Calc Cover Sheet'!B12="","",'Calc Cover Sheet'!B12) -> TLC | I2: DATE: | J2: =IF('Calc Cover Sheet'!D12="","",'Calc Cover Sheet'!D12) -> 2024-04-25 | K2: RECHECK: | L2: =IF('Calc Cover Sheet'!B14="","",'Calc Cover Sheet'!B14) ->  | M2: DATE: | N2: =IF('Calc Cover Sheet'!D14="","",'Calc Cover Sheet'!D14) -> 
G3: STRUCTURE: | H3: =IF('Calc Cover Sheet'!B7="","",'Calc Cover Sheet'!B7) -> HAM-00145-0203 | K3: SFN: | L3: =IF('Calc Cover Sheet'!B3="","",'Calc Cover Sheet'!B3) -> 3108680 | M3: PID: | N3: =IF('Calc Cover Sheet'!B9="","",'Calc Cover Sheet'!B9) -> 110563
Q4: Lump Sum Tags (Items with a "LS" Pay Unit can be tagged with one or several categories)
G5: ITEM: | H5: =MID(RIGHT(CELL("filename",D2),LEN(CELL("filename",D2))-FIND("]",CELL("filename",D2))),1,9) -> 511E53014 | J5: PAY UNIT: | K5: =INDEX(QryItemE2019!B:B,MATCH(H5,QryItemE2019!A:A,0)) -> CY
G6: SUBJECT: | H6: =IF('Calc Cover Sheet'!B2="","",'Calc Cover Sheet'!B2) -> ESTIMATED QUANTITIES
D7: DESCRIPTION: | E7: =INDEX(QryItemE2019!C:C,MATCH(H5,QryItemE2019!A:A,0)) -> CLASS QC3 CONCRETE, MISC.:
D8: SUPPLEMENTAL DESCRIPTION: | E8: WITH QC/QA, BRIDGE DECK
M9: SUBTOTAL | N9: TOTAL | Q9: GROUP | R9: <<<<<Tag each subtotal value with a group from this column
N10: =IF(M10="","",M10+MAX(N$9:N9)) -> 
D11: Slab Width = | E11: 38.8333 | F11: ft | N11: =IF(M11="","",M11+MAX(N$9:N10)) -> 
D12: Slab Length = | E12: 182.67 | F12: ft | N12: =IF(M12="","",M12+MAX(N$9:N11)) -> 
D13: Deck Thickness = | E13: 8.5 | F13: in | N13: =IF(M13="","",M13+MAX(N$9:N12)) -> 
N14: =IF(M14="","",M14+MAX(N$9:N13)) -> 
D15: Overhang additional thickness = | E15: =E19+5 -> 8.625 | F15: in | N15: =IF(M15="","",M15+MAX(N$9:N14)) -> 
D16: Overhang width = | E16: =3.4167-0.5*4.0833 -> 1.37505 | F16: ft | N16: =IF(M16="","",M16+MAX(N$9:N15)) -> 
N17: =IF(M17="","",M17+MAX(N$9:N16)) -> 
D18: # of Beams = | E18: 5 | N18: =IF(M18="","",M18+MAX(N$9:N17)) -> 
D19: Haunch Thickness = | E19: 3.625 | F19: in | G19: Average
D20: Haunch Width = | E20: 4.0833 | F20: ft | N20: =IF(M20="","",M20+MAX(N$9:N19)) -> 
N21: =IF(M21="","",M21+MAX(N$9:N20)) -> 
N22: =IF(M22="","",M22+MAX(N$9:N21)) -> 
D23: Total Deck Volume = | E23: =E12*(E11*E13/12+2*E16*E15/12+E18*E20*E19/12)/27 -> 241.1990889 | F23: CY | M23: =E23 -> 241.1990889 | N23: =IF(M23="","",M23+MAX(N$9:N22)) -> 241.1990889 | Q23: SUPER.
N24: =IF(M24="","",M24+MAX(N$9:N23)) -> 
N25: =IF(M25="","",M25+MAX(N$9:N24)) -> 
N26: =IF(M26="","",M26+MAX(N$9:N25)) -> 
N27: =IF(M27="","",M27+MAX(N$9:N26)) -> 
N28: =IF(M28="","",M28+MAX(N$9:N27)) -> 
N29: =IF(M29="","",M29+MAX(N$9:N28)) -> 
N30: =IF(M30="","",M30+MAX(N$9:N29)) -> 
N31: =IF(M31="","",M31+MAX(N$9:N30)) -> 
N32: =IF(M32="","",M32+MAX(N$9:N31)) -> 
N33: =IF(M33="","",M33+MAX(N$9:N32)) -> 
N34: =IF(M34="","",M34+MAX(N$10:N33)) -> 
N35: =IF(M35="","",M35+MAX(N$10:N34)) -> 
N36: =IF(M36="","",M36+MAX(N$10:N35)) -> 
N37: =IF(M37="","",M37+MAX(N$10:N36)) -> 
N38: =IF(M38="","",M38+MAX(N$10:N37)) -> 
N39: =IF(M39="","",M39+MAX(N$10:N38)) -> 
N40: =IF(M40="","",M40+MAX(N$10:N39)) -> 
N41: =IF(M41="","",M41+MAX(N$10:N40)) -> 
N42: =IF(M42="","",M42+MAX(N$10:N41)) -> 
N43: =IF(M43="","",M43+MAX(N$10:N42)) -> 
N44: =IF(M44="","",M44+MAX(N$10:N43)) -> 
N45: =IF(M45="","",M45+MAX(N$10:N44)) -> 
N46: =IF(M46="","",M46+MAX(N$10:N45)) -> 
N47: =IF(M47="","",M47+MAX(N$10:N46)) -> 
N48: =IF(M48="","",M48+MAX(N$10:N47)) -> 
N49: =IF(M49="","",M49+MAX(N$10:N48)) -> 
N50: =IF(M50="","",M50+MAX(N$10:N49)) -> 
N51: =IF(M51="","",M51+MAX(N$10:N50)) -> 
N52: =IF(M52="","",M52+MAX(N$10:N51)) -> 
N53: =IF(M53="","",M53+MAX(N$10:N52)) -> 
N54: =IF(M54="","",M54+MAX(N$10:N53)) -> 
N55: =IF(M55="","",M55+MAX(N$10:N54)) -> 
N56: =IF(M56="","",M56+MAX(N$10:N55)) -> 
N57: =IF(M57="","",M57+MAX(N$10:N56)) -> 
N58: =IF(M58="","",M58+MAX(N$10:N57)) -> 
N59: =IF(M59="","",M59+MAX(N$10:N58)) -> 
N60: =IF(M60="","",M60+MAX(N$10:N59)) -> 
D61: SPECIAL INSTRUCTIONS: | E61: =INDEX(QryItemE2019!F:F,MATCH(H5,QryItemE2019!A:A,0)) -> ADD SUPPLEMENTAL DESCRIPTION | M61: TOTAL | N61: =IF(K5="LS","LS"," ") -> 

Sheet 511E53014-04
G1: DESIGN: | H1: =IF('Calc Cover Sheet'!B11="","",'Calc Cover Sheet'!B11) -> BMV | I1: DATE: | J1: =IF('Calc Cover Sheet'!D11="","",'Calc Cover Sheet'!D11) -> 2024-04-19 | K1: UPDATE: | L1: =IF('Calc Cover Sheet'!B13="","",'Calc Cover Sheet'!B13) ->  | M1: DATE: | N1: =IF('Calc Cover Sheet'!D13="","",'Calc Cover Sheet'!D13) -> 
G2: CHECK: | H2: =IF('Calc Cover Sheet'!B12="","",'Calc Cover Sheet'!B12) -> TLC | I2: DATE: | J2: =IF('Calc Cover Sheet'!D12="","",'Calc Cover Sheet'!D12) -> 2024-04-25 | K2: RECHECK: | L2: =IF('Calc Cover Sheet'!B14="","",'Calc Cover Sheet'!B14) ->  | M2: DATE: | N2: =IF('Calc Cover Sheet'!D14="","",'Calc Cover Sheet'!D14) -> 
G3: STRUCTURE: | H3: =IF('Calc Cover Sheet'!B7="","",'Calc Cover Sheet'!B7) -> HAM-00145-0203 | K3: SFN: | L3: =IF('Calc Cover Sheet'!B3="","",'Calc Cover Sheet'!B3) -> 3108680 | M3: * Preliminary Assumption | N3: =IF('Calc Cover Sheet'!B9="","",'Calc Cover Sheet'!B9) -> 110563
Q4: Lump Sum Tags (Items with a "LS" Pay Unit can be tagged with one or several categories)
G5: ITEM: | H5: =MID(RIGHT(CELL("filename",D2),LEN(CELL("filename",D2))-FIND("]",CELL("filename",D2))),1,9) -> 511E53014 | J5: PAY UNIT: | K5: =INDEX(QryItemE2019!B:B,MATCH(H5,QryItemE2019!A:A,0)) -> CY
G6: SUBJECT: | H6: =IF('Calc Cover Sheet'!B2="","",'Calc Cover Sheet'!B2) -> ESTIMATED QUANTITIES
D7: DESCRIPTION: | E7: =INDEX(QryItemE2019!C:C,MATCH(H5,QryItemE2019!A:A,0)) -> CLASS QC3 CONCRETE, MISC.:
D8: SUPPLEMENTAL DESCRIPTION: | E8: WITH QC/QA, PIER ABOVE FOOTINGS
M9: SUBTOTAL | N9: TOTAL | Q9: GROUP | R9: <<<<<Tag each subtotal value with a group from this column
N10: =IF(M10="","",M10+MAX(N$9:N9)) -> 
N11: =IF(M11="","",M11+MAX(N$9:N10)) -> 
D12: Avg. Cap Height = | E12: 4.44 | F12: ft | N12: =IF(M12="","",M12+MAX(N$9:N11)) -> 
D13: Cap Width = | E13: 3.5 | F13: ft | N13: =IF(M13="","",M13+MAX(N$9:N12)) -> 
D14: Cap Length = | E14: 36.1667 | F14: ft | N14: =IF(M14="","",M14+MAX(N$9:N13)) -> 
D15: Cap Volume = | E15: =E12*E13*E14/27 -> 20.81594511 | F15: CY | M15: =CEILING(E15,1) -> 21 | N15: =IF(M15="","",M15+MAX(N$9:N14)) -> 21 | Q15: PIER
N16: =IF(M16="","",M16+MAX(N$9:N15)) -> 
D17: Colmn Diameter = | E17: 3 | F17: ft | N17: =IF(M17="","",M17+MAX(N$9:N16)) -> 
D18: Column Height = | E18: 28.2 | F18: ft | N18: =IF(M18="","",M18+MAX(N$9:N17)) -> 
D19: # of Columns = | E19: 3 | F19: each
D20: Columns Volume = | E20: =(E19*E18*PI()*(E17/2)^2)/27 -> 22.14822821 | F20: CY | M20: =CEILING(E20,1) -> 23 | N20: =IF(M20="","",M20+MAX(N$9:N19)) -> 44 | Q20: PIER
N21: =IF(M21="","",M21+MAX(N$9:N20)) -> 
D22: Seismic Pedestal Width = | E22: 2 | F22: ft | N22: =IF(M22="","",M22+MAX(N$9:N21)) -> 
D23: Seismic Pedestal length = | E23: 3.5 | F23: ft | N23: =IF(M23="","",M23+MAX(N$9:N22)) -> 
D24: Seismic Pedestal height = | E24: 0.75 | F24: ft | N24: =IF(M24="","",M24+MAX(N$9:N23)) -> 
D25: Pedestal Volume = | E25: =(E22*E23*E24)/27 -> 0.1944444444 | F25: CY | M25: =CEILING(E25,1) -> 1 | N25: =IF(M25="","",M25+MAX(N$9:N24)) -> 45 | Q25: PIER
N26: =IF(M26="","",M26+MAX(N$9:N25)) -> 
N27: =IF(M27="","",M27+MAX(N$9:N26)) -> 
N28: =IF(M28="","",M28+MAX(N$9:N27)) -> 
N29: =IF(M29="","",M29+MAX(N$9:N28)) -> 
N30: =IF(M30="","",M30+MAX(N$9:N29)) -> 
N31: =IF(M31="","",M31+MAX(N$9:N30)) -> 
N32: =IF(M32="","",M32+MAX(N$9:N31)) -> 
N33: =IF(M33="","",M33+MAX(N$9:N32)) -> 
N34: =IF(M34="","",M34+MAX(N$9:N33)) -> 
N35: =IF(M35="","",M35+MAX(N$9:N34)) -> 
N36: =IF(M36="","",M36+MAX(N$9:N35)) -> 
N37: =IF(M37="","",M37+MAX(N$10:N36)) -> 
N38: =IF(M38="","",M38+MAX(N$10:N37)) -> 
N39: =IF(M39="","",M39+MAX(N$10:N38)) -> 
N40: =IF(M40="","",M40+MAX(N$10:N39)) -> 
N41: =IF(M41="","",M41+MAX(N$10:N40)) -> 
N42: =IF(M42="","",M42+MAX(N$10:N41)) -> 
N43: =IF(M43="","",M43+MAX(N$10:N42)) -> 
N44: =IF(M44="","",M44+MAX(N$10:N43)) -> 
N45: =IF(M45="","",M45+MAX(N$10:N44)) -> 
N46: =IF(M46="","",M46+MAX(N$10:N45)) -> 
N47: =IF(M47="","",M47+MAX(N$10:N46)) -> 
N48: =IF(M48="","",M48+MAX(N$10:N47)) -> 
N49: =IF(M49="","",M49+MAX(N$10:N48)) -> 
N50: =IF(M50="","",M50+MAX(N$10:N49)) -> 
N51: =IF(M51="","",M51+MAX(N$10:N50)) -> 
N52: =IF(M52="","",M52+MAX(N$10:N51)) -> 
N53: =IF(M53="","",M53+MAX(N$10:N52)) -> 
N54: =IF(M54="","",M54+MAX(N$10:N53)) -> 
N55: =IF(M55="","",M55+MAX(N$10:N54)) -> 
N56: =IF(M56="","",M56+MAX(N$10:N55)) -> 
N57: =IF(M57="","",M57+MAX(N$10:N56)) -> 
N58: =IF(M58="","",M58+MAX(N$10:N57)) -> 
N59: =IF(M59="","",M59+MAX(N$10:N58)) -> 
N60: =IF(M60="","",M60+MAX(N$10:N59)) -> 
N61: =IF(M61="","",M61+MAX(N$10:N60)) -> 
N62: =IF(M62="","",M62+MAX(N$10:N61)) -> 
N63: =IF(M63="","",M63+MAX(N$10:N62)) -> 
D64: SPECIAL INSTRUCTIONS: | E64: =INDEX(QryItemE2019!F:F,MATCH(H5,QryItemE2019!A:A,0)) -> ADD SUPPLEMENTAL DESCRIPTION | M64: TOTAL | N64: =IF(K5="LS","LS"," ") -> 

Sheet 511E53014-05
G1: DESIGN: | H1: =IF('Calc Cover Sheet'!B11="","",'Calc Cover Sheet'!B11) -> BMV | I1: DATE: | J1: =IF('Calc Cover Sheet'!D11="","",'Calc Cover Sheet'!D11) -> 2024-04-19 | K1: UPDATE: | L1: =IF('Calc Cover Sheet'!B13="","",'Calc Cover Sheet'!B13) ->  | M1: DATE: | N1: =IF('Calc Cover Sheet'!D13="","",'Calc Cover Sheet'!D13) -> 
G2: CHECK: | H2: =IF('Calc Cover Sheet'!B12="","",'Calc Cover Sheet'!B12) -> TLC | I2: DATE: | J2: =IF('Calc Cover Sheet'!D12="","",'Calc Cover Sheet'!D12) -> 2024-04-25 | K2: RECHECK: | L2: =IF('Calc Cover Sheet'!B14="","",'Calc Cover Sheet'!B14) ->  | M2: DATE: | N2: =IF('Calc Cover Sheet'!D14="","",'Calc Cover Sheet'!D14) -> 
G3: STRUCTURE: | H3: =IF('Calc Cover Sheet'!B7="","",'Calc Cover Sheet'!B7) -> HAM-00145-0203 | K3: SFN: | L3: =IF('Calc Cover Sheet'!B3="","",'Calc Cover Sheet'!B3) -> 3108680 | M3: * Preliminary Assumption | N3: =IF('Calc Cover Sheet'!B9="","",'Calc Cover Sheet'!B9) -> 110563
Q4: Lump Sum Tags (Items with a "LS" Pay Unit can be tagged with one or several categories)
G5: ITEM: | H5: =MID(RIGHT(CELL("filename",D2),LEN(CELL("filename",D2))-FIND("]",CELL("filename",D2))),1,9) -> 511E53014 | J5: PAY UNIT: | K5: =INDEX(QryItemE2019!B:B,MATCH(H5,QryItemE2019!A:A,0)) -> CY
G6: SUBJECT: | H6: =IF('Calc Cover Sheet'!B2="","",'Calc Cover Sheet'!B2) -> ESTIMATED QUANTITIES
D7: DESCRIPTION: | E7: =INDEX(QryItemE2019!C:C,MATCH(H5,QryItemE2019!A:A,0)) -> CLASS QC3 CONCRETE, MISC.:
D8: SUPPLEMENTAL DESCRIPTION: | E8: WITH QC/QA, SIDEWALK
M9: SUBTOTAL | N9: TOTAL | Q9: GROUP | R9: <<<<<Tag each subtotal value with a group from this column
N10: =IF(M10="","",M10+MAX(N$9:N9)) -> 
N11: =IF(M11="","",M11+MAX(N$9:N10)) -> 
D12: Bridge Length = | E12: 182.67 | F12: ft | N12: =IF(M12="","",M12+MAX(N$9:N11)) -> 
D13: Approach Length = | E13: 30 | F13: ft | N13: =IF(M13="","",M13+MAX(N$9:N12)) -> 
D14: # Approaches = | E14: 2 | F14: ea | N14: =IF(M14="","",M14+MAX(N$9:N13)) -> 
D15: Sidewalk Width = | E15: 6 | F15: ft
D16: Sidewalk Thickness = | E16: 8 | F16: in | N16: =IF(M16="","",M16+MAX(N$9:N15)) -> 
N17: =IF(M17="","",M17+MAX(N$9:N16)) -> 
N18: =IF(M18="","",M18+MAX(N$9:N17)) -> 
D20: Sidewalk Volume = | E20: =((E12+E13*E14)*E15*(E16/12))/27 -> 35.95111111 | F20: CY | M20: =CEILING(E20,1) -> 36 | N20: =IF(M20="","",M20+MAX(N$9:N19)) -> 36 | Q20: SUPER.
N21: =IF(M21="","",M21+MAX(N$9:N20)) -> 
N22: =IF(M22="","",M22+MAX(N$9:N21)) -> 
N23: =IF(M23="","",M23+MAX(N$9:N22)) -> 
N24: =IF(M24="","",M24+MAX(N$9:N23)) -> 
N26: =IF(M26="","",M26+MAX(N$9:N25)) -> 
N27: =IF(M27="","",M27+MAX(N$9:N26)) -> 
N28: =IF(M28="","",M28+MAX(N$9:N27)) -> 
N29: =IF(M29="","",M29+MAX(N$9:N28)) -> 
N30: =IF(M30="","",M30+MAX(N$9:N29)) -> 
N31: =IF(M31="","",M31+MAX(N$9:N30)) -> 
N32: =IF(M32="","",M32+MAX(N$9:N31)) -> 
N33: =IF(M33="","",M33+MAX(N$9:N32)) -> 
N34: =IF(M34="","",M34+MAX(N$9:N33)) -> 
N35: =IF(M35="","",M35+MAX(N$9:N34)) -> 
N36: =IF(M36="","",M36+MAX(N$9:N35)) -> 
N37: =IF(M37="","",M37+MAX(N$10:N36)) -> 
N38: =IF(M38="","",M38+MAX(N$10:N37)) -> 
N39: =IF(M39="","",M39+MAX(N$10:N38)) -> 
N40: =IF(M40="","",M40+MAX(N$10:N39)) -> 
N41: =IF(M41="","",M41+MAX(N$10:N40)) -> 
N42: =IF(M42="","",M42+MAX(N$10:N41)) -> 
N43: =IF(M43="","",M43+MAX(N$10:N42)) -> 
N44: =IF(M44="","",M44+MAX(N$10:N43)) -> 
N45: =IF(M45="","",M45+MAX(N$10:N44)) -> 
N46: =IF(M46="","",M46+MAX(N$10:N45)) -> 
N47: =IF(M47="","",M47+MAX(N$10:N46)) -> 
N48: =IF(M48="","",M48+MAX(N$10:N47)) -> 
N49: =IF(M49="","",M49+MAX(N$10:N48)) -> 
N50: =IF(M50="","",M50+MAX(N$10:N49)) -> 
N51: =IF(M51="","",M51+MAX(N$10:N50)) -> 
N52: =IF(M52="","",M52+MAX(N$10:N51)) -> 
N53: =IF(M53="","",M53+MAX(N$10:N52)) -> 
N54: =IF(M54="","",M54+MAX(N$10:N53)) -> 
N55: =IF(M55="","",M55+MAX(N$10:N54)) -> 
N56: =IF(M56="","",M56+MAX(N$10:N55)) -> 
N57: =IF(M57="","",M57+MAX(N$10:N56)) -> 
N58: =IF(M58="","",M58+MAX(N$10:N57)) -> 
N59: =IF(M59="","",M59+MAX(N$10:N58)) -> 
N60: =IF(M60="","",M60+MAX(N$10:N59)) -> 
N61: =IF(M61="","",M61+MAX(N$10:N60)) -> 
N62: =IF(M62="","",M62+MAX(N$10:N61)) -> 
N63: =IF(M63="","",M63+MAX(N$10:N62)) -> 
D64: SPECIAL INSTRUCTIONS: | E64: =INDEX(QryItemE2019!F:F,MATCH(H5,QryItemE2019!A:A,0)) -> ADD SUPPLEMENTAL DESCRIPTION | M64: TOTAL | N64: =IF(K5="LS","LS"," ") -> 

Sheet 512E10050
G1: DESIGN: | H1: =IF('Calc Cover Sheet'!B11="","",'Calc Cover Sheet'!B11) -> BMV | I1: DATE: | J1: =IF('Calc Cover Sheet'!D11="","",'Calc Cover Sheet'!D11) -> 2024-04-19 | K1: UPDATE: | L1: =IF('Calc Cover Sheet'!B13="","",'Calc Cover Sheet'!B13) ->  | M1: DATE: | N1: =IF('Calc Cover Sheet'!D13="","",'Calc Cover Sheet'!D13) -> 
G2: CHECK: | H2: =IF('Calc Cover Sheet'!B12="","",'Calc Cover Sheet'!B12) -> TLC | I2: DATE: | J2: =IF('Calc Cover Sheet'!D12="","",'Calc Cover Sheet'!D12) -> 2024-04-25 | K2: RECHECK: | L2: =IF('Calc Cover Sheet'!B14="","",'Calc Cover Sheet'!B14) ->  | M2: DATE: | N2: =IF('Calc Cover Sheet'!D14="","",'Calc Cover Sheet'!D14) -> 
G3: STRUCTURE: | H3: =IF('Calc Cover Sheet'!B7="","",'Calc Cover Sheet'!B7) -> HAM-00145-0203 | K3: SFN: | L3: =IF('Calc Cover Sheet'!B3="","",'Calc Cover Sheet'!B3) -> 3108680 | M3: PID: | N3: =IF('Calc Cover Sheet'!B9="","",'Calc Cover Sheet'!B9) -> 110563
Q4: Lump Sum Tags (Items with a "LS" Pay Unit can be tagged with one or several categories)
G5: ITEM: | H5: =MID(RIGHT(CELL("filename",D2),LEN(CELL("filename",D2))-FIND("]",CELL("filename",D2))),1,9) -> 512E10050 | J5: PAY UNIT: | K5: =INDEX(QryItemE2019!B:B,MATCH(H5,QryItemE2019!A:A,0)) -> SY
G6: SUBJECT: | H6: =IF('Calc Cover Sheet'!B2="","",'Calc Cover Sheet'!B2) -> ESTIMATED QUANTITIES
D7: DESCRIPTION: | E7: =INDEX(QryItemE2019!C:C,MATCH(H5,QryItemE2019!A:A,0)) -> SEALING OF CONCRETE SURFACES (NON-EPOXY)
D8: SUPPLEMENTAL DESCRIPTION:
M9: SUBTOTAL | N9: TOTAL | Q9: GROUP | R9: <<<<<Tag each subtotal value with a group from this column
N10: =IF(M10="","",M10+MAX(N$9:N9)) -> 
C11: SIDEWALK SURFACE | N11: =IF(M11="","",M11+MAX(N$9:N10)) -> 
E12: Bridge Length = | F12: 182.67 | G12: ft | N12: =IF(M12="","",M12+MAX(N$10:N11)) -> 
E13: Approach Length = | F13: 30 | G13: ft each
E14: Rear Moment Slab = | F14: =23+7/12 -> 23.58333333 | G14: ft
E15: Fwd Moment Slab = | F15: =40+7/12 -> 40.58333333 | G15: ft
E16: Type C Installation = | F16: 1.8333 | G16: ft
E17: Total Sealed Length = | F17: =F12+F13*2+F14+F15+F16*2 -> 310.5032667 | G17: ft
E19: Sidewalk Width = | F19: 6 | G19: ft | N19: =IF(M19="","",M19+MAX(N$10:N12)) -> 
E20: Sidewalk Curb Height = | F20: 0.6667 | G20: ft | N20: =IF(M20="","",M20+MAX(N$10:N19)) -> 
N21: =IF(M21="","",M21+MAX(N$10:N19)) -> 
E22: Sidewalk Sealed Area = | F22: =F17*(F19+F20)/9 -> 230.0035698 | G22: SY | M22: =CEILING(F22,1) -> 231 | N22: =IF(M22="","",M22+MAX(N$10:N21)) -> 231 | Q22: GEN.
N24: =IF(M24="","",M24+MAX(N$9:N23)) -> 
N25: =IF(M25="","",M25+MAX(N$9:N24)) -> 
N26: =IF(M26="","",M26+MAX(N$9:N25)) -> 
N27: =IF(M27="","",M27+MAX(N$9:N26)) -> 
N28: =IF(M28="","",M28+MAX(N$9:N27)) -> 
N29: =IF(M29="","",M29+MAX(N$9:N28)) -> 
N30: =IF(M30="","",M30+MAX(N$9:N29)) -> 
N31: =IF(M31="","",M31+MAX(N$9:N30)) -> 
N32: =IF(M32="","",M32+MAX(N$9:N31)) -> 
N33: =IF(M33="","",M33+MAX(N$9:N32)) -> 
N34: =IF(M34="","",M34+MAX(N$10:N33)) -> 
N35: =IF(M35="","",M35+MAX(N$10:N34)) -> 
N36: =IF(M36="","",M36+MAX(N$10:N35)) -> 
N37: =IF(M37="","",M37+MAX(N$10:N36)) -> 
N38: =IF(M38="","",M38+MAX(N$10:N37)) -> 
N39: =IF(M39="","",M39+MAX(N$10:N38)) -> 
N40: =IF(M40="","",M40+MAX(N$10:N39)) -> 
N41: =IF(M41="","",M41+MAX(N$10:N40)) -> 
N42: =IF(M42="","",M42+MAX(N$10:N41)) -> 
N43: =IF(M43="","",M43+MAX(N$10:N42)) ->  | Q43: GEN.
N44: =IF(M44="","",M44+MAX(N$10:N43)) -> 
N45: =IF(M45="","",M45+MAX(N$10:N44)) -> 
N46: =IF(M46="","",M46+MAX(N$10:N45)) -> 
N47: =IF(M47="","",M47+MAX(N$10:N46)) -> 
N48: =IF(M48="","",M48+MAX(N$10:N47)) -> 
N49: =IF(M49="","",M49+MAX(N$10:N48)) -> 
N50: =IF(M50="","",M50+MAX(N$10:N49)) -> 
N51: =IF(M51="","",M51+MAX(N$10:N50)) -> 
N52: =IF(M52="","",M52+MAX(N$10:N51)) -> 
N53: =IF(M53="","",M53+MAX(N$10:N52)) -> 
N54: =IF(M54="","",M54+MAX(N$10:N53)) -> 
N55: =IF(M55="","",M55+MAX(N$10:N54)) -> 
N56: =IF(M56="","",M56+MAX(N$10:N55)) -> 
N57: =IF(M57="","",M57+MAX(N$10:N56)) -> 
N58: =IF(M58="","",M58+MAX(N$10:N57)) -> 
N59: =IF(M59="","",M59+MAX(N$10:N58)) -> 
N60: =IF(M60="","",M60+MAX(N$10:N59)) -> 
N61: =IF(M61="","",M61+MAX(N$10:N60)) -> 
N62: =IF(M62="","",M62+MAX(N$10:N61)) -> 
N63: =IF(M63="","",M63+MAX(N$10:N62)) -> 
N64: =IF(M64="","",M64+MAX(N$10:N63)) -> 
N65: =IF(M65="","",M65+MAX(N$10:N64)) -> 
N66: =IF(M66="","",M66+MAX(N$10:N65)) -> 
N67: =IF(M67="","",M67+MAX(N$10:N66)) -> 
N68: =IF(M68="","",M68+MAX(N$10:N67)) -> 
N69: =IF(M69="","",M69+MAX(N$10:N68)) -> 
N70: =IF(M70="","",M70+MAX(N$10:N69)) -> 
N71: =IF(M71="","",M71+MAX(N$10:N70)) -> 
N72: =IF(M72="","",M72+MAX(N$10:N71)) -> 
N73: =IF(M73="","",M73+MAX(N$10:N72)) -> 
N74: =IF(M74="","",M74+MAX(N$10:N73)) -> 
N75: =IF(M75="","",M75+MAX(N$10:N74)) -> 
N76: =IF(M76="","",M76+MAX(N$10:N75)) -> 
N77: =IF(M77="","",M77+MAX(N$10:N76)) -> 
N78: =IF(M78="","",M78+MAX(N$10:N77)) -> 
N79: =IF(M79="","",M79+MAX(N$10:N78)) -> 
N80: =IF(M80="","",M80+MAX(N$10:N79)) -> 
N81: =IF(M81="","",M81+MAX(N$10:N80)) -> 
N82: =IF(M82="","",M82+MAX(N$10:N81)) -> 
D83: SPECIAL INSTRUCTIONS: | E83: =INDEX(QryItemE2019!F:F,MATCH(H5,QryItemE2019!A:A,0)) ->  | M83: TOTAL | N83: =IF(K5="LS","LS"," ") -> 

Sheet 512E10100
G1: DESIGN: | H1: =IF('Calc Cover Sheet'!B11="","",'Calc Cover Sheet'!B11) -> BMV | I1: DATE: | J1: =IF('Calc Cover Sheet'!D11="","",'Calc Cover Sheet'!D11) -> 2024-04-19 | K1: UPDATE: | L1: =IF('Calc Cover Sheet'!B13="","",'Calc Cover Sheet'!B13) ->  | M1: DATE: | N1: =IF('Calc Cover Sheet'!D13="","",'Calc Cover Sheet'!D13) -> 
G2: CHECK: | H2: =IF('Calc Cover Sheet'!B12="","",'Calc Cover Sheet'!B12) -> TLC | I2: DATE: | J2: =IF('Calc Cover Sheet'!D12="","",'Calc Cover Sheet'!D12) -> 2024-04-25 | K2: RECHECK: | L2: =IF('Calc Cover Sheet'!B14="","",'Calc Cover Sheet'!B14) ->  | M2: DATE: | N2: =IF('Calc Cover Sheet'!D14="","",'Calc Cover Sheet'!D14) -> 
G3: STRUCTURE: | H3: =IF('Calc Cover Sheet'!B7="","",'Calc Cover Sheet'!B7) -> HAM-00145-0203 | K3: SFN: | L3: =IF('Calc Cover Sheet'!B3="","",'Calc Cover Sheet'!B3) -> 3108680 | M3: PID: | N3: =IF('Calc Cover Sheet'!B9="","",'Calc Cover Sheet'!B9) -> 110563
Q4: Lump Sum Tags (Items with a "LS" Pay Unit can be tagged with one or several categories)
G5: ITEM: | H5: =MID(RIGHT(CELL("filename",D2),LEN(CELL("filename",D2))-FIND("]",CELL("filename",D2))),1,9) -> 512E10100 | J5: PAY UNIT: | K5: =INDEX(QryItemE2019!B:B,MATCH(H5,QryItemE2019!A:A,0)) -> SY
G6: SUBJECT: | H6: =IF('Calc Cover Sheet'!B2="","",'Calc Cover Sheet'!B2) -> ESTIMATED QUANTITIES
D7: DESCRIPTION: | E7: =INDEX(QryItemE2019!C:C,MATCH(H5,QryItemE2019!A:A,0)) -> SEALING OF CONCRETE SURFACES (EPOXY-URETHANE)
D8: SUPPLEMENTAL DESCRIPTION: | E8: LIGHT NEUTRAL) (MSE WALLS)
M9: SUBTOTAL | N9: TOTAL | Q9: GROUP | R9: <<<<<Tag each subtotal value with a group from this column
N10: =IF(M10="","",M10+MAX(N$9:N9)) -> 
N11: =IF(M11="","",M11+MAX(N$10:N10)) -> 
C12: MSE WALLS
N13: =IF(M13="","",M13+MAX(N$10:N11)) -> 
E14: Top of Coping Width = | F14: =10/12 -> 0.8333333333 | G14: ft | N14: =IF(M14="","",M14+MAX(N$10:N13)) -> 
N15: =IF(M15="","",M15+MAX(N$10:N14)) -> 
C16: Rear Left | N16: =IF(M16="","",M16+MAX(N$10:N15)) -> 
E17: Avg. Top of Wall Elev. = | F17: =AVERAGE(806.98,805.19) -> 806.085 | N17: =IF(M17="","",M17+MAX(N$10:N16)) -> 
E18: Avg. Groundline Elev. = | F18: 794 | H18: *Estimate | N18: =IF(M18="","",M18+MAX(N$10:N16)) -> 
E19: Length = | F19: 48 | G19: ft | N19: =IF(M19="","",M19+MAX(N$10:N18)) -> 
C20: Rear Abutment
E21: Avg. Top of Wall Elev. = | F21: 799.55
E22: Avg. Groundline Elev. = | F22: 784 | H22: *Estimate | N22: =IF(M22="","",M22+MAX(N$10:N21)) -> 
E23: Length = | F23: 40 | G23: ft | N23: =IF(M23="","",M23+MAX(N$10:N22)) -> 
C24: Rear Right | N24: =IF(M24="","",M24+MAX(N$10:N23)) -> 
E25: Avg. Top of Wall Elev. = | F25: =AVERAGE(806.98,805.19) -> 806.085 | N25: =IF(M25="","",M25+MAX(N$10:N24)) -> 
E26: Avg. Groundline Elev. = | F26: 794 | H26: *Estimate | N26: =IF(M26="","",M26+MAX(N$10:N25)) -> 
E27: Length = | F27: 48 | G27: ft
C28: Fwd Left
E29: Avg. Top of Wall Elev. = | F29: =AVERAGE(816.78,814.29) -> 815.535 | N29: =IF(M29="","",M29+MAX(N$9:N10)) -> 
E30: Avg. Groundline Elev. = | F30: 801 | H30: *Estimate | N30: =IF(M30="","",M30+MAX(N$9:N29)) -> 
E31: Length = | F31: 65 | G31: ft | N31: =IF(M31="","",M31+MAX(N$9:N9)) -> 
C32: Fwd Abutment
E33: Avg. Top of Wall Elev. = | F33: 806.61
E34: Avg. Groundline Elev. = | F34: 787 | H34: *Estimate | N34: =IF(M34="","",M34+MAX(N$9:N30)) -> 
E35: Length = | F35: 40 | G35: ft | N35: =IF(M35="","",M35+MAX(N$9:N34)) -> 
C36: Fwd Right | N36: =IF(M36="","",M36+MAX(N$9:N35)) -> 
E37: Avg. Top of Wall Elev. = | F37: =AVERAGE(814.29,816.74) -> 815.515 | N37: =IF(M37="","",M37+MAX(N$9:N36)) -> 
E38: Avg. Groundline Elev. = | F38: 801 | H38: *Estimate
E39: Length = | F39: 65 | G39: ft | N39: =IF(M39="","",M39+MAX(N$9:N38)) -> 
N40: =IF(M40="","",M40+MAX(N$9:N39)) -> 
E41: MSE Wall Sealant Area = | F41: =(SUM(F19+F23+F27+F31+F35+F39)*F14+(F17-F18)*F19+(F21-F22)*F23+(F25-F26)*F27+(F29-F30)*F31+(F33-F34)*F35+(F37-F38)*F39) / 9 -> 523.3122222 | G41: SY | M41: =CEILING(F41,1) -> 524 | N41: =IF(M41="","",M41+MAX(N$10:N40)) -> 524 | Q41: GEN.
N42: =IF(M42="","",M42+MAX(N$10:N41)) -> 
N43: =IF(M43="","",M43+MAX(N$10:N42)) -> 
N44: =IF(M44="","",M44+MAX(N$10:N43)) -> 
N45: =IF(M45="","",M45+MAX(N$10:N44)) -> 
N46: =IF(M46="","",M46+MAX(N$10:N45)) -> 
N47: =IF(M47="","",M47+MAX(N$10:N46)) -> 
N48: =IF(M48="","",M48+MAX(N$10:N47)) -> 
N49: =IF(M49="","",M49+MAX(N$10:N48)) -> 
N50: =IF(M50="","",M50+MAX(N$10:N49)) -> 
N51: =IF(M51="","",M51+MAX(N$10:N50)) -> 
N52: =IF(M52="","",M52+MAX(N$10:N51)) -> 
N55: =IF(M55="","",M55+MAX(N$10:N52)) -> 
N56: =IF(M56="","",M56+MAX(N$10:N55)) -> 
D57: SPECIAL INSTRUCTIONS: | E57: =INDEX(QryItemE2019!F:F,MATCH(H5,QryItemE2019!A:A,0)) ->  | M57: TOTAL | N57: =IF(K5="LS","LS"," ") -> 

Sheet 512E10100 (Gray 1&2)
G1: DESIGN: | H1: =IF('Calc Cover Sheet'!B11="","",'Calc Cover Sheet'!B11) -> BMV | I1: DATE: | J1: =IF('Calc Cover Sheet'!D11="","",'Calc Cover Sheet'!D11) -> 2024-04-19 | K1: UPDATE: | L1: =IF('Calc Cover Sheet'!B13="","",'Calc Cover Sheet'!B13) ->  | M1: DATE: | N1: =IF('Calc Cover Sheet'!D13="","",'Calc Cover Sheet'!D13) -> 
G2: CHECK: | H2: =IF('Calc Cover Sheet'!B12="","",'Calc Cover Sheet'!B12) -> TLC | I2: DATE: | J2: =IF('Calc Cover Sheet'!D12="","",'Calc Cover Sheet'!D12) -> 2024-04-25 | K2: RECHECK: | L2: =IF('Calc Cover Sheet'!B14="","",'Calc Cover Sheet'!B14) ->  | M2: DATE: | N2: =IF('Calc Cover Sheet'!D14="","",'Calc Cover Sheet'!D14) -> 
G3: STRUCTURE: | H3: =IF('Calc Cover Sheet'!B7="","",'Calc Cover Sheet'!B7) -> HAM-00145-0203 | K3: SFN: | L3: =IF('Calc Cover Sheet'!B3="","",'Calc Cover Sheet'!B3) -> 3108680 | M3: PID: | N3: =IF('Calc Cover Sheet'!B9="","",'Calc Cover Sheet'!B9) -> 110563
Q4: Lump Sum Tags (Items with a "LS" Pay Unit can be tagged with one or several categories)
G5: ITEM: | H5: =MID(RIGHT(CELL("filename",D2),LEN(CELL("filename",D2))-FIND("]",CELL("filename",D2))),1,9) -> 512E10100 | J5: PAY UNIT: | K5: =INDEX(QryItemE2019!B:B,MATCH(H5,QryItemE2019!A:A,0)) -> SY
G6: SUBJECT: | H6: =IF('Calc Cover Sheet'!B2="","",'Calc Cover Sheet'!B2) -> ESTIMATED QUANTITIES
D7: DESCRIPTION: | E7: =INDEX(QryItemE2019!C:C,MATCH(H5,QryItemE2019!A:A,0)) -> SEALING OF CONCRETE SURFACES (EPOXY-URETHANE)
D8: SUPPLEMENTAL DESCRIPTION: | E8: GRAY
M9: SUBTOTAL | N9: TOTAL | Q9: GROUP | R9: <<<<<Tag each subtotal value with a group from this column
N10: =IF(M10="","",M10+MAX(N$9:N9)) -> 
C11: BARRIER, DECK EDGE, EXT. BEAM EDGE AND BOTTOM | N11: =IF(M11="","",M11+MAX(N$10:N10)) -> 
F12: Alt 1
E13: Bridge Length = | F13: 182.6667 | G13: ft | N13: =IF(M13="","",M13+MAX(N$10:N11)) -> 
E14: Left Barrier Surface Length = | F14: =3+1+3.76 -> 7.76 | G14: ft | N14: =IF(M14="","",M14+MAX(N$10:N13)) -> 
E15: Right Barrier Surface Length = | F15: =3.5+0.8333+SQRT(0.6667^2+3.5^2) -> 7.896232625 | G15: ft | N15: =IF(M15="","",M15+MAX(N$10:N14)) -> 
E16: Exposed Left Deck Edges = | F16: =0.16667+1+(3.5/12)+3.416667-0.5*4.0833 -> 2.833353667 | G16: ft | N16: =IF(M16="","",M16+MAX(N$10:N15)) -> 
E17: Exposed Right Deck Edges = | F17: =0.16667+1+(2.375/12)+3.416667-0.5*4.0833 -> 2.739603667 | G17: ft | N17: =IF(M17="","",M17+MAX(N$10:N16)) -> 
E18: Sealed Beam Edge = | G18: ft | N18: =IF(M18="","",M18+MAX(N$10:N16)) -> 
N19: =IF(M19="","",M19+MAX(N$10:N18)) -> 
E20: Barrier, Deck Edge Sealed Area = | F20: =F13*((F14+F16+F18)+(F15+F17+F18))/9 -> 430.8740082 | G20: SY | M20: =CEILING(F20,1) -> 431 | N20: =IF(M20="","",M20+MAX(N$10:N19)) -> 431 | Q20: SUPER.
C22: Approach Barrier | N22: =IF(M22="","",M22+MAX(N$10:N21)) -> 
N23: =IF(M23="","",M23+MAX(N$10:N22)) -> 
E24: Approach Barrier Length = | F24: =311.6-F13 -> 128.9333 | G24: ft | N24: =IF(M24="","",M24+MAX(N$10:N23)) -> 
E25: Sealed Length = | F25: =F14+F15 -> 15.65623262 | G25: ft | N25: =IF(M25="","",M25+MAX(N$10:N24)) -> 
N26: =IF(M26="","",M26+MAX(N$10:N25)) -> 
E27: Barrier, Deck Edge, Beam Sealed Area = | F27: =F24*F25/9 -> 224.2899709 | G27: SY | M27: =CEILING(F27,1) -> 225 | N27: =IF(M27="","",M27+MAX(N$10:N26)) -> 656 | Q27: GEN.
N29: =IF(M29="","",M29+MAX(N$10:N28)) -> 
N30: =IF(M30="","",M30+MAX(N$10:N29)) -> 
C31: ABUTMENTS | N31: =IF(M31="","",M31+MAX(N$10:N30)) -> 
E32: Bearing Plates/HP height = | F32: =9.5/12 -> 0.7916666667 | G32: ft | N32: =IF(M32="","",M32+MAX(N$10:N31)) -> 
E33: Beam Height = | F33: =42/12 -> 3.5 | G33: ft | N33: =IF(M33="","",M33+MAX(N$10:N32)) -> 
E34: Haunch Height = | F34: =3.25/12 -> 0.2708333333 | G34: ft | N34: =IF(M34="","",M34+MAX(N$10:N33)) -> 
E35: Deck Thickness = | F35: =8.5/12 -> 0.7083333333 | G35: ft | N35: =IF(M35="","",M35+MAX(N$10:N34)) -> 
E36: Approach Thickness = | F36: 1.41667 | G36: ft | N36: =IF(M36="","",M36+MAX(N$10:N35)) -> 
N37: =IF(M37="","",M37+MAX(N$10:N36)) -> 
E38: Abut. Length = | F38: 38.8333 | G38: ft | N38: =IF(M38="","",M38+MAX(N$10:N37)) -> 
E39: Sealed Footing Depth = | F39: =1.4167+0.5 -> 1.9167 | G39: ft | H39: * Includes exposed front face | N39: =IF(M39="","",M39+MAX(N$10:N38)) -> 
E40: Abut. Stem Height = | F40: 2 | G40: ft | N40: =IF(M40="","",M40+MAX(N$10:N39)) -> 
E41: Sealed Diaphragm Height = | F41: =F32+F33+F34+F35-F36 -> 3.854163333 | G41: ft | N41: =IF(M41="","",M41+MAX(N$10:N40)) -> 
N42: =IF(M42="","",M42+MAX(N$10:N41)) -> 
E43: Abutment Sealed Area = | F43: =2*F38*(F39+F40+F41)/9 -> 67.05961491 | G43: SY | M43: =F43 -> 67.05961491 | N43: =IF(M43="","",M43+MAX(N$10:N42)) -> 723.0596149 | Q43: ABUT.
N44: =IF(M44="","",M44+MAX(N$10:N43)) -> 
N45: =IF(M45="","",M45+MAX(N$10:N44)) -> 
C46: PIER | N46: =IF(M46="","",M46+MAX(N$10:N45)) -> 
E47: Bottom of Pier Cap Elev. = | F47: 801.2 | N47: =IF(M47="","",M47+MAX(N$10:N46)) -> 
E48: Avg. Ground line at Columns = | F48: 786 | N48: =IF(M48="","",M48+MAX(N$10:N47)) -> 
E49: Column Height = | F49: =F47-F48 -> 15.2 | G49: ft | N49: =IF(M49="","",M49+MAX(N$10:N48)) -> 
E50: Column Diameter = | F50: 3 | G50: ft | N50: =IF(M50="","",M50+MAX(N$10:N49)) -> 
E51: # of Columns = | F51: 3 | N51: =IF(M51="","",M51+MAX(N$10:N50)) -> 
N52: =IF(M52="","",M52+MAX(N$10:N51)) -> 
E53: Pier Sealed Area = | F53: =F51*PI()*F50*F49/9 -> 47.75220833 | G53: SY | M53: =F53 -> 47.75220833 | N53: =IF(M53="","",M53+MAX(N$10:N52)) -> 770.8118232 | Q53: PIER
N54: =IF(M54="","",M54+MAX(N$10:N53)) -> 
N55: =IF(M55="","",M55+MAX(N$10:N54)) -> 
N56: =IF(M56="","",M56+MAX(N$10:N55)) -> 
N57: =IF(M57="","",M57+MAX(N$10:N56)) -> 
N58: =IF(M58="","",M58+MAX(N$10:N57)) -> 
N59: =IF(M59="","",M59+MAX(N$10:N58)) -> 
N60: =IF(M60="","",M60+MAX(N$10:N59)) -> 
N61: =IF(M61="","",M61+MAX(N$10:N60)) -> 
N62: =IF(M62="","",M62+MAX(N$10:N61)) -> 
N63: =IF(M63="","",M63+MAX(N$10:N62)) -> 
N64: =IF(M64="","",M64+MAX(N$10:N63)) -> 
N65: =IF(M65="","",M65+MAX(N$10:N64)) -> 
N66: =IF(M66="","",M66+MAX(N$10:N65)) -> 
D67: SPECIAL INSTRUCTIONS: | E67: =INDEX(QryItemE2019!F:F,MATCH(H5,QryItemE2019!A:A,0)) ->  | M67: TOTAL | N67: =IF(K5="LS","LS"," ") -> 

Sheet 512E10100 (Gray Beams)
G1: DESIGN: | H1: =IF('Calc Cover Sheet'!B11="","",'Calc Cover Sheet'!B11) -> BMV | I1: DATE: | J1: =IF('Calc Cover Sheet'!D11="","",'Calc Cover Sheet'!D11) -> 2024-04-19 | K1: UPDATE: | L1: =IF('Calc Cover Sheet'!B13="","",'Calc Cover Sheet'!B13) ->  | M1: DATE: | N1: =IF('Calc Cover Sheet'!D13="","",'Calc Cover Sheet'!D13) -> 
G2: CHECK: | H2: =IF('Calc Cover Sheet'!B12="","",'Calc Cover Sheet'!B12) -> TLC | I2: DATE: | J2: =IF('Calc Cover Sheet'!D12="","",'Calc Cover Sheet'!D12) -> 2024-04-25 | K2: RECHECK: | L2: =IF('Calc Cover Sheet'!B14="","",'Calc Cover Sheet'!B14) ->  | M2: DATE: | N2: =IF('Calc Cover Sheet'!D14="","",'Calc Cover Sheet'!D14) -> 
G3: STRUCTURE: | H3: =IF('Calc Cover Sheet'!B7="","",'Calc Cover Sheet'!B7) -> HAM-00145-0203 | K3: SFN: | L3: =IF('Calc Cover Sheet'!B3="","",'Calc Cover Sheet'!B3) -> 3108680 | M3: PID: | N3: =IF('Calc Cover Sheet'!B9="","",'Calc Cover Sheet'!B9) -> 110563
Q4: Lump Sum Tags (Items with a "LS" Pay Unit can be tagged with one or several categories)
G5: ITEM: | H5: =MID(RIGHT(CELL("filename",D2),LEN(CELL("filename",D2))-FIND("]",CELL("filename",D2))),1,9) -> 512E10100 | J5: PAY UNIT: | K5: =INDEX(QryItemE2019!B:B,MATCH(H5,QryItemE2019!A:A,0)) -> SY
G6: SUBJECT: | H6: =IF('Calc Cover Sheet'!B2="","",'Calc Cover Sheet'!B2) -> ESTIMATED QUANTITIES
D7: DESCRIPTION: | E7: =INDEX(QryItemE2019!C:C,MATCH(H5,QryItemE2019!A:A,0)) -> SEALING OF CONCRETE SURFACES (EPOXY-URETHANE)
D8: SUPPLEMENTAL DESCRIPTION: | E8: GRAY) (FASCIA BEAMS) (ALTERNATIVE 1
M9: SUBTOTAL | N9: TOTAL | Q9: GROUP | R9: <<<<<Tag each subtotal value with a group from this column
N10: =IF(M10="","",M10+MAX(N$9:N9)) -> 
C11: EXT. BEAM EDGE AND BOTTOM | N11: =IF(M11="","",M11+MAX(N$10:N10)) -> 
F12: Alt 2
E13: Bridge Length = | F13: 182.6667 | G13: ft | N13: =IF(M13="","",M13+MAX(N$10:N11)) -> 
E14: Left Barrier Surface Length = | F14: 0 | G14: ft | N14: =IF(M14="","",M14+MAX(N$10:N13)) -> 
E15: Right Barrier Surface Length = | F15: 0 | G15: ft | N15: =IF(M15="","",M15+MAX(N$10:N14)) -> 
E16: Exposed Left Deck Edges = | F16: 0 | G16: ft | N16: =IF(M16="","",M16+MAX(N$10:N15)) -> 
E17: Exposed Right Deck Edges = | F17: 0 | G17: ft | N17: =IF(M17="","",M17+MAX(N$10:N16)) -> 
E18: Sealed Beam Edge = | F18: =(SQRT(3^2+17.5^2)+SQRT(3^2+3^2)+16.5+SQRT(2^2+2^2)+SQRT(7^2+14^2)+5.5+40+5.5)/12 -> 8.99823538 | G18: ft | N18: =IF(M18="","",M18+MAX(N$10:N16)) -> 
N19: =IF(M19="","",M19+MAX(N$10:N18)) -> 
E20: Beam Sealed Area = | F20: =F13*((F14+F16+F18)+(F15+F17+F18))/9 -> 365.2617695 | G20: SY | M20: =CEILING(F20,1) -> 366 | N20: =IF(M20="","",M20+MAX(N$10:N19)) -> 366 | Q20: SUPER.
N55: =IF(M55="","",M55+MAX(N$10:N54)) -> 
N56: =IF(M56="","",M56+MAX(N$10:N55)) -> 
N57: =IF(M57="","",M57+MAX(N$10:N56)) -> 
N58: =IF(M58="","",M58+MAX(N$10:N57)) -> 
N59: =IF(M59="","",M59+MAX(N$10:N58)) -> 
N60: =IF(M60="","",M60+MAX(N$10:N59)) -> 
N61: =IF(M61="","",M61+MAX(N$10:N60)) -> 
N62: =IF(M62="","",M62+MAX(N$10:N61)) -> 
N63: =IF(M63="","",M63+MAX(N$10:N62)) -> 
N64: =IF(M64="","",M64+MAX(N$10:N63)) -> 
N65: =IF(M65="","",M65+MAX(N$10:N64)) -> 
N66: =IF(M66="","",M66+MAX(N$10:N65)) -> 
D67: SPECIAL INSTRUCTIONS: | E67: =INDEX(QryItemE2019!F:F,MATCH(H5,QryItemE2019!A:A,0)) ->  | M67: TOTAL | N67: =IF(K5="LS","LS"," ") -> 

Sheet 512E10100 (Green Beams)
G1: DESIGN: | H1: =IF('Calc Cover Sheet'!B11="","",'Calc Cover Sheet'!B11) -> BMV | I1: DATE: | J1: =IF('Calc Cover Sheet'!D11="","",'Calc Cover Sheet'!D11) -> 2024-04-19 | K1: UPDATE: | L1: =IF('Calc Cover Sheet'!B13="","",'Calc Cover Sheet'!B13) ->  | M1: DATE: | N1: =IF('Calc Cover Sheet'!D13="","",'Calc Cover Sheet'!D13) -> 
G2: CHECK: | H2: =IF('Calc Cover Sheet'!B12="","",'Calc Cover Sheet'!B12) -> TLC | I2: DATE: | J2: =IF('Calc Cover Sheet'!D12="","",'Calc Cover Sheet'!D12) -> 2024-04-25 | K2: RECHECK: | L2: =IF('Calc Cover Sheet'!B14="","",'Calc Cover Sheet'!B14) ->  | M2: DATE: | N2: =IF('Calc Cover Sheet'!D14="","",'Calc Cover Sheet'!D14) -> 
G3: STRUCTURE: | H3: =IF('Calc Cover Sheet'!B7="","",'Calc Cover Sheet'!B7) -> HAM-00145-0203 | K3: SFN: | L3: =IF('Calc Cover Sheet'!B3="","",'Calc Cover Sheet'!B3) -> 3108680 | M3: PID: | N3: =IF('Calc Cover Sheet'!B9="","",'Calc Cover Sheet'!B9) -> 110563
Q4: Lump Sum Tags (Items with a "LS" Pay Unit can be tagged with one or several categories)
G5: ITEM: | H5: =MID(RIGHT(CELL("filename",D2),LEN(CELL("filename",D2))-FIND("]",CELL("filename",D2))),1,9) -> 512E10100 | J5: PAY UNIT: | K5: =INDEX(QryItemE2019!B:B,MATCH(H5,QryItemE2019!A:A,0)) -> SY
G6: SUBJECT: | H6: =IF('Calc Cover Sheet'!B2="","",'Calc Cover Sheet'!B2) -> ESTIMATED QUANTITIES
D7: DESCRIPTION: | E7: =INDEX(QryItemE2019!C:C,MATCH(H5,QryItemE2019!A:A,0)) -> SEALING OF CONCRETE SURFACES (EPOXY-URETHANE)
D8: SUPPLEMENTAL DESCRIPTION: | E8: DARK GREEN) (FASCIA BEAMS) (ALTERNATIVE 2
M9: SUBTOTAL | N9: TOTAL | Q9: GROUP | R9: <<<<<Tag each subtotal value with a group from this column
N10: =IF(M10="","",M10+MAX(N$9:N9)) -> 
C11: EXT. BEAM EDGE AND BOTTOM | N11: =IF(M11="","",M11+MAX(N$10:N10)) -> 
F12: Alt 2
E13: Bridge Length = | F13: 182.6667 | G13: ft | N13: =IF(M13="","",M13+MAX(N$10:N11)) -> 
E14: Left Barrier Surface Length = | F14: 0 | G14: ft | N14: =IF(M14="","",M14+MAX(N$10:N13)) -> 
E15: Right Barrier Surface Length = | F15: 0 | G15: ft | N15: =IF(M15="","",M15+MAX(N$10:N14)) -> 
E16: Exposed Left Deck Edges = | F16: 0 | G16: ft | N16: =IF(M16="","",M16+MAX(N$10:N15)) -> 
E17: Exposed Right Deck Edges = | F17: 0 | G17: ft | N17: =IF(M17="","",M17+MAX(N$10:N16)) -> 
E18: Sealed Beam Edge = | F18: =(SQRT(3^2+17.5^2)+SQRT(3^2+3^2)+16.5+SQRT(2^2+2^2)+SQRT(7^2+14^2)+5.5+40+5.5)/12 -> 8.99823538 | G18: ft | N18: =IF(M18="","",M18+MAX(N$10:N16)) -> 
N19: =IF(M19="","",M19+MAX(N$10:N18)) -> 
E20: Beam Sealed Area = | F20: =F13*((F14+F16+F18)+(F15+F17+F18))/9 -> 365.2617695 | G20: SY | M20: =CEILING(F20,1) -> 366 | N20: =IF(M20="","",M20+MAX(N$10:N19)) -> 366 | Q20: SUPER.
N22: =IF(M22="","",M22+MAX(N$10:N21)) -> 
N23: =IF(M23="","",M23+MAX(N$10:N22)) -> 
N24: =IF(M24="","",M24+MAX(N$10:N23)) -> 
N25: =IF(M25="","",M25+MAX(N$10:N24)) -> 
N26: =IF(M26="","",M26+MAX(N$10:N25)) -> 
N27: =IF(M27="","",M27+MAX(N$10:N26)) -> 
N28: =IF(M28="","",M28+MAX(N$10:N27)) -> 
N29: =IF(M29="","",M29+MAX(N$10:N28)) -> 
N30: =IF(M30="","",M30+MAX(N$10:N29)) -> 
N31: =IF(M31="","",M31+MAX(N$10:N30)) -> 
N32: =IF(M32="","",M32+MAX(N$10:N31)) -> 
N33: =IF(M33="","",M33+MAX(N$10:N32)) -> 
N34: =IF(M34="","",M34+MAX(N$10:N33)) -> 
N35: =IF(M35="","",M35+MAX(N$10:N34)) -> 
D36: SPECIAL INSTRUCTIONS: | E36: =INDEX(QryItemE2019!F:F,MATCH(H5,QryItemE2019!A:A,0)) ->  | M36: TOTAL | N36: =IF(K5="LS","LS"," ") -> 

Sheet 515E15080
G1: DESIGN: | H1: =IF('Calc Cover Sheet'!B11="","",'Calc Cover Sheet'!B11) -> BMV | I1: DATE: | J1: =IF('Calc Cover Sheet'!D11="","",'Calc Cover Sheet'!D11) -> 2024-04-19 | K1: UPDATE: | L1: =IF('Calc Cover Sheet'!B13="","",'Calc Cover Sheet'!B13) ->  | M1: DATE: | N1: =IF('Calc Cover Sheet'!D13="","",'Calc Cover Sheet'!D13) -> 
G2: CHECK: | H2: =IF('Calc Cover Sheet'!B12="","",'Calc Cover Sheet'!B12) -> TLC | I2: DATE: | J2: =IF('Calc Cover Sheet'!D12="","",'Calc Cover Sheet'!D12) -> 2024-04-25 | K2: RECHECK: | L2: =IF('Calc Cover Sheet'!B14="","",'Calc Cover Sheet'!B14) ->  | M2: DATE: | N2: =IF('Calc Cover Sheet'!D14="","",'Calc Cover Sheet'!D14) -> 
G3: STRUCTURE: | H3: =IF('Calc Cover Sheet'!B7="","",'Calc Cover Sheet'!B7) -> HAM-00145-0203 | K3: SFN: | L3: =IF('Calc Cover Sheet'!B3="","",'Calc Cover Sheet'!B3) -> 3108680 | M3: PID: | N3: =IF('Calc Cover Sheet'!B9="","",'Calc Cover Sheet'!B9) -> 110563
Q4: Lump Sum Tags (Items with a "LS" Pay Unit can be tagged with one or several categories)
G5: ITEM: | H5: =MID(RIGHT(CELL("filename",D2),LEN(CELL("filename",D2))-FIND("]",CELL("filename",D2))),1,9) -> 515E15080 | J5: PAY UNIT: | K5: =INDEX(QryItemE2019!B:B,MATCH(H5,QryItemE2019!A:A,0)) -> EACH
G6: SUBJECT: | H6: =IF('Calc Cover Sheet'!B2="","",'Calc Cover Sheet'!B2) -> ESTIMATED QUANTITIES
D7: DESCRIPTION: | E7: =INDEX(QryItemE2019!C:C,MATCH(H5,QryItemE2019!A:A,0)) -> DRAPED STRAND PRESTRESSED CONCRETE BRIDGE I-BEAM MEMBERS, LEVEL 3, TYPE WF42-49
D8: SUPPLEMENTAL DESCRIPTION: | E8: 90'-7" LENGTH
M9: SUBTOTAL | N9: TOTAL | Q9: GROUP | R9: <<<<<Tag each subtotal value with a group from this column
N10: =IF(M10="","",M10+MAX(N$9:N9)) -> 
N11: =IF(M11="","",M11+MAX(N$9:N10)) -> 
D12: Beam Lines = | E12: 5 | F12: each | N12: =IF(M12="","",M12+MAX(N$9:N11)) -> 
D13: Spans = | E13: 2 | N13: =IF(M13="","",M13+MAX(N$9:N12)) -> 
N14: =IF(M14="","",M14+MAX(N$9:N13)) -> 
D15: Total = | E15: =E12*E13 -> 10 | F15: each | M15: =E15 -> 10 | N15: =IF(M15="","",M15+MAX(N$9:N14)) -> 10 | Q15: SUPER.
N16: =IF(M16="","",M16+MAX(N$9:N15)) -> 
N17: =IF(M17="","",M17+MAX(N$9:N16)) -> 
N18: =IF(M18="","",M18+MAX(N$9:N17)) -> 
N20: =IF(M20="","",M20+MAX(N$9:N19)) -> 
N21: =IF(M21="","",M21+MAX(N$9:N20)) -> 
N22: =IF(M22="","",M22+MAX(N$9:N21)) -> 
N23: =IF(M23="","",M23+MAX(N$9:N22)) -> 
N24: =IF(M24="","",M24+MAX(N$9:N23)) -> 
N25: =IF(M25="","",M25+MAX(N$9:N24)) -> 
N26: =IF(M26="","",M26+MAX(N$9:N25)) -> 
N27: =IF(M27="","",M27+MAX(N$9:N26)) -> 
N28: =IF(M28="","",M28+MAX(N$9:N27)) -> 
N29: =IF(M29="","",M29+MAX(N$9:N28)) -> 
N30: =IF(M30="","",M30+MAX(N$9:N29)) -> 
N31: =IF(M31="","",M31+MAX(N$9:N30)) -> 
N32: =IF(M32="","",M32+MAX(N$9:N31)) -> 
N33: =IF(M33="","",M33+MAX(N$9:N32)) -> 
N34: =IF(M34="","",M34+MAX(N$9:N33)) -> 
N35: =IF(M35="","",M35+MAX(N$9:N34)) -> 
N36: =IF(M36="","",M36+MAX(N$9:N35)) -> 
N37: =IF(M37="","",M37+MAX(N$10:N36)) -> 
N38: =IF(M38="","",M38+MAX(N$10:N37)) -> 
N39: =IF(M39="","",M39+MAX(N$10:N38)) -> 
N40: =IF(M40="","",M40+MAX(N$10:N39)) -> 
N41: =IF(M41="","",M41+MAX(N$10:N40)) -> 
N42: =IF(M42="","",M42+MAX(N$10:N41)) -> 
N43: =IF(M43="","",M43+MAX(N$10:N42)) -> 
N44: =IF(M44="","",M44+MAX(N$10:N43)) -> 
N45: =IF(M45="","",M45+MAX(N$10:N44)) -> 
N46: =IF(M46="","",M46+MAX(N$10:N45)) -> 
N47: =IF(M47="","",M47+MAX(N$10:N46)) -> 
N48: =IF(M48="","",M48+MAX(N$10:N47)) -> 
N49: =IF(M49="","",M49+MAX(N$10:N48)) -> 
N50: =IF(M50="","",M50+MAX(N$10:N49)) -> 
N51: =IF(M51="","",M51+MAX(N$10:N50)) -> 
N52: =IF(M52="","",M52+MAX(N$10:N51)) -> 
N53: =IF(M53="","",M53+MAX(N$10:N52)) -> 
N54: =IF(M54="","",M54+MAX(N$10:N53)) -> 
N55: =IF(M55="","",M55+MAX(N$10:N54)) -> 
N56: =IF(M56="","",M56+MAX(N$10:N55)) -> 
N57: =IF(M57="","",M57+MAX(N$10:N56)) -> 
N58: =IF(M58="","",M58+MAX(N$10:N57)) -> 
N59: =IF(M59="","",M59+MAX(N$10:N58)) -> 
N60: =IF(M60="","",M60+MAX(N$10:N59)) -> 
N61: =IF(M61="","",M61+MAX(N$10:N60)) -> 
N62: =IF(M62="","",M62+MAX(N$10:N61)) -> 
N63: =IF(M63="","",M63+MAX(N$10:N62)) -> 
D64: SPECIAL INSTRUCTIONS: | E64: =INDEX(QryItemE2019!F:F,MATCH(H5,QryItemE2019!A:A,0)) -> SPECIFY BEAM LENGTH | M64: TOTAL | N64: =IF(K5="LS","LS"," ") -> 

Sheet 515E20000
G1: DESIGN: | H1: =IF('Calc Cover Sheet'!B11="","",'Calc Cover Sheet'!B11) -> BMV | I1: DATE: | J1: =IF('Calc Cover Sheet'!D11="","",'Calc Cover Sheet'!D11) -> 2024-04-19 | K1: UPDATE: | L1: =IF('Calc Cover Sheet'!B13="","",'Calc Cover Sheet'!B13) ->  | M1: DATE: | N1: =IF('Calc Cover Sheet'!D13="","",'Calc Cover Sheet'!D13) -> 
G2: CHECK: | H2: =IF('Calc Cover Sheet'!B12="","",'Calc Cover Sheet'!B12) -> TLC | I2: DATE: | J2: =IF('Calc Cover Sheet'!D12="","",'Calc Cover Sheet'!D12) -> 2024-04-25 | K2: RECHECK: | L2: =IF('Calc Cover Sheet'!B14="","",'Calc Cover Sheet'!B14) ->  | M2: DATE: | N2: =IF('Calc Cover Sheet'!D14="","",'Calc Cover Sheet'!D14) -> 
G3: STRUCTURE: | H3: =IF('Calc Cover Sheet'!B7="","",'Calc Cover Sheet'!B7) -> HAM-00145-0203 | K3: SFN: | L3: =IF('Calc Cover Sheet'!B3="","",'Calc Cover Sheet'!B3) -> 3108680 | M3: PID: | N3: =IF('Calc Cover Sheet'!B9="","",'Calc Cover Sheet'!B9) -> 110563
Q4: Lump Sum Tags (Items with a "LS" Pay Unit can be tagged with one or several categories)
G5: ITEM: | H5: =MID(RIGHT(CELL("filename",D2),LEN(CELL("filename",D2))-FIND("]",CELL("filename",D2))),1,9) -> 515E20000 | J5: PAY UNIT: | K5: =INDEX(QryItemE2019!B:B,MATCH(H5,QryItemE2019!A:A,0)) -> EACH
G6: SUBJECT: | H6: =IF('Calc Cover Sheet'!B2="","",'Calc Cover Sheet'!B2) -> ESTIMATED QUANTITIES
D7: DESCRIPTION: | E7: =INDEX(QryItemE2019!C:C,MATCH(H5,QryItemE2019!A:A,0)) -> INTERMEDIATE DIAPHRAGMS
D8: SUPPLEMENTAL DESCRIPTION:
M9: SUBTOTAL | N9: TOTAL | Q9: GROUP | R9: <<<<<Tag each subtotal value with a group from this column
N10: =IF(M10="","",M10+MAX(N$9:N9)) -> 
N11: =IF(M11="","",M11+MAX(N$9:N10)) -> 
D12: Beam Spaces = | E12: 4 | N12: =IF(M12="","",M12+MAX(N$9:N11)) -> 
D13: Spans = | E13: 2 | N13: =IF(M13="","",M13+MAX(N$9:N12)) -> 
D14: Diaphragms per Span = | E14: 3 | N14: =IF(M14="","",M14+MAX(N$9:N13)) -> 
N15: =IF(M15="","",M15+MAX(N$9:N14)) -> 
D16: Total = | E16: =E12*E13*E14 -> 24 | F16: each | M16: =E16 -> 24 | N16: =IF(M16="","",M16+MAX(N$9:N15)) -> 24 | Q16: SUPER.
N17: =IF(M17="","",M17+MAX(N$9:N16)) -> 
N18: =IF(M18="","",M18+MAX(N$9:N17)) -> 
N20: =IF(M20="","",M20+MAX(N$9:N19)) -> 
N21: =IF(M21="","",M21+MAX(N$9:N20)) -> 
N22: =IF(M22="","",M22+MAX(N$9:N21)) -> 
N23: =IF(M23="","",M23+MAX(N$9:N22)) -> 
N24: =IF(M24="","",M24+MAX(N$9:N23)) -> 
N25: =IF(M25="","",M25+MAX(N$9:N24)) -> 
N26: =IF(M26="","",M26+MAX(N$9:N25)) -> 
N27: =IF(M27="","",M27+MAX(N$9:N26)) -> 
N28: =IF(M28="","",M28+MAX(N$9:N27)) -> 
N29: =IF(M29="","",M29+MAX(N$9:N28)) -> 
N30: =IF(M30="","",M30+MAX(N$9:N29)) -> 
N31: =IF(M31="","",M31+MAX(N$9:N30)) -> 
N32: =IF(M32="","",M32+MAX(N$9:N31)) -> 
N33: =IF(M33="","",M33+MAX(N$9:N32)) -> 
N34: =IF(M34="","",M34+MAX(N$9:N33)) -> 
N35: =IF(M35="","",M35+MAX(N$9:N34)) -> 
N36: =IF(M36="","",M36+MAX(N$9:N35)) -> 
N37: =IF(M37="","",M37+MAX(N$10:N36)) -> 
N38: =IF(M38="","",M38+MAX(N$10:N37)) -> 
N39: =IF(M39="","",M39+MAX(N$10:N38)) -> 
N40: =IF(M40="","",M40+MAX(N$10:N39)) -> 
N41: =IF(M41="","",M41+MAX(N$10:N40)) -> 
N42: =IF(M42="","",M42+MAX(N$10:N41)) -> 
N43: =IF(M43="","",M43+MAX(N$10:N42)) -> 
N44: =IF(M44="","",M44+MAX(N$10:N43)) -> 
N45: =IF(M45="","",M45+MAX(N$10:N44)) -> 
N46: =IF(M46="","",M46+MAX(N$10:N45)) -> 
N47: =IF(M47="","",M47+MAX(N$10:N46)) -> 
N48: =IF(M48="","",M48+MAX(N$10:N47)) -> 
N49: =IF(M49="","",M49+MAX(N$10:N48)) -> 
N50: =IF(M50="","",M50+MAX(N$10:N49)) -> 
N51: =IF(M51="","",M51+MAX(N$10:N50)) -> 
N52: =IF(M52="","",M52+MAX(N$10:N51)) -> 
N53: =IF(M53="","",M53+MAX(N$10:N52)) -> 
N54: =IF(M54="","",M54+MAX(N$10:N53)) -> 
N55: =IF(M55="","",M55+MAX(N$10:N54)) -> 
N56: =IF(M56="","",M56+MAX(N$10:N55)) -> 
N57: =IF(M57="","",M57+MAX(N$10:N56)) -> 
N58: =IF(M58="","",M58+MAX(N$10:N57)) -> 
N59: =IF(M59="","",M59+MAX(N$10:N58)) -> 
N60: =IF(M60="","",M60+MAX(N$10:N59)) -> 
N61: =IF(M61="","",M61+MAX(N$10:N60)) -> 
N62: =IF(M62="","",M62+MAX(N$10:N61)) -> 
N63: =IF(M63="","",M63+MAX(N$10:N62)) -> 
D64: SPECIAL INSTRUCTIONS: | E64: =INDEX(QryItemE2019!F:F,MATCH(H5,QryItemE2019!A:A,0)) ->  | M64: TOTAL | N64: =IF(K5="LS","LS"," ") -> 

Sheet 516E10010
G1: DESIGN: | H1: =IF('Calc Cover Sheet'!B11="","",'Calc Cover Sheet'!B11) -> BMV | I1: DATE: | J1: =IF('Calc Cover Sheet'!D11="","",'Calc Cover Sheet'!D11) -> 2024-04-19 | K1: UPDATE: | L1: =IF('Calc Cover Sheet'!B13="","",'Calc Cover Sheet'!B13) ->  | M1: DATE: | N1: =IF('Calc Cover Sheet'!D13="","",'Calc Cover Sheet'!D13) -> 
G2: CHECK: | H2: =IF('Calc Cover Sheet'!B12="","",'Calc Cover Sheet'!B12) -> TLC | I2: DATE: | J2: =IF('Calc Cover Sheet'!D12="","",'Calc Cover Sheet'!D12) -> 2024-04-25 | K2: RECHECK: | L2: =IF('Calc Cover Sheet'!B14="","",'Calc Cover Sheet'!B14) ->  | M2: DATE: | N2: =IF('Calc Cover Sheet'!D14="","",'Calc Cover Sheet'!D14) -> 
G3: STRUCTURE: | H3: =IF('Calc Cover Sheet'!B7="","",'Calc Cover Sheet'!B7) -> HAM-00145-0203 | K3: SFN: | L3: =IF('Calc Cover Sheet'!B3="","",'Calc Cover Sheet'!B3) -> 3108680 | M3: PID: | N3: =IF('Calc Cover Sheet'!B9="","",'Calc Cover Sheet'!B9) -> 110563
Q4: Lump Sum Tags (Items with a "LS" Pay Unit can be tagged with one or several categories)
G5: ITEM: | H5: =MID(RIGHT(CELL("filename",D2),LEN(CELL("filename",D2))-FIND("]",CELL("filename",D2))),1,9) -> 516E10010 | J5: PAY UNIT: | K5: =INDEX(QryItemE2019!B:B,MATCH(H5,QryItemE2019!A:A,0)) -> FT
G6: SUBJECT: | H6: =IF('Calc Cover Sheet'!B2="","",'Calc Cover Sheet'!B2) -> ESTIMATED QUANTITIES
D7: DESCRIPTION: | E7: =INDEX(QryItemE2019!C:C,MATCH(H5,QryItemE2019!A:A,0)) -> ARMORLESS PREFORMED JOINT SEAL
D8: SUPPLEMENTAL DESCRIPTION:
M9: SUBTOTAL | N9: TOTAL | Q9: GROUP | R9: <<<<<Tag each subtotal value with a group from this column
N10: =IF(M10="","",M10+MAX(N$9:N9)) -> 
N11: =IF(M11="","",M11+MAX(N$9:N10)) -> 
D12: Length = | E12: 38.8333 | F12: ft | N12: =IF(M12="","",M12+MAX(N$9:N11)) -> 
D13: # of Approaches = | E13: 2 | N13: =IF(M13="","",M13+MAX(N$9:N12)) -> 
N14: =IF(M14="","",M14+MAX(N$9:N13)) -> 
D15: Volume = | E15: =E13*E12 -> 77.6666 | F15: CF | M15: =CEILING(E15,1) -> 78 | N15: =IF(M15="","",M15+MAX(N$9:N14)) -> 78 | Q15: GEN.
N16: =IF(M16="","",M16+MAX(N$9:N15)) -> 
N18: =IF(M18="","",M18+MAX(N$9:N17)) -> 
N19: =IF(M19="","",M19+MAX(N$9:N18)) -> 
N20: =IF(M20="","",M20+MAX(N$9:N19)) -> 
N21: =IF(M21="","",M21+MAX(N$9:N20)) -> 
N22: =IF(M22="","",M22+MAX(N$9:N21)) -> 
N23: =IF(M23="","",M23+MAX(N$9:N22)) -> 
N24: =IF(M24="","",M24+MAX(N$9:N23)) -> 
N25: =IF(M25="","",M25+MAX(N$9:N24)) -> 
N26: =IF(M26="","",M26+MAX(N$9:N25)) -> 
N27: =IF(M27="","",M27+MAX(N$9:N26)) -> 
N28: =IF(M28="","",M28+MAX(N$9:N27)) -> 
N29: =IF(M29="","",M29+MAX(N$9:N28)) -> 
N30: =IF(M30="","",M30+MAX(N$9:N29)) -> 
N31: =IF(M31="","",M31+MAX(N$9:N30)) -> 
N32: =IF(M32="","",M32+MAX(N$9:N31)) -> 
N33: =IF(M33="","",M33+MAX(N$9:N32)) -> 
N34: =IF(M34="","",M34+MAX(N$9:N33)) -> 
N35: =IF(M35="","",M35+MAX(N$10:N34)) -> 
N36: =IF(M36="","",M36+MAX(N$10:N35)) -> 
N37: =IF(M37="","",M37+MAX(N$10:N36)) -> 
N38: =IF(M38="","",M38+MAX(N$10:N37)) -> 
N39: =IF(M39="","",M39+MAX(N$10:N38)) -> 
N40: =IF(M40="","",M40+MAX(N$10:N39)) -> 
N41: =IF(M41="","",M41+MAX(N$10:N40)) -> 
N42: =IF(M42="","",M42+MAX(N$10:N41)) -> 
N43: =IF(M43="","",M43+MAX(N$10:N42)) -> 
N44: =IF(M44="","",M44+MAX(N$10:N43)) -> 
N45: =IF(M45="","",M45+MAX(N$10:N44)) -> 
N46: =IF(M46="","",M46+MAX(N$10:N45)) -> 
N47: =IF(M47="","",M47+MAX(N$10:N46)) -> 
N48: =IF(M48="","",M48+MAX(N$10:N47)) -> 
N49: =IF(M49="","",M49+MAX(N$10:N48)) -> 
N50: =IF(M50="","",M50+MAX(N$10:N49)) -> 
N51: =IF(M51="","",M51+MAX(N$10:N50)) -> 
N52: =IF(M52="","",M52+MAX(N$10:N51)) -> 
N53: =IF(M53="","",M53+MAX(N$10:N52)) -> 
N54: =IF(M54="","",M54+MAX(N$10:N53)) -> 
N55: =IF(M55="","",M55+MAX(N$10:N54)) -> 
N56: =IF(M56="","",M56+MAX(N$10:N55)) -> 
N57: =IF(M57="","",M57+MAX(N$10:N56)) -> 
N58: =IF(M58="","",M58+MAX(N$10:N57)) -> 
N59: =IF(M59="","",M59+MAX(N$10:N58)) -> 
N60: =IF(M60="","",M60+MAX(N$10:N59)) -> 
N61: =IF(M61="","",M61+MAX(N$10:N60)) -> 
D62: SPECIAL INSTRUCTIONS: | E62: =INDEX(QryItemE2019!F:F,MATCH(H5,QryItemE2019!A:A,0)) ->  | M62: TOTAL | N62: =IF(K5="LS","LS"," ") -> 

Sheet 516E13200
G1: DESIGN: | H1: =IF('Calc Cover Sheet'!B11="","",'Calc Cover Sheet'!B11) -> BMV | I1: DATE: | J1: =IF('Calc Cover Sheet'!D11="","",'Calc Cover Sheet'!D11) -> 2024-04-19 | K1: UPDATE: | L1: =IF('Calc Cover Sheet'!B13="","",'Calc Cover Sheet'!B13) ->  | M1: DATE: | N1: =IF('Calc Cover Sheet'!D13="","",'Calc Cover Sheet'!D13) -> 
G2: CHECK: | H2: =IF('Calc Cover Sheet'!B12="","",'Calc Cover Sheet'!B12) -> TLC | I2: DATE: | J2: =IF('Calc Cover Sheet'!D12="","",'Calc Cover Sheet'!D12) -> 2024-04-25 | K2: RECHECK: | L2: =IF('Calc Cover Sheet'!B14="","",'Calc Cover Sheet'!B14) ->  | M2: DATE: | N2: =IF('Calc Cover Sheet'!D14="","",'Calc Cover Sheet'!D14) -> 
G3: STRUCTURE: | H3: =IF('Calc Cover Sheet'!B7="","",'Calc Cover Sheet'!B7) -> HAM-00145-0203 | K3: SFN: | L3: =IF('Calc Cover Sheet'!B3="","",'Calc Cover Sheet'!B3) -> 3108680 | M3: PID: | N3: =IF('Calc Cover Sheet'!B9="","",'Calc Cover Sheet'!B9) -> 110563
Q4: Lump Sum Tags (Items with a "LS" Pay Unit can be tagged with one or several categories)
G5: ITEM: | H5: =MID(RIGHT(CELL("filename",D2),LEN(CELL("filename",D2))-FIND("]",CELL("filename",D2))),1,9) -> 516E13200 | J5: PAY UNIT: | K5: =INDEX(QryItemE2019!B:B,MATCH(H5,QryItemE2019!A:A,0)) -> SF
G6: SUBJECT: | H6: =IF('Calc Cover Sheet'!B2="","",'Calc Cover Sheet'!B2) -> ESTIMATED QUANTITIES
D7: DESCRIPTION: | E7: =INDEX(QryItemE2019!C:C,MATCH(H5,QryItemE2019!A:A,0)) -> 1/2" PREFORMED EXPANSION JOINT FILLER
D8: SUPPLEMENTAL DESCRIPTION:
M9: SUBTOTAL | N9: TOTAL | Q9: GROUP | R9: <<<<<Tag each subtotal value with a group from this column
N10: =IF(M10="","",M10+MAX(N$9:N9)) -> 
N11: =IF(M11="","",M11+MAX(N$9:N10)) -> 
C12: Between Concrete Slope Protection and MSE Wall/Abutment Footing | N12: =IF(M12="","",M12+MAX(N$9:N11)) -> 
N13: =IF(M13="","",M13+MAX(N$9:N12)) -> 
D14: Height of PEJF = | E14: 0.5 | F14: ft | N14: =IF(M14="","",M14+MAX(N$9:N13)) -> 
D15: Length at Rear Abutment = | E15: 38.8333 | F15: ft | N15: =IF(M15="","",M15+MAX(N$9:N14)) -> 
D16: Length at Fwd Abutment = | E16: 38.8333 | F16: ft
N17: =IF(M17="","",M17+MAX(N$9:N16)) -> 
D18: Area = | E18: =2*E14*(E15+E16) -> 77.6666 | F18: SF | M18: =CEILING(E18,1) -> 78 | N18: =IF(M18="","",M18+MAX(N$9:N17)) -> 78 | Q18: GEN.
N19: =IF(M19="","",M19+MAX(N$9:N18)) -> 
N20: =IF(M20="","",M20+MAX(N$9:N19)) -> 
N21: =IF(M21="","",M21+MAX(N$9:N20)) -> 
N22: =IF(M22="","",M22+MAX(N$9:N21)) -> 
N23: =IF(M23="","",M23+MAX(N$10:N22)) -> 
N24: =IF(M24="","",M24+MAX(N$10:N23)) -> 
N25: =IF(M25="","",M25+MAX(N$10:N24)) -> 
N26: =IF(M26="","",M26+MAX(N$10:N25)) -> 
N27: =IF(M27="","",M27+MAX(N$10:N26)) -> 
N28: =IF(M28="","",M28+MAX(N$10:N27)) -> 
N29: =IF(M29="","",M29+MAX(N$10:N28)) -> 
N30: =IF(M30="","",M30+MAX(N$10:N29)) -> 
N31: =IF(M31="","",M31+MAX(N$10:N30)) -> 
N32: =IF(M32="","",M32+MAX(N$10:N31)) -> 
N33: =IF(M33="","",M33+MAX(N$10:N32)) -> 
N34: =IF(M34="","",M34+MAX(N$10:N33)) -> 
N35: =IF(M35="","",M35+MAX(N$10:N34)) -> 
N36: =IF(M36="","",M36+MAX(N$10:N35)) -> 
N37: =IF(M37="","",M37+MAX(N$10:N36)) -> 
N38: =IF(M38="","",M38+MAX(N$10:N37)) -> 
N39: =IF(M39="","",M39+MAX(N$10:N38)) -> 
N40: =IF(M40="","",M40+MAX(N$10:N39)) -> 
N41: =IF(M41="","",M41+MAX(N$10:N40)) -> 
N42: =IF(M42="","",M42+MAX(N$10:N41)) -> 
N43: =IF(M43="","",M43+MAX(N$10:N42)) -> 
N44: =IF(M44="","",M44+MAX(N$10:N43)) -> 
N45: =IF(M45="","",M45+MAX(N$10:N44)) -> 
N46: =IF(M46="","",M46+MAX(N$10:N45)) -> 
N47: =IF(M47="","",M47+MAX(N$10:N46)) -> 
N48: =IF(M48="","",M48+MAX(N$10:N47)) -> 
N49: =IF(M49="","",M49+MAX(N$10:N48)) -> 
D50: SPECIAL INSTRUCTIONS: | E50: =INDEX(QryItemE2019!F:F,MATCH(H5,QryItemE2019!A:A,0)) ->  | M50: TOTAL | N50: =IF(K5="LS","LS"," ") -> 

Sheet 516E13600
G1: DESIGN: | H1: =IF('Calc Cover Sheet'!B11="","",'Calc Cover Sheet'!B11) -> BMV | I1: DATE: | J1: =IF('Calc Cover Sheet'!D11="","",'Calc Cover Sheet'!D11) -> 2024-04-19 | K1: UPDATE: | L1: =IF('Calc Cover Sheet'!B13="","",'Calc Cover Sheet'!B13) ->  | M1: DATE: | N1: =IF('Calc Cover Sheet'!D13="","",'Calc Cover Sheet'!D13) -> 
G2: CHECK: | H2: =IF('Calc Cover Sheet'!B12="","",'Calc Cover Sheet'!B12) -> TLC | I2: DATE: | J2: =IF('Calc Cover Sheet'!D12="","",'Calc Cover Sheet'!D12) -> 2024-04-25 | K2: RECHECK: | L2: =IF('Calc Cover Sheet'!B14="","",'Calc Cover Sheet'!B14) ->  | M2: DATE: | N2: =IF('Calc Cover Sheet'!D14="","",'Calc Cover Sheet'!D14) -> 
G3: STRUCTURE: | H3: =IF('Calc Cover Sheet'!B7="","",'Calc Cover Sheet'!B7) -> HAM-00145-0203 | K3: SFN: | L3: =IF('Calc Cover Sheet'!B3="","",'Calc Cover Sheet'!B3) -> 3108680 | M3: PID: | N3: =IF('Calc Cover Sheet'!B9="","",'Calc Cover Sheet'!B9) -> 110563
Q4: Lump Sum Tags (Items with a "LS" Pay Unit can be tagged with one or several categories)
G5: ITEM: | H5: =MID(RIGHT(CELL("filename",D2),LEN(CELL("filename",D2))-FIND("]",CELL("filename",D2))),1,9) -> 516E13600 | J5: PAY UNIT: | K5: =INDEX(QryItemE2019!B:B,MATCH(H5,QryItemE2019!A:A,0)) -> SF
G6: SUBJECT: | H6: =IF('Calc Cover Sheet'!B2="","",'Calc Cover Sheet'!B2) -> ESTIMATED QUANTITIES
D7: DESCRIPTION: | E7: =INDEX(QryItemE2019!C:C,MATCH(H5,QryItemE2019!A:A,0)) -> 1" PREFORMED EXPANSION JOINT FILLER
D8: SUPPLEMENTAL DESCRIPTION:
M9: SUBTOTAL | N9: TOTAL | Q9: GROUP | R9: <<<<<Tag each subtotal value with a group from this column
N10: =IF(M10="","",M10+MAX(N$9:N9)) -> 
N11: =IF(M11="","",M11+MAX(N$9:N10)) -> 
C12: MOMENT SLAB BARRIER ENDS | N12: =IF(M12="","",M12+MAX(N$9:N11)) -> 
N13: =IF(M13="","",M13+MAX(N$9:N12)) -> 
D14: West railing (BR-2-15) | N14: =IF(M14="","",M14+MAX(N$9:N13)) -> 
N15: =IF(M15="","",M15+MAX(N$9:N14)) -> 
D16: Width = | E16: 1 | F16: ft
D17: Height = | E17: 3.75 | F17: ft | N17: =IF(M17="","",M17+MAX(N$9:N16)) -> 
D18: # Ends = | E18: 2 | F18: each | N18: =IF(M18="","",M18+MAX(N$9:N17)) -> 
D19: Area = | E19: =E16*E17*E18 -> 7.5 | F19: SF | M19: =E19 -> 7.5 | N19: =IF(M19="","",M19+MAX(N$9:N18)) -> 7.5 | Q19: GEN.
N20: =IF(M20="","",M20+MAX(N$9:N19)) -> 
D21: East railing (SBR-1-20) | N21: =IF(M21="","",M21+MAX(N$9:N20)) -> 
N22: =IF(M22="","",M22+MAX(N$9:N21)) -> 
D23: Area = | E23: 588 | F23: sq in | H23: from std dwg | N23: =IF(M23="","",M23+MAX(N$10:N22)) -> 
D24: Area = | E24: =E23/144 -> 4.083333333 | F24: sq ft | N24: =IF(M24="","",M24+MAX(N$10:N23)) -> 
D25: # Ends = | E25: 2 | F25: each | N25: =IF(M25="","",M25+MAX(N$10:N24)) -> 
D26: Area = | E26: =E24*E25 -> 8.166666667 | F26: SF | M26: =E26 -> 8.166666667 | N26: =IF(M26="","",M26+MAX(N$10:N25)) -> 15.66666667 | Q26: GEN.
N27: =IF(M27="","",M27+MAX(N$10:N26)) -> 
N28: =IF(M28="","",M28+MAX(N$10:N27)) -> 
N29: =IF(M29="","",M29+MAX(N$10:N28)) -> 
N30: =IF(M30="","",M30+MAX(N$10:N29)) -> 
N31: =IF(M31="","",M31+MAX(N$10:N30)) -> 
N32: =IF(M32="","",M32+MAX(N$10:N31)) -> 
N33: =IF(M33="","",M33+MAX(N$10:N32)) -> 
N34: =IF(M34="","",M34+MAX(N$10:N33)) -> 
N35: =IF(M35="","",M35+MAX(N$10:N34)) -> 
N36: =IF(M36="","",M36+MAX(N$10:N35)) -> 
N37: =IF(M37="","",M37+MAX(N$10:N36)) -> 
N38: =IF(M38="","",M38+MAX(N$10:N37)) -> 
N39: =IF(M39="","",M39+MAX(N$10:N38)) -> 
N40: =IF(M40="","",M40+MAX(N$10:N39)) -> 
N41: =IF(M41="","",M41+MAX(N$10:N40)) -> 
N42: =IF(M42="","",M42+MAX(N$10:N41)) -> 
N43: =IF(M43="","",M43+MAX(N$10:N42)) -> 
N44: =IF(M44="","",M44+MAX(N$10:N43)) -> 
N45: =IF(M45="","",M45+MAX(N$10:N44)) -> 
N46: =IF(M46="","",M46+MAX(N$10:N45)) -> 
N47: =IF(M47="","",M47+MAX(N$10:N46)) -> 
N48: =IF(M48="","",M48+MAX(N$10:N47)) -> 
N49: =IF(M49="","",M49+MAX(N$10:N48)) -> 
D50: SPECIAL INSTRUCTIONS: | E50: =INDEX(QryItemE2019!F:F,MATCH(H5,QryItemE2019!A:A,0)) ->  | M50: TOTAL | N50: =IF(K5="LS","LS"," ") -> 

Sheet 516E13900
G1: DESIGN: | H1: =IF('Calc Cover Sheet'!B11="","",'Calc Cover Sheet'!B11) -> BMV | I1: DATE: | J1: =IF('Calc Cover Sheet'!D11="","",'Calc Cover Sheet'!D11) -> 2024-04-19 | K1: UPDATE: | L1: =IF('Calc Cover Sheet'!B13="","",'Calc Cover Sheet'!B13) ->  | M1: DATE: | N1: =IF('Calc Cover Sheet'!D13="","",'Calc Cover Sheet'!D13) -> 
G2: CHECK: | H2: =IF('Calc Cover Sheet'!B12="","",'Calc Cover Sheet'!B12) -> TLC | I2: DATE: | J2: =IF('Calc Cover Sheet'!D12="","",'Calc Cover Sheet'!D12) -> 2024-04-25 | K2: RECHECK: | L2: =IF('Calc Cover Sheet'!B14="","",'Calc Cover Sheet'!B14) ->  | M2: DATE: | N2: =IF('Calc Cover Sheet'!D14="","",'Calc Cover Sheet'!D14) -> 
G3: STRUCTURE: | H3: =IF('Calc Cover Sheet'!B7="","",'Calc Cover Sheet'!B7) -> HAM-00145-0203 | K3: SFN: | L3: =IF('Calc Cover Sheet'!B3="","",'Calc Cover Sheet'!B3) -> 3108680 | M3: PID: | N3: =IF('Calc Cover Sheet'!B9="","",'Calc Cover Sheet'!B9) -> 110563
Q4: Lump Sum Tags (Items with a "LS" Pay Unit can be tagged with one or several categories)
G5: ITEM: | H5: =MID(RIGHT(CELL("filename",D2),LEN(CELL("filename",D2))-FIND("]",CELL("filename",D2))),1,9) -> 516E13900 | J5: PAY UNIT: | K5: =INDEX(QryItemE2019!B:B,MATCH(H5,QryItemE2019!A:A,0)) -> SF
G6: SUBJECT: | H6: =IF('Calc Cover Sheet'!B2="","",'Calc Cover Sheet'!B2) -> ESTIMATED QUANTITIES
D7: DESCRIPTION: | E7: =INDEX(QryItemE2019!C:C,MATCH(H5,QryItemE2019!A:A,0)) -> 2" PREFORMED EXPANSION JOINT FILLER
D8: SUPPLEMENTAL DESCRIPTION:
M9: SUBTOTAL | N9: TOTAL | Q9: GROUP | R9: <<<<<Tag each subtotal value with a group from this column
N10: =IF(M10="","",M10+MAX(N$9:N9)) -> 
N11: =IF(M11="","",M11+MAX(N$9:N10)) -> 
C12: Between MSE Wall and Abutment | N12: =IF(M12="","",M12+MAX(N$9:N11)) -> 
N13: =IF(M13="","",M13+MAX(N$9:N12)) -> 
D14: Diaphragm Height = | E14: 5.6 | F14: ft | N14: =IF(M14="","",M14+MAX(N$9:N13)) -> 
D15: Diaphragm Width = | E15: ='511E53014'!E17 -> 3.6667 | F15: ft | N15: =IF(M15="","",M15+MAX(N$9:N14)) -> 
D16: Abut. Stem Height = | E16: 2 | F16: ft
D17: Abut. Footing Height = | E17: 3 | F17: ft | N17: =IF(M17="","",M17+MAX(N$9:N15)) -> 
D18: Abutment Stem Width = | E18: 3.6667 | F18: ft | N18: =IF(M18="","",M18+MAX(N$9:N17)) -> 
D19: Abutment Footing Width = | E19: 6.5 | F19: ft | N19: =IF(M19="","",M19+MAX(N$9:N13)) -> 
D20: # of Abutments = | E20: 2
N21: =IF(M21="","",M21+MAX(N$9:N19)) -> 
D22: Area = | E22: =2*E20*(E19*E17+E18*E16+E15*E14) -> 189.46768 | F22: SF | M22: =CEILING(E22,1) -> 190 | N22: =IF(M22="","",M22+MAX(N$9:N21)) -> 190 | Q22: GEN.
N23: =IF(M23="","",M23+MAX(N$9:N22)) -> 
C24: Between MSE Wall and Approach Slab | N24: =IF(M24="","",M24+MAX(N$9:N23)) -> 
D26: Approach Slab Length = | E26: 30 | F26: ft | N26: =IF(M26="","",M26+MAX(N$9:N25)) -> 
D27: Approach Slab Thickness = | E27: 17 | F27: in | N27: =IF(M27="","",M27+MAX(N$9:N26)) -> 
D28: # of Approaches -= | E28: 2 | F28: each | N28: =IF(M28="","",M28+MAX(N$9:N27)) -> 
N29: =IF(M29="","",M29+MAX(N$9:N28)) -> 
D30: Area = | E30: =2*E28*E26*E27/12 -> 170 | F30: SF | M30: =CEILING(E30,1) -> 170 | N30: =IF(M30="","",M30+MAX(N$9:N29)) -> 360 | Q30: GEN.
N31: =IF(M31="","",M31+MAX(N$9:N30)) -> 
N32: =IF(M32="","",M32+MAX(N$9:N31)) -> 
C33: Between MSE Wall and Moment Slab | N33: =IF(M33="","",M33+MAX(N$9:N32)) -> 
D35: Rear Moment Slabs Length = | E35: 11 | F35: ft | G35: MSE wall does not extend full moment slab length | N35: =IF(M35="","",M35+MAX(N$9:N34)) -> 
D36: Fwd Moment Slabs Length = | E36: 28 | F36: ft | N36: =IF(M36="","",M36+MAX(N$9:N35)) -> 
D37: Left Moment Slab PEJF Thickness = | E37: 2.25 | F37: ft
D38: Right Moment Slab PEJF Thickness = | E38: 1 | F38: ft | N38: =IF(M38="","",M38+MAX(N$9:N35)) -> 
N39: =IF(M39="","",M39+MAX(N$9:N38)) -> 
D40: Area = | E40: =((E37+E38)*(E36+E35))*2 -> 253.5 | F40: SF | M40: =CEILING(E40,1) -> 254 | N40: =IF(M40="","",M40+MAX(N$9:N39)) -> 614 | Q40: GEN.
N41: =IF(M41="","",M41+MAX(N$9:N40)) -> 
N42: =IF(M42="","",M42+MAX(N$9:N41)) -> 
N43: =IF(M43="","",M43+MAX(N$9:N42)) -> 
N44: =IF(M44="","",M44+MAX(N$10:N43)) -> 
N45: =IF(M45="","",M45+MAX(N$10:N44)) -> 
N46: =IF(M46="","",M46+MAX(N$10:N45)) -> 
N47: =IF(M47="","",M47+MAX(N$10:N46)) -> 
N48: =IF(M48="","",M48+MAX(N$10:N47)) -> 
N49: =IF(M49="","",M49+MAX(N$10:N48)) -> 
N50: =IF(M50="","",M50+MAX(N$10:N49)) -> 
N51: =IF(M51="","",M51+MAX(N$10:N50)) -> 
N52: =IF(M52="","",M52+MAX(N$10:N51)) -> 
N53: =IF(M53="","",M53+MAX(N$10:N52)) -> 
N54: =IF(M54="","",M54+MAX(N$10:N53)) -> 
N55: =IF(M55="","",M55+MAX(N$10:N54)) -> 
N56: =IF(M56="","",M56+MAX(N$10:N55)) -> 
N57: =IF(M57="","",M57+MAX(N$10:N56)) -> 
N58: =IF(M58="","",M58+MAX(N$10:N57)) -> 
N59: =IF(M59="","",M59+MAX(N$10:N58)) -> 
N60: =IF(M60="","",M60+MAX(N$10:N59)) -> 
N61: =IF(M61="","",M61+MAX(N$10:N60)) -> 
N62: =IF(M62="","",M62+MAX(N$10:N61)) -> 
N63: =IF(M63="","",M63+MAX(N$10:N62)) -> 
N64: =IF(M64="","",M64+MAX(N$10:N63)) -> 
N65: =IF(M65="","",M65+MAX(N$10:N64)) -> 
N66: =IF(M66="","",M66+MAX(N$10:N65)) -> 
N67: =IF(M67="","",M67+MAX(N$10:N66)) -> 
N68: =IF(M68="","",M68+MAX(N$10:N67)) -> 
N69: =IF(M69="","",M69+MAX(N$10:N68)) -> 
N70: =IF(M70="","",M70+MAX(N$10:N69)) -> 
D71: SPECIAL INSTRUCTIONS: | E71: =INDEX(QryItemE2019!F:F,MATCH(H5,QryItemE2019!A:A,0)) ->  | M71: TOTAL | N71: =IF(K5="LS","LS"," ") -> 

Sheet 516E14020
G1: DESIGN: | H1: =IF('Calc Cover Sheet'!B11="","",'Calc Cover Sheet'!B11) -> BMV | I1: DATE: | J1: =IF('Calc Cover Sheet'!D11="","",'Calc Cover Sheet'!D11) -> 2024-04-19 | K1: UPDATE: | L1: =IF('Calc Cover Sheet'!B13="","",'Calc Cover Sheet'!B13) ->  | M1: DATE: | N1: =IF('Calc Cover Sheet'!D13="","",'Calc Cover Sheet'!D13) -> 
G2: CHECK: | H2: =IF('Calc Cover Sheet'!B12="","",'Calc Cover Sheet'!B12) -> TLC | I2: DATE: | J2: =IF('Calc Cover Sheet'!D12="","",'Calc Cover Sheet'!D12) -> 2024-04-25 | K2: RECHECK: | L2: =IF('Calc Cover Sheet'!B14="","",'Calc Cover Sheet'!B14) ->  | M2: DATE: | N2: =IF('Calc Cover Sheet'!D14="","",'Calc Cover Sheet'!D14) -> 
G3: STRUCTURE: | H3: =IF('Calc Cover Sheet'!B7="","",'Calc Cover Sheet'!B7) -> HAM-00145-0203 | K3: SFN: | L3: =IF('Calc Cover Sheet'!B3="","",'Calc Cover Sheet'!B3) -> 3108680 | M3: PID: | N3: =IF('Calc Cover Sheet'!B9="","",'Calc Cover Sheet'!B9) -> 110563
Q4: Lump Sum Tags (Items with a "LS" Pay Unit can be tagged with one or several categories)
G5: ITEM: | H5: =MID(RIGHT(CELL("filename",D2),LEN(CELL("filename",D2))-FIND("]",CELL("filename",D2))),1,9) -> 516E14020 | J5: PAY UNIT: | K5: =INDEX(QryItemE2019!B:B,MATCH(H5,QryItemE2019!A:A,0)) -> FT
G6: SUBJECT: | H6: =IF('Calc Cover Sheet'!B2="","",'Calc Cover Sheet'!B2) -> ESTIMATED QUANTITIES
D7: DESCRIPTION: | E7: =INDEX(QryItemE2019!C:C,MATCH(H5,QryItemE2019!A:A,0)) -> SEMI-INTEGRAL ABUTMENT EXPANSION JOINT SEAL
D8: SUPPLEMENTAL DESCRIPTION:
M9: SUBTOTAL | N9: TOTAL | Q9: GROUP | R9: <<<<<Tag each subtotal value with a group from this column
N10: =IF(M10="","",M10+MAX(N$9:N9)) -> 
N11: =IF(M11="","",M11+MAX(N$9:N10)) -> 
D12: Abutment Seat Length = | E12: 38.8333 | F12: ft | N12: =IF(M12="","",M12+MAX(N$9:N11)) -> 
D13: # of Abutments = | E13: 2 | N13: =IF(M13="","",M13+MAX(N$9:N12)) -> 
N14: =IF(M14="","",M14+MAX(N$9:N13)) -> 
D15: Length = | E15: =E13*E12 -> 77.6666 | M15: =E15 -> 77.6666 | N15: =IF(M15="","",M15+MAX(N$9:N14)) -> 77.6666 | Q15: ABUT.
N16: =IF(M16="","",M16+MAX(N$9:N15)) -> 
N17: =IF(M17="","",M17+MAX(N$9:N16)) -> 
N18: =IF(M18="","",M18+MAX(N$9:N17)) -> 
N20: =IF(M20="","",M20+MAX(N$9:N19)) -> 
N21: =IF(M21="","",M21+MAX(N$9:N20)) -> 
N22: =IF(M22="","",M22+MAX(N$9:N21)) -> 
N23: =IF(M23="","",M23+MAX(N$9:N22)) -> 
N24: =IF(M24="","",M24+MAX(N$9:N23)) -> 
N25: =IF(M25="","",M25+MAX(N$9:N24)) -> 
N26: =IF(M26="","",M26+MAX(N$9:N25)) -> 
N27: =IF(M27="","",M27+MAX(N$9:N26)) -> 
N28: =IF(M28="","",M28+MAX(N$9:N27)) -> 
N29: =IF(M29="","",M29+MAX(N$9:N28)) -> 
N30: =IF(M30="","",M30+MAX(N$9:N29)) -> 
N31: =IF(M31="","",M31+MAX(N$9:N30)) -> 
N32: =IF(M32="","",M32+MAX(N$9:N31)) -> 
N33: =IF(M33="","",M33+MAX(N$9:N32)) -> 
N34: =IF(M34="","",M34+MAX(N$9:N33)) -> 
N35: =IF(M35="","",M35+MAX(N$9:N34)) -> 
N36: =IF(M36="","",M36+MAX(N$9:N35)) -> 
N37: =IF(M37="","",M37+MAX(N$10:N36)) -> 
N38: =IF(M38="","",M38+MAX(N$10:N37)) -> 
N39: =IF(M39="","",M39+MAX(N$10:N38)) -> 
N40: =IF(M40="","",M40+MAX(N$10:N39)) -> 
N41: =IF(M41="","",M41+MAX(N$10:N40)) -> 
N42: =IF(M42="","",M42+MAX(N$10:N41)) -> 
N43: =IF(M43="","",M43+MAX(N$10:N42)) -> 
N44: =IF(M44="","",M44+MAX(N$10:N43)) -> 
N45: =IF(M45="","",M45+MAX(N$10:N44)) -> 
N46: =IF(M46="","",M46+MAX(N$10:N45)) -> 
N47: =IF(M47="","",M47+MAX(N$10:N46)) -> 
N48: =IF(M48="","",M48+MAX(N$10:N47)) -> 
N49: =IF(M49="","",M49+MAX(N$10:N48)) -> 
N50: =IF(M50="","",M50+MAX(N$10:N49)) -> 
N51: =IF(M51="","",M51+MAX(N$10:N50)) -> 
N52: =IF(M52="","",M52+MAX(N$10:N51)) -> 
N53: =IF(M53="","",M53+MAX(N$10:N52)) -> 
N54: =IF(M54="","",M54+MAX(N$10:N53)) -> 
N55: =IF(M55="","",M55+MAX(N$10:N54)) -> 
N56: =IF(M56="","",M56+MAX(N$10:N55)) -> 
N57: =IF(M57="","",M57+MAX(N$10:N56)) -> 
N58: =IF(M58="","",M58+MAX(N$10:N57)) -> 
N59: =IF(M59="","",M59+MAX(N$10:N58)) -> 
N60: =IF(M60="","",M60+MAX(N$10:N59)) -> 
N61: =IF(M61="","",M61+MAX(N$10:N60)) -> 
N62: =IF(M62="","",M62+MAX(N$10:N61)) -> 
N63: =IF(M63="","",M63+MAX(N$10:N62)) -> 
D64: SPECIAL INSTRUCTIONS: | E64: =INDEX(QryItemE2019!F:F,MATCH(H5,QryItemE2019!A:A,0)) ->  | M64: TOTAL | N64: =IF(K5="LS","LS"," ") -> 

Sheet 516E44101
G1: DESIGN: | H1: =IF('Calc Cover Sheet'!B11="","",'Calc Cover Sheet'!B11) -> BMV | I1: DATE: | J1: =IF('Calc Cover Sheet'!D11="","",'Calc Cover Sheet'!D11) -> 2024-04-19 | K1: UPDATE: | L1: =IF('Calc Cover Sheet'!B13="","",'Calc Cover Sheet'!B13) ->  | M1: DATE: | N1: =IF('Calc Cover Sheet'!D13="","",'Calc Cover Sheet'!D13) -> 
G2: CHECK: | H2: =IF('Calc Cover Sheet'!B12="","",'Calc Cover Sheet'!B12) -> TLC | I2: DATE: | J2: =IF('Calc Cover Sheet'!D12="","",'Calc Cover Sheet'!D12) -> 2024-04-25 | K2: RECHECK: | L2: =IF('Calc Cover Sheet'!B14="","",'Calc Cover Sheet'!B14) ->  | M2: DATE: | N2: =IF('Calc Cover Sheet'!D14="","",'Calc Cover Sheet'!D14) -> 
G3: STRUCTURE: | H3: =IF('Calc Cover Sheet'!B7="","",'Calc Cover Sheet'!B7) -> HAM-00145-0203 | K3: SFN: | L3: =IF('Calc Cover Sheet'!B3="","",'Calc Cover Sheet'!B3) -> 3108680 | M3: PID: | N3: =IF('Calc Cover Sheet'!B9="","",'Calc Cover Sheet'!B9) -> 110563
Q4: Lump Sum Tags (Items with a "LS" Pay Unit can be tagged with one or several categories)
G5: ITEM: | H5: =MID(RIGHT(CELL("filename",D2),LEN(CELL("filename",D2))-FIND("]",CELL("filename",D2))),1,9) -> 516E44101 | J5: PAY UNIT: | K5: =INDEX(QryItemE2019!B:B,MATCH(H5,QryItemE2019!A:A,0)) -> EACH
G6: SUBJECT: | H6: =IF('Calc Cover Sheet'!B2="","",'Calc Cover Sheet'!B2) -> ESTIMATED QUANTITIES
D7: DESCRIPTION: | E7: =INDEX(QryItemE2019!C:C,MATCH(H5,QryItemE2019!A:A,0)) -> ELASTOMERIC BEARING WITH INTERNAL LAMINATES AND LOAD PLATE (NEOPRENE), AS PER PLAN
D8: SUPPLEMENTAL DESCRIPTION: | E8: 2 9/16" x 2'-4" x 10" WITH W-SECTION
M9: SUBTOTAL | N9: TOTAL | Q9: GROUP | R9: <<<<<Tag each subtotal value with a group from this column
N10: =IF(M10="","",M10+MAX(N$9:N9)) -> 
N11: =IF(M11="","",M11+MAX(N$9:N10)) -> 
D12: # of Beams = | E12: 5 | N12: =IF(M12="","",M12+MAX(N$9:N11)) -> 
D13: # of Abutments = | E13: 2 | N13: =IF(M13="","",M13+MAX(N$9:N12)) -> 
N14: =IF(M14="","",M14+MAX(N$9:N13)) -> 
D15: Total = | E15: =E12*E13 -> 10 | F15: each | M15: =E15 -> 10 | N15: =IF(M15="","",M15+MAX(N$9:N14)) -> 10 | Q15: ABUT.
N16: =IF(M16="","",M16+MAX(N$9:N15)) -> 
N17: =IF(M17="","",M17+MAX(N$9:N16)) -> 
N18: =IF(M18="","",M18+MAX(N$9:N17)) -> 
N20: =IF(M20="","",M20+MAX(N$9:N19)) -> 
N21: =IF(M21="","",M21+MAX(N$9:N20)) -> 
N22: =IF(M22="","",M22+MAX(N$9:N21)) -> 
N23: =IF(M23="","",M23+MAX(N$9:N22)) -> 
N24: =IF(M24="","",M24+MAX(N$9:N23)) -> 
N25: =IF(M25="","",M25+MAX(N$9:N24)) -> 
N26: =IF(M26="","",M26+MAX(N$9:N25)) -> 
N27: =IF(M27="","",M27+MAX(N$9:N26)) -> 
N28: =IF(M28="","",M28+MAX(N$9:N27)) -> 
N29: =IF(M29="","",M29+MAX(N$9:N28)) -> 
N30: =IF(M30="","",M30+MAX(N$9:N29)) -> 
N31: =IF(M31="","",M31+MAX(N$9:N30)) -> 
N32: =IF(M32="","",M32+MAX(N$9:N31)) -> 
N33: =IF(M33="","",M33+MAX(N$9:N32)) -> 
N34: =IF(M34="","",M34+MAX(N$9:N33)) -> 
N35: =IF(M35="","",M35+MAX(N$9:N34)) -> 
N36: =IF(M36="","",M36+MAX(N$9:N35)) -> 
N37: =IF(M37="","",M37+MAX(N$10:N36)) -> 
N38: =IF(M38="","",M38+MAX(N$10:N37)) -> 
N39: =IF(M39="","",M39+MAX(N$10:N38)) -> 
N40: =IF(M40="","",M40+MAX(N$10:N39)) -> 
N41: =IF(M41="","",M41+MAX(N$10:N40)) -> 
N42: =IF(M42="","",M42+MAX(N$10:N41)) -> 
N43: =IF(M43="","",M43+MAX(N$10:N42)) -> 
N44: =IF(M44="","",M44+MAX(N$10:N43)) -> 
N45: =IF(M45="","",M45+MAX(N$10:N44)) -> 
N46: =IF(M46="","",M46+MAX(N$10:N45)) -> 
N47: =IF(M47="","",M47+MAX(N$10:N46)) -> 
N48: =IF(M48="","",M48+MAX(N$10:N47)) -> 
N49: =IF(M49="","",M49+MAX(N$10:N48)) -> 
N50: =IF(M50="","",M50+MAX(N$10:N49)) -> 
N51: =IF(M51="","",M51+MAX(N$10:N50)) -> 
N52: =IF(M52="","",M52+MAX(N$10:N51)) -> 
N53: =IF(M53="","",M53+MAX(N$10:N52)) -> 
N54: =IF(M54="","",M54+MAX(N$10:N53)) -> 
N55: =IF(M55="","",M55+MAX(N$10:N54)) -> 
N56: =IF(M56="","",M56+MAX(N$10:N55)) -> 
N57: =IF(M57="","",M57+MAX(N$10:N56)) -> 
N58: =IF(M58="","",M58+MAX(N$10:N57)) -> 
N59: =IF(M59="","",M59+MAX(N$10:N58)) -> 
N60: =IF(M60="","",M60+MAX(N$10:N59)) -> 
N61: =IF(M61="","",M61+MAX(N$10:N60)) -> 
N62: =IF(M62="","",M62+MAX(N$10:N61)) -> 
N63: =IF(M63="","",M63+MAX(N$10:N62)) -> 
D64: SPECIAL INSTRUCTIONS: | E64: =INDEX(QryItemE2019!F:F,MATCH(H5,QryItemE2019!A:A,0)) -> 2"-3" TK, SPECIFY DIMENSIONS | M64: TOTAL | N64: =IF(K5="LS","LS"," ") -> 

Sheet 516E44101p
G1: DESIGN: | H1: =IF('Calc Cover Sheet'!B11="","",'Calc Cover Sheet'!B11) -> BMV | I1: DATE: | J1: =IF('Calc Cover Sheet'!D11="","",'Calc Cover Sheet'!D11) -> 2024-04-19 | K1: UPDATE: | L1: =IF('Calc Cover Sheet'!B13="","",'Calc Cover Sheet'!B13) ->  | M1: DATE: | N1: =IF('Calc Cover Sheet'!D13="","",'Calc Cover Sheet'!D13) -> 
G2: CHECK: | H2: =IF('Calc Cover Sheet'!B12="","",'Calc Cover Sheet'!B12) -> TLC | I2: DATE: | J2: =IF('Calc Cover Sheet'!D12="","",'Calc Cover Sheet'!D12) -> 2024-04-25 | K2: RECHECK: | L2: =IF('Calc Cover Sheet'!B14="","",'Calc Cover Sheet'!B14) ->  | M2: DATE: | N2: =IF('Calc Cover Sheet'!D14="","",'Calc Cover Sheet'!D14) -> 
G3: STRUCTURE: | H3: =IF('Calc Cover Sheet'!B7="","",'Calc Cover Sheet'!B7) -> HAM-00145-0203 | K3: SFN: | L3: =IF('Calc Cover Sheet'!B3="","",'Calc Cover Sheet'!B3) -> 3108680 | M3: PID: | N3: =IF('Calc Cover Sheet'!B9="","",'Calc Cover Sheet'!B9) -> 110563
Q4: Lump Sum Tags (Items with a "LS" Pay Unit can be tagged with one or several categories)
G5: ITEM: | H5: =MID(RIGHT(CELL("filename",D2),LEN(CELL("filename",D2))-FIND("]",CELL("filename",D2))),1,9) -> 516E44101 | J5: PAY UNIT: | K5: =INDEX(QryItemE2019!B:B,MATCH(H5,QryItemE2019!A:A,0)) -> EACH
G6: SUBJECT: | H6: =IF('Calc Cover Sheet'!B2="","",'Calc Cover Sheet'!B2) -> ESTIMATED QUANTITIES
D7: DESCRIPTION: | E7: =INDEX(QryItemE2019!C:C,MATCH(H5,QryItemE2019!A:A,0)) -> ELASTOMERIC BEARING WITH INTERNAL LAMINATES AND LOAD PLATE (NEOPRENE), AS PER PLAN
D8: SUPPLEMENTAL DESCRIPTION: | E8: 2 9/16" x 2'-4" x 10"
M9: SUBTOTAL | N9: TOTAL | Q9: GROUP | R9: <<<<<Tag each subtotal value with a group from this column
N10: =IF(M10="","",M10+MAX(N$9:N9)) -> 
N11: =IF(M11="","",M11+MAX(N$9:N10)) -> 
D12: # of Beams = | E12: 5 | F12: each | N12: =IF(M12="","",M12+MAX(N$9:N11)) -> 
D13: # of piers = | E13: 1 | F13: each | N13: =IF(M13="","",M13+MAX(N$9:N12)) -> 
D14: # of brg lines = | E14: 2 | F14: each | N14: =IF(M14="","",M14+MAX(N$9:N13)) -> 
D16: Total = | E16: =E12*E13*E14 -> 10 | F16: each | M16: =E16 -> 10 | N16: =IF(M16="","",M16+MAX(N$9:N15)) -> 10 | Q16: PIER
N17: =IF(M17="","",M17+MAX(N$9:N16)) -> 
N18: =IF(M18="","",M18+MAX(N$9:N17)) -> 
N20: =IF(M20="","",M20+MAX(N$9:N19)) -> 
N21: =IF(M21="","",M21+MAX(N$9:N20)) -> 
N22: =IF(M22="","",M22+MAX(N$9:N21)) -> 
N23: =IF(M23="","",M23+MAX(N$9:N22)) -> 
N24: =IF(M24="","",M24+MAX(N$9:N23)) -> 
N25: =IF(M25="","",M25+MAX(N$9:N24)) -> 
N26: =IF(M26="","",M26+MAX(N$9:N25)) -> 
N27: =IF(M27="","",M27+MAX(N$9:N26)) -> 
N28: =IF(M28="","",M28+MAX(N$9:N27)) -> 
N29: =IF(M29="","",M29+MAX(N$9:N28)) -> 
N30: =IF(M30="","",M30+MAX(N$9:N29)) -> 
N31: =IF(M31="","",M31+MAX(N$9:N30)) -> 
N32: =IF(M32="","",M32+MAX(N$9:N31)) -> 
N33: =IF(M33="","",M33+MAX(N$9:N32)) -> 
N34: =IF(M34="","",M34+MAX(N$9:N33)) -> 
N35: =IF(M35="","",M35+MAX(N$9:N34)) -> 
N36: =IF(M36="","",M36+MAX(N$9:N35)) -> 
N37: =IF(M37="","",M37+MAX(N$10:N36)) -> 
N38: =IF(M38="","",M38+MAX(N$10:N37)) -> 
N39: =IF(M39="","",M39+MAX(N$10:N38)) -> 
N40: =IF(M40="","",M40+MAX(N$10:N39)) -> 
N41: =IF(M41="","",M41+MAX(N$10:N40)) -> 
N42: =IF(M42="","",M42+MAX(N$10:N41)) -> 
N43: =IF(M43="","",M43+MAX(N$10:N42)) -> 
N44: =IF(M44="","",M44+MAX(N$10:N43)) -> 
N45: =IF(M45="","",M45+MAX(N$10:N44)) -> 
N46: =IF(M46="","",M46+MAX(N$10:N45)) -> 
N47: =IF(M47="","",M47+MAX(N$10:N46)) -> 
N48: =IF(M48="","",M48+MAX(N$10:N47)) -> 
N49: =IF(M49="","",M49+MAX(N$10:N48)) -> 
N50: =IF(M50="","",M50+MAX(N$10:N49)) -> 
N51: =IF(M51="","",M51+MAX(N$10:N50)) -> 
N52: =IF(M52="","",M52+MAX(N$10:N51)) -> 
N53: =IF(M53="","",M53+MAX(N$10:N52)) -> 
N54: =IF(M54="","",M54+MAX(N$10:N53)) -> 
N55: =IF(M55="","",M55+MAX(N$10:N54)) -> 
N56: =IF(M56="","",M56+MAX(N$10:N55)) -> 
N57: =IF(M57="","",M57+MAX(N$10:N56)) -> 
N58: =IF(M58="","",M58+MAX(N$10:N57)) -> 
N59: =IF(M59="","",M59+MAX(N$10:N58)) -> 
N60: =IF(M60="","",M60+MAX(N$10:N59)) -> 
N61: =IF(M61="","",M61+MAX(N$10:N60)) -> 
N62: =IF(M62="","",M62+MAX(N$10:N61)) -> 
N63: =IF(M63="","",M63+MAX(N$10:N62)) -> 
D64: SPECIAL INSTRUCTIONS: | E64: =INDEX(QryItemE2019!F:F,MATCH(H5,QryItemE2019!A:A,0)) -> 2"-3" TK, SPECIFY DIMENSIONS | M64: TOTAL | N64: =IF(K5="LS","LS"," ") -> 

Sheet 526E30011
G1: DESIGN: | H1: =IF('Calc Cover Sheet'!B11="","",'Calc Cover Sheet'!B11) -> BMV | I1: DATE: | J1: =IF('Calc Cover Sheet'!D11="","",'Calc Cover Sheet'!D11) -> 2024-04-19 | K1: UPDATE: | L1: =IF('Calc Cover Sheet'!B13="","",'Calc Cover Sheet'!B13) ->  | M1: DATE: | N1: =IF('Calc Cover Sheet'!D13="","",'Calc Cover Sheet'!D13) -> 
G2: CHECK: | H2: =IF('Calc Cover Sheet'!B12="","",'Calc Cover Sheet'!B12) -> TLC | I2: DATE: | J2: =IF('Calc Cover Sheet'!D12="","",'Calc Cover Sheet'!D12) -> 2024-04-25 | K2: RECHECK: | L2: =IF('Calc Cover Sheet'!B14="","",'Calc Cover Sheet'!B14) ->  | M2: DATE: | N2: =IF('Calc Cover Sheet'!D14="","",'Calc Cover Sheet'!D14) -> 
G3: STRUCTURE: | H3: =IF('Calc Cover Sheet'!B7="","",'Calc Cover Sheet'!B7) -> HAM-00145-0203 | K3: SFN: | L3: =IF('Calc Cover Sheet'!B3="","",'Calc Cover Sheet'!B3) -> 3108680 | M3: PID: | N3: =IF('Calc Cover Sheet'!B9="","",'Calc Cover Sheet'!B9) -> 110563
Q4: Lump Sum Tags (Items with a "LS" Pay Unit can be tagged with one or several categories)
G5: ITEM: | H5: =MID(RIGHT(CELL("filename",D2),LEN(CELL("filename",D2))-FIND("]",CELL("filename",D2))),1,9) -> 526E30011 | J5: PAY UNIT: | K5: =INDEX(QryItemE2019!B:B,MATCH(H5,QryItemE2019!A:A,0)) -> SY
G6: SUBJECT: | H6: =IF('Calc Cover Sheet'!B2="","",'Calc Cover Sheet'!B2) -> ESTIMATED QUANTITIES
D7: DESCRIPTION: | E7: =INDEX(QryItemE2019!C:C,MATCH(H5,QryItemE2019!A:A,0)) -> REINFORCED CONCRETE APPROACH SLABS WITH QC/QA (T=17"), AS PER PLAN
D8: SUPPLEMENTAL DESCRIPTION:
M9: SUBTOTAL | N9: TOTAL | Q9: GROUP | R9: <<<<<Tag each subtotal value with a group from this column
N10: =IF(M10="","",M10+MAX(N$9:N9)) -> 
N11: =IF(M11="","",M11+MAX(N$9:N10)) -> 
D12: Length = | E12: 30 | F12: ft | N12: =IF(M12="","",M12+MAX(N$9:N11)) -> 
D13: Width = | E13: 38.8333 | F13: ft | N13: =IF(M13="","",M13+MAX(N$9:N12)) -> 
D14: # of Approaches = | E14: 2 | F14: each | N14: =IF(M14="","",M14+MAX(N$9:N13)) -> 
N15: =IF(M15="","",M15+MAX(N$9:N14)) -> 
D16: Area = | E16: =E14*E12*E13/9 -> 258.8886667 | F16: SY | M16: =E16 -> 258.8886667 | N16: =IF(M16="","",M16+MAX(N$9:N15)) -> 258.8886667 | Q16: GEN.
N17: =IF(M17="","",M17+MAX(N$9:N16)) -> 
N18: =IF(M18="","",M18+MAX(N$9:N17)) -> 
N20: =IF(M20="","",M20+MAX(N$9:N19)) -> 
N21: =IF(M21="","",M21+MAX(N$9:N20)) -> 
N22: =IF(M22="","",M22+MAX(N$9:N21)) -> 
N23: =IF(M23="","",M23+MAX(N$9:N22)) -> 
N24: =IF(M24="","",M24+MAX(N$9:N23)) -> 
N25: =IF(M25="","",M25+MAX(N$9:N24)) -> 
N26: =IF(M26="","",M26+MAX(N$9:N25)) -> 
N27: =IF(M27="","",M27+MAX(N$9:N26)) -> 
N28: =IF(M28="","",M28+MAX(N$9:N27)) -> 
N29: =IF(M29="","",M29+MAX(N$9:N28)) -> 
N30: =IF(M30="","",M30+MAX(N$9:N29)) -> 
N31: =IF(M31="","",M31+MAX(N$9:N30)) -> 
N32: =IF(M32="","",M32+MAX(N$9:N31)) -> 
N33: =IF(M33="","",M33+MAX(N$9:N32)) -> 
N34: =IF(M34="","",M34+MAX(N$9:N33)) -> 
N35: =IF(M35="","",M35+MAX(N$9:N34)) -> 
N36: =IF(M36="","",M36+MAX(N$9:N35)) -> 
N37: =IF(M37="","",M37+MAX(N$10:N36)) -> 
N38: =IF(M38="","",M38+MAX(N$10:N37)) -> 
N39: =IF(M39="","",M39+MAX(N$10:N38)) -> 
N40: =IF(M40="","",M40+MAX(N$10:N39)) -> 
N41: =IF(M41="","",M41+MAX(N$10:N40)) -> 
N42: =IF(M42="","",M42+MAX(N$10:N41)) -> 
N43: =IF(M43="","",M43+MAX(N$10:N42)) -> 
N44: =IF(M44="","",M44+MAX(N$10:N43)) -> 
N45: =IF(M45="","",M45+MAX(N$10:N44)) -> 
N46: =IF(M46="","",M46+MAX(N$10:N45)) -> 
N47: =IF(M47="","",M47+MAX(N$10:N46)) -> 
N48: =IF(M48="","",M48+MAX(N$10:N47)) -> 
N49: =IF(M49="","",M49+MAX(N$10:N48)) -> 
N50: =IF(M50="","",M50+MAX(N$10:N49)) -> 
N51: =IF(M51="","",M51+MAX(N$10:N50)) -> 
N52: =IF(M52="","",M52+MAX(N$10:N51)) -> 
N53: =IF(M53="","",M53+MAX(N$10:N52)) -> 
N54: =IF(M54="","",M54+MAX(N$10:N53)) -> 
N55: =IF(M55="","",M55+MAX(N$10:N54)) -> 
N56: =IF(M56="","",M56+MAX(N$10:N55)) -> 
N57: =IF(M57="","",M57+MAX(N$10:N56)) -> 
N58: =IF(M58="","",M58+MAX(N$10:N57)) -> 
N59: =IF(M59="","",M59+MAX(N$10:N58)) -> 
N60: =IF(M60="","",M60+MAX(N$10:N59)) -> 
N61: =IF(M61="","",M61+MAX(N$10:N60)) -> 
N62: =IF(M62="","",M62+MAX(N$10:N61)) -> 
N63: =IF(M63="","",M63+MAX(N$10:N62)) -> 
D64: SPECIAL INSTRUCTIONS: | E64: =INDEX(QryItemE2019!F:F,MATCH(H5,QryItemE2019!A:A,0)) ->  | M64: TOTAL | N64: =IF(K5="LS","LS"," ") -> 

Sheet 526E90031
G1: DESIGN: | H1: =IF('Calc Cover Sheet'!B11="","",'Calc Cover Sheet'!B11) -> BMV | I1: DATE: | J1: =IF('Calc Cover Sheet'!D11="","",'Calc Cover Sheet'!D11) -> 2024-04-19 | K1: UPDATE: | L1: =IF('Calc Cover Sheet'!B13="","",'Calc Cover Sheet'!B13) ->  | M1: DATE: | N1: =IF('Calc Cover Sheet'!D13="","",'Calc Cover Sheet'!D13) -> 
G2: CHECK: | H2: =IF('Calc Cover Sheet'!B12="","",'Calc Cover Sheet'!B12) -> TLC | I2: DATE: | J2: =IF('Calc Cover Sheet'!D12="","",'Calc Cover Sheet'!D12) -> 2024-04-25 | K2: RECHECK: | L2: =IF('Calc Cover Sheet'!B14="","",'Calc Cover Sheet'!B14) ->  | M2: DATE: | N2: =IF('Calc Cover Sheet'!D14="","",'Calc Cover Sheet'!D14) -> 
G3: STRUCTURE: | H3: =IF('Calc Cover Sheet'!B7="","",'Calc Cover Sheet'!B7) -> HAM-00145-0203 | K3: SFN: | L3: =IF('Calc Cover Sheet'!B3="","",'Calc Cover Sheet'!B3) -> 3108680 | M3: PID: | N3: =IF('Calc Cover Sheet'!B9="","",'Calc Cover Sheet'!B9) -> 110563
Q4: Lump Sum Tags (Items with a "LS" Pay Unit can be tagged with one or several categories)
G5: ITEM: | H5: =MID(RIGHT(CELL("filename",D2),LEN(CELL("filename",D2))-FIND("]",CELL("filename",D2))),1,9) -> 526E90031 | J5: PAY UNIT: | K5: =INDEX(QryItemE2019!B:B,MATCH(H5,QryItemE2019!A:A,0)) -> FT
G6: SUBJECT: | H6: =IF('Calc Cover Sheet'!B2="","",'Calc Cover Sheet'!B2) -> ESTIMATED QUANTITIES
D7: DESCRIPTION: | E7: =INDEX(QryItemE2019!C:C,MATCH(H5,QryItemE2019!A:A,0)) -> TYPE C INSTALLATION, AS PER PLAN
D8: SUPPLEMENTAL DESCRIPTION:
M9: SUBTOTAL | N9: TOTAL | Q9: GROUP | R9: <<<<<Tag each subtotal value with a group from this column
N10: =IF(M10="","",M10+MAX(N$9:N9)) -> 
N11: =IF(M11="","",M11+MAX(N$9:N10)) -> 
N12: =IF(M12="","",M12+MAX(N$9:N11)) -> 
D13: Width = | E13: 38.8333 | F13: ft | N13: =IF(M13="","",M13+MAX(N$9:N12)) -> 
D14: # of Approaches = | E14: 2 | F14: each | N14: =IF(M14="","",M14+MAX(N$9:N13)) -> 
N15: =IF(M15="","",M15+MAX(N$9:N14)) -> 
D16: Total = | E16: =E13*E14 -> 77.6666 | F16: FT | M16: =E16 -> 77.6666 | N16: =IF(M16="","",M16+MAX(N$9:N15)) -> 77.6666 | Q16: GEN.
N17: =IF(M17="","",M17+MAX(N$9:N16)) -> 
N18: =IF(M18="","",M18+MAX(N$9:N17)) -> 
N20: =IF(M20="","",M20+MAX(N$9:N19)) -> 
N21: =IF(M21="","",M21+MAX(N$9:N20)) -> 
N22: =IF(M22="","",M22+MAX(N$9:N21)) -> 
N23: =IF(M23="","",M23+MAX(N$9:N22)) -> 
N24: =IF(M24="","",M24+MAX(N$9:N23)) -> 
N25: =IF(M25="","",M25+MAX(N$9:N24)) -> 
N26: =IF(M26="","",M26+MAX(N$9:N25)) -> 
N27: =IF(M27="","",M27+MAX(N$9:N26)) -> 
N28: =IF(M28="","",M28+MAX(N$9:N27)) -> 
N29: =IF(M29="","",M29+MAX(N$9:N28)) -> 
N30: =IF(M30="","",M30+MAX(N$9:N29)) -> 
N31: =IF(M31="","",M31+MAX(N$9:N30)) -> 
N32: =IF(M32="","",M32+MAX(N$9:N31)) -> 
N33: =IF(M33="","",M33+MAX(N$9:N32)) -> 
N34: =IF(M34="","",M34+MAX(N$9:N33)) -> 
N35: =IF(M35="","",M35+MAX(N$9:N34)) -> 
N36: =IF(M36="","",M36+MAX(N$9:N35)) -> 
N37: =IF(M37="","",M37+MAX(N$10:N36)) -> 
N38: =IF(M38="","",M38+MAX(N$10:N37)) -> 
N39: =IF(M39="","",M39+MAX(N$10:N38)) -> 
N40: =IF(M40="","",M40+MAX(N$10:N39)) -> 
N41: =IF(M41="","",M41+MAX(N$10:N40)) -> 
N42: =IF(M42="","",M42+MAX(N$10:N41)) -> 
N43: =IF(M43="","",M43+MAX(N$10:N42)) -> 
N44: =IF(M44="","",M44+MAX(N$10:N43)) -> 
N45: =IF(M45="","",M45+MAX(N$10:N44)) -> 
N46: =IF(M46="","",M46+MAX(N$10:N45)) -> 
N47: =IF(M47="","",M47+MAX(N$10:N46)) -> 
N48: =IF(M48="","",M48+MAX(N$10:N47)) -> 
N49: =IF(M49="","",M49+MAX(N$10:N48)) -> 
N50: =IF(M50="","",M50+MAX(N$10:N49)) -> 
N51: =IF(M51="","",M51+MAX(N$10:N50)) -> 
N52: =IF(M52="","",M52+MAX(N$10:N51)) -> 
N53: =IF(M53="","",M53+MAX(N$10:N52)) -> 
N54: =IF(M54="","",M54+MAX(N$10:N53)) -> 
N55: =IF(M55="","",M55+MAX(N$10:N54)) -> 
N56: =IF(M56="","",M56+MAX(N$10:N55)) -> 
N57: =IF(M57="","",M57+MAX(N$10:N56)) -> 
N58: =IF(M58="","",M58+MAX(N$10:N57)) -> 
N59: =IF(M59="","",M59+MAX(N$10:N58)) -> 
N60: =IF(M60="","",M60+MAX(N$10:N59)) -> 
N61: =IF(M61="","",M61+MAX(N$10:N60)) -> 
N62: =IF(M62="","",M62+MAX(N$10:N61)) -> 
N63: =IF(M63="","",M63+MAX(N$10:N62)) -> 
D64: SPECIAL INSTRUCTIONS: | E64: =INDEX(QryItemE2019!F:F,MATCH(H5,QryItemE2019!A:A,0)) ->  | M64: TOTAL | N64: =IF(K5="LS","LS"," ") -> 

Sheet 530E13000
G1: DESIGN: | H1: =IF('Calc Cover Sheet'!B11="","",'Calc Cover Sheet'!B11) -> BMV | I1: DATE: | J1: =IF('Calc Cover Sheet'!D11="","",'Calc Cover Sheet'!D11) -> 2024-04-19 | K1: UPDATE: | L1: =IF('Calc Cover Sheet'!B13="","",'Calc Cover Sheet'!B13) ->  | M1: DATE: | N1: =IF('Calc Cover Sheet'!D13="","",'Calc Cover Sheet'!D13) -> 
G2: CHECK: | H2: =IF('Calc Cover Sheet'!B12="","",'Calc Cover Sheet'!B12) -> TLC | I2: DATE: | J2: =IF('Calc Cover Sheet'!D12="","",'Calc Cover Sheet'!D12) -> 2024-04-25 | K2: RECHECK: | L2: =IF('Calc Cover Sheet'!B14="","",'Calc Cover Sheet'!B14) ->  | M2: DATE: | N2: =IF('Calc Cover Sheet'!D14="","",'Calc Cover Sheet'!D14) -> 
G3: STRUCTURE: | H3: =IF('Calc Cover Sheet'!B7="","",'Calc Cover Sheet'!B7) -> HAM-00145-0203 | K3: SFN: | L3: =IF('Calc Cover Sheet'!B3="","",'Calc Cover Sheet'!B3) -> 3108680 | M3: PID: | N3: =IF('Calc Cover Sheet'!B9="","",'Calc Cover Sheet'!B9) -> 110563
Q4: Lump Sum Tags (Items with a "LS" Pay Unit can be tagged with one or several categories)
G5: ITEM: | H5: =MID(RIGHT(CELL("filename",D2),LEN(CELL("filename",D2))-FIND("]",CELL("filename",D2))),1,9) -> 530E13000 | J5: PAY UNIT: | K5: =INDEX(QryItemE2019!B:B,MATCH(H5,QryItemE2019!A:A,0)) -> SF
G6: SUBJECT: | H6: =IF('Calc Cover Sheet'!B2="","",'Calc Cover Sheet'!B2) -> ESTIMATED QUANTITIES
D7: DESCRIPTION: | E7: =INDEX(QryItemE2019!C:C,MATCH(H5,QryItemE2019!A:A,0)) -> SPECIAL - FORM LINER
D8: SUPPLEMENTAL DESCRIPTION:
M9: SUBTOTAL | N9: TOTAL | Q9: GROUP | R9: <<<<<Tag each subtotal value with a group from this column
N10: =IF(M10="","",M10+MAX(N$9:N9)) -> 
N11: =IF(M11="","",M11+MAX(N$9:N10)) -> 
D12: West railing (BR-2-15) | N12: =IF(M12="","",M12+MAX(N$9:N11)) -> 
D13: Height = | E13: 3.75 | F13: ft | N13: =IF(M13="","",M13+MAX(N$9:N12)) -> 
D14: Bridge Length = | E14: 182.667 | F14: ft | N14: =IF(M14="","",M14+MAX(N$9:N13)) -> 
D15: Approach Length = | E15: 30 | F15: ft/each | N15: =IF(M15="","",M15+MAX(N$9:N14)) -> 
D16: Moment Slab Length = | E16: =9+10/12 -> 9.833333333 | F16: ft | H16: Rear Abut
D17: Moment Slab Length = | E17: =7+7+12+10/12 -> 26.83333333 | F17: ft | H17: Fwd Abut | N17: =IF(M17="","",M17+MAX(N$9:N16)) -> 
N18: =IF(M18="","",M18+MAX(N$9:N17)) -> 
D19: Area = | E19: =E13*(E14+(2*E15)+E16+E17) -> 1047.50125 | F19: SF | M19: =E19 -> 1047.50125 | N19: =IF(M19="","",M19+MAX(N$9:N18)) -> 1047.50125 | Q19: GEN.
N20: =IF(M20="","",M20+MAX(N$9:N19)) -> 
D21: East railing (SBR-1-20) | N21: =IF(M21="","",M21+MAX(N$9:N20)) -> 
D22: Height = | E22: 3.75 | F22: ft | N22: =IF(M22="","",M22+MAX(N$9:N21)) -> 
D23: Bridge Length = | E23: 182.667 | F23: ft | N23: =IF(M23="","",M23+MAX(N$9:N22)) -> 
D24: Approach Length = | E24: 30 | F24: ft/each | N24: =IF(M24="","",M24+MAX(N$9:N23)) -> 
D25: Moment Slab Length = | E25: =9+10/12 -> 9.833333333 | F25: ft | H25: Rear Abut | N25: =IF(M25="","",M25+MAX(N$9:N24)) -> 
D26: Moment Slab Length = | E26: =40+10/12 -> 40.83333333 | F26: ft | H26: Fwd Abut | N26: =IF(M26="","",M26+MAX(N$9:N25)) -> 
N27: =IF(M27="","",M27+MAX(N$9:N26)) -> 
D28: Area = | E28: =E22*(E23+(2*E24)+E25+E26) -> 1100.00125 | F28: SF | M28: =E28 -> 1100.00125 | N28: =IF(M28="","",M28+MAX(N$9:N27)) -> 2147.5025 | Q28: GEN.
N29: =IF(M29="","",M29+MAX(N$9:N28)) -> 
N30: =IF(M30="","",M30+MAX(N$9:N29)) -> 
N31: =IF(M31="","",M31+MAX(N$9:N30)) -> 
N32: =IF(M32="","",M32+MAX(N$9:N31)) -> 
N33: =IF(M33="","",M33+MAX(N$9:N32)) -> 
N34: =IF(M34="","",M34+MAX(N$9:N33)) -> 
N35: =IF(M35="","",M35+MAX(N$9:N34)) -> 
N36: =IF(M36="","",M36+MAX(N$9:N35)) -> 
N37: =IF(M37="","",M37+MAX(N$10:N36)) -> 
N38: =IF(M38="","",M38+MAX(N$10:N37)) -> 
N39: =IF(M39="","",M39+MAX(N$10:N38)) -> 
N40: =IF(M40="","",M40+MAX(N$10:N39)) -> 
N41: =IF(M41="","",M41+MAX(N$10:N40)) -> 
N42: =IF(M42="","",M42+MAX(N$10:N41)) -> 
N43: =IF(M43="","",M43+MAX(N$10:N42)) -> 
N44: =IF(M44="","",M44+MAX(N$10:N43)) -> 
N45: =IF(M45="","",M45+MAX(N$10:N44)) -> 
N46: =IF(M46="","",M46+MAX(N$10:N45)) -> 
N47: =IF(M47="","",M47+MAX(N$10:N46)) -> 
N48: =IF(M48="","",M48+MAX(N$10:N47)) -> 
N49: =IF(M49="","",M49+MAX(N$10:N48)) -> 
N50: =IF(M50="","",M50+MAX(N$10:N49)) -> 
N51: =IF(M51="","",M51+MAX(N$10:N50)) -> 
N52: =IF(M52="","",M52+MAX(N$10:N51)) -> 
N53: =IF(M53="","",M53+MAX(N$10:N52)) -> 
N54: =IF(M54="","",M54+MAX(N$10:N53)) -> 
N55: =IF(M55="","",M55+MAX(N$10:N54)) -> 
N56: =IF(M56="","",M56+MAX(N$10:N55)) -> 
N57: =IF(M57="","",M57+MAX(N$10:N56)) -> 
N58: =IF(M58="","",M58+MAX(N$10:N57)) -> 
N59: =IF(M59="","",M59+MAX(N$10:N58)) -> 
N60: =IF(M60="","",M60+MAX(N$10:N59)) -> 
N61: =IF(M61="","",M61+MAX(N$10:N60)) -> 
N62: =IF(M62="","",M62+MAX(N$10:N61)) -> 
N63: =IF(M63="","",M63+MAX(N$10:N62)) -> 
D64: SPECIAL INSTRUCTIONS: | E64: =INDEX(QryItemE2019!F:F,MATCH(H5,QryItemE2019!A:A,0)) ->  | M64: TOTAL | N64: =IF(K5="LS","LS"," ") -> 

Sheet 601E21000
G1: DESIGN: | H1: =IF('Calc Cover Sheet'!B11="","",'Calc Cover Sheet'!B11) -> BMV | I1: DATE: | J1: =IF('Calc Cover Sheet'!D11="","",'Calc Cover Sheet'!D11) -> 2024-04-19 | K1: UPDATE: | L1: =IF('Calc Cover Sheet'!B13="","",'Calc Cover Sheet'!B13) ->  | M1: DATE: | N1: =IF('Calc Cover Sheet'!D13="","",'Calc Cover Sheet'!D13) -> 
G2: CHECK: | H2: =IF('Calc Cover Sheet'!B12="","",'Calc Cover Sheet'!B12) -> TLC | I2: DATE: | J2: =IF('Calc Cover Sheet'!D12="","",'Calc Cover Sheet'!D12) -> 2024-04-25 | K2: RECHECK: | L2: =IF('Calc Cover Sheet'!B14="","",'Calc Cover Sheet'!B14) ->  | M2: DATE: | N2: =IF('Calc Cover Sheet'!D14="","",'Calc Cover Sheet'!D14) -> 
G3: STRUCTURE: | H3: =IF('Calc Cover Sheet'!B7="","",'Calc Cover Sheet'!B7) -> HAM-00145-0203 | K3: SFN: | L3: =IF('Calc Cover Sheet'!B3="","",'Calc Cover Sheet'!B3) -> 3108680 | M3: PID: | N3: =IF('Calc Cover Sheet'!B9="","",'Calc Cover Sheet'!B9) -> 110563
Q4: Lump Sum Tags (Items with a "LS" Pay Unit can be tagged with one or several categories)
G5: ITEM: | H5: =MID(RIGHT(CELL("filename",D2),LEN(CELL("filename",D2))-FIND("]",CELL("filename",D2))),1,9) -> 601E21000 | J5: PAY UNIT: | K5: =INDEX(QryItemE2019!B:B,MATCH(H5,QryItemE2019!A:A,0)) -> SY
G6: SUBJECT: | H6: =IF('Calc Cover Sheet'!B2="","",'Calc Cover Sheet'!B2) -> ESTIMATED QUANTITIES
D7: DESCRIPTION: | E7: =INDEX(QryItemE2019!C:C,MATCH(H5,QryItemE2019!A:A,0)) -> CONCRETE SLOPE PROTECTION
D8: SUPPLEMENTAL DESCRIPTION:
M9: SUBTOTAL | N9: TOTAL | Q9: GROUP | R9: <<<<<Tag each subtotal value with a group from this column
N10: =IF(M10="","",M10+MAX(N$9:N9)) -> 
N11: =IF(M11="","",M11+MAX(N$9:N10)) -> 
C12: Between MSE Wall and Abutment Footing | N12: =IF(M12="","",M12+MAX(N$9:N11)) -> 
N13: =IF(M13="","",M13+MAX(N$9:N12)) -> 
D14: Length at Rear Abut. = | E14: 38.8333 | F14: ft | N14: =IF(M14="","",M14+MAX(N$9:N13)) -> 
D15: Length at Fwd Abut. = | E15: 38.8333 | F15: ft | N15: =IF(M15="","",M15+MAX(N$9:N14)) -> 
D16: Width = | E16: 1.9167 | F16: ft | N16: =IF(M16="","",M16+MAX(N$9:N15)) -> 
N17: =IF(M17="","",M17+MAX(N$9:N16)) -> 
D18: Area = | E18: =E16*(E14+E15)/9 -> 16.54039691 | F18: SY | M18: =CEILING(E18,1) -> 17 | N18: =IF(M18="","",M18+MAX(N$9:N17)) -> 17 | Q18: ABUT.
N20: =IF(M20="","",M20+MAX(N$9:N19)) -> 
N21: =IF(M21="","",M21+MAX(N$9:N20)) -> 
N22: =IF(M22="","",M22+MAX(N$9:N21)) -> 
N23: =IF(M23="","",M23+MAX(N$9:N22)) -> 
N24: =IF(M24="","",M24+MAX(N$9:N23)) -> 
N25: =IF(M25="","",M25+MAX(N$9:N24)) -> 
N26: =IF(M26="","",M26+MAX(N$9:N25)) -> 
N27: =IF(M27="","",M27+MAX(N$9:N26)) -> 
N28: =IF(M28="","",M28+MAX(N$9:N27)) -> 
N29: =IF(M29="","",M29+MAX(N$9:N28)) -> 
N30: =IF(M30="","",M30+MAX(N$9:N29)) -> 
N31: =IF(M31="","",M31+MAX(N$9:N30)) -> 
N32: =IF(M32="","",M32+MAX(N$9:N31)) -> 
N33: =IF(M33="","",M33+MAX(N$9:N32)) -> 
N34: =IF(M34="","",M34+MAX(N$9:N33)) -> 
N35: =IF(M35="","",M35+MAX(N$9:N34)) -> 
N36: =IF(M36="","",M36+MAX(N$9:N35)) -> 
N37: =IF(M37="","",M37+MAX(N$10:N36)) -> 
N38: =IF(M38="","",M38+MAX(N$10:N37)) -> 
N39: =IF(M39="","",M39+MAX(N$10:N38)) -> 
N40: =IF(M40="","",M40+MAX(N$10:N39)) -> 
N41: =IF(M41="","",M41+MAX(N$10:N40)) -> 
N42: =IF(M42="","",M42+MAX(N$10:N41)) -> 
N43: =IF(M43="","",M43+MAX(N$10:N42)) -> 
N44: =IF(M44="","",M44+MAX(N$10:N43)) -> 
N45: =IF(M45="","",M45+MAX(N$10:N44)) -> 
N46: =IF(M46="","",M46+MAX(N$10:N45)) -> 
N47: =IF(M47="","",M47+MAX(N$10:N46)) -> 
N48: =IF(M48="","",M48+MAX(N$10:N47)) -> 
N49: =IF(M49="","",M49+MAX(N$10:N48)) -> 
N50: =IF(M50="","",M50+MAX(N$10:N49)) -> 
N51: =IF(M51="","",M51+MAX(N$10:N50)) -> 
N52: =IF(M52="","",M52+MAX(N$10:N51)) -> 
N53: =IF(M53="","",M53+MAX(N$10:N52)) -> 
N54: =IF(M54="","",M54+MAX(N$10:N53)) -> 
N55: =IF(M55="","",M55+MAX(N$10:N54)) -> 
N56: =IF(M56="","",M56+MAX(N$10:N55)) -> 
N57: =IF(M57="","",M57+MAX(N$10:N56)) -> 
N58: =IF(M58="","",M58+MAX(N$10:N57)) -> 
N59: =IF(M59="","",M59+MAX(N$10:N58)) -> 
N60: =IF(M60="","",M60+MAX(N$10:N59)) -> 
N61: =IF(M61="","",M61+MAX(N$10:N60)) -> 
N62: =IF(M62="","",M62+MAX(N$10:N61)) -> 
N63: =IF(M63="","",M63+MAX(N$10:N62)) -> 
D64: SPECIAL INSTRUCTIONS: | E64: =INDEX(QryItemE2019!F:F,MATCH(H5,QryItemE2019!A:A,0)) ->  | M64: TOTAL | N64: =IF(K5="LS","LS"," ") -> 

Sheet 607E39900
G1: DESIGN: | H1: =IF('Calc Cover Sheet'!B11="","",'Calc Cover Sheet'!B11) -> BMV | I1: DATE: | J1: =IF('Calc Cover Sheet'!D11="","",'Calc Cover Sheet'!D11) -> 2024-04-19 | K1: UPDATE: | L1: =IF('Calc Cover Sheet'!B13="","",'Calc Cover Sheet'!B13) ->  | M1: DATE: | N1: =IF('Calc Cover Sheet'!D13="","",'Calc Cover Sheet'!D13) -> 
G2: CHECK: | H2: =IF('Calc Cover Sheet'!B12="","",'Calc Cover Sheet'!B12) -> TLC | I2: DATE: | J2: =IF('Calc Cover Sheet'!D12="","",'Calc Cover Sheet'!D12) -> 2024-04-25 | K2: RECHECK: | L2: =IF('Calc Cover Sheet'!B14="","",'Calc Cover Sheet'!B14) ->  | M2: DATE: | N2: =IF('Calc Cover Sheet'!D14="","",'Calc Cover Sheet'!D14) -> 
G3: STRUCTURE: | H3: =IF('Calc Cover Sheet'!B7="","",'Calc Cover Sheet'!B7) -> HAM-00145-0203 | K3: SFN: | L3: =IF('Calc Cover Sheet'!B3="","",'Calc Cover Sheet'!B3) -> 3108680 | M3: PID: | N3: =IF('Calc Cover Sheet'!B9="","",'Calc Cover Sheet'!B9) -> 110563
Q4: Lump Sum Tags (Items with a "LS" Pay Unit can be tagged with one or several categories)
G5: ITEM: | H5: =MID(RIGHT(CELL("filename",D2),LEN(CELL("filename",D2))-FIND("]",CELL("filename",D2))),1,9) -> 607E39900 | J5: PAY UNIT: | K5: =INDEX(QryItemE2019!B:B,MATCH(H5,QryItemE2019!A:A,0)) -> FT
G6: SUBJECT: | H6: =IF('Calc Cover Sheet'!B2="","",'Calc Cover Sheet'!B2) -> ESTIMATED QUANTITIES
D7: DESCRIPTION: | E7: =INDEX(QryItemE2019!C:C,MATCH(H5,QryItemE2019!A:A,0)) -> VANDAL PROTECTION FENCE, 6' STRAIGHT, COATED FABRIC
D8: SUPPLEMENTAL DESCRIPTION: | E8: ALTERNATIVE 1
M9: SUBTOTAL | N9: TOTAL | Q9: GROUP | R9: <<<<<Tag each subtotal value with a group from this column
N10: =IF(M10="","",M10+MAX(N$9:N9)) -> 
N11: =IF(M11="","",M11+MAX(N$9:N10)) -> 
N12: =IF(M12="","",M12+MAX(N$9:N11)) -> 
D13: Length = | E13: 178 | F13: ft | M13: =E13 -> 178 | N13: =IF(M13="","",M13+MAX(N$9:N12)) -> 178 | Q13: GEN.
N14: =IF(M14="","",M14+MAX(N$9:N13)) -> 
N15: =IF(M15="","",M15+MAX(N$9:N14)) -> 
N16: =IF(M16="","",M16+MAX(N$9:N15)) -> 
N17: =IF(M17="","",M17+MAX(N$9:N16)) -> 
N18: =IF(M18="","",M18+MAX(N$9:N17)) -> 
N20: =IF(M20="","",M20+MAX(N$9:N19)) -> 
N21: =IF(M21="","",M21+MAX(N$9:N20)) -> 
N22: =IF(M22="","",M22+MAX(N$9:N21)) -> 
N23: =IF(M23="","",M23+MAX(N$9:N22)) -> 
N24: =IF(M24="","",M24+MAX(N$9:N23)) -> 
N25: =IF(M25="","",M25+MAX(N$9:N24)) -> 
N26: =IF(M26="","",M26+MAX(N$9:N25)) -> 
N27: =IF(M27="","",M27+MAX(N$9:N26)) -> 
N28: =IF(M28="","",M28+MAX(N$9:N27)) -> 
N29: =IF(M29="","",M29+MAX(N$9:N28)) -> 
N30: =IF(M30="","",M30+MAX(N$9:N29)) -> 
N31: =IF(M31="","",M31+MAX(N$9:N30)) -> 
N32: =IF(M32="","",M32+MAX(N$9:N31)) -> 
N33: =IF(M33="","",M33+MAX(N$9:N32)) -> 
N34: =IF(M34="","",M34+MAX(N$9:N33)) -> 
N35: =IF(M35="","",M35+MAX(N$9:N34)) -> 
N36: =IF(M36="","",M36+MAX(N$9:N35)) -> 
N37: =IF(M37="","",M37+MAX(N$10:N36)) -> 
N38: =IF(M38="","",M38+MAX(N$10:N37)) -> 
N39: =IF(M39="","",M39+MAX(N$10:N38)) -> 
N40: =IF(M40="","",M40+MAX(N$10:N39)) -> 
N41: =IF(M41="","",M41+MAX(N$10:N40)) -> 
N42: =IF(M42="","",M42+MAX(N$10:N41)) -> 
N43: =IF(M43="","",M43+MAX(N$10:N42)) -> 
N44: =IF(M44="","",M44+MAX(N$10:N43)) -> 
N45: =IF(M45="","",M45+MAX(N$10:N44)) -> 
N46: =IF(M46="","",M46+MAX(N$10:N45)) -> 
N47: =IF(M47="","",M47+MAX(N$10:N46)) -> 
N48: =IF(M48="","",M48+MAX(N$10:N47)) -> 
N49: =IF(M49="","",M49+MAX(N$10:N48)) -> 
N50: =IF(M50="","",M50+MAX(N$10:N49)) -> 
N51: =IF(M51="","",M51+MAX(N$10:N50)) -> 
N52: =IF(M52="","",M52+MAX(N$10:N51)) -> 
N53: =IF(M53="","",M53+MAX(N$10:N52)) -> 
N54: =IF(M54="","",M54+MAX(N$10:N53)) -> 
N55: =IF(M55="","",M55+MAX(N$10:N54)) -> 
N56: =IF(M56="","",M56+MAX(N$10:N55)) -> 
N57: =IF(M57="","",M57+MAX(N$10:N56)) -> 
N58: =IF(M58="","",M58+MAX(N$10:N57)) -> 
N59: =IF(M59="","",M59+MAX(N$10:N58)) -> 
N60: =IF(M60="","",M60+MAX(N$10:N59)) -> 
N61: =IF(M61="","",M61+MAX(N$10:N60)) -> 
N62: =IF(M62="","",M62+MAX(N$10:N61)) -> 
N63: =IF(M63="","",M63+MAX(N$10:N62)) -> 
D64: SPECIAL INSTRUCTIONS: | E64: =INDEX(QryItemE2019!F:F,MATCH(H5,QryItemE2019!A:A,0)) -> SEE BDM 310.11, STR GROUNDING | M64: TOTAL | N64: =IF(K5="LS","LS"," ") -> 

Sheet 607E39930
G1: DESIGN: | H1: =IF('Calc Cover Sheet'!B11="","",'Calc Cover Sheet'!B11) -> BMV | I1: DATE: | J1: =IF('Calc Cover Sheet'!D11="","",'Calc Cover Sheet'!D11) -> 2024-04-19 | K1: UPDATE: | L1: =IF('Calc Cover Sheet'!B13="","",'Calc Cover Sheet'!B13) ->  | M1: DATE: | N1: =IF('Calc Cover Sheet'!D13="","",'Calc Cover Sheet'!D13) -> 
G2: CHECK: | H2: =IF('Calc Cover Sheet'!B12="","",'Calc Cover Sheet'!B12) -> TLC | I2: DATE: | J2: =IF('Calc Cover Sheet'!D12="","",'Calc Cover Sheet'!D12) -> 2024-04-25 | K2: RECHECK: | L2: =IF('Calc Cover Sheet'!B14="","",'Calc Cover Sheet'!B14) ->  | M2: DATE: | N2: =IF('Calc Cover Sheet'!D14="","",'Calc Cover Sheet'!D14) -> 
G3: STRUCTURE: | H3: =IF('Calc Cover Sheet'!B7="","",'Calc Cover Sheet'!B7) -> HAM-00145-0203 | K3: SFN: | L3: =IF('Calc Cover Sheet'!B3="","",'Calc Cover Sheet'!B3) -> 3108680 | M3: PID: | N3: =IF('Calc Cover Sheet'!B9="","",'Calc Cover Sheet'!B9) -> 110563
Q4: Lump Sum Tags (Items with a "LS" Pay Unit can be tagged with one or several categories)
G5: ITEM: | H5: =MID(RIGHT(CELL("filename",D2),LEN(CELL("filename",D2))-FIND("]",CELL("filename",D2))),1,9) -> 607E39930 | J5: PAY UNIT: | K5: =INDEX(QryItemE2019!B:B,MATCH(H5,QryItemE2019!A:A,0)) -> FT
G6: SUBJECT: | H6: =IF('Calc Cover Sheet'!B2="","",'Calc Cover Sheet'!B2) -> ESTIMATED QUANTITIES
D7: DESCRIPTION: | E7: =INDEX(QryItemE2019!C:C,MATCH(H5,QryItemE2019!A:A,0)) -> VANDAL PROTECTION FENCE, 12' CURVED, COATED FABRIC
D8: SUPPLEMENTAL DESCRIPTION: | E8: ALTERNATIVE 1
M9: SUBTOTAL | N9: TOTAL | Q9: GROUP | R9: <<<<<Tag each subtotal value with a group from this column
N10: =IF(M10="","",M10+MAX(N$9:N9)) -> 
N11: =IF(M11="","",M11+MAX(N$9:N10)) -> 
D12: Length = | E12: 178 | F12: ft | M12: =E12 -> 178 | N12: =IF(M12="","",M12+MAX(N$9:N11)) -> 178 | Q12: GEN.
N13: =IF(M13="","",M13+MAX(N$9:N12)) -> 
N14: =IF(M14="","",M14+MAX(N$9:N13)) -> 
N15: =IF(M15="","",M15+MAX(N$9:N14)) -> 
N16: =IF(M16="","",M16+MAX(N$9:N15)) -> 
N17: =IF(M17="","",M17+MAX(N$9:N16)) -> 
N18: =IF(M18="","",M18+MAX(N$9:N17)) -> 
N20: =IF(M20="","",M20+MAX(N$9:N19)) -> 
N21: =IF(M21="","",M21+MAX(N$9:N20)) -> 
N22: =IF(M22="","",M22+MAX(N$9:N21)) -> 
N23: =IF(M23="","",M23+MAX(N$9:N22)) -> 
N24: =IF(M24="","",M24+MAX(N$9:N23)) -> 
N25: =IF(M25="","",M25+MAX(N$9:N24)) -> 
N26: =IF(M26="","",M26+MAX(N$9:N25)) -> 
N27: =IF(M27="","",M27+MAX(N$9:N26)) -> 
N28: =IF(M28="","",M28+MAX(N$9:N27)) -> 
N29: =IF(M29="","",M29+MAX(N$9:N28)) -> 
N30: =IF(M30="","",M30+MAX(N$9:N29)) -> 
N31: =IF(M31="","",M31+MAX(N$9:N30)) -> 
N32: =IF(M32="","",M32+MAX(N$9:N31)) -> 
N33: =IF(M33="","",M33+MAX(N$9:N32)) -> 
N34: =IF(M34="","",M34+MAX(N$9:N33)) -> 
N35: =IF(M35="","",M35+MAX(N$9:N34)) -> 
N36: =IF(M36="","",M36+MAX(N$9:N35)) -> 
N37: =IF(M37="","",M37+MAX(N$10:N36)) -> 
N38: =IF(M38="","",M38+MAX(N$10:N37)) -> 
N39: =IF(M39="","",M39+MAX(N$10:N38)) -> 
N40: =IF(M40="","",M40+MAX(N$10:N39)) -> 
N41: =IF(M41="","",M41+MAX(N$10:N40)) -> 
N42: =IF(M42="","",M42+MAX(N$10:N41)) -> 
N43: =IF(M43="","",M43+MAX(N$10:N42)) -> 
N44: =IF(M44="","",M44+MAX(N$10:N43)) -> 
N45: =IF(M45="","",M45+MAX(N$10:N44)) -> 
N46: =IF(M46="","",M46+MAX(N$10:N45)) -> 
N47: =IF(M47="","",M47+MAX(N$10:N46)) -> 
N48: =IF(M48="","",M48+MAX(N$10:N47)) -> 
N49: =IF(M49="","",M49+MAX(N$10:N48)) -> 
N50: =IF(M50="","",M50+MAX(N$10:N49)) -> 
N51: =IF(M51="","",M51+MAX(N$10:N50)) -> 
N52: =IF(M52="","",M52+MAX(N$10:N51)) -> 
N53: =IF(M53="","",M53+MAX(N$10:N52)) -> 
N54: =IF(M54="","",M54+MAX(N$10:N53)) -> 
N55: =IF(M55="","",M55+MAX(N$10:N54)) -> 
N56: =IF(M56="","",M56+MAX(N$10:N55)) -> 
N57: =IF(M57="","",M57+MAX(N$10:N56)) -> 
N58: =IF(M58="","",M58+MAX(N$10:N57)) -> 
N59: =IF(M59="","",M59+MAX(N$10:N58)) -> 
N60: =IF(M60="","",M60+MAX(N$10:N59)) -> 
N61: =IF(M61="","",M61+MAX(N$10:N60)) -> 
N62: =IF(M62="","",M62+MAX(N$10:N61)) -> 
N63: =IF(M63="","",M63+MAX(N$10:N62)) -> 
D64: SPECIAL INSTRUCTIONS: | E64: =INDEX(QryItemE2019!F:F,MATCH(H5,QryItemE2019!A:A,0)) -> SEE BDM 310.11, STR GROUNDING | M64: TOTAL | N64: =IF(K5="LS","LS"," ") -> 

Sheet 607E40000
G1: DESIGN: | H1: =IF('Calc Cover Sheet'!B11="","",'Calc Cover Sheet'!B11) -> BMV | I1: DATE: | J1: =IF('Calc Cover Sheet'!D11="","",'Calc Cover Sheet'!D11) -> 2024-04-19 | K1: UPDATE: | L1: =IF('Calc Cover Sheet'!B13="","",'Calc Cover Sheet'!B13) ->  | M1: DATE: | N1: =IF('Calc Cover Sheet'!D13="","",'Calc Cover Sheet'!D13) -> 
G2: CHECK: | H2: =IF('Calc Cover Sheet'!B12="","",'Calc Cover Sheet'!B12) -> TLC | I2: DATE: | J2: =IF('Calc Cover Sheet'!D12="","",'Calc Cover Sheet'!D12) -> 2024-04-25 | K2: RECHECK: | L2: =IF('Calc Cover Sheet'!B14="","",'Calc Cover Sheet'!B14) ->  | M2: DATE: | N2: =IF('Calc Cover Sheet'!D14="","",'Calc Cover Sheet'!D14) -> 
G3: STRUCTURE: | H3: =IF('Calc Cover Sheet'!B7="","",'Calc Cover Sheet'!B7) -> HAM-00145-0203 | K3: SFN: | L3: =IF('Calc Cover Sheet'!B3="","",'Calc Cover Sheet'!B3) -> 3108680 | M3: PID: | N3: =IF('Calc Cover Sheet'!B9="","",'Calc Cover Sheet'!B9) -> 110563
Q4: Lump Sum Tags (Items with a "LS" Pay Unit can be tagged with one or several categories)
G5: ITEM: | H5: =MID(RIGHT(CELL("filename",D2),LEN(CELL("filename",D2))-FIND("]",CELL("filename",D2))),1,9) -> 607E40000 | J5: PAY UNIT: | K5: =INDEX(QryItemE2019!B:B,MATCH(H5,QryItemE2019!A:A,0)) -> FT
G6: SUBJECT: | H6: =IF('Calc Cover Sheet'!B2="","",'Calc Cover Sheet'!B2) -> ESTIMATED QUANTITIES
D7: DESCRIPTION: | E7: =INDEX(QryItemE2019!C:C,MATCH(H5,QryItemE2019!A:A,0)) -> SPECIAL - VANDAL PROTECTION FENCE
D8: SUPPLEMENTAL DESCRIPTION: | E8: 11'-10" TALL AESTHETIC FENCE) (ALTERNATIVE 2
M9: SUBTOTAL | N9: TOTAL | Q9: GROUP | R9: <<<<<Tag each subtotal value with a group from this column
N10: =IF(M10="","",M10+MAX(N$9:N9)) -> 
C11: ** Alternative 2 Only
N12: =IF(M12="","",M12+MAX(N$9:N10)) -> 
D13: Length per side = | E13: 178 | F13: ft | N13: =IF(M13="","",M13+MAX(N$9:N12)) -> 
N14: =IF(M14="","",M14+MAX(N$9:N13)) -> 
D15: Total Length = | E15: =E13 -> 178 | F15: ft | M15: =CEILING(E15,1) -> 178 | N15: =IF(M15="","",M15+MAX(N$9:N14)) -> 178 | Q15: GEN.
N16: =IF(M16="","",M16+MAX(N$9:N15)) -> 
N17: =IF(M17="","",M17+MAX(N$9:N16)) -> 
N18: =IF(M18="","",M18+MAX(N$9:N17)) -> 
N19: =IF(M19="","",M19+MAX(N$9:N18)) -> 
N21: =IF(M21="","",M21+MAX(N$9:N20)) -> 
N22: =IF(M22="","",M22+MAX(N$9:N21)) -> 
N23: =IF(M23="","",M23+MAX(N$9:N22)) -> 
N24: =IF(M24="","",M24+MAX(N$9:N23)) -> 
N25: =IF(M25="","",M25+MAX(N$9:N24)) -> 
N26: =IF(M26="","",M26+MAX(N$9:N25)) -> 
N27: =IF(M27="","",M27+MAX(N$9:N26)) -> 
N28: =IF(M28="","",M28+MAX(N$9:N27)) -> 
N29: =IF(M29="","",M29+MAX(N$9:N28)) -> 
N30: =IF(M30="","",M30+MAX(N$9:N29)) -> 
N31: =IF(M31="","",M31+MAX(N$9:N30)) -> 
N32: =IF(M32="","",M32+MAX(N$9:N31)) -> 
N33: =IF(M33="","",M33+MAX(N$9:N32)) -> 
N34: =IF(M34="","",M34+MAX(N$9:N33)) -> 
N35: =IF(M35="","",M35+MAX(N$9:N34)) -> 
N36: =IF(M36="","",M36+MAX(N$9:N35)) -> 
N37: =IF(M37="","",M37+MAX(N$9:N36)) -> 
N38: =IF(M38="","",M38+MAX(N$10:N37)) -> 
N39: =IF(M39="","",M39+MAX(N$10:N38)) -> 
N40: =IF(M40="","",M40+MAX(N$10:N39)) -> 
N41: =IF(M41="","",M41+MAX(N$10:N40)) -> 
N42: =IF(M42="","",M42+MAX(N$10:N41)) -> 
N43: =IF(M43="","",M43+MAX(N$10:N42)) -> 
N44: =IF(M44="","",M44+MAX(N$10:N43)) -> 
N45: =IF(M45="","",M45+MAX(N$10:N44)) -> 
N46: =IF(M46="","",M46+MAX(N$10:N45)) -> 
N47: =IF(M47="","",M47+MAX(N$10:N46)) -> 
N48: =IF(M48="","",M48+MAX(N$10:N47)) -> 
N49: =IF(M49="","",M49+MAX(N$10:N48)) -> 
N50: =IF(M50="","",M50+MAX(N$10:N49)) -> 
N51: =IF(M51="","",M51+MAX(N$10:N50)) -> 
N52: =IF(M52="","",M52+MAX(N$10:N51)) -> 
N53: =IF(M53="","",M53+MAX(N$10:N52)) -> 
N54: =IF(M54="","",M54+MAX(N$10:N53)) -> 
N55: =IF(M55="","",M55+MAX(N$10:N54)) -> 
N56: =IF(M56="","",M56+MAX(N$10:N55)) -> 
N57: =IF(M57="","",M57+MAX(N$10:N56)) -> 
N58: =IF(M58="","",M58+MAX(N$10:N57)) -> 
N59: =IF(M59="","",M59+MAX(N$10:N58)) -> 
N60: =IF(M60="","",M60+MAX(N$10:N59)) -> 
N61: =IF(M61="","",M61+MAX(N$10:N60)) -> 
N62: =IF(M62="","",M62+MAX(N$10:N61)) -> 
N63: =IF(M63="","",M63+MAX(N$10:N62)) -> 
N64: =IF(M64="","",M64+MAX(N$10:N63)) -> 
D65: SPECIAL INSTRUCTIONS: | E65: =INDEX(QryItemE2019!F:F,MATCH(H5,QryItemE2019!A:A,0)) -> SEE BDM 310.11, STR GROUNDING | M65: TOTAL | N65: =IF(K5="LS","LS"," ") -> 

Sheet 607E40000 (2)
G1: DESIGN: | H1: =IF('Calc Cover Sheet'!B11="","",'Calc Cover Sheet'!B11) -> BMV | I1: DATE: | J1: =IF('Calc Cover Sheet'!D11="","",'Calc Cover Sheet'!D11) -> 2024-04-19 | K1: UPDATE: | L1: =IF('Calc Cover Sheet'!B13="","",'Calc Cover Sheet'!B13) ->  | M1: DATE: | N1: =IF('Calc Cover Sheet'!D13="","",'Calc Cover Sheet'!D13) -> 
G2: CHECK: | H2: =IF('Calc Cover Sheet'!B12="","",'Calc Cover Sheet'!B12) -> TLC | I2: DATE: | J2: =IF('Calc Cover Sheet'!D12="","",'Calc Cover Sheet'!D12) -> 2024-04-25 | K2: RECHECK: | L2: =IF('Calc Cover Sheet'!B14="","",'Calc Cover Sheet'!B14) ->  | M2: DATE: | N2: =IF('Calc Cover Sheet'!D14="","",'Calc Cover Sheet'!D14) -> 
G3: STRUCTURE: | H3: =IF('Calc Cover Sheet'!B7="","",'Calc Cover Sheet'!B7) -> HAM-00145-0203 | K3: SFN: | L3: =IF('Calc Cover Sheet'!B3="","",'Calc Cover Sheet'!B3) -> 3108680 | M3: PID: | N3: =IF('Calc Cover Sheet'!B9="","",'Calc Cover Sheet'!B9) -> 110563
Q4: Lump Sum Tags (Items with a "LS" Pay Unit can be tagged with one or several categories)
G5: ITEM: | H5: =MID(RIGHT(CELL("filename",D2),LEN(CELL("filename",D2))-FIND("]",CELL("filename",D2))),1,9) -> 607E40000 | J5: PAY UNIT: | K5: =INDEX(QryItemE2019!B:B,MATCH(H5,QryItemE2019!A:A,0)) -> FT
G6: SUBJECT: | H6: =IF('Calc Cover Sheet'!B2="","",'Calc Cover Sheet'!B2) -> ESTIMATED QUANTITIES
D7: DESCRIPTION: | E7: =INDEX(QryItemE2019!C:C,MATCH(H5,QryItemE2019!A:A,0)) -> SPECIAL - VANDAL PROTECTION FENCE
D8: SUPPLEMENTAL DESCRIPTION: | E8: 6'-7" TALL AESTHETIC FENCE) (ALTERNATIVE 2
M9: SUBTOTAL | N9: TOTAL | Q9: GROUP | R9: <<<<<Tag each subtotal value with a group from this column
N10: =IF(M10="","",M10+MAX(N$9:N9)) -> 
C11: ** Alternative 2 Only
N12: =IF(M12="","",M12+MAX(N$9:N10)) -> 
D13: Length per side = | E13: 178 | F13: ft | N13: =IF(M13="","",M13+MAX(N$9:N12)) -> 
N14: =IF(M14="","",M14+MAX(N$9:N13)) -> 
D15: Total Length = | E15: =E13 -> 178 | F15: ft | M15: =CEILING(E15,1) -> 178 | N15: =IF(M15="","",M15+MAX(N$9:N14)) -> 178 | Q15: GEN.
N16: =IF(M16="","",M16+MAX(N$9:N15)) -> 
N17: =IF(M17="","",M17+MAX(N$9:N16)) -> 
N18: =IF(M18="","",M18+MAX(N$9:N17)) -> 
N19: =IF(M19="","",M19+MAX(N$9:N18)) -> 
N21: =IF(M21="","",M21+MAX(N$9:N20)) -> 
N22: =IF(M22="","",M22+MAX(N$9:N21)) -> 
N23: =IF(M23="","",M23+MAX(N$9:N22)) -> 
N24: =IF(M24="","",M24+MAX(N$9:N23)) -> 
N25: =IF(M25="","",M25+MAX(N$9:N24)) -> 
N26: =IF(M26="","",M26+MAX(N$9:N25)) -> 
N27: =IF(M27="","",M27+MAX(N$9:N26)) -> 
N28: =IF(M28="","",M28+MAX(N$9:N27)) -> 
N29: =IF(M29="","",M29+MAX(N$9:N28)) -> 
N30: =IF(M30="","",M30+MAX(N$9:N29)) -> 
N31: =IF(M31="","",M31+MAX(N$9:N30)) -> 
N32: =IF(M32="","",M32+MAX(N$9:N31)) -> 
N33: =IF(M33="","",M33+MAX(N$9:N32)) -> 
N34: =IF(M34="","",M34+MAX(N$9:N33)) -> 
N35: =IF(M35="","",M35+MAX(N$9:N34)) -> 
N36: =IF(M36="","",M36+MAX(N$9:N35)) -> 
N37: =IF(M37="","",M37+MAX(N$9:N36)) -> 
N38: =IF(M38="","",M38+MAX(N$10:N37)) -> 
N39: =IF(M39="","",M39+MAX(N$10:N38)) -> 
N40: =IF(M40="","",M40+MAX(N$10:N39)) -> 
N41: =IF(M41="","",M41+MAX(N$10:N40)) -> 
N42: =IF(M42="","",M42+MAX(N$10:N41)) -> 
N43: =IF(M43="","",M43+MAX(N$10:N42)) -> 
N44: =IF(M44="","",M44+MAX(N$10:N43)) -> 
N45: =IF(M45="","",M45+MAX(N$10:N44)) -> 
N46: =IF(M46="","",M46+MAX(N$10:N45)) -> 
N47: =IF(M47="","",M47+MAX(N$10:N46)) -> 
N48: =IF(M48="","",M48+MAX(N$10:N47)) -> 
N49: =IF(M49="","",M49+MAX(N$10:N48)) -> 
N50: =IF(M50="","",M50+MAX(N$10:N49)) -> 
N51: =IF(M51="","",M51+MAX(N$10:N50)) -> 
N52: =IF(M52="","",M52+MAX(N$10:N51)) -> 
N53: =IF(M53="","",M53+MAX(N$10:N52)) -> 
N54: =IF(M54="","",M54+MAX(N$10:N53)) -> 
N55: =IF(M55="","",M55+MAX(N$10:N54)) -> 
N56: =IF(M56="","",M56+MAX(N$10:N55)) -> 
N57: =IF(M57="","",M57+MAX(N$10:N56)) -> 
N58: =IF(M58="","",M58+MAX(N$10:N57)) -> 
N59: =IF(M59="","",M59+MAX(N$10:N58)) -> 
N60: =IF(M60="","",M60+MAX(N$10:N59)) -> 
N61: =IF(M61="","",M61+MAX(N$10:N60)) -> 
N62: =IF(M62="","",M62+MAX(N$10:N61)) -> 
N63: =IF(M63="","",M63+MAX(N$10:N62)) -> 
N64: =IF(M64="","",M64+MAX(N$10:N63)) -> 
D65: SPECIAL INSTRUCTIONS: | E65: =INDEX(QryItemE2019!F:F,MATCH(H5,QryItemE2019!A:A,0)) -> SEE BDM 310.11, STR GROUNDING | M65: TOTAL | N65: =IF(K5="LS","LS"," ") -> 

Sheet 622E25000
G1: DESIGN: | H1: =IF('Calc Cover Sheet'!B11="","",'Calc Cover Sheet'!B11) -> BMV | I1: DATE: | J1: =IF('Calc Cover Sheet'!D11="","",'Calc Cover Sheet'!D11) -> 2024-04-19 | K1: UPDATE: | L1: =IF('Calc Cover Sheet'!B13="","",'Calc Cover Sheet'!B13) ->  | M1: DATE: | N1: =IF('Calc Cover Sheet'!D13="","",'Calc Cover Sheet'!D13) -> 
G2: CHECK: | H2: =IF('Calc Cover Sheet'!B12="","",'Calc Cover Sheet'!B12) -> TLC | I2: DATE: | J2: =IF('Calc Cover Sheet'!D12="","",'Calc Cover Sheet'!D12) -> 2024-04-25 | K2: RECHECK: | L2: =IF('Calc Cover Sheet'!B14="","",'Calc Cover Sheet'!B14) ->  | M2: DATE: | N2: =IF('Calc Cover Sheet'!D14="","",'Calc Cover Sheet'!D14) -> 
G3: STRUCTURE: | H3: =IF('Calc Cover Sheet'!B7="","",'Calc Cover Sheet'!B7) -> HAM-00145-0203 | K3: SFN: | L3: =IF('Calc Cover Sheet'!B3="","",'Calc Cover Sheet'!B3) -> 3108680 | M3: PID: | N3: =IF('Calc Cover Sheet'!B9="","",'Calc Cover Sheet'!B9) -> 110563
Q4: Lump Sum Tags (Items with a "LS" Pay Unit can be tagged with one or several categories)
G5: ITEM: | H5: =MID(RIGHT(CELL("filename",D2),LEN(CELL("filename",D2))-FIND("]",CELL("filename",D2))),1,9) -> 622E25000 | J5: PAY UNIT: | K5: =INDEX(QryItemE2019!B:B,MATCH(H5,QryItemE2019!A:A,0)) -> EACH
G6: SUBJECT: | H6: =IF('Calc Cover Sheet'!B2="","",'Calc Cover Sheet'!B2) -> ESTIMATED QUANTITIES
D7: DESCRIPTION: | E7: =INDEX(QryItemE2019!C:C,MATCH(H5,QryItemE2019!A:A,0)) -> CONCRETE BARRIER END SECTION, TYPE D
D8: SUPPLEMENTAL DESCRIPTION:
M9: SUBTOTAL | N9: TOTAL | Q9: GROUP | R9: <<<<<Tag each subtotal value with a group from this column
N10: =IF(M10="","",M10+MAX(N$9:N9)) -> 
N11: =IF(M11="","",M11+MAX(N$9:N10)) -> 
D12: Total = | E12: 1 | F12: each | M12: =E12 -> 1 | N12: =IF(M12="","",M12+MAX(N$9:N11)) -> 1 | Q12: GEN.
N13: =IF(M13="","",M13+MAX(N$9:N12)) -> 
N14: =IF(M14="","",M14+MAX(N$9:N13)) -> 
N15: =IF(M15="","",M15+MAX(N$9:N14)) -> 
N16: =IF(M16="","",M16+MAX(N$9:N15)) -> 
N17: =IF(M17="","",M17+MAX(N$9:N16)) -> 
N18: =IF(M18="","",M18+MAX(N$9:N17)) -> 
N20: =IF(M20="","",M20+MAX(N$9:N19)) -> 
N21: =IF(M21="","",M21+MAX(N$9:N20)) -> 
N22: =IF(M22="","",M22+MAX(N$9:N21)) -> 
N23: =IF(M23="","",M23+MAX(N$9:N22)) -> 
N24: =IF(M24="","",M24+MAX(N$9:N23)) -> 
N25: =IF(M25="","",M25+MAX(N$9:N24)) -> 
N26: =IF(M26="","",M26+MAX(N$9:N25)) -> 
N27: =IF(M27="","",M27+MAX(N$9:N26)) -> 
N28: =IF(M28="","",M28+MAX(N$9:N27)) -> 
N29: =IF(M29="","",M29+MAX(N$9:N28)) -> 
N30: =IF(M30="","",M30+MAX(N$9:N29)) -> 
N31: =IF(M31="","",M31+MAX(N$9:N30)) -> 
N32: =IF(M32="","",M32+MAX(N$9:N31)) -> 
N33: =IF(M33="","",M33+MAX(N$9:N32)) -> 
N34: =IF(M34="","",M34+MAX(N$9:N33)) -> 
N35: =IF(M35="","",M35+MAX(N$9:N34)) -> 
N36: =IF(M36="","",M36+MAX(N$9:N35)) -> 
N37: =IF(M37="","",M37+MAX(N$10:N36)) -> 
N38: =IF(M38="","",M38+MAX(N$10:N37)) -> 
N39: =IF(M39="","",M39+MAX(N$10:N38)) -> 
N40: =IF(M40="","",M40+MAX(N$10:N39)) -> 
N41: =IF(M41="","",M41+MAX(N$10:N40)) -> 
N42: =IF(M42="","",M42+MAX(N$10:N41)) -> 
N43: =IF(M43="","",M43+MAX(N$10:N42)) -> 
N44: =IF(M44="","",M44+MAX(N$10:N43)) -> 
N45: =IF(M45="","",M45+MAX(N$10:N44)) -> 
N46: =IF(M46="","",M46+MAX(N$10:N45)) -> 
N47: =IF(M47="","",M47+MAX(N$10:N46)) -> 
N48: =IF(M48="","",M48+MAX(N$10:N47)) -> 
N49: =IF(M49="","",M49+MAX(N$10:N48)) -> 
N50: =IF(M50="","",M50+MAX(N$10:N49)) -> 
N51: =IF(M51="","",M51+MAX(N$10:N50)) -> 
N52: =IF(M52="","",M52+MAX(N$10:N51)) -> 
N53: =IF(M53="","",M53+MAX(N$10:N52)) -> 
N54: =IF(M54="","",M54+MAX(N$10:N53)) -> 
N55: =IF(M55="","",M55+MAX(N$10:N54)) -> 
N56: =IF(M56="","",M56+MAX(N$10:N55)) -> 
N57: =IF(M57="","",M57+MAX(N$10:N56)) -> 
N58: =IF(M58="","",M58+MAX(N$10:N57)) -> 
N59: =IF(M59="","",M59+MAX(N$10:N58)) -> 
N60: =IF(M60="","",M60+MAX(N$10:N59)) -> 
N61: =IF(M61="","",M61+MAX(N$10:N60)) -> 
N62: =IF(M62="","",M62+MAX(N$10:N61)) -> 
N63: =IF(M63="","",M63+MAX(N$10:N62)) -> 
D64: SPECIAL INSTRUCTIONS: | E64: =INDEX(QryItemE2019!F:F,MATCH(H5,QryItemE2019!A:A,0)) ->  | M64: TOTAL | N64: =IF(K5="LS","LS"," ") -> 

Sheet 625E25502
G1: DESIGN: | H1: =IF('Calc Cover Sheet'!B11="","",'Calc Cover Sheet'!B11) -> BMV | I1: DATE: | J1: =IF('Calc Cover Sheet'!D11="","",'Calc Cover Sheet'!D11) -> 2024-04-19 | K1: UPDATE: | L1: =IF('Calc Cover Sheet'!B13="","",'Calc Cover Sheet'!B13) ->  | M1: DATE: | N1: =IF('Calc Cover Sheet'!D13="","",'Calc Cover Sheet'!D13) -> 
G2: CHECK: | H2: =IF('Calc Cover Sheet'!B12="","",'Calc Cover Sheet'!B12) -> TLC | I2: DATE: | J2: =IF('Calc Cover Sheet'!D12="","",'Calc Cover Sheet'!D12) -> 2024-04-25 | K2: RECHECK: | L2: =IF('Calc Cover Sheet'!B14="","",'Calc Cover Sheet'!B14) ->  | M2: DATE: | N2: =IF('Calc Cover Sheet'!D14="","",'Calc Cover Sheet'!D14) -> 
G3: STRUCTURE: | H3: =IF('Calc Cover Sheet'!B7="","",'Calc Cover Sheet'!B7) -> HAM-00145-0203 | K3: SFN: | L3: =IF('Calc Cover Sheet'!B3="","",'Calc Cover Sheet'!B3) -> 3108680 | M3: PID: | N3: =IF('Calc Cover Sheet'!B9="","",'Calc Cover Sheet'!B9) -> 110563
Q4: Lump Sum Tags (Items with a "LS" Pay Unit can be tagged with one or several categories)
G5: ITEM: | H5: =MID(RIGHT(CELL("filename",D2),LEN(CELL("filename",D2))-FIND("]",CELL("filename",D2))),1,9) -> 625E25502 | J5: PAY UNIT: | K5: =INDEX(QryItemE2019!B:B,MATCH(H5,QryItemE2019!A:A,0)) -> FT
G6: SUBJECT: | H6: =IF('Calc Cover Sheet'!B2="","",'Calc Cover Sheet'!B2) -> ESTIMATED QUANTITIES
D7: DESCRIPTION: | E7: =INDEX(QryItemE2019!C:C,MATCH(H5,QryItemE2019!A:A,0)) -> CONDUIT, 3", 725.05
D8: SUPPLEMENTAL DESCRIPTION:
M9: SUBTOTAL | N9: TOTAL | Q9: GROUP | R9: <<<<<Tag each subtotal value with a group from this column
N10: =IF(M10="","",M10+MAX(N$9:N9)) -> 
N11: =IF(M11="","",M11+MAX(N$9:N10)) -> 
D12: Approx. length per side = | E12: 330 | F12: ft | N12: =IF(M12="","",M12+MAX(N$9:N11)) -> 
N13: =IF(M13="","",M13+MAX(N$9:N12)) -> 
D14: Total = | E14: =2*E12 -> 660 | F14: FT | M14: =E14 -> 660 | N14: =IF(M14="","",M14+MAX(N$9:N13)) -> 660 | Q14: GEN.
N15: =IF(M15="","",M15+MAX(N$9:N14)) -> 
N16: =IF(M16="","",M16+MAX(N$9:N15)) -> 
N17: =IF(M17="","",M17+MAX(N$9:N16)) -> 
N18: =IF(M18="","",M18+MAX(N$9:N17)) -> 
N20: =IF(M20="","",M20+MAX(N$9:N19)) -> 
N21: =IF(M21="","",M21+MAX(N$9:N20)) -> 
N22: =IF(M22="","",M22+MAX(N$9:N21)) -> 
N23: =IF(M23="","",M23+MAX(N$9:N22)) -> 
N24: =IF(M24="","",M24+MAX(N$9:N23)) -> 
N25: =IF(M25="","",M25+MAX(N$9:N24)) -> 
N26: =IF(M26="","",M26+MAX(N$9:N25)) -> 
N27: =IF(M27="","",M27+MAX(N$9:N26)) -> 
N28: =IF(M28="","",M28+MAX(N$9:N27)) -> 
N29: =IF(M29="","",M29+MAX(N$9:N28)) -> 
N30: =IF(M30="","",M30+MAX(N$9:N29)) -> 
N31: =IF(M31="","",M31+MAX(N$9:N30)) -> 
N32: =IF(M32="","",M32+MAX(N$9:N31)) -> 
N33: =IF(M33="","",M33+MAX(N$9:N32)) -> 
N34: =IF(M34="","",M34+MAX(N$9:N33)) -> 
N35: =IF(M35="","",M35+MAX(N$9:N34)) -> 
N36: =IF(M36="","",M36+MAX(N$9:N35)) -> 
N37: =IF(M37="","",M37+MAX(N$10:N36)) -> 
N38: =IF(M38="","",M38+MAX(N$10:N37)) -> 
N39: =IF(M39="","",M39+MAX(N$10:N38)) -> 
N40: =IF(M40="","",M40+MAX(N$10:N39)) -> 
N41: =IF(M41="","",M41+MAX(N$10:N40)) -> 
N42: =IF(M42="","",M42+MAX(N$10:N41)) -> 
N43: =IF(M43="","",M43+MAX(N$10:N42)) -> 
N44: =IF(M44="","",M44+MAX(N$10:N43)) -> 
N45: =IF(M45="","",M45+MAX(N$10:N44)) -> 
N46: =IF(M46="","",M46+MAX(N$10:N45)) -> 
N47: =IF(M47="","",M47+MAX(N$10:N46)) -> 
N48: =IF(M48="","",M48+MAX(N$10:N47)) -> 
N49: =IF(M49="","",M49+MAX(N$10:N48)) -> 
N50: =IF(M50="","",M50+MAX(N$10:N49)) -> 
N51: =IF(M51="","",M51+MAX(N$10:N50)) -> 
N52: =IF(M52="","",M52+MAX(N$10:N51)) -> 
N53: =IF(M53="","",M53+MAX(N$10:N52)) -> 
N54: =IF(M54="","",M54+MAX(N$10:N53)) -> 
N55: =IF(M55="","",M55+MAX(N$10:N54)) -> 
N56: =IF(M56="","",M56+MAX(N$10:N55)) -> 
N57: =IF(M57="","",M57+MAX(N$10:N56)) -> 
N58: =IF(M58="","",M58+MAX(N$10:N57)) -> 
N59: =IF(M59="","",M59+MAX(N$10:N58)) -> 
N60: =IF(M60="","",M60+MAX(N$10:N59)) -> 
N61: =IF(M61="","",M61+MAX(N$10:N60)) -> 
N62: =IF(M62="","",M62+MAX(N$10:N61)) -> 
N63: =IF(M63="","",M63+MAX(N$10:N62)) -> 
D64: SPECIAL INSTRUCTIONS: | E64: =INDEX(QryItemE2019!F:F,MATCH(H5,QryItemE2019!A:A,0)) ->  | M64: TOTAL | N64: =IF(K5="LS","LS"," ") -> 

Sheet 625E29920
G1: DESIGN: | H1: =IF('Calc Cover Sheet'!B11="","",'Calc Cover Sheet'!B11) -> BMV | I1: DATE: | J1: =IF('Calc Cover Sheet'!D11="","",'Calc Cover Sheet'!D11) -> 2024-04-19 | K1: UPDATE: | L1: =IF('Calc Cover Sheet'!B13="","",'Calc Cover Sheet'!B13) ->  | M1: DATE: | N1: =IF('Calc Cover Sheet'!D13="","",'Calc Cover Sheet'!D13) -> 
G2: CHECK: | H2: =IF('Calc Cover Sheet'!B12="","",'Calc Cover Sheet'!B12) -> TLC | I2: DATE: | J2: =IF('Calc Cover Sheet'!D12="","",'Calc Cover Sheet'!D12) -> 2024-04-25 | K2: RECHECK: | L2: =IF('Calc Cover Sheet'!B14="","",'Calc Cover Sheet'!B14) ->  | M2: DATE: | N2: =IF('Calc Cover Sheet'!D14="","",'Calc Cover Sheet'!D14) -> 
G3: STRUCTURE: | H3: =IF('Calc Cover Sheet'!B7="","",'Calc Cover Sheet'!B7) -> HAM-00145-0203 | K3: SFN: | L3: =IF('Calc Cover Sheet'!B3="","",'Calc Cover Sheet'!B3) -> 3108680 | M3: PID: | N3: =IF('Calc Cover Sheet'!B9="","",'Calc Cover Sheet'!B9) -> 110563
Q4: Lump Sum Tags (Items with a "LS" Pay Unit can be tagged with one or several categories)
G5: ITEM: | H5: =MID(RIGHT(CELL("filename",D2),LEN(CELL("filename",D2))-FIND("]",CELL("filename",D2))),1,9) -> 625E29920 | J5: PAY UNIT: | K5: =INDEX(QryItemE2019!B:B,MATCH(H5,QryItemE2019!A:A,0)) -> EACH
G6: SUBJECT: | H6: =IF('Calc Cover Sheet'!B2="","",'Calc Cover Sheet'!B2) -> ESTIMATED QUANTITIES
D7: DESCRIPTION: | E7: =INDEX(QryItemE2019!C:C,MATCH(H5,QryItemE2019!A:A,0)) -> STRUCTURE JUNCTION BOX
D8: SUPPLEMENTAL DESCRIPTION:
M9: SUBTOTAL | N9: TOTAL | Q9: GROUP | R9: <<<<<Tag each subtotal value with a group from this column
N10: =IF(M10="","",M10+MAX(N$9:N9)) -> 
N11: =IF(M11="","",M11+MAX(N$9:N10)) -> 
N12: =IF(M12="","",M12+MAX(N$9:N11)) -> 
N13: =IF(M13="","",M13+MAX(N$9:N12)) -> 
D14: Total = | E14: 2 | F14: each | M14: =E14 -> 2 | N14: =IF(M14="","",M14+MAX(N$9:N13)) -> 2 | Q14: GEN.
N15: =IF(M15="","",M15+MAX(N$9:N14)) -> 
N16: =IF(M16="","",M16+MAX(N$9:N15)) -> 
N17: =IF(M17="","",M17+MAX(N$9:N16)) -> 
N18: =IF(M18="","",M18+MAX(N$9:N17)) -> 
N20: =IF(M20="","",M20+MAX(N$9:N19)) -> 
N21: =IF(M21="","",M21+MAX(N$9:N20)) -> 
N22: =IF(M22="","",M22+MAX(N$9:N21)) -> 
N23: =IF(M23="","",M23+MAX(N$9:N22)) -> 
N24: =IF(M24="","",M24+MAX(N$9:N23)) -> 
N25: =IF(M25="","",M25+MAX(N$9:N24)) -> 
N26: =IF(M26="","",M26+MAX(N$9:N25)) -> 
N27: =IF(M27="","",M27+MAX(N$9:N26)) -> 
N28: =IF(M28="","",M28+MAX(N$9:N27)) -> 
N29: =IF(M29="","",M29+MAX(N$9:N28)) -> 
N30: =IF(M30="","",M30+MAX(N$9:N29)) -> 
N31: =IF(M31="","",M31+MAX(N$9:N30)) -> 
N32: =IF(M32="","",M32+MAX(N$9:N31)) -> 
N33: =IF(M33="","",M33+MAX(N$9:N32)) -> 
N34: =IF(M34="","",M34+MAX(N$9:N33)) -> 
N35: =IF(M35="","",M35+MAX(N$9:N34)) -> 
N36: =IF(M36="","",M36+MAX(N$9:N35)) -> 
N37: =IF(M37="","",M37+MAX(N$10:N36)) -> 
N38: =IF(M38="","",M38+MAX(N$10:N37)) -> 
N39: =IF(M39="","",M39+MAX(N$10:N38)) -> 
N40: =IF(M40="","",M40+MAX(N$10:N39)) -> 
N41: =IF(M41="","",M41+MAX(N$10:N40)) -> 
N42: =IF(M42="","",M42+MAX(N$10:N41)) -> 
N43: =IF(M43="","",M43+MAX(N$10:N42)) -> 
N44: =IF(M44="","",M44+MAX(N$10:N43)) -> 
N45: =IF(M45="","",M45+MAX(N$10:N44)) -> 
N46: =IF(M46="","",M46+MAX(N$10:N45)) -> 
N47: =IF(M47="","",M47+MAX(N$10:N46)) -> 
N48: =IF(M48="","",M48+MAX(N$10:N47)) -> 
N49: =IF(M49="","",M49+MAX(N$10:N48)) -> 
N50: =IF(M50="","",M50+MAX(N$10:N49)) -> 
N51: =IF(M51="","",M51+MAX(N$10:N50)) -> 
N52: =IF(M52="","",M52+MAX(N$10:N51)) -> 
N53: =IF(M53="","",M53+MAX(N$10:N52)) -> 
N54: =IF(M54="","",M54+MAX(N$10:N53)) -> 
N55: =IF(M55="","",M55+MAX(N$10:N54)) -> 
N56: =IF(M56="","",M56+MAX(N$10:N55)) -> 
N57: =IF(M57="","",M57+MAX(N$10:N56)) -> 
N58: =IF(M58="","",M58+MAX(N$10:N57)) -> 
N59: =IF(M59="","",M59+MAX(N$10:N58)) -> 
N60: =IF(M60="","",M60+MAX(N$10:N59)) -> 
N61: =IF(M61="","",M61+MAX(N$10:N60)) -> 
N62: =IF(M62="","",M62+MAX(N$10:N61)) -> 
N63: =IF(M63="","",M63+MAX(N$10:N62)) -> 
D64: SPECIAL INSTRUCTIONS: | E64: =INDEX(QryItemE2019!F:F,MATCH(H5,QryItemE2019!A:A,0)) ->  | M64: TOTAL | N64: =IF(K5="LS","LS"," ") -> 

Sheet 625E30520
G1: DESIGN: | H1: =IF('Calc Cover Sheet'!B11="","",'Calc Cover Sheet'!B11) -> BMV | I1: DATE: | J1: =IF('Calc Cover Sheet'!D11="","",'Calc Cover Sheet'!D11) -> 2024-04-19 | K1: UPDATE: | L1: =IF('Calc Cover Sheet'!B13="","",'Calc Cover Sheet'!B13) ->  | M1: DATE: | N1: =IF('Calc Cover Sheet'!D13="","",'Calc Cover Sheet'!D13) -> 
G2: CHECK: | H2: =IF('Calc Cover Sheet'!B12="","",'Calc Cover Sheet'!B12) -> TLC | I2: DATE: | J2: =IF('Calc Cover Sheet'!D12="","",'Calc Cover Sheet'!D12) -> 2024-04-25 | K2: RECHECK: | L2: =IF('Calc Cover Sheet'!B14="","",'Calc Cover Sheet'!B14) ->  | M2: DATE: | N2: =IF('Calc Cover Sheet'!D14="","",'Calc Cover Sheet'!D14) -> 
G3: STRUCTURE: | H3: =IF('Calc Cover Sheet'!B7="","",'Calc Cover Sheet'!B7) -> HAM-00145-0203 | K3: SFN: | L3: =IF('Calc Cover Sheet'!B3="","",'Calc Cover Sheet'!B3) -> 3108680 | M3: PID: | N3: =IF('Calc Cover Sheet'!B9="","",'Calc Cover Sheet'!B9) -> 110563
Q4: Lump Sum Tags (Items with a "LS" Pay Unit can be tagged with one or several categories)
G5: ITEM: | H5: =MID(RIGHT(CELL("filename",D2),LEN(CELL("filename",D2))-FIND("]",CELL("filename",D2))),1,9) -> 625E30520 | J5: PAY UNIT: | K5: =INDEX(QryItemE2019!B:B,MATCH(H5,QryItemE2019!A:A,0)) -> EACH
G6: SUBJECT: | H6: =IF('Calc Cover Sheet'!B2="","",'Calc Cover Sheet'!B2) -> ESTIMATED QUANTITIES
D7: DESCRIPTION: | E7: =INDEX(QryItemE2019!C:C,MATCH(H5,QryItemE2019!A:A,0)) -> PULL BOX, 725.06, SIZE 7
D8: SUPPLEMENTAL DESCRIPTION:
M9: SUBTOTAL | N9: TOTAL | Q9: GROUP | R9: <<<<<Tag each subtotal value with a group from this column
N10: =IF(M10="","",M10+MAX(N$9:N9)) -> 
N11: =IF(M11="","",M11+MAX(N$9:N10)) -> 
N12: =IF(M12="","",M12+MAX(N$9:N11)) -> 
N13: =IF(M13="","",M13+MAX(N$9:N12)) -> 
D14: Total = | E14: 4 | F14: each | M14: =E14 -> 4 | N14: =IF(M14="","",M14+MAX(N$9:N13)) -> 4 | Q14: GEN.
N15: =IF(M15="","",M15+MAX(N$9:N14)) -> 
N16: =IF(M16="","",M16+MAX(N$9:N15)) -> 
N17: =IF(M17="","",M17+MAX(N$9:N16)) -> 
N18: =IF(M18="","",M18+MAX(N$9:N17)) -> 
N20: =IF(M20="","",M20+MAX(N$9:N19)) -> 
N21: =IF(M21="","",M21+MAX(N$9:N20)) -> 
N22: =IF(M22="","",M22+MAX(N$9:N21)) -> 
N23: =IF(M23="","",M23+MAX(N$9:N22)) -> 
N24: =IF(M24="","",M24+MAX(N$9:N23)) -> 
N25: =IF(M25="","",M25+MAX(N$9:N24)) -> 
N26: =IF(M26="","",M26+MAX(N$9:N25)) -> 
N27: =IF(M27="","",M27+MAX(N$9:N26)) -> 
N28: =IF(M28="","",M28+MAX(N$9:N27)) -> 
N29: =IF(M29="","",M29+MAX(N$9:N28)) -> 
N30: =IF(M30="","",M30+MAX(N$9:N29)) -> 
N31: =IF(M31="","",M31+MAX(N$9:N30)) -> 
N32: =IF(M32="","",M32+MAX(N$9:N31)) -> 
N33: =IF(M33="","",M33+MAX(N$9:N32)) -> 
N34: =IF(M34="","",M34+MAX(N$9:N33)) -> 
N35: =IF(M35="","",M35+MAX(N$9:N34)) -> 
N36: =IF(M36="","",M36+MAX(N$9:N35)) -> 
N37: =IF(M37="","",M37+MAX(N$10:N36)) -> 
N38: =IF(M38="","",M38+MAX(N$10:N37)) -> 
N39: =IF(M39="","",M39+MAX(N$10:N38)) -> 
N40: =IF(M40="","",M40+MAX(N$10:N39)) -> 
N41: =IF(M41="","",M41+MAX(N$10:N40)) -> 
N42: =IF(M42="","",M42+MAX(N$10:N41)) -> 
N43: =IF(M43="","",M43+MAX(N$10:N42)) -> 
N44: =IF(M44="","",M44+MAX(N$10:N43)) -> 
N45: =IF(M45="","",M45+MAX(N$10:N44)) -> 
N46: =IF(M46="","",M46+MAX(N$10:N45)) -> 
N47: =IF(M47="","",M47+MAX(N$10:N46)) -> 
N48: =IF(M48="","",M48+MAX(N$10:N47)) -> 
N49: =IF(M49="","",M49+MAX(N$10:N48)) -> 
N50: =IF(M50="","",M50+MAX(N$10:N49)) -> 
N51: =IF(M51="","",M51+MAX(N$10:N50)) -> 
N52: =IF(M52="","",M52+MAX(N$10:N51)) -> 
N53: =IF(M53="","",M53+MAX(N$10:N52)) -> 
N54: =IF(M54="","",M54+MAX(N$10:N53)) -> 
N55: =IF(M55="","",M55+MAX(N$10:N54)) -> 
N56: =IF(M56="","",M56+MAX(N$10:N55)) -> 
N57: =IF(M57="","",M57+MAX(N$10:N56)) -> 
N58: =IF(M58="","",M58+MAX(N$10:N57)) -> 
N59: =IF(M59="","",M59+MAX(N$10:N58)) -> 
N60: =IF(M60="","",M60+MAX(N$10:N59)) -> 
N61: =IF(M61="","",M61+MAX(N$10:N60)) -> 
N62: =IF(M62="","",M62+MAX(N$10:N61)) -> 
N63: =IF(M63="","",M63+MAX(N$10:N62)) -> 
D64: SPECIAL INSTRUCTIONS: | E64: =INDEX(QryItemE2019!F:F,MATCH(H5,QryItemE2019!A:A,0)) ->  | M64: TOTAL | N64: =IF(K5="LS","LS"," ") -> 

Sheet 625E33000
G1: DESIGN: | H1: =IF('Calc Cover Sheet'!B11="","",'Calc Cover Sheet'!B11) -> BMV | I1: DATE: | J1: =IF('Calc Cover Sheet'!D11="","",'Calc Cover Sheet'!D11) -> 2024-04-19 | K1: UPDATE: | L1: =IF('Calc Cover Sheet'!B13="","",'Calc Cover Sheet'!B13) ->  | M1: DATE: | N1: =IF('Calc Cover Sheet'!D13="","",'Calc Cover Sheet'!D13) -> 
G2: CHECK: | H2: =IF('Calc Cover Sheet'!B12="","",'Calc Cover Sheet'!B12) -> TLC | I2: DATE: | J2: =IF('Calc Cover Sheet'!D12="","",'Calc Cover Sheet'!D12) -> 2024-04-25 | K2: RECHECK: | L2: =IF('Calc Cover Sheet'!B14="","",'Calc Cover Sheet'!B14) ->  | M2: DATE: | N2: =IF('Calc Cover Sheet'!D14="","",'Calc Cover Sheet'!D14) -> 
G3: STRUCTURE: | H3: =IF('Calc Cover Sheet'!B7="","",'Calc Cover Sheet'!B7) -> HAM-00145-0203 | K3: SFN: | L3: =IF('Calc Cover Sheet'!B3="","",'Calc Cover Sheet'!B3) -> 3108680 | M3: PID: | N3: =IF('Calc Cover Sheet'!B9="","",'Calc Cover Sheet'!B9) -> 110563
Q4: Lump Sum Tags (Items with a "LS" Pay Unit can be tagged with one or several categories)
G5: ITEM: | H5: =MID(RIGHT(CELL("filename",D2),LEN(CELL("filename",D2))-FIND("]",CELL("filename",D2))),1,9) -> 625E33000 | J5: PAY UNIT: | K5: =INDEX(QryItemE2019!B:B,MATCH(H5,QryItemE2019!A:A,0)) -> EACH
G6: SUBJECT: | H6: =IF('Calc Cover Sheet'!B2="","",'Calc Cover Sheet'!B2) -> ESTIMATED QUANTITIES
D7: DESCRIPTION: | E7: =INDEX(QryItemE2019!C:C,MATCH(H5,QryItemE2019!A:A,0)) -> STRUCTURE GROUNDING SYSTEM
D8: SUPPLEMENTAL DESCRIPTION:
M9: SUBTOTAL | N9: TOTAL | Q9: GROUP | R9: <<<<<Tag each subtotal value with a group from this column
N10: =IF(M10="","",M10+MAX(N$9:N9)) -> 
N11: =IF(M11="","",M11+MAX(N$9:N10)) -> 
D12: Total = | E12: 1 | F12: each | M12: =E12 -> 1 | N12: =IF(M12="","",M12+MAX(N$9:N11)) -> 1 | Q12: GEN.
N13: =IF(M13="","",M13+MAX(N$9:N12)) -> 
N14: =IF(M14="","",M14+MAX(N$9:N13)) -> 
N15: =IF(M15="","",M15+MAX(N$9:N14)) -> 
N16: =IF(M16="","",M16+MAX(N$9:N15)) -> 
N17: =IF(M17="","",M17+MAX(N$9:N16)) -> 
N18: =IF(M18="","",M18+MAX(N$9:N17)) -> 
N20: =IF(M20="","",M20+MAX(N$9:N19)) -> 
N21: =IF(M21="","",M21+MAX(N$9:N20)) -> 
N22: =IF(M22="","",M22+MAX(N$9:N21)) -> 
N23: =IF(M23="","",M23+MAX(N$9:N22)) -> 
N24: =IF(M24="","",M24+MAX(N$9:N23)) -> 
N25: =IF(M25="","",M25+MAX(N$9:N24)) -> 
N26: =IF(M26="","",M26+MAX(N$9:N25)) -> 
N27: =IF(M27="","",M27+MAX(N$9:N26)) -> 
N28: =IF(M28="","",M28+MAX(N$9:N27)) -> 
N29: =IF(M29="","",M29+MAX(N$9:N28)) -> 
N30: =IF(M30="","",M30+MAX(N$9:N29)) -> 
N31: =IF(M31="","",M31+MAX(N$9:N30)) -> 
N32: =IF(M32="","",M32+MAX(N$9:N31)) -> 
N33: =IF(M33="","",M33+MAX(N$9:N32)) -> 
N34: =IF(M34="","",M34+MAX(N$9:N33)) -> 
N35: =IF(M35="","",M35+MAX(N$9:N34)) -> 
N36: =IF(M36="","",M36+MAX(N$9:N35)) -> 
N37: =IF(M37="","",M37+MAX(N$10:N36)) -> 
N38: =IF(M38="","",M38+MAX(N$10:N37)) -> 
N39: =IF(M39="","",M39+MAX(N$10:N38)) -> 
N40: =IF(M40="","",M40+MAX(N$10:N39)) -> 
N41: =IF(M41="","",M41+MAX(N$10:N40)) -> 
N42: =IF(M42="","",M42+MAX(N$10:N41)) -> 
N43: =IF(M43="","",M43+MAX(N$10:N42)) -> 
N44: =IF(M44="","",M44+MAX(N$10:N43)) -> 
N45: =IF(M45="","",M45+MAX(N$10:N44)) -> 
N46: =IF(M46="","",M46+MAX(N$10:N45)) -> 
N47: =IF(M47="","",M47+MAX(N$10:N46)) -> 
N48: =IF(M48="","",M48+MAX(N$10:N47)) -> 
N49: =IF(M49="","",M49+MAX(N$10:N48)) -> 
N50: =IF(M50="","",M50+MAX(N$10:N49)) -> 
N51: =IF(M51="","",M51+MAX(N$10:N50)) -> 
N52: =IF(M52="","",M52+MAX(N$10:N51)) -> 
N53: =IF(M53="","",M53+MAX(N$10:N52)) -> 
N54: =IF(M54="","",M54+MAX(N$10:N53)) -> 
N55: =IF(M55="","",M55+MAX(N$10:N54)) -> 
N56: =IF(M56="","",M56+MAX(N$10:N55)) -> 
N57: =IF(M57="","",M57+MAX(N$10:N56)) -> 
N58: =IF(M58="","",M58+MAX(N$10:N57)) -> 
N59: =IF(M59="","",M59+MAX(N$10:N58)) -> 
N60: =IF(M60="","",M60+MAX(N$10:N59)) -> 
N61: =IF(M61="","",M61+MAX(N$10:N60)) -> 
N62: =IF(M62="","",M62+MAX(N$10:N61)) -> 
N63: =IF(M63="","",M63+MAX(N$10:N62)) -> 
D64: SPECIAL INSTRUCTIONS: | E64: =INDEX(QryItemE2019!F:F,MATCH(H5,QryItemE2019!A:A,0)) ->  | M64: TOTAL | N64: =IF(K5="LS","LS"," ") -> 

Sheet 840E20000
G1: DESIGN: | H1: =IF('Calc Cover Sheet'!B11="","",'Calc Cover Sheet'!B11) -> BMV | I1: DATE: | J1: =IF('Calc Cover Sheet'!D11="","",'Calc Cover Sheet'!D11) -> 2024-04-19 | K1: UPDATE: | L1: =IF('Calc Cover Sheet'!B13="","",'Calc Cover Sheet'!B13) ->  | M1: DATE: | N1: =IF('Calc Cover Sheet'!D13="","",'Calc Cover Sheet'!D13) -> 
G2: CHECK: | H2: =IF('Calc Cover Sheet'!B12="","",'Calc Cover Sheet'!B12) -> TLC | I2: DATE: | J2: =IF('Calc Cover Sheet'!D12="","",'Calc Cover Sheet'!D12) -> 2024-04-25 | K2: RECHECK: | L2: =IF('Calc Cover Sheet'!B14="","",'Calc Cover Sheet'!B14) ->  | M2: DATE: | N2: =IF('Calc Cover Sheet'!D14="","",'Calc Cover Sheet'!D14) -> 
G3: STRUCTURE: | H3: =IF('Calc Cover Sheet'!B7="","",'Calc Cover Sheet'!B7) -> HAM-00145-0203 | K3: SFN: | L3: =IF('Calc Cover Sheet'!B3="","",'Calc Cover Sheet'!B3) -> 3108680 | M3: PID: | N3: =IF('Calc Cover Sheet'!B9="","",'Calc Cover Sheet'!B9) -> 110563
Q4: Lump Sum Tags (Items with a "LS" Pay Unit can be tagged with one or several categories)
G5: ITEM: | H5: =MID(RIGHT(CELL("filename",D2),LEN(CELL("filename",D2))-FIND("]",CELL("filename",D2))),1,9) -> 840E20000 | J5: PAY UNIT: | K5: =INDEX(QryItemE2019!B:B,MATCH(H5,QryItemE2019!A:A,0)) -> SF
G6: SUBJECT: | H6: =IF('Calc Cover Sheet'!B2="","",'Calc Cover Sheet'!B2) -> ESTIMATED QUANTITIES
D7: DESCRIPTION: | E7: =INDEX(QryItemE2019!C:C,MATCH(H5,QryItemE2019!A:A,0)) -> MECHANICALLY STABILIZED EARTH WALL
D8: SUPPLEMENTAL DESCRIPTION:
M9: SUBTOTAL | N9: TOTAL | Q9: GROUP | R9: <<<<<Tag each subtotal value with a group from this column
N10: =IF(M10="","",M10+MAX(N$9:N9)) -> 
N11: =IF(M11="","",M11+MAX(N$9:N10)) -> 
C12: Rear Left | N12: =IF(M12="","",M12+MAX(N$9:N11)) -> 
E13: Avg. Top of Wall Elev. = | F13: ='512E10100'!F17-1.5 -> 804.585 | N13: =IF(M13="","",M13+MAX(N$9:N12)) -> 
E14: Avg. Btm of Wall Elev. = | F14: =AVERAGE(781,791) -> 786 | N14: =IF(M14="","",M14+MAX(N$9:N13)) -> 
E15: Length = | F15: 48 | G15: ft | N15: =IF(M15="","",M15+MAX(N$9:N14)) -> 
E16: Area = | F16: =(F13-F14)*F15 -> 892.08 | G16: SF | M16: =CEILING(F16,1) -> 893 | N16: =IF(M16="","",M16+MAX(N$9:N15)) -> 893 | Q16: GEN.
N17: =IF(M17="","",M17+MAX(N$9:N16)) -> 
C18: Rear Abutment | N18: =IF(M18="","",M18+MAX(N$9:N17)) -> 
E19: Avg. Top of Wall Elev. = | F19: ='512E10100'!F21-1.5 -> 798.05
E20: Avg. Btm of Wall Elev. = | F20: 781 | N20: =IF(M20="","",M20+MAX(N$9:N19)) -> 
E21: Length = | F21: 40.08333 | G21: ft | N21: =IF(M21="","",M21+MAX(N$9:N20)) -> 
E22: Area = | F22: =(F19-F20)*F21 -> 683.4207765 | G22: SF | M22: =CEILING(F22,1) -> 684 | N22: =IF(M22="","",M22+MAX(N$9:N21)) -> 1577 | Q22: GEN.
N23: =IF(M23="","",M23+MAX(N$9:N22)) -> 
C24: Rear Right | N24: =IF(M24="","",M24+MAX(N$9:N23)) -> 
E25: Avg. Top of Wall Elev. = | F25: ='512E10100'!F25-1.5 -> 804.585 | N25: =IF(M25="","",M25+MAX(N$9:N24)) -> 
E26: Avg. Btm of Wall Elev. = | F26: =AVERAGE(781,791) -> 786 | N26: =IF(M26="","",M26+MAX(N$9:N25)) -> 
E27: Length = | F27: 48 | G27: ft | N27: =IF(M27="","",M27+MAX(N$9:N26)) -> 
E28: Area = | F28: =(F25-F26)*F27 -> 892.08 | G28: SF | M28: =CEILING(F28,1) -> 893 | N28: =IF(M28="","",M28+MAX(N$9:N27)) -> 2470 | Q28: GEN.
N29: =IF(M29="","",M29+MAX(N$9:N28)) -> 
N30: =IF(M30="","",M30+MAX(N$9:N29)) -> 
C31: Fwd Left | N31: =IF(M31="","",M31+MAX(N$9:N30)) -> 
E32: Avg. Top of Wall Elev. = | F32: ='512E10100'!F29-1.5 -> 814.035 | N32: =IF(M32="","",M32+MAX(N$9:N31)) -> 
E33: Avg. Btm of Wall Elev. = | F33: =AVERAGE(784,799) -> 791.5 | N33: =IF(M33="","",M33+MAX(N$9:N32)) -> 
E34: Length = | F34: 65 | G34: ft | N34: =IF(M34="","",M34+MAX(N$9:N33)) -> 
E35: Area = | F35: =(F32-F33)*F34 -> 1464.775 | G35: SF | M35: =CEILING(F35,1) -> 1465 | N35: =IF(M35="","",M35+MAX(N$9:N34)) -> 3935 | Q35: GEN.
N36: =IF(M36="","",M36+MAX(N$9:N35)) -> 
C37: Fwd Abutment | N37: =IF(M37="","",M37+MAX(N$10:N36)) -> 
E38: Avg. Top of Wall Elev. = | F38: ='512E10100'!F33-1.5 -> 805.11 | N38: =IF(M38="","",M38+MAX(N$10:N37)) -> 
E39: Avg. Btm of Wall Elev. = | F39: 784 | N39: =IF(M39="","",M39+MAX(N$10:N38)) -> 
E40: Length = | F40: 40.0833 | G40: ft | N40: =IF(M40="","",M40+MAX(N$10:N39)) -> 
E41: Area = | F41: =(F38-F39)*F40 -> 846.158463 | G41: SF | M41: =CEILING(F41,1) -> 847 | N41: =IF(M41="","",M41+MAX(N$10:N40)) -> 4782 | Q41: GEN.
N42: =IF(M42="","",M42+MAX(N$10:N41)) -> 
C43: Fwd Right | N43: =IF(M43="","",M43+MAX(N$10:N42)) -> 
E44: Avg. Top of Wall Elev. = | F44: ='512E10100'!F37-1.5 -> 814.015 | N44: =IF(M44="","",M44+MAX(N$10:N43)) -> 
E45: Avg. Btm of Wall Elev. = | F45: =AVERAGE(784,799) -> 791.5 | N45: =IF(M45="","",M45+MAX(N$10:N44)) -> 
E46: Length = | F46: 65 | G46: ft | N46: =IF(M46="","",M46+MAX(N$10:N45)) -> 
E47: Area = | F47: =(F44-F45)*F46 -> 1463.475 | G47: SF | M47: =CEILING(F47,1) -> 1464 | N47: =IF(M47="","",M47+MAX(N$10:N46)) -> 6246 | Q47: GEN.
N48: =IF(M48="","",M48+MAX(N$10:N47)) -> 
N49: =IF(M49="","",M49+MAX(N$10:N48)) -> 
N50: =IF(M50="","",M50+MAX(N$10:N49)) -> 
N51: =IF(M51="","",M51+MAX(N$10:N50)) -> 
N52: =IF(M52="","",M52+MAX(N$10:N51)) -> 
N53: =IF(M53="","",M53+MAX(N$10:N52)) -> 
N54: =IF(M54="","",M54+MAX(N$10:N53)) -> 
N55: =IF(M55="","",M55+MAX(N$10:N54)) -> 
N56: =IF(M56="","",M56+MAX(N$10:N55)) -> 
N57: =IF(M57="","",M57+MAX(N$10:N56)) -> 
N58: =IF(M58="","",M58+MAX(N$10:N57)) -> 
N59: =IF(M59="","",M59+MAX(N$10:N58)) -> 
N60: =IF(M60="","",M60+MAX(N$10:N59)) -> 
N61: =IF(M61="","",M61+MAX(N$10:N60)) -> 
N62: =IF(M62="","",M62+MAX(N$10:N61)) -> 
N63: =IF(M63="","",M63+MAX(N$10:N62)) -> 
D64: SPECIAL INSTRUCTIONS: | E64: =INDEX(QryItemE2019!F:F,MATCH(H5,QryItemE2019!A:A,0)) ->  | M64: TOTAL | N64: =IF(K5="LS","LS"," ") -> 

Sheet 840E21000
G1: DESIGN: | H1: =IF('Calc Cover Sheet'!B11="","",'Calc Cover Sheet'!B11) -> BMV | I1: DATE: | J1: =IF('Calc Cover Sheet'!D11="","",'Calc Cover Sheet'!D11) -> 2024-04-19 | K1: UPDATE: | L1: =IF('Calc Cover Sheet'!B13="","",'Calc Cover Sheet'!B13) ->  | M1: DATE: | N1: =IF('Calc Cover Sheet'!D13="","",'Calc Cover Sheet'!D13) -> 
G2: CHECK: | H2: =IF('Calc Cover Sheet'!B12="","",'Calc Cover Sheet'!B12) -> TLC | I2: DATE: | J2: =IF('Calc Cover Sheet'!D12="","",'Calc Cover Sheet'!D12) -> 2024-04-25 | K2: RECHECK: | L2: =IF('Calc Cover Sheet'!B14="","",'Calc Cover Sheet'!B14) ->  | M2: DATE: | N2: =IF('Calc Cover Sheet'!D14="","",'Calc Cover Sheet'!D14) -> 
G3: STRUCTURE: | H3: =IF('Calc Cover Sheet'!B7="","",'Calc Cover Sheet'!B7) -> HAM-00145-0203 | K3: SFN: | L3: =IF('Calc Cover Sheet'!B3="","",'Calc Cover Sheet'!B3) -> 3108680 | M3: PID: | N3: =IF('Calc Cover Sheet'!B9="","",'Calc Cover Sheet'!B9) -> 110563
Q4: Lump Sum Tags (Items with a "LS" Pay Unit can be tagged with one or several categories)
G5: ITEM: | H5: =MID(RIGHT(CELL("filename",D2),LEN(CELL("filename",D2))-FIND("]",CELL("filename",D2))),1,9) -> 840E21000 | J5: PAY UNIT: | K5: =INDEX(QryItemE2019!B:B,MATCH(H5,QryItemE2019!A:A,0)) -> CY
G6: SUBJECT: | H6: =IF('Calc Cover Sheet'!B2="","",'Calc Cover Sheet'!B2) -> ESTIMATED QUANTITIES
D7: DESCRIPTION: | E7: =INDEX(QryItemE2019!C:C,MATCH(H5,QryItemE2019!A:A,0)) -> WALL EXCAVATION
D8: SUPPLEMENTAL DESCRIPTION:
M9: SUBTOTAL | N9: TOTAL | Q9: GROUP | R9: <<<<<Tag each subtotal value with a group from this column
N10: =IF(M10="","",M10+MAX(N$9:N9)) -> 
N11: =IF(M11="","",M11+MAX(N$9:N10)) -> 
C12: Rear Abutment/MSE Wall Excavation | N12: =IF(M12="","",M12+MAX('840E21000'!N$9:N11)) -> 
N13: =IF(M13="","",M13+MAX(N$12:N12)) -> 
D14: Avg. Existing Ground Elev. = | E14: 793 | N14: =IF(M14="","",M14+MAX(N$12:N13)) -> 
D15: Width of Excavation = | E15: =40.083333+2 -> 42.083333 | F15: ft | N15: =IF(M15="","",M15+MAX(N$12:N14)) -> 
D16: Length of Excavation = | E16: 48 | F16: ft | N16: =IF(M16="","",M16+MAX(N$12:N14)) -> 
D17: Avg. Bott. of Excav. = | E17: =(780.5*12+AVERAGE(780.5+2.5,791)*36)/(12+36) -> 785.375 | F17: ft
N18: =IF(M18="","",M18+MAX(N$12:N15)) -> 
D19: Rear Excavation Volume = | E19: =(E14-E17)*E15*E16/27 -> 570.4629584 | F19: CY | M19: =CEILING(E19,1) -> 571 | N19: =IF(M19="","",M19+MAX(N$12:N18)) -> 571 | Q19: GEN.
N20: =IF(M20="","",M20+MAX(N$9:N11)) -> 
N21: =IF(M21="","",M21+MAX(N$9:N20)) -> 
C22: Forward Abutment/MSE Wall Excavation | N22: =IF(M22="","",M22+MAX(N$9:N21)) -> 
N23: =IF(M23="","",M23+MAX(N$9:N22)) -> 
D24: Avg. Existing Ground Elev. = | E24: 801 | N24: =IF(M24="","",M24+MAX(N$12:N23)) -> 
D25: Width of Excavation = | E25: =40.083333+2 -> 42.083333 | F25: ft | N25: =IF(M25="","",M25+MAX(N$12:N24)) -> 
D26: Length of Excavation = | E26: 65 | F26: ft | N26: =IF(M26="","",M26+MAX(N$12:N24)) -> 
D27: Avg. Bott. of Excav. = | E27: =(783.5*10.125+798.5*9.875+AVERAGE(786,796)*45)/(10.125+9.875+45) -> 790.9711538 | F27: ft
N28: =IF(M28="","",M28+MAX(N$12:N25)) -> 
D29: Rear Excavation Volume = | E29: =(E24-E27)*E25*E26/27 -> 1016.03973 | F29: CY | M29: =CEILING(E29,1) -> 1017 | N29: =IF(M29="","",M29+MAX(N$12:N28)) -> 1588 | Q29: GEN.
N30: =IF(M30="","",M30+MAX(N$9:N29)) -> 
N31: =IF(M31="","",M31+MAX(N$9:N30)) -> 
N32: =IF(M32="","",M32+MAX(N$9:N31)) -> 
N33: =IF(M33="","",M33+MAX(N$9:N32)) -> 
N34: =IF(M34="","",M34+MAX(N$9:N33)) -> 
N35: =IF(M35="","",M35+MAX(N$9:N34)) -> 
N36: =IF(M36="","",M36+MAX(N$9:N35)) -> 
N37: =IF(M37="","",M37+MAX(N$9:N36)) -> 
N38: =IF(M38="","",M38+MAX(N$9:N37)) -> 
N39: =IF(M39="","",M39+MAX(N$9:N38)) -> 
N40: =IF(M40="","",M40+MAX(N$9:N39)) -> 
N41: =IF(M41="","",M41+MAX(N$9:N40)) -> 
N42: =IF(M42="","",M42+MAX(N$9:N41)) -> 
N43: =IF(M43="","",M43+MAX(N$9:N42)) -> 
N44: =IF(M44="","",M44+MAX(N$9:N43)) -> 
N45: =IF(M45="","",M45+MAX(N$9:N44)) -> 
N46: =IF(M46="","",M46+MAX(N$9:N45)) -> 
N47: =IF(M47="","",M47+MAX(N$9:N46)) -> 
N48: =IF(M48="","",M48+MAX(N$9:N47)) -> 
N49: =IF(M49="","",M49+MAX(N$9:N48)) -> 
N50: =IF(M50="","",M50+MAX(N$9:N49)) -> 
N51: =IF(M51="","",M51+MAX(N$9:N50)) -> 
N52: =IF(M52="","",M52+MAX(N$9:N51)) -> 
N53: =IF(M53="","",M53+MAX(N$9:N52)) -> 
N54: =IF(M54="","",M54+MAX(N$9:N53)) -> 
N55: =IF(M55="","",M55+MAX(N$10:N54)) -> 
N56: =IF(M56="","",M56+MAX(N$10:N55)) -> 
N57: =IF(M57="","",M57+MAX(N$10:N56)) -> 
N58: =IF(M58="","",M58+MAX(N$10:N57)) -> 
N59: =IF(M59="","",M59+MAX(N$10:N58)) -> 
N60: =IF(M60="","",M60+MAX(N$10:N59)) -> 
N61: =IF(M61="","",M61+MAX(N$10:N60)) -> 
N62: =IF(M62="","",M62+MAX(N$10:N61)) -> 
N63: =IF(M63="","",M63+MAX(N$10:N62)) -> 
N64: =IF(M64="","",M64+MAX(N$10:N63)) -> 
N65: =IF(M65="","",M65+MAX(N$10:N64)) -> 
N66: =IF(M66="","",M66+MAX(N$10:N65)) -> 
N67: =IF(M67="","",M67+MAX(N$10:N66)) -> 
N68: =IF(M68="","",M68+MAX(N$10:N67)) -> 
N69: =IF(M69="","",M69+MAX(N$10:N68)) -> 
N70: =IF(M70="","",M70+MAX(N$10:N69)) -> 
N71: =IF(M71="","",M71+MAX(N$10:N70)) -> 
N72: =IF(M72="","",M72+MAX(N$10:N71)) -> 
N73: =IF(M73="","",M73+MAX(N$10:N72)) -> 
N74: =IF(M74="","",M74+MAX(N$10:N73)) -> 
N75: =IF(M75="","",M75+MAX(N$10:N74)) -> 
N76: =IF(M76="","",M76+MAX(N$10:N75)) -> 
N77: =IF(M77="","",M77+MAX(N$10:N76)) -> 
N78: =IF(M78="","",M78+MAX(N$10:N77)) -> 
N79: =IF(M79="","",M79+MAX(N$10:N78)) -> 
N80: =IF(M80="","",M80+MAX(N$10:N79)) -> 
N81: =IF(M81="","",M81+MAX(N$10:N80)) -> 
D82: SPECIAL INSTRUCTIONS: | E82: =INDEX(QryItemE2019!F:F,MATCH(H5,QryItemE2019!A:A,0)) ->  | M82: TOTAL | N82: =IF(K5="LS","LS"," ") -> 

Sheet 840E22000
G1: DESIGN: | H1: =IF('Calc Cover Sheet'!B11="","",'Calc Cover Sheet'!B11) -> BMV | I1: DATE: | J1: =IF('Calc Cover Sheet'!D11="","",'Calc Cover Sheet'!D11) -> 2024-04-19 | K1: UPDATE: | L1: =IF('Calc Cover Sheet'!B13="","",'Calc Cover Sheet'!B13) ->  | M1: DATE: | N1: =IF('Calc Cover Sheet'!D13="","",'Calc Cover Sheet'!D13) -> 
G2: CHECK: | H2: =IF('Calc Cover Sheet'!B12="","",'Calc Cover Sheet'!B12) -> TLC | I2: DATE: | J2: =IF('Calc Cover Sheet'!D12="","",'Calc Cover Sheet'!D12) -> 2024-04-25 | K2: RECHECK: | L2: =IF('Calc Cover Sheet'!B14="","",'Calc Cover Sheet'!B14) ->  | M2: DATE: | N2: =IF('Calc Cover Sheet'!D14="","",'Calc Cover Sheet'!D14) -> 
G3: STRUCTURE: | H3: =IF('Calc Cover Sheet'!B7="","",'Calc Cover Sheet'!B7) -> HAM-00145-0203 | K3: SFN: | L3: =IF('Calc Cover Sheet'!B3="","",'Calc Cover Sheet'!B3) -> 3108680 | M3: PID: | N3: =IF('Calc Cover Sheet'!B9="","",'Calc Cover Sheet'!B9) -> 110563
Q4: Lump Sum Tags (Items with a "LS" Pay Unit can be tagged with one or several categories)
G5: ITEM: | H5: =MID(RIGHT(CELL("filename",D2),LEN(CELL("filename",D2))-FIND("]",CELL("filename",D2))),1,9) -> 840E22000 | J5: PAY UNIT: | K5: =INDEX(QryItemE2019!B:B,MATCH(H5,QryItemE2019!A:A,0)) -> SY
G6: SUBJECT: | H6: =IF('Calc Cover Sheet'!B2="","",'Calc Cover Sheet'!B2) -> ESTIMATED QUANTITIES
D7: DESCRIPTION: | E7: =INDEX(QryItemE2019!C:C,MATCH(H5,QryItemE2019!A:A,0)) -> FOUNDATION PREPARATION
D8: SUPPLEMENTAL DESCRIPTION:
M9: SUBTOTAL | N9: TOTAL | Q9: GROUP | R9: <<<<<Tag each subtotal value with a group from this column
N10: =IF(M10="","",M10+MAX(N$9:N9)) -> 
N11: =IF(M11="","",M11+MAX(N$9:N10)) -> 
N12: =IF(M12="","",M12+MAX(N$9:N11)) -> 
C13: Rear Abutment/MSE Wall | N13: =IF(M13="","",M13+MAX('840E21000'!N$9:N12)) -> 
N14: =IF(M14="","",M14+MAX(N$12:N13)) -> 
D15: Soil Reinforcement length = | E15: ='203E35120'!E17 -> 20 | F15: ft
D16: Width of Foundation Preparation = | E16: ='203E35120'!E28 -> 43.632 | F16: ft | N16: =IF(M16="","",M16+MAX(N$12:N14)) -> 
D17: Length of Excavation = | E17: ='203E35120'!E29 -> 49.771 | F17: ft | N17: =IF(M17="","",M17+MAX(N$12:N15)) -> 
N18: =IF(M18="","",M18+MAX(N$12:N16)) -> 
D19: Rear Excavation Area = | E19: =E17*E16/9 -> 241.289808 | F19: SY | M19: =CEILING(E19,1) -> 242 | N19: =IF(M19="","",M19+MAX(N$12:N18)) -> 242 | Q19: GEN.
N20: =IF(M20="","",M20+MAX(N$9:N12)) -> 
N21: =IF(M21="","",M21+MAX(N$9:N20)) -> 
C22: Forward Abutment/MSE Wall | N22: =IF(M22="","",M22+MAX(N$9:N21)) -> 
N23: =IF(M23="","",M23+MAX(N$9:N22)) -> 
D24: Soil Reinforcement length = | E24: ='203E35120'!E18 -> 23 | F24: ft | N24: =IF(M24="","",M24+MAX(N$9:N23)) -> 
D25: Width of Excavation = | E25: ='203E35120'!E32 -> 43.632
D26: Length of Excavation = | E26: ='203E35120'!E33 -> 66.771 | N26: =IF(M26="","",M26+MAX(N$12:N24)) -> 
N27: =IF(M27="","",M27+MAX(N$9:N25)) -> 
D28: Fwd Excavation Area = | E28: =E26*E25/9 -> 323.705808 | F28: SY | M28: =CEILING(E28,1) -> 324 | N28: =IF(M28="","",M28+MAX(N$9:N27)) -> 566 | Q28: GEN.
N29: =IF(M29="","",M29+MAX(N$9:N28)) -> 
N30: =IF(M30="","",M30+MAX(N$9:N29)) -> 
N31: =IF(M31="","",M31+MAX(N$9:N30)) -> 
N32: =IF(M32="","",M32+MAX(N$9:N31)) -> 
N33: =IF(M33="","",M33+MAX(N$10:N32)) -> 
N34: =IF(M34="","",M34+MAX(N$10:N33)) -> 
N35: =IF(M35="","",M35+MAX(N$10:N34)) -> 
N36: =IF(M36="","",M36+MAX(N$10:N35)) -> 
N37: =IF(M37="","",M37+MAX(N$10:N36)) -> 
N38: =IF(M38="","",M38+MAX(N$10:N37)) -> 
N39: =IF(M39="","",M39+MAX(N$10:N38)) -> 
N40: =IF(M40="","",M40+MAX(N$10:N39)) -> 
N41: =IF(M41="","",M41+MAX(N$10:N40)) -> 
N42: =IF(M42="","",M42+MAX(N$10:N41)) -> 
N43: =IF(M43="","",M43+MAX(N$10:N42)) -> 
N44: =IF(M44="","",M44+MAX(N$10:N43)) -> 
N45: =IF(M45="","",M45+MAX(N$10:N44)) -> 
N46: =IF(M46="","",M46+MAX(N$10:N45)) -> 
N47: =IF(M47="","",M47+MAX(N$10:N46)) -> 
N48: =IF(M48="","",M48+MAX(N$10:N47)) -> 
N49: =IF(M49="","",M49+MAX(N$10:N48)) -> 
N50: =IF(M50="","",M50+MAX(N$10:N49)) -> 
N51: =IF(M51="","",M51+MAX(N$10:N50)) -> 
N52: =IF(M52="","",M52+MAX(N$10:N51)) -> 
N53: =IF(M53="","",M53+MAX(N$10:N52)) -> 
N54: =IF(M54="","",M54+MAX(N$10:N53)) -> 
N55: =IF(M55="","",M55+MAX(N$10:N54)) -> 
N56: =IF(M56="","",M56+MAX(N$10:N55)) -> 
N57: =IF(M57="","",M57+MAX(N$10:N56)) -> 
N58: =IF(M58="","",M58+MAX(N$10:N57)) -> 
N59: =IF(M59="","",M59+MAX(N$10:N58)) -> 
D60: SPECIAL INSTRUCTIONS: | E60: =INDEX(QryItemE2019!F:F,MATCH(H5,QryItemE2019!A:A,0)) ->  | M60: TOTAL | N60: =IF(K5="LS","LS"," ") -> 

Sheet 840E23000
G1: DESIGN: | H1: =IF('Calc Cover Sheet'!B11="","",'Calc Cover Sheet'!B11) -> BMV | I1: DATE: | J1: =IF('Calc Cover Sheet'!D11="","",'Calc Cover Sheet'!D11) -> 2024-04-19 | K1: UPDATE: | L1: =IF('Calc Cover Sheet'!B13="","",'Calc Cover Sheet'!B13) ->  | M1: DATE: | N1: =IF('Calc Cover Sheet'!D13="","",'Calc Cover Sheet'!D13) -> 
G2: CHECK: | H2: =IF('Calc Cover Sheet'!B12="","",'Calc Cover Sheet'!B12) -> TLC | I2: DATE: | J2: =IF('Calc Cover Sheet'!D12="","",'Calc Cover Sheet'!D12) -> 2024-04-25 | K2: RECHECK: | L2: =IF('Calc Cover Sheet'!B14="","",'Calc Cover Sheet'!B14) ->  | M2: DATE: | N2: =IF('Calc Cover Sheet'!D14="","",'Calc Cover Sheet'!D14) -> 
G3: STRUCTURE: | H3: =IF('Calc Cover Sheet'!B7="","",'Calc Cover Sheet'!B7) -> HAM-00145-0203 | K3: SFN: | L3: =IF('Calc Cover Sheet'!B3="","",'Calc Cover Sheet'!B3) -> 3108680 | M3: PID: | N3: =IF('Calc Cover Sheet'!B9="","",'Calc Cover Sheet'!B9) -> 110563
Q4: Lump Sum Tags (Items with a "LS" Pay Unit can be tagged with one or several categories)
G5: ITEM: | H5: =MID(RIGHT(CELL("filename",D2),LEN(CELL("filename",D2))-FIND("]",CELL("filename",D2))),1,9) -> 840E23000 | J5: PAY UNIT: | K5: =INDEX(QryItemE2019!B:B,MATCH(H5,QryItemE2019!A:A,0)) -> CY
G6: SUBJECT: | H6: =IF('Calc Cover Sheet'!B2="","",'Calc Cover Sheet'!B2) -> ESTIMATED QUANTITIES
D7: DESCRIPTION: | E7: =INDEX(QryItemE2019!C:C,MATCH(H5,QryItemE2019!A:A,0)) -> SELECT GRANULAR BACKFILL
D8: SUPPLEMENTAL DESCRIPTION:
M9: SUBTOTAL | N9: TOTAL | Q9: GROUP | R9: <<<<<Tag each subtotal value with a group from this column
N10: =IF(M10="","",M10+MAX(N$9:N9)) -> 
N11: =IF(M11="","",M11+MAX(N$9:N10)) -> 
N12: =IF(M12="","",M12+MAX(N$9:N11)) -> 
N13: =IF(M13="","",M13+MAX(N$9:N12)) -> 
D14: Approach Slab Thickness = | E14: 17 | F14: in | N14: =IF(M14="","",M14+MAX(N$9:N13)) -> 
D15: Deck thickness = | E15: 8.5 | F15: in | N15: =IF(M15="","",M15+MAX(N$9:N14)) -> 
D16: Beam Height = | E16: 42 | F16: in | N16: =IF(M16="","",M16+MAX(N$9:N15)) -> 
D17: Assumed haunch = | E17: 4.75 | F17: in | N17: =IF(M17="","",M17+MAX(N$9:N16)) -> 
D18: Bearing height = | E18: =1.5+6.25+1.5+2+9/16 -> 11.8125 | F18: in | N18: =IF(M18="","",M18+MAX(N$9:N17)) -> 
D19: Abut. Stem Height = | E19: 24 | F19: in | N19: =IF(M19="","",M19+MAX(N$9:N18)) -> 
D20: Abut. Footing Height = | E20: 36 | F20: in | N20: =IF(M20="","",M20+MAX(N$9:N19)) -> 
N21: =IF(M21="","",M21+MAX(N$9:N20)) -> 
C22: Rear Abutment: | N22: =IF(M22="","",M22+MAX(N$9:N21)) -> 
D23: Length of Rear Turnbacks = | E23: 48 | F23: ft | N23: =IF(M23="","",M23+MAX(N$9:N22)) -> 
D24: Length at Rear Abut. = | E24: 38.8333 | F24: ft | N24: =IF(M24="","",M24+MAX(N$9:N23)) -> 
D25: Avg. Top Elev. At Turnback = | E25: 806.1 | N25: =IF(M25="","",M25+MAX(N$9:N24)) -> 
D26: Avg. Bottom Elev. = | E26: 786 | N26: =IF(M26="","",M26+MAX(N$9:N25)) -> 
D27: Depth of Granular Material = | E27: =E25-E26 -> 20.1 | F27: ft | N27: =IF(M27="","",M27+MAX(N$9:N26)) -> 
D28: Granular Material Volume = | E28: ='203E35111'!E26/2 -> 239.0996597 | F28: CY | G28: * Single direction hatch in figure | N28: =IF(M28="","",M28+MAX(N$9:N27)) -> 
D29: Double hatch Volume = | E29: =8.5*E24*(($E$15+$E$16+$E$17+$E$18+$E$19+$E$20-$E$14)/12)/27 -> 112.1289065 | F29: CY | G29: * Both direction hatch in figure | N29: =IF(M29="","",M29+MAX(N$9:N28)) -> 
D30: Yellow Area Volume = | E30: =E23*E24*E27/27 -> 1387.643253 | F30: CY | G30: * Yellow shaded area in figure | N30: =IF(M30="","",M30+MAX(N$9:N29)) -> 
N31: =IF(M31="","",M31+MAX(N$9:N30)) -> 
D32: Select Granular Backfill Volume = | E32: =E30-E28-E29 -> 1036.414687 | F32: CY | M32: =CEILING(E32,1) -> 1037 | N32: =IF(M32="","",M32+MAX(N$9:N31)) -> 1037 | Q32: GEN.
N33: =IF(M33="","",M33+MAX(N$9:N32)) -> 
N34: =IF(M34="","",M34+MAX(N$9:N33)) -> 
C35: Fwd Abutment: | N35: =IF(M35="","",M35+MAX(N$9:N34)) -> 
D36: Length of Rear Turnbacks = | E36: 65 | F36: ft | N36: =IF(M36="","",M36+MAX(N$9:N35)) -> 
D37: Length at Rear Abut. = | E37: 38.8333 | F37: ft | N37: =IF(M37="","",M37+MAX(N$9:N36)) -> 
D38: Avg. Top Elev. At Turnback = | E38: 815.54 | N38: =IF(M38="","",M38+MAX(N$9:N37)) -> 
D39: Avg. Bottom Elev. = | E39: 792.75 | N39: =IF(M39="","",M39+MAX(N$9:N38)) -> 
D40: Depth of Granular Material = | E40: =E38-E39 -> 22.79 | F40: ft | N40: =IF(M40="","",M40+MAX(N$9:N39)) -> 
D41: Granular Material Volume = | E41: =E28 -> 239.0996597 | F41: CY | G41: * Single direction hatch in figure | N41: =IF(M41="","",M41+MAX(N$9:N40)) -> 
D42: Double hatch Volume = | E42: =8.5*E37*(($E$15+$E$16+$E$17+$E$18+$E$19+$E$20-$E$14)/12)/27 -> 112.1289065 | F42: CY | G42: * Both direction hatch in figure | N42: =IF(M42="","",M42+MAX(N$9:N41)) -> 
D43: Yellow Area Volume = | E43: =E36*E37*E40/27 -> 2130.581813 | F43: CY | G43: * Yellow shaded area in figure | N43: =IF(M43="","",M43+MAX(N$9:N42)) -> 
N44: =IF(M44="","",M44+MAX(N$9:N43)) -> 
D45: Select Granular Backfill Volume = | E45: =E43-E41-E42 -> 1779.353247 | F45: CY | M45: =CEILING(E45,1) -> 1780 | N45: =IF(M45="","",M45+MAX(N$9:N44)) -> 2817 | Q45: GEN.
N46: =IF(M46="","",M46+MAX(N$9:N45)) -> 
N47: =IF(M47="","",M47+MAX(N$9:N46)) -> 
N48: =IF(M48="","",M48+MAX(N$9:N47)) -> 
N49: =IF(M49="","",M49+MAX(N$9:N48)) -> 
N50: =IF(M50="","",M50+MAX(N$9:N49)) -> 
N51: =IF(M51="","",M51+MAX(N$9:N50)) -> 
N52: =IF(M52="","",M52+MAX(N$9:N51)) -> 
N53: =IF(M53="","",M53+MAX(N$9:N52)) -> 
N54: =IF(M54="","",M54+MAX(N$9:N53)) -> 
N55: =IF(M55="","",M55+MAX(N$9:N54)) -> 
N56: =IF(M56="","",M56+MAX(N$9:N55)) -> 
N57: =IF(M57="","",M57+MAX(N$9:N56)) -> 
N58: =IF(M58="","",M58+MAX(N$9:N57)) -> 
N59: =IF(M59="","",M59+MAX(N$9:N58)) -> 
D60: SPECIAL INSTRUCTIONS: | E60: =INDEX(QryItemE2019!F:F,MATCH(H5,QryItemE2019!A:A,0)) ->  | M60: TOTAL | N60: =IF(K5="LS","LS"," ") -> 

Sheet 840E25010
G1: DESIGN: | H1: =IF('Calc Cover Sheet'!B11="","",'Calc Cover Sheet'!B11) -> BMV | I1: DATE: | J1: =IF('Calc Cover Sheet'!D11="","",'Calc Cover Sheet'!D11) -> 2024-04-19 | K1: UPDATE: | L1: =IF('Calc Cover Sheet'!B13="","",'Calc Cover Sheet'!B13) ->  | M1: DATE: | N1: =IF('Calc Cover Sheet'!D13="","",'Calc Cover Sheet'!D13) -> 
G2: CHECK: | H2: =IF('Calc Cover Sheet'!B12="","",'Calc Cover Sheet'!B12) -> TLC | I2: DATE: | J2: =IF('Calc Cover Sheet'!D12="","",'Calc Cover Sheet'!D12) -> 2024-04-25 | K2: RECHECK: | L2: =IF('Calc Cover Sheet'!B14="","",'Calc Cover Sheet'!B14) ->  | M2: DATE: | N2: =IF('Calc Cover Sheet'!D14="","",'Calc Cover Sheet'!D14) -> 
G3: STRUCTURE: | H3: =IF('Calc Cover Sheet'!B7="","",'Calc Cover Sheet'!B7) -> HAM-00145-0203 | K3: SFN: | L3: =IF('Calc Cover Sheet'!B3="","",'Calc Cover Sheet'!B3) -> 3108680 | M3: PID: | N3: =IF('Calc Cover Sheet'!B9="","",'Calc Cover Sheet'!B9) -> 110563
Q4: Lump Sum Tags (Items with a "LS" Pay Unit can be tagged with one or several categories)
G5: ITEM: | H5: =MID(RIGHT(CELL("filename",D2),LEN(CELL("filename",D2))-FIND("]",CELL("filename",D2))),1,9) -> 840E25010 | J5: PAY UNIT: | K5: =INDEX(QryItemE2019!B:B,MATCH(H5,QryItemE2019!A:A,0)) -> FT
G6: SUBJECT: | H6: =IF('Calc Cover Sheet'!B2="","",'Calc Cover Sheet'!B2) -> ESTIMATED QUANTITIES
D7: DESCRIPTION: | E7: =INDEX(QryItemE2019!C:C,MATCH(H5,QryItemE2019!A:A,0)) -> 6" DRAINAGE PIPE, PERFORATED
D8: SUPPLEMENTAL DESCRIPTION:
M9: SUBTOTAL | N9: TOTAL | Q9: GROUP | R9: <<<<<Tag each subtotal value with a group from this column
N10: =IF(M10="","",M10+MAX(N$9:N9)) -> 
N11: =IF(M11="","",M11+MAX(N$9:N10)) -> 
E12: Rear Abutment = | F12: =2*48+40 -> 136 | G12: ft | N12: =IF(M12="","",M12+MAX(N$9:N11)) -> 
E13: Fwd Abutment = | F13: =2*65+40 -> 170 | G13: ft
N14: =IF(M14="","",M14+MAX(N$9:N13)) -> 
E15: CPP Length = | F15: =F12+F13 -> 306 | G15: FT | M15: =CEILING(F15,1) -> 306 | N15: =IF(M15="","",M15+MAX(N$9:N14)) -> 306 | Q15: GEN.
N16: =IF(M16="","",M16+MAX(N$9:N15)) -> 
N17: =IF(M17="","",M17+MAX(N$9:N16)) -> 
N19: =IF(M19="","",M19+MAX(N$9:N18)) -> 
N20: =IF(M20="","",M20+MAX(N$9:N19)) -> 
N21: =IF(M21="","",M21+MAX(N$9:N20)) -> 
N22: =IF(M22="","",M22+MAX(N$9:N21)) -> 
N23: =IF(M23="","",M23+MAX(N$9:N22)) -> 
N24: =IF(M24="","",M24+MAX(N$9:N23)) -> 
N25: =IF(M25="","",M25+MAX(N$9:N24)) -> 
N26: =IF(M26="","",M26+MAX(N$9:N25)) -> 
N27: =IF(M27="","",M27+MAX(N$9:N26)) -> 
N28: =IF(M28="","",M28+MAX(N$9:N27)) -> 
N29: =IF(M29="","",M29+MAX(N$9:N28)) -> 
N30: =IF(M30="","",M30+MAX(N$9:N29)) -> 
N31: =IF(M31="","",M31+MAX(N$9:N30)) -> 
N32: =IF(M32="","",M32+MAX(N$9:N31)) -> 
N33: =IF(M33="","",M33+MAX(N$9:N32)) -> 
N34: =IF(M34="","",M34+MAX(N$9:N33)) -> 
N35: =IF(M35="","",M35+MAX(N$9:N34)) -> 
N36: =IF(M36="","",M36+MAX(N$10:N35)) -> 
N37: =IF(M37="","",M37+MAX(N$10:N36)) -> 
N38: =IF(M38="","",M38+MAX(N$10:N37)) -> 
N39: =IF(M39="","",M39+MAX(N$10:N38)) -> 
N40: =IF(M40="","",M40+MAX(N$10:N39)) -> 
N41: =IF(M41="","",M41+MAX(N$10:N40)) -> 
N42: =IF(M42="","",M42+MAX(N$10:N41)) -> 
N43: =IF(M43="","",M43+MAX(N$10:N42)) -> 
N44: =IF(M44="","",M44+MAX(N$10:N43)) -> 
N45: =IF(M45="","",M45+MAX(N$10:N44)) -> 
N46: =IF(M46="","",M46+MAX(N$10:N45)) -> 
N47: =IF(M47="","",M47+MAX(N$10:N46)) -> 
N48: =IF(M48="","",M48+MAX(N$10:N47)) -> 
N49: =IF(M49="","",M49+MAX(N$10:N48)) -> 
N50: =IF(M50="","",M50+MAX(N$10:N49)) -> 
N51: =IF(M51="","",M51+MAX(N$10:N50)) -> 
N52: =IF(M52="","",M52+MAX(N$10:N51)) -> 
N53: =IF(M53="","",M53+MAX(N$10:N52)) -> 
N54: =IF(M54="","",M54+MAX(N$10:N53)) -> 
N55: =IF(M55="","",M55+MAX(N$10:N54)) -> 
N56: =IF(M56="","",M56+MAX(N$10:N55)) -> 
N57: =IF(M57="","",M57+MAX(N$10:N56)) -> 
N58: =IF(M58="","",M58+MAX(N$10:N57)) -> 
N59: =IF(M59="","",M59+MAX(N$10:N58)) -> 
N60: =IF(M60="","",M60+MAX(N$10:N59)) -> 
N61: =IF(M61="","",M61+MAX(N$10:N60)) -> 
N62: =IF(M62="","",M62+MAX(N$10:N61)) -> 
D63: SPECIAL INSTRUCTIONS: | E63: =INDEX(QryItemE2019!F:F,MATCH(H5,QryItemE2019!A:A,0)) ->  | M63: TOTAL | N63: =IF(K5="LS","LS"," ") -> 

Sheet 840E25020
G1: DESIGN: | H1: =IF('Calc Cover Sheet'!B11="","",'Calc Cover Sheet'!B11) -> BMV | I1: DATE: | J1: =IF('Calc Cover Sheet'!D11="","",'Calc Cover Sheet'!D11) -> 2024-04-19 | K1: UPDATE: | L1: =IF('Calc Cover Sheet'!B13="","",'Calc Cover Sheet'!B13) ->  | M1: DATE: | N1: =IF('Calc Cover Sheet'!D13="","",'Calc Cover Sheet'!D13) -> 
G2: CHECK: | H2: =IF('Calc Cover Sheet'!B12="","",'Calc Cover Sheet'!B12) -> TLC | I2: DATE: | J2: =IF('Calc Cover Sheet'!D12="","",'Calc Cover Sheet'!D12) -> 2024-04-25 | K2: RECHECK: | L2: =IF('Calc Cover Sheet'!B14="","",'Calc Cover Sheet'!B14) ->  | M2: DATE: | N2: =IF('Calc Cover Sheet'!D14="","",'Calc Cover Sheet'!D14) -> 
G3: STRUCTURE: | H3: =IF('Calc Cover Sheet'!B7="","",'Calc Cover Sheet'!B7) -> HAM-00145-0203 | K3: SFN: | L3: =IF('Calc Cover Sheet'!B3="","",'Calc Cover Sheet'!B3) -> 3108680 | M3: PID: | N3: =IF('Calc Cover Sheet'!B9="","",'Calc Cover Sheet'!B9) -> 110563
Q4: Lump Sum Tags (Items with a "LS" Pay Unit can be tagged with one or several categories)
G5: ITEM: | H5: =MID(RIGHT(CELL("filename",D2),LEN(CELL("filename",D2))-FIND("]",CELL("filename",D2))),1,9) -> 840E25020 | J5: PAY UNIT: | K5: =INDEX(QryItemE2019!B:B,MATCH(H5,QryItemE2019!A:A,0)) -> FT
G6: SUBJECT: | H6: =IF('Calc Cover Sheet'!B2="","",'Calc Cover Sheet'!B2) -> ESTIMATED QUANTITIES
D7: DESCRIPTION: | E7: =INDEX(QryItemE2019!C:C,MATCH(H5,QryItemE2019!A:A,0)) -> 6" DRAINAGE PIPE, NON-PERFORATED
D8: SUPPLEMENTAL DESCRIPTION:
M9: SUBTOTAL | N9: TOTAL | Q9: GROUP | R9: <<<<<Tag each subtotal value with a group from this column
N10: =IF(M10="","",M10+MAX(N$9:N9)) -> 
D11: Rear Abut = | E11: 5 | F11: ft | N11: =IF(M11="","",M11+MAX(N$9:N10)) -> 
D12: Fwd Abut = | E12: 5 | F12: ft | N12: =IF(M12="","",M12+MAX(N$9:N11)) -> 
D13: Length = | E13: =SUM(E11:E12) -> 10 | F13: ft | M13: =CEILING(E13,1) -> 10 | N13: =IF(M13="","",M13+MAX(N$9:N12)) -> 10 | Q13: GEN.
N14: =IF(M14="","",M14+MAX(N$9:N13)) -> 
N15: =IF(M15="","",M15+MAX(N$9:N14)) -> 
N16: =IF(M16="","",M16+MAX(N$9:N15)) -> 
N17: =IF(M17="","",M17+MAX(N$9:N16)) -> 
N18: =IF(M18="","",M18+MAX(N$9:N17)) -> 
N20: =IF(M20="","",M20+MAX(N$9:N19)) -> 
N21: =IF(M21="","",M21+MAX(N$9:N20)) -> 
N22: =IF(M22="","",M22+MAX(N$9:N21)) -> 
N23: =IF(M23="","",M23+MAX(N$9:N22)) -> 
N24: =IF(M24="","",M24+MAX(N$9:N23)) -> 
N25: =IF(M25="","",M25+MAX(N$9:N24)) -> 
N26: =IF(M26="","",M26+MAX(N$9:N25)) -> 
N27: =IF(M27="","",M27+MAX(N$9:N26)) -> 
N28: =IF(M28="","",M28+MAX(N$9:N27)) -> 
N29: =IF(M29="","",M29+MAX(N$9:N28)) -> 
N30: =IF(M30="","",M30+MAX(N$9:N29)) -> 
N31: =IF(M31="","",M31+MAX(N$9:N30)) -> 
N32: =IF(M32="","",M32+MAX(N$9:N31)) -> 
N33: =IF(M33="","",M33+MAX(N$9:N32)) -> 
N34: =IF(M34="","",M34+MAX(N$9:N33)) -> 
N35: =IF(M35="","",M35+MAX(N$9:N34)) -> 
N36: =IF(M36="","",M36+MAX(N$9:N35)) -> 
N37: =IF(M37="","",M37+MAX(N$10:N36)) -> 
N38: =IF(M38="","",M38+MAX(N$10:N37)) -> 
N39: =IF(M39="","",M39+MAX(N$10:N38)) -> 
N40: =IF(M40="","",M40+MAX(N$10:N39)) -> 
N41: =IF(M41="","",M41+MAX(N$10:N40)) -> 
N42: =IF(M42="","",M42+MAX(N$10:N41)) -> 
N43: =IF(M43="","",M43+MAX(N$10:N42)) -> 
N44: =IF(M44="","",M44+MAX(N$10:N43)) -> 
N45: =IF(M45="","",M45+MAX(N$10:N44)) -> 
N46: =IF(M46="","",M46+MAX(N$10:N45)) -> 
N47: =IF(M47="","",M47+MAX(N$10:N46)) -> 
N48: =IF(M48="","",M48+MAX(N$10:N47)) -> 
N49: =IF(M49="","",M49+MAX(N$10:N48)) -> 
N50: =IF(M50="","",M50+MAX(N$10:N49)) -> 
N51: =IF(M51="","",M51+MAX(N$10:N50)) -> 
N52: =IF(M52="","",M52+MAX(N$10:N51)) -> 
N53: =IF(M53="","",M53+MAX(N$10:N52)) -> 
N54: =IF(M54="","",M54+MAX(N$10:N53)) -> 
N55: =IF(M55="","",M55+MAX(N$10:N54)) -> 
N56: =IF(M56="","",M56+MAX(N$10:N55)) -> 
N57: =IF(M57="","",M57+MAX(N$10:N56)) -> 
N58: =IF(M58="","",M58+MAX(N$10:N57)) -> 
N59: =IF(M59="","",M59+MAX(N$10:N58)) -> 
N60: =IF(M60="","",M60+MAX(N$10:N59)) -> 
N61: =IF(M61="","",M61+MAX(N$10:N60)) -> 
N62: =IF(M62="","",M62+MAX(N$10:N61)) -> 
N63: =IF(M63="","",M63+MAX(N$10:N62)) -> 
D64: SPECIAL INSTRUCTIONS: | E64: =INDEX(QryItemE2019!F:F,MATCH(H5,QryItemE2019!A:A,0)) ->  | M64: TOTAL | N64: =IF(K5="LS","LS"," ") -> 

Sheet 840E26000
G1: DESIGN: | H1: =IF('Calc Cover Sheet'!B11="","",'Calc Cover Sheet'!B11) -> BMV | I1: DATE: | J1: =IF('Calc Cover Sheet'!D11="","",'Calc Cover Sheet'!D11) -> 2024-04-19 | K1: UPDATE: | L1: =IF('Calc Cover Sheet'!B13="","",'Calc Cover Sheet'!B13) ->  | M1: DATE: | N1: =IF('Calc Cover Sheet'!D13="","",'Calc Cover Sheet'!D13) -> 
G2: CHECK: | H2: =IF('Calc Cover Sheet'!B12="","",'Calc Cover Sheet'!B12) -> TLC | I2: DATE: | J2: =IF('Calc Cover Sheet'!D12="","",'Calc Cover Sheet'!D12) -> 2024-04-25 | K2: RECHECK: | L2: =IF('Calc Cover Sheet'!B14="","",'Calc Cover Sheet'!B14) ->  | M2: DATE: | N2: =IF('Calc Cover Sheet'!D14="","",'Calc Cover Sheet'!D14) -> 
G3: STRUCTURE: | H3: =IF('Calc Cover Sheet'!B7="","",'Calc Cover Sheet'!B7) -> HAM-00145-0203 | K3: SFN: | L3: =IF('Calc Cover Sheet'!B3="","",'Calc Cover Sheet'!B3) -> 3108680 | M3: PID: | N3: =IF('Calc Cover Sheet'!B9="","",'Calc Cover Sheet'!B9) -> 110563
Q4: Lump Sum Tags (Items with a "LS" Pay Unit can be tagged with one or several categories)
G5: ITEM: | H5: =MID(RIGHT(CELL("filename",D2),LEN(CELL("filename",D2))-FIND("]",CELL("filename",D2))),1,9) -> 840E26000 | J5: PAY UNIT: | K5: =INDEX(QryItemE2019!B:B,MATCH(H5,QryItemE2019!A:A,0)) -> FT
G6: SUBJECT: | H6: =IF('Calc Cover Sheet'!B2="","",'Calc Cover Sheet'!B2) -> ESTIMATED QUANTITIES
D7: DESCRIPTION: | E7: =INDEX(QryItemE2019!C:C,MATCH(H5,QryItemE2019!A:A,0)) -> CONCRETE COPING
D8: SUPPLEMENTAL DESCRIPTION:
M9: SUBTOTAL | N9: TOTAL | Q9: GROUP | R9: <<<<<Tag each subtotal value with a group from this column
N10: =IF(M10="","",M10+MAX(N$9:N9)) -> 
N11: =IF(M11="","",M11+MAX(N$9:N10)) -> 
C12: MSE WALL COPING | N12: =IF(M12="","",M12+MAX(N$9:N11)) -> 
N13: =IF(M13="","",M13+MAX(N$9:N12)) -> 
E14: Rear Abut MSE Length = | F14: 40 | G14: ft | N14: =IF(M14="","",M14+MAX(N$9:N13)) -> 
E15: Rear Abut Verticals Length = | F15: =806.98-798.05-1.5 -> 7.43 | G15: ft | N15: =IF(M15="","",M15+MAX(N$9:N14)) -> 
E16: Fwd Abut MSE Length = | F16: 40 | G16: ft | N16: =IF(M16="","",M16+MAX(N$9:N14)) -> 
E17: Fwd Abut Verticals Length = | F17: =814.29-805.11-1.5 -> 7.68 | G17: ft | N17: =IF(M17="","",M17+MAX(N$9:N16)) -> 
E18: Rear Turnback MSE Length = | F18: 48 | G18: ft | N18: =IF(M18="","",M18+MAX(N$9:N14)) -> 
E19: Fwd Turnback MSE Length = | F19: 65 | G19: ft | N19: =IF(M19="","",M19+MAX(N$9:N18)) -> 
N20: =IF(M20="","",M20+MAX(N$9:N19)) -> 
E21: Total Length = | F21: =F14+2*F15+F16+2*F17+2*F18+2*F19 -> 336.22 | G21: ft | M21: =CEILING(F21,1) -> 337 | N21: =IF(M21="","",M21+MAX(N$9:N20)) -> 337 | Q21: GEN.
N23: =IF(M23="","",M23+MAX(N$9:N22)) -> 
N24: =IF(M24="","",M24+MAX(N$9:N23)) -> 
N25: =IF(M25="","",M25+MAX(N$9:N24)) -> 
N26: =IF(M26="","",M26+MAX(N$9:N25)) -> 
N27: =IF(M27="","",M27+MAX(N$9:N26)) -> 
N28: =IF(M28="","",M28+MAX(N$9:N27)) -> 
N29: =IF(M29="","",M29+MAX(N$9:N28)) -> 
N30: =IF(M30="","",M30+MAX(N$9:N29)) -> 
N31: =IF(M31="","",M31+MAX(N$9:N30)) -> 
N32: =IF(M32="","",M32+MAX(N$9:N31)) -> 
N33: =IF(M33="","",M33+MAX(N$9:N32)) -> 
N34: =IF(M34="","",M34+MAX(N$9:N33)) -> 
N35: =IF(M35="","",M35+MAX(N$9:N34)) -> 
N36: =IF(M36="","",M36+MAX(N$9:N35)) -> 
N37: =IF(M37="","",M37+MAX(N$9:N36)) -> 
N38: =IF(M38="","",M38+MAX(N$9:N37)) -> 
N39: =IF(M39="","",M39+MAX(N$9:N38)) -> 
N40: =IF(M40="","",M40+MAX(N$10:N39)) -> 
N41: =IF(M41="","",M41+MAX(N$10:N40)) -> 
N42: =IF(M42="","",M42+MAX(N$10:N41)) -> 
N43: =IF(M43="","",M43+MAX(N$10:N42)) -> 
N44: =IF(M44="","",M44+MAX(N$10:N43)) -> 
N45: =IF(M45="","",M45+MAX(N$10:N44)) -> 
N46: =IF(M46="","",M46+MAX(N$10:N45)) -> 
N47: =IF(M47="","",M47+MAX(N$10:N46)) -> 
N48: =IF(M48="","",M48+MAX(N$10:N47)) -> 
N49: =IF(M49="","",M49+MAX(N$10:N48)) -> 
N50: =IF(M50="","",M50+MAX(N$10:N49)) -> 
N51: =IF(M51="","",M51+MAX(N$10:N50)) -> 
N52: =IF(M52="","",M52+MAX(N$10:N51)) -> 
N53: =IF(M53="","",M53+MAX(N$10:N52)) -> 
N54: =IF(M54="","",M54+MAX(N$10:N53)) -> 
N55: =IF(M55="","",M55+MAX(N$10:N54)) -> 
N56: =IF(M56="","",M56+MAX(N$10:N55)) -> 
N57: =IF(M57="","",M57+MAX(N$10:N56)) -> 
N58: =IF(M58="","",M58+MAX(N$10:N57)) -> 
N59: =IF(M59="","",M59+MAX(N$10:N58)) -> 
N60: =IF(M60="","",M60+MAX(N$10:N59)) -> 
N61: =IF(M61="","",M61+MAX(N$10:N60)) -> 
N62: =IF(M62="","",M62+MAX(N$10:N61)) -> 
N63: =IF(M63="","",M63+MAX(N$10:N62)) -> 
N64: =IF(M64="","",M64+MAX(N$10:N63)) -> 
N65: =IF(M65="","",M65+MAX(N$10:N64)) -> 
N66: =IF(M66="","",M66+MAX(N$10:N65)) -> 
D67: SPECIAL INSTRUCTIONS: | E67: =INDEX(QryItemE2019!F:F,MATCH(H5,QryItemE2019!A:A,0)) ->  | M67: TOTAL | N67: =IF(K5="LS","LS"," ") -> 

Sheet 840E27000
G1: DESIGN: | H1: =IF('Calc Cover Sheet'!B11="","",'Calc Cover Sheet'!B11) -> BMV | I1: DATE: | J1: =IF('Calc Cover Sheet'!D11="","",'Calc Cover Sheet'!D11) -> 2024-04-19 | K1: UPDATE: | L1: =IF('Calc Cover Sheet'!B13="","",'Calc Cover Sheet'!B13) ->  | M1: DATE: | N1: =IF('Calc Cover Sheet'!D13="","",'Calc Cover Sheet'!D13) -> 
G2: CHECK: | H2: =IF('Calc Cover Sheet'!B12="","",'Calc Cover Sheet'!B12) -> TLC | I2: DATE: | J2: =IF('Calc Cover Sheet'!D12="","",'Calc Cover Sheet'!D12) -> 2024-04-25 | K2: RECHECK: | L2: =IF('Calc Cover Sheet'!B14="","",'Calc Cover Sheet'!B14) ->  | M2: DATE: | N2: =IF('Calc Cover Sheet'!D14="","",'Calc Cover Sheet'!D14) -> 
G3: STRUCTURE: | H3: =IF('Calc Cover Sheet'!B7="","",'Calc Cover Sheet'!B7) -> HAM-00145-0203 | K3: SFN: | L3: =IF('Calc Cover Sheet'!B3="","",'Calc Cover Sheet'!B3) -> 3108680 | M3: PID: | N3: =IF('Calc Cover Sheet'!B9="","",'Calc Cover Sheet'!B9) -> 110563
Q4: Lump Sum Tags (Items with a "LS" Pay Unit can be tagged with one or several categories)
G5: ITEM: | H5: =MID(RIGHT(CELL("filename",D2),LEN(CELL("filename",D2))-FIND("]",CELL("filename",D2))),1,9) -> 840E27000 | J5: PAY UNIT: | K5: =INDEX(QryItemE2019!B:B,MATCH(H5,QryItemE2019!A:A,0)) -> DAY
G6: SUBJECT: | H6: =IF('Calc Cover Sheet'!B2="","",'Calc Cover Sheet'!B2) -> ESTIMATED QUANTITIES
D7: DESCRIPTION: | E7: =INDEX(QryItemE2019!C:C,MATCH(H5,QryItemE2019!A:A,0)) -> ON-SITE ASSISTANCE
D8: SUPPLEMENTAL DESCRIPTION:
M9: SUBTOTAL | N9: TOTAL | Q9: GROUP | R9: <<<<<Tag each subtotal value with a group from this column
N10: =IF(M10="","",M10+MAX(N$9:N9)) -> 
N11: =IF(M11="","",M11+MAX(N$9:N10)) -> 
N12: =IF(M12="","",M12+MAX(N$9:N11)) -> 
N13: =IF(M13="","",M13+MAX(N$9:N12)) -> 
N14: =IF(M14="","",M14+MAX(N$9:N13)) -> 
D15: Total = | E15: 5 | F15: days | H15: See designer note of SS840 | M15: =E15 -> 5 | N15: =IF(M15="","",M15+MAX(N$9:N14)) -> 5 | Q15: GEN.
N16: =IF(M16="","",M16+MAX(N$9:N15)) -> 
N17: =IF(M17="","",M17+MAX(N$9:N16)) -> 
N18: =IF(M18="","",M18+MAX(N$9:N17)) -> 
N20: =IF(M20="","",M20+MAX(N$9:N19)) -> 
N21: =IF(M21="","",M21+MAX(N$9:N20)) -> 
N22: =IF(M22="","",M22+MAX(N$9:N21)) -> 
N23: =IF(M23="","",M23+MAX(N$9:N22)) -> 
N24: =IF(M24="","",M24+MAX(N$9:N23)) -> 
N25: =IF(M25="","",M25+MAX(N$9:N24)) -> 
N26: =IF(M26="","",M26+MAX(N$9:N25)) -> 
N27: =IF(M27="","",M27+MAX(N$9:N26)) -> 
N28: =IF(M28="","",M28+MAX(N$9:N27)) -> 
N29: =IF(M29="","",M29+MAX(N$9:N28)) -> 
N30: =IF(M30="","",M30+MAX(N$9:N29)) -> 
N31: =IF(M31="","",M31+MAX(N$9:N30)) -> 
N32: =IF(M32="","",M32+MAX(N$9:N31)) -> 
N33: =IF(M33="","",M33+MAX(N$9:N32)) -> 
N34: =IF(M34="","",M34+MAX(N$9:N33)) -> 
N35: =IF(M35="","",M35+MAX(N$9:N34)) -> 
N36: =IF(M36="","",M36+MAX(N$9:N35)) -> 
N37: =IF(M37="","",M37+MAX(N$10:N36)) -> 
N38: =IF(M38="","",M38+MAX(N$10:N37)) -> 
N39: =IF(M39="","",M39+MAX(N$10:N38)) -> 
N40: =IF(M40="","",M40+MAX(N$10:N39)) -> 
N41: =IF(M41="","",M41+MAX(N$10:N40)) -> 
N42: =IF(M42="","",M42+MAX(N$10:N41)) -> 
N43: =IF(M43="","",M43+MAX(N$10:N42)) -> 
N44: =IF(M44="","",M44+MAX(N$10:N43)) -> 
N45: =IF(M45="","",M45+MAX(N$10:N44)) -> 
N46: =IF(M46="","",M46+MAX(N$10:N45)) -> 
N47: =IF(M47="","",M47+MAX(N$10:N46)) -> 
N48: =IF(M48="","",M48+MAX(N$10:N47)) -> 
N49: =IF(M49="","",M49+MAX(N$10:N48)) -> 
N50: =IF(M50="","",M50+MAX(N$10:N49)) -> 
N51: =IF(M51="","",M51+MAX(N$10:N50)) -> 
N52: =IF(M52="","",M52+MAX(N$10:N51)) -> 
N53: =IF(M53="","",M53+MAX(N$10:N52)) -> 
N54: =IF(M54="","",M54+MAX(N$10:N53)) -> 
N55: =IF(M55="","",M55+MAX(N$10:N54)) -> 
N56: =IF(M56="","",M56+MAX(N$10:N55)) -> 
N57: =IF(M57="","",M57+MAX(N$10:N56)) -> 
N58: =IF(M58="","",M58+MAX(N$10:N57)) -> 
N59: =IF(M59="","",M59+MAX(N$10:N58)) -> 
N60: =IF(M60="","",M60+MAX(N$10:N59)) -> 
N61: =IF(M61="","",M61+MAX(N$10:N60)) -> 
N62: =IF(M62="","",M62+MAX(N$10:N61)) -> 
N63: =IF(M63="","",M63+MAX(N$10:N62)) -> 
D64: SPECIAL INSTRUCTIONS: | E64: =INDEX(QryItemE2019!F:F,MATCH(H5,QryItemE2019!A:A,0)) ->  | M64: TOTAL | N64: =IF(K5="LS","LS"," ") -> 

Sheet 878E25000
G1: DESIGN: | H1: =IF('Calc Cover Sheet'!B11="","",'Calc Cover Sheet'!B11) -> BMV | I1: DATE: | J1: =IF('Calc Cover Sheet'!D11="","",'Calc Cover Sheet'!D11) -> 2024-04-19 | K1: UPDATE: | L1: =IF('Calc Cover Sheet'!B13="","",'Calc Cover Sheet'!B13) ->  | M1: DATE: | N1: =IF('Calc Cover Sheet'!D13="","",'Calc Cover Sheet'!D13) -> 
G2: CHECK: | H2: =IF('Calc Cover Sheet'!B12="","",'Calc Cover Sheet'!B12) -> TLC | I2: DATE: | J2: =IF('Calc Cover Sheet'!D12="","",'Calc Cover Sheet'!D12) -> 2024-04-25 | K2: RECHECK: | L2: =IF('Calc Cover Sheet'!B14="","",'Calc Cover Sheet'!B14) ->  | M2: DATE: | N2: =IF('Calc Cover Sheet'!D14="","",'Calc Cover Sheet'!D14) -> 
G3: STRUCTURE: | H3: =IF('Calc Cover Sheet'!B7="","",'Calc Cover Sheet'!B7) -> HAM-00145-0203 | K3: SFN: | L3: =IF('Calc Cover Sheet'!B3="","",'Calc Cover Sheet'!B3) -> 3108680 | M3: PID: | N3: =IF('Calc Cover Sheet'!B9="","",'Calc Cover Sheet'!B9) -> 110563
Q4: Lump Sum Tags (Items with a "LS" Pay Unit can be tagged with one or several categories)
G5: ITEM: | H5: =MID(RIGHT(CELL("filename",D2),LEN(CELL("filename",D2))-FIND("]",CELL("filename",D2))),1,9) -> 878E25000 | J5: PAY UNIT: | K5: =INDEX(QryItemE2019!B:B,MATCH(H5,QryItemE2019!A:A,0)) -> LS
G6: SUBJECT: | H6: =IF('Calc Cover Sheet'!B2="","",'Calc Cover Sheet'!B2) -> ESTIMATED QUANTITIES
D7: DESCRIPTION: | E7: =INDEX(QryItemE2019!C:C,MATCH(H5,QryItemE2019!A:A,0)) -> INSPECTION AND COMPACTION TESTING OF UNBOUND MATERIALS
D8: SUPPLEMENTAL DESCRIPTION:
M9: SUBTOTAL | N9: TOTAL | Q9: GROUP | R9: <<<<<Tag each subtotal value with a group from this column
N10: =IF(M10="","",M10+MAX(N$9:N9)) -> 
N11: =IF(M11="","",M11+MAX(N$9:N10)) -> 
N12: =IF(M12="","",M12+MAX(N$9:N11)) -> 
N13: =IF(M13="","",M13+MAX(N$9:N12)) -> 
N14: =IF(M14="","",M14+MAX(N$9:N13)) -> 
D15: Lump Sum | N15: =IF(M15="","",M15+MAX(N$9:N14)) -> 
N16: =IF(M16="","",M16+MAX(N$9:N15)) -> 
D17: Cost = | E17: 15000 | N17: =IF(M17="","",M17+MAX(N$9:N16)) -> 
N18: =IF(M18="","",M18+MAX(N$9:N17)) -> 
N20: =IF(M20="","",M20+MAX(N$9:N19)) -> 
N21: =IF(M21="","",M21+MAX(N$9:N20)) -> 
N22: =IF(M22="","",M22+MAX(N$9:N21)) -> 
N23: =IF(M23="","",M23+MAX(N$9:N22)) -> 
N24: =IF(M24="","",M24+MAX(N$9:N23)) -> 
N25: =IF(M25="","",M25+MAX(N$9:N24)) -> 
N26: =IF(M26="","",M26+MAX(N$9:N25)) -> 
N27: =IF(M27="","",M27+MAX(N$9:N26)) -> 
N28: =IF(M28="","",M28+MAX(N$9:N27)) -> 
N29: =IF(M29="","",M29+MAX(N$9:N28)) -> 
N30: =IF(M30="","",M30+MAX(N$9:N29)) -> 
N31: =IF(M31="","",M31+MAX(N$9:N30)) -> 
N32: =IF(M32="","",M32+MAX(N$9:N31)) -> 
N33: =IF(M33="","",M33+MAX(N$9:N32)) -> 
N34: =IF(M34="","",M34+MAX(N$9:N33)) -> 
N35: =IF(M35="","",M35+MAX(N$9:N34)) -> 
N36: =IF(M36="","",M36+MAX(N$9:N35)) -> 
N37: =IF(M37="","",M37+MAX(N$10:N36)) -> 
N38: =IF(M38="","",M38+MAX(N$10:N37)) -> 
N39: =IF(M39="","",M39+MAX(N$10:N38)) -> 
N40: =IF(M40="","",M40+MAX(N$10:N39)) -> 
N41: =IF(M41="","",M41+MAX(N$10:N40)) -> 
N42: =IF(M42="","",M42+MAX(N$10:N41)) -> 
N43: =IF(M43="","",M43+MAX(N$10:N42)) -> 
N44: =IF(M44="","",M44+MAX(N$10:N43)) -> 
N45: =IF(M45="","",M45+MAX(N$10:N44)) -> 
N46: =IF(M46="","",M46+MAX(N$10:N45)) -> 
N47: =IF(M47="","",M47+MAX(N$10:N46)) -> 
N48: =IF(M48="","",M48+MAX(N$10:N47)) -> 
N49: =IF(M49="","",M49+MAX(N$10:N48)) -> 
N50: =IF(M50="","",M50+MAX(N$10:N49)) -> 
N51: =IF(M51="","",M51+MAX(N$10:N50)) -> 
N52: =IF(M52="","",M52+MAX(N$10:N51)) -> 
N53: =IF(M53="","",M53+MAX(N$10:N52)) -> 
N54: =IF(M54="","",M54+MAX(N$10:N53)) -> 
N55: =IF(M55="","",M55+MAX(N$10:N54)) -> 
N56: =IF(M56="","",M56+MAX(N$10:N55)) -> 
N57: =IF(M57="","",M57+MAX(N$10:N56)) -> 
N58: =IF(M58="","",M58+MAX(N$10:N57)) -> 
N59: =IF(M59="","",M59+MAX(N$10:N58)) -> 
N60: =IF(M60="","",M60+MAX(N$10:N59)) -> 
N61: =IF(M61="","",M61+MAX(N$10:N60)) -> 
N62: =IF(M62="","",M62+MAX(N$10:N61)) -> 
N63: =IF(M63="","",M63+MAX(N$10:N62)) -> 
D64: SPECIAL INSTRUCTIONS: | E64: =INDEX(QryItemE2019!F:F,MATCH(H5,QryItemE2019!A:A,0)) ->  | M64: TOTAL | N64: =IF(K5="LS","LS"," ") -> LS

Sheet Estimated Quantities
A1: Instructions | I1: Category Name
A2: 1. Set up the Quantity Categories columns below. | I2: =IF(I$29<>"",I$29,IF(OFFSET(I$29,0,-1)<>"",OFFSET(I$29,0,-1),IF(OFFSET(I$29,0,-2)<>"",OFFSET(I$29,0,-2),IF(OFFSET(I$29,0,-3)<>"",OFFSET(I$29,0,-3),IF(OFFSET(I$29,0,-4)<>"",OFFSET(I$29,0,-4),IF(OFFSET(I$29,0,-5)<>"",OFFSET(I$29,0,-5),IF(OFFSET(I$29,0,-6)<>"",OFFSET(I$29,0,-6),IF(OFFSET(I$29,0,-7)<>"",OFFSET(I$29,0,-7),IF(OFFSET(I$29,0,-8)<>"",OFFSET(I$29,0,-8),IF(OFFSET(I$29,0,-9)<>"",OFFSET(I$29,0,-9),IF(OFFSET(I$29,0,-10)<>"",OFFSET(I$29,0,-10),IF(OFFSET(I$29,0,-11)<>"",OFFSET(I$29,0,-11),IF(OFFSET(I$29,0,-12)<>"",OFFSET(I$29,0,-12),"ERROR: Enter category Manually")))))))))))))&IF(I$30="",""," "&I$30) -> ABUT. | K2: =IF(K$29<>"",K$29,IF(OFFSET(K$29,0,-1)<>"",OFFSET(K$29,0,-1),IF(OFFSET(K$29,0,-2)<>"",OFFSET(K$29,0,-2),IF(OFFSET(K$29,0,-3)<>"",OFFSET(K$29,0,-3),IF(OFFSET(K$29,0,-4)<>"",OFFSET(K$29,0,-4),IF(OFFSET(K$29,0,-5)<>"",OFFSET(K$29,0,-5),IF(OFFSET(K$29,0,-6)<>"",OFFSET(K$29,0,-6),IF(OFFSET(K$29,0,-7)<>"",OFFSET(K$29,0,-7),IF(OFFSET(K$29,0,-8)<>"",OFFSET(K$29,0,-8),IF(OFFSET(K$29,0,-9)<>"",OFFSET(K$29,0,-9),IF(OFFSET(K$29,0,-10)<>"",OFFSET(K$29,0,-10),IF(OFFSET(K$29,0,-11)<>"",OFFSET(K$29,0,-11),IF(OFFSET(K$29,0,-12)<>"",OFFSET(K$29,0,-12),"ERROR: Enter category Manually")))))))))))))&IF(K$30="",""," "&K$30) -> SUPER. | L2: GEN. | M2: PIER
A3: Create new columns by inserting a new column and then copying a whole existing column into the new column.
A4: Make sure to insert new columns in between existing "Quantity Categories" columns rather than at the end. Otherwise, the dropdown menus won't show all categories.
A5: 2. When calculating quantities, tag each subtotal with a group.
A6: 3. Press Button 1 below to import the data to the below table.
A12: Do's
A13: • Insert new calculation rows in the item sheets. Make sure to update formulas in the "TOTALS" and "GROUPS" column by filling or dragging downward.
A14: • Insert or delete columns in the "Reference Sheet No." section below
A16: Dont's
A17: • Insert new columns in the item sheets
A19: Spreadsheet Limits
B20: The table on this sheet: 150 rows
B21: Item quantity sheets: 10,000 rows
A22: Note: The pressing Button 1 only edits data in the "Sheet Name" column and the "Reference Sheet No." columns. Everything else is done with in-sheet formulas
I26: Quantity Categories
D27: =CONCATENATE("MADE BY: ",'Calc Cover Sheet'!B11) -> MADE BY: BMV | F27: DATE: | G27: ='Calc Cover Sheet'!D11 -> 2024-04-19 | H27: ESTIMATED QUANTITIES
D28: =CONCATENATE("CHECKED BY: ",'Calc Cover Sheet'!B12) -> CHECKED BY: TLC | F28: DATE: | G28: ='Calc Cover Sheet'!D12 -> 2024-04-25 | Y28: =IF('Calc Cover Sheet'!B3="","",CONCATENATE("STRUCTURAL FILE NUMBER: ",'Calc Cover Sheet'!B3)) -> STRUCTURAL FILE NUMBER: 3108680
D29: ITEM | E29: EXTENSION | F29: TOTAL | G29: UNIT | H29: DESCRIPTION | I29: ABUT. | J29: PIER | K29: SUPER. | L29: GEN. | M29: REFERENCE SHEET NO.
C30: Sheet Name
C31: 202E11003 | D31: =IF($C31="","",MID($C31,1,3)) -> 202 | E31: =IF($C31="","",MID($C31,5,5)) -> 11003 | F31: =IF($C31="","",IF(INDIRECT("'"&$C31&"'"&"!K5")="LS","LUMP",MAX(INDIRECT("'"&$C31&"'"&"!N10:N1000")))) -> LUMP | G31: =IF($C31="","",IF(INDIRECT("'"&$C31&"'"&"!K5")="LS","",INDIRECT("'"&$C31&"'"&"!K5"))) ->  | H31: =IF($C31="","",IF(INDIRECT("'"&$C31&"'"&"!E8")="",INDIRECT("'"&$C31&"'"&"!E7"),CONCATENATE(INDIRECT("'"&$C31&"'"&"!E7")," (",INDIRECT("'"&$C31&"'"&"!E8"),")"))) -> STRUCTURE REMOVED, OVER 20 FOOT SPAN, AS PER PLAN | I31: =IF($C31="","",IF($F31="LUMP",IF(ISERROR(MATCH(I$2,INDIRECT("'"&$C31&"'"&"!$Q$5:$V$5"),0)),"","LUMP"),IF(SUMIF(INDIRECT("'"&$C31&"'"&"!$Q$10:$Q$10000"),I$2,INDIRECT("'"&$C31&"'"&"!$M$10:$M$10000"))=0,"",SUMIF(INDIRECT("'"&$C31&"'"&"!$Q$10:$Q$10000"),I$2,INDIRECT("'"&$C31&"'"&"!$M$10:$M$10000"))))) ->  | J31: =IF($C31="","",IF($F31="LUMP",IF(ISERROR(MATCH(M$2,INDIRECT("'"&$C31&"'"&"!$Q$5:$V$5"),0)),"","LUMP"),IF(SUMIF(INDIRECT("'"&$C31&"'"&"!$Q$10:$Q$10000"),M$2,INDIRECT("'"&$C31&"'"&"!$M$10:$M$10000"))=0,"",SUMIF(INDIRECT("'"&$C31&"'"&"!$Q$10:$Q$10000"),M$2,INDIRECT("'"&$C31&"'"&"!$M$10:$M$10000"))))) ->  | M31: S.02/45
C32: 202E22900 | D32: =IF($C32="","",MID($C32,1,3)) -> 202 | E32: =IF($C32="","",MID($C32,5,5)) -> 22900 | F32: =IF($C32="","",IF(INDIRECT("'"&$C32&"'"&"!K5")="LS","LUMP",MAX(INDIRECT("'"&$C32&"'"&"!N10:N1000")))) -> 167 | G32: =IF($C32="","",IF(INDIRECT("'"&$C32&"'"&"!K5")="LS","",INDIRECT("'"&$C32&"'"&"!K5"))) -> SY | H32: =IF($C32="","",IF(INDIRECT("'"&$C32&"'"&"!E8")="",INDIRECT("'"&$C32&"'"&"!E7"),CONCATENATE(INDIRECT("'"&$C32&"'"&"!E7")," (",INDIRECT("'"&$C32&"'"&"!E8"),")"))) -> APPROACH SLAB REMOVED | J32: =IF($C32="","",IF($F32="LUMP",IF(ISERROR(MATCH(M$2,INDIRECT("'"&$C32&"'"&"!$Q$5:$V$5"),0)),"","LUMP"),IF(SUMIF(INDIRECT("'"&$C32&"'"&"!$Q$10:$Q$10000"),M$2,INDIRECT("'"&$C32&"'"&"!$M$10:$M$10000"))=0,"",SUMIF(INDIRECT("'"&$C32&"'"&"!$Q$10:$Q$10000"),M$2,INDIRECT("'"&$C32&"'"&"!$M$10:$M$10000"))))) ->  | L32: 167
C33: 202E23500 | D33: 202 | E33: 23500 | F33: 167 | G33: SY | H33: WEARING COURSE REMOVED | J33: =IF($C33="","",IF($F33="LUMP",IF(ISERROR(MATCH(M$2,INDIRECT("'"&$C33&"'"&"!$Q$5:$V$5"),0)),"","LUMP"),IF(SUMIF(INDIRECT("'"&$C33&"'"&"!$Q$10:$Q$10000"),M$2,INDIRECT("'"&$C33&"'"&"!$M$10:$M$10000"))=0,"",SUMIF(INDIRECT("'"&$C33&"'"&"!$Q$10:$Q$10000"),M$2,INDIRECT("'"&$C33&"'"&"!$M$10:$M$10000"))))) ->  | L33: 167
C35: 203E35111 | D35: 203 | E35: 35111 | F35: 479 | G35: CY | H35: GRANULAR MATERIAL, TYPE B, AS PER PLAN | I35: 479 | M35: S.02/45
C36: 203E35120 | D36: 203 | E36: 35120 | F36: 189 | G36: CY | H36: GRANULAR MATERIAL, TYPE C | I36: 189
C38: 503E11101 | D38: 503 | E38: 11101 | F38: LUMP | H38: COFFERDAMS AND EXCAVATION BRACING, AS PER PLAN | M38: S.04/45
C39: 503E21300 | D39: 503 | E39: 21300 | F39: LUMP | H39: UNCLASSIFIED EXCAVATION
C41: 507E00101 | D41: 507 | E41: 00101 | F41: 900 | G41: FT | H41: STEEL PILES HP10X42, FURNISHED, AS PER PLAN | I41: 900 | M41: S.02/45
C42: 507E92201 | D42: 507 | E42: 92201 | F42: 262 | G42: FT | H42: PREBORED HOLES, AS PER PLAN | I42: 262 | M42: S.02/45
C44: 509E26000 | D44: 509 | E44: =IF($C44="","",MID($C44,5,5)) -> 26000 | F44: 114538 | G44: LB | H44: GALVANIZED STEEL REINFORCEMENT | I44: 9680 | J44: 15063 | K44: 80947 | L44: 8848
C45: 509E30020 | D45: 509 | E45: 30020 | F45: 4603 | G45: FT | H45: NO. 4 DEFORMED GFRP REINFORCEMENT | K45: 4603
C47: 511E33500 | D47: 511 | E47: =IF($C47="","",MID($C47,5,5)) -> 33500 | F47: 2 | G47: EACH | H47: SEMI-INTEGRAL DIAPHRAGM GUIDE | I47: =IF($C47="","",IF($F47="LUMP",IF(ISERROR(MATCH(I$2,INDIRECT("'"&$C47&"'"&"!$Q$5:$V$5"),0)),"","LUMP"),IF(SUMIF(INDIRECT("'"&$C47&"'"&"!$Q$10:$Q$10000"),I$2,INDIRECT("'"&$C47&"'"&"!$M$10:$M$10000"))=0,"",SUMIF(INDIRECT("'"&$C47&"'"&"!$Q$10:$Q$10000"),I$2,INDIRECT("'"&$C47&"'"&"!$M$10:$M$10000"))))) -> 2
C48: 511E34460 | D48: 511 | E48: 34460 | F48: 71 | G48: CY | H48: =IF($C48="","",IF(INDIRECT("'"&$C48&"'"&"!E8")="",INDIRECT("'"&$C48&"'"&"!E7"),CONCATENATE(INDIRECT("'"&$C48&"'"&"!E7")," ",INDIRECT("'"&$C48&"'"&"!E8")))) -> CLASS QC SCC CONCRETE, BRIDGE DECK (PARAPET) | K48: 71
C49: 511E43510 | D49: 511 | E49: 43510 | F49: 78 | G49: CY | H49: CLASS QC1 CONCRETE, ABUTMENT INCLUDING FOOTING | I49: 78
C50: 511E46510 | D50: 511 | E50: 46510 | F50: 27 | G50: CY | H50: CLASS QC1 CONCRETE, FOOTING | J50: 27
C51: 511E53012 | D51: 511 | E51: 53012 | F51: 81 | G51: CY | H51: CLASS QC2 CONCRETE, MISC.: MOMENT SLAB | L51: 81 | M51: S.02/45
C52: 511E53014 | D52: 511 | E52: 53014 | F52: 48 | G52: CY | H52: CLASS QC3 CONCRETE, MISC.: WITH QC/QA, SUPERSTRUCTURE | I52: 41 | J52: 7 | M52: S.05/45
C53: 511E53014-02 | D53: 511 | E53: 53014 | F53: =IF($C53="","",IF(INDIRECT("'"&$C53&"'"&"!K5")="LS","LUMP",MAX(INDIRECT("'"&$C53&"'"&"!N10:N1000")))) -> 241.1990889 | G53: CY | H53: CLASS QC3 CONCRETE, MISC.: WITH QC/QA, BRIDGE DECK | K53: 241.1990889 | M53: S.05/45
C54: 511E53014-04 | D54: 511 | E54: 53014 | F54: 45 | G54: CY | H54: CLASS QC3 CONCRETE, MISC.: WITH QC/QA, PIER ABOVE FOOTINGS | J54: 45 | M54: S.04/45
C55: 511E53014-05 | D55: 511 | E55: 53014 | F55: 36 | G55: CY | H55: =IF($C55="","",IF(INDIRECT("'"&$C55&"'"&"!E8")="",INDIRECT("'"&$C55&"'"&"!E7"),CONCATENATE(INDIRECT("'"&$C55&"'"&"!E7"),INDIRECT("'"&$C55&"'"&"!E8")))) -> CLASS QC3 CONCRETE, MISC.:WITH QC/QA, SIDEWALK | K55: 36 | M55: S.05/45
C57: 512E10050 | D57: 512 | E57: 10050 | F57: 231 | G57: SY | H57: SEALING OF CONCRETE SURFACES (NON-EPOXY) | L57: 231
C58: 512E10100 | D58: 512 | E58: 10100 | F58: =IF($C58="","",IF(INDIRECT("'"&$C58&"'"&"!K5")="LS","LUMP",MAX(INDIRECT("'"&$C58&"'"&"!N10:N1000")))) -> 524 | G58: SY | H58: =IF($C58="","",IF(INDIRECT("'"&$C58&"'"&"!E8")="",INDIRECT("'"&$C58&"'"&"!E7"),CONCATENATE(INDIRECT("'"&$C58&"'"&"!E7")," (",INDIRECT("'"&$C58&"'"&"!E8")))) -> SEALING OF CONCRETE SURFACES (EPOXY-URETHANE) (LIGHT NEUTRAL) (MSE WALLS) | L58: 524 | M58: S.02/45
C59: 512E10100 (Gray 1&2) | D59: 512 | E59: 10100 | F59: 770.8118232 | G59: SY | H59: SEALING OF CONCRETE SURFACES (EPOXY-URETHANE) (GRAY) | I59: 67.05961491 | J59: 47.75220833 | K59: 431 | L59: 225 | M59: S.02/45
C60: 512E10100 (Gray Beams) | D60: 512 | E60: 10100 | F60: 366 | G60: SY | H60: SEALING OF CONCRETE SURFACES (EPOXY-URETHANE) (GRAY) (FASCIA BEAMS) (ALTERNATIVE 1) | K60: 366
C61: 512E10100 (Green Beams) | D61: 512 | E61: 10100 | F61: 366 | G61: SY | H61: SEALING OF CONCRETE SURFACES (EPOXY-URETHANE) (DARK GREEN) (FASCIA BEAMS) (ALTERNATIVE 2) | K61: 366
C63: 515E15080 | D63: 515 | E63: 15080 | F63: 10 | G63: EACH | H63: DRAPED STRAND PRESTRESSED CONCRETE BRIDGE I-BEAM MEMBERS, LEVEL 3, TYPE WF42-49 (90'-7" LENGTH) | K63: 10
C64: 515E20000 | D64: 515 | E64: 20000 | F64: 24 | G64: EACH | H64: INTERMEDIATE DIAPHRAGMS | K64: 24
C66: 516E10010 | D66: 516 | E66: 10010 | F66: 78 | G66: FT | H66: ARMORLESS PREFORMED JOINT SEAL | L66: 78
C67: 516E13200 | D67: 516 | E67: 13200 | F67: 78 | G67: SF | H67: 1/2" PREFORMED EXPANSION JOINT FILLER | L67: 78
C68: 516E13600 | D68: 516 | E68: 13600 | F68: 15.66666667 | G68: SF | H68: 1" PREFORMED EXPANSION JOINT FILLER | L68: 15.66666667
C69: 516E13900 | D69: 516 | E69: 13900 | F69: 614 | G69: SF | H69: 2" PREFORMED EXPANSION JOINT FILLER | L69: 614
C70: 516E14020 | D70: 516 | E70: 14020 | F70: 77.6666 | G70: FT | H70: SEMI-INTEGRAL ABUTMENT EXPANSION JOINT SEAL | I70: 77.6666
C71: 516E44101 | D71: 516 | E71: 44101 | F71: 10 | G71: EACH | H71: ELASTOMERIC BEARING WITH INTERNAL LAMINATES AND LOAD PLATE (NEOPRENE), AS PER PLAN (2 9/16" x 2'-4" x 10" WITH W-SECTION) | I71: 10 | M71: S.21/45
C72: 516E44101p | D72: =IF($C72="","",MID($C72,1,3)) -> 516 | E72: 44101 | F72: 10 | G72: EACH | H72: ELASTOMERIC BEARING WITH INTERNAL LAMINATES AND LOAD PLATE (NEOPRENE), AS PER PLAN (2 9/16" x 2'-4" x 10") | J72: 10 | M72: S.21/45
D73: =IF($C73="","",MID($C73,1,3)) -> 
C74: 526E30011 | D74: 526 | E74: 30011 | F74: 258.8886667 | G74: SY | H74: REINFORCED CONCRETE APPROACH SLABS WITH QC/QA (T=17"), AS PER PLAN | L74: 258.8886667 | M74: S.03/45
C75: 526E90031 | D75: 526 | E75: 90031 | F75: 77.6666 | G75: FT | H75: TYPE C INSTALLATION, AS PER PLAN | L75: 77.6666 | M75: S.03/45
F76: =IF($C76="","",IF(INDIRECT("'"&$C76&"'"&"!K5")="LS","LUMP",MAX(INDIRECT("'"&$C76&"'"&"!N10:N1000")))) ->  | AA76: =IF(ISERROR(FIND("AS PER PLAN",H88)),"","NOTE: AS PER PLAN ITEM") -> 
C77: 530E13000 | D77: 530 | E77: 13000 | F77: 2147.5025 | G77: SF | H77: SPECIAL - FORM LINER | L77: 2147.5025 | M77: S.31/45
C79: 601E21000 | D79: 601 | E79: 21000 | F79: 17 | G79: SY | H79: CONCRETE SLOPE PROTECTION | I79: 17
C81: 607E39900 | D81: 607 | E81: 39900 | F81: 178 | G81: FT | H81: VANDAL PROTECTION FENCE, 6' STRAIGHT, COATED FABRIC (ALTERNATIVE 1) | L81: 178
C82: 607E39930 | D82: 607 | E82: 39930 | F82: 178 | G82: FT | H82: VANDAL PROTECTION FENCE, 12' CURVED, COATED FABRIC (ALTERNATIVE 1) | L82: 178
C83: 607E40000 | D83: =IF($C83="","",MID($C83,1,3)) -> 607 | E83: 40000 | F83: 178 | G83: FT | H83: =IF($C83="","",IF(INDIRECT("'"&$C83&"'"&"!E8")="",INDIRECT("'"&$C83&"'"&"!E7"),CONCATENATE(INDIRECT("'"&$C83&"'"&"!E7")," (",INDIRECT("'"&$C83&"'"&"!E8"),")"))) -> SPECIAL - VANDAL PROTECTION FENCE (11'-10" TALL AESTHETIC FENCE) (ALTERNATIVE 2) | L83: 178 | M83: S.03/45
C84: 607E40000 (2) | D84: 607 | E84: 40000 | F84: 178 | G84: FT | H84: SPECIAL - VANDAL PROTECTION FENCE (6'-7" TALL AESTHETIC FENCE) (ALTERNATIVE 2) | L84: 178 | M84: S.03/45
C86: 622E25000 | D86: 622 | E86: 25000 | F86: 1 | G86: EACH | H86: CONCRETE BARRIER END SECTION, TYPE D | L86: 1
C88: 625E25502 | D88: 625 | E88: 25502 | F88: 660 | G88: FT | H88: CONDUIT, 3", 725.05 | L88: 660
C89: 625E29920 | D89: 625 | E89: 29920 | F89: 2 | G89: EACH | H89: STRUCTURE JUNCTION BOX | L89: 2
C90: 625E30520 | D90: 625 | E90: 30520 | F90: 4 | G90: EACH | H90: PULL BOX, 725.06, SIZE 7 | L90: 4
C91: 625E33000 | D91: 625 | E91: 33000 | F91: 1 | G91: EACH | H91: STRUCTURE GROUNDING SYSTEM | L91: 1
C93: 840E20000 | D93: 840 | E93: 20000 | F93: 6246 | G93: SF | H93: MECHANICALLY STABILIZED EARTH WALL | L93: 6246
C94: 840E21000 | D94: 840 | E94: 21000 | F94: 1588 | G94: CY | H94: WALL EXCAVATION | L94: 1588
C95: 840E22000 | D95: 840 | E95: 22000 | F95: 566 | G95: SY | H95: FOUNDATION PREPARATION | L95: 566
C96: 840E23000 | D96: 840 | E96: 23000 | F96: =IF($C96="","",IF(INDIRECT("'"&$C96&"'"&"!K5")="LS","LUMP",MAX(INDIRECT("'"&$C96&"'"&"!N10:N1000")))) -> 2817 | G96: =IF($C96="","",IF(INDIRECT("'"&$C96&"'"&"!K5")="LS","",INDIRECT("'"&$C96&"'"&"!K5"))) -> CY | H96: =IF($C96="","",IF(INDIRECT("'"&$C96&"'"&"!E8")="",INDIRECT("'"&$C96&"'"&"!E7"),CONCATENATE(INDIRECT("'"&$C96&"'"&"!E7")," (",INDIRECT("'"&$C96&"'"&"!E8"),")"))) -> SELECT GRANULAR BACKFILL | L96: 2817
C97: 840E25010 | D97: 840 | E97: 25010 | F97: 306 | G97: FT | H97: 6" DRAINAGE PIPE, PERFORATED | J97: =IF($C97="","",IF($F97="LUMP",IF(ISERROR(MATCH(M$2,INDIRECT("'"&$C97&"'"&"!$Q$5:$V$5"),0)),"","LUMP"),IF(SUMIF(INDIRECT("'"&$C97&"'"&"!$Q$10:$Q$10000"),M$2,INDIRECT("'"&$C97&"'"&"!$M$10:$M$10000"))=0,"",SUMIF(INDIRECT("'"&$C97&"'"&"!$Q$10:$Q$10000"),M$2,INDIRECT("'"&$C97&"'"&"!$M$10:$M$10000"))))) ->  | L97: 306
C98: 840E25020 | D98: 840 | E98: 25020 | F98: 10 | G98: FT | H98: 6" DRAINAGE PIPE, NON-PERFORATED | L98: 10
C99: 840E26000 | D99: =IF($C99="","",MID($C99,1,3)) -> 840 | E99: =IF($C99="","",MID($C99,5,5)) -> 26000 | F99: 337 | G99: FT | H99: CONCRETE COPING | L99: 337
C100: 840E27000 | D100: 840 | E100: 27000 | F100: 5 | G100: DAY | H100: ON-SITE ASSISTANCE | L100: 5
C102: 878E25000 | D102: 878 | E102: 25000 | F102: LUMP | H102: INSPECTION AND COMPACTION TESTING OF UNBOUND MATERIALS
I103: =IF($C103="","",IF($F103="LUMP",IF(ISERROR(MATCH(#REF!,INDIRECT("'"&$C103&"'"&"!$Q$5:$V$5"),0)),"","LUMP"),IF(SUMIF(INDIRECT("'"&$C103&"'"&"!$Q$10:$Q$10000"),#REF!,INDIRECT("'"&$C103&"'"&"!$M$10:$M$10000"))=0,"",SUMIF(INDIRECT("'"&$C103&"'"&"!$Q$10:$Q$10000"),#REF!,INDIRECT("'"&$C103&"'"&"!$M$10:$M$10000"))))) ->  | K103: =IF($C103="","",IF($F103="LUMP",IF(ISERROR(MATCH(K$2,INDIRECT("'"&$C103&"'"&"!$Q$5:$V$5"),0)),"","LUMP"),IF(SUMIF(INDIRECT("'"&$C103&"'"&"!$Q$10:$Q$10000"),K$2,INDIRECT("'"&$C103&"'"&"!$M$10:$M$10000"))=0,"",SUMIF(INDIRECT("'"&$C103&"'"&"!$Q$10:$Q$10000"),K$2,INDIRECT("'"&$C103&"'"&"!$M$10:$M$10000"))))) -> 
I104: =IF($C104="","",IF($F104="LUMP",IF(ISERROR(MATCH(#REF!,INDIRECT("'"&$C104&"'"&"!$Q$5:$V$5"),0)),"","LUMP"),IF(SUMIF(INDIRECT("'"&$C104&"'"&"!$Q$10:$Q$10000"),#REF!,INDIRECT("'"&$C104&"'"&"!$M$10:$M$10000"))=0,"",SUMIF(INDIRECT("'"&$C104&"'"&"!$Q$10:$Q$10000"),#REF!,INDIRECT("'"&$C104&"'"&"!$M$10:$M$10000"))))) ->  | L104: =IF($C104="","",IF($F104="LUMP",IF(ISERROR(MATCH(L$2,INDIRECT("'"&$C104&"'"&"!$Q$5:$V$5"),0)),"","LUMP"),IF(SUMIF(INDIRECT("'"&$C104&"'"&"!$Q$10:$Q$10000"),L$2,INDIRECT("'"&$C104&"'"&"!$M$10:$M$10000"))=0,"",SUMIF(INDIRECT("'"&$C104&"'"&"!$Q$10:$Q$10000"),L$2,INDIRECT("'"&$C104&"'"&"!$M$10:$M$10000"))))) -> 
I105: =IF($C105="","",IF($F105="LUMP",IF(ISERROR(MATCH(#REF!,INDIRECT("'"&$C105&"'"&"!$Q$5:$V$5"),0)),"","LUMP"),IF(SUMIF(INDIRECT("'"&$C105&"'"&"!$Q$10:$Q$10000"),#REF!,INDIRECT("'"&$C105&"'"&"!$M$10:$M$10000"))=0,"",SUMIF(INDIRECT("'"&$C105&"'"&"!$Q$10:$Q$10000"),#REF!,INDIRECT("'"&$C105&"'"&"!$M$10:$M$10000"))))) ->  | L105: =IF($C105="","",IF($F105="LUMP",IF(ISERROR(MATCH(I$2,INDIRECT("'"&$C105&"'"&"!$Q$5:$V$5"),0)),"","LUMP"),IF(SUMIF(INDIRECT("'"&$C105&"'"&"!$Q$10:$Q$10000"),I$2,INDIRECT("'"&$C105&"'"&"!$M$10:$M$10000"))=0,"",SUMIF(INDIRECT("'"&$C105&"'"&"!$Q$10:$Q$10000"),I$2,INDIRECT("'"&$C105&"'"&"!$M$10:$M$10000"))))) -> 
I106: =IF($C106="","",IF($F106="LUMP",IF(ISERROR(MATCH(#REF!,INDIRECT("'"&$C106&"'"&"!$Q$5:$V$5"),0)),"","LUMP"),IF(SUMIF(INDIRECT("'"&$C106&"'"&"!$Q$10:$Q$10000"),#REF!,INDIRECT("'"&$C106&"'"&"!$M$10:$M$10000"))=0,"",SUMIF(INDIRECT("'"&$C106&"'"&"!$Q$10:$Q$10000"),#REF!,INDIRECT("'"&$C106&"'"&"!$M$10:$M$10000"))))) -> 
I107: =IF($C107="","",IF($F107="LUMP",IF(ISERROR(MATCH(#REF!,INDIRECT("'"&$C107&"'"&"!$Q$5:$V$5"),0)),"","LUMP"),IF(SUMIF(INDIRECT("'"&$C107&"'"&"!$Q$10:$Q$10000"),#REF!,INDIRECT("'"&$C107&"'"&"!$M$10:$M$10000"))=0,"",SUMIF(INDIRECT("'"&$C107&"'"&"!$Q$10:$Q$10000"),#REF!,INDIRECT("'"&$C107&"'"&"!$M$10:$M$10000"))))) ->  | AA107: =IF(ISERROR(FIND("AS PER PLAN",H119)),"","NOTE: AS PER PLAN ITEM") -> 
I108: =IF($C108="","",IF($F108="LUMP",IF(ISERROR(MATCH(#REF!,INDIRECT("'"&$C108&"'"&"!$Q$5:$V$5"),0)),"","LUMP"),IF(SUMIF(INDIRECT("'"&$C108&"'"&"!$Q$10:$Q$10000"),#REF!,INDIRECT("'"&$C108&"'"&"!$M$10:$M$10000"))=0,"",SUMIF(INDIRECT("'"&$C108&"'"&"!$Q$10:$Q$10000"),#REF!,INDIRECT("'"&$C108&"'"&"!$M$10:$M$10000"))))) -> 
I109: =IF($C109="","",IF($F109="LUMP",IF(ISERROR(MATCH(#REF!,INDIRECT("'"&$C109&"'"&"!$Q$5:$V$5"),0)),"","LUMP"),IF(SUMIF(INDIRECT("'"&$C109&"'"&"!$Q$10:$Q$10000"),#REF!,INDIRECT("'"&$C109&"'"&"!$M$10:$M$10000"))=0,"",SUMIF(INDIRECT("'"&$C109&"'"&"!$Q$10:$Q$10000"),#REF!,INDIRECT("'"&$C109&"'"&"!$M$10:$M$10000"))))) -> 
I110: =IF($C110="","",IF($F110="LUMP",IF(ISERROR(MATCH(#REF!,INDIRECT("'"&$C110&"'"&"!$Q$5:$V$5"),0)),"","LUMP"),IF(SUMIF(INDIRECT("'"&$C110&"'"&"!$Q$10:$Q$10000"),#REF!,INDIRECT("'"&$C110&"'"&"!$M$10:$M$10000"))=0,"",SUMIF(INDIRECT("'"&$C110&"'"&"!$Q$10:$Q$10000"),#REF!,INDIRECT("'"&$C110&"'"&"!$M$10:$M$10000"))))) -> 
I111: =IF($C111="","",IF($F111="LUMP",IF(ISERROR(MATCH(#REF!,INDIRECT("'"&$C111&"'"&"!$Q$5:$V$5"),0)),"","LUMP"),IF(SUMIF(INDIRECT("'"&$C111&"'"&"!$Q$10:$Q$10000"),#REF!,INDIRECT("'"&$C111&"'"&"!$M$10:$M$10000"))=0,"",SUMIF(INDIRECT("'"&$C111&"'"&"!$Q$10:$Q$10000"),#REF!,INDIRECT("'"&$C111&"'"&"!$M$10:$M$10000"))))) -> 
I112: =IF($C112="","",IF($F112="LUMP",IF(ISERROR(MATCH(#REF!,INDIRECT("'"&$C112&"'"&"!$Q$5:$V$5"),0)),"","LUMP"),IF(SUMIF(INDIRECT("'"&$C112&"'"&"!$Q$10:$Q$10000"),#REF!,INDIRECT("'"&$C112&"'"&"!$M$10:$M$10000"))=0,"",SUMIF(INDIRECT("'"&$C112&"'"&"!$Q$10:$Q$10000"),#REF!,INDIRECT("'"&$C112&"'"&"!$M$10:$M$10000"))))) -> 
I113: =IF($C113="","",IF($F113="LUMP",IF(ISERROR(MATCH(#REF!,INDIRECT("'"&$C113&"'"&"!$Q$5:$V$5"),0)),"","LUMP"),IF(SUMIF(INDIRECT("'"&$C113&"'"&"!$Q$10:$Q$10000"),#REF!,INDIRECT("'"&$C113&"'"&"!$M$10:$M$10000"))=0,"",SUMIF(INDIRECT("'"&$C113&"'"&"!$Q$10:$Q$10000"),#REF!,INDIRECT("'"&$C113&"'"&"!$M$10:$M$10000"))))) -> 
I114: =IF($C114="","",IF($F114="LUMP",IF(ISERROR(MATCH(#REF!,INDIRECT("'"&$C114&"'"&"!$Q$5:$V$5"),0)),"","LUMP"),IF(SUMIF(INDIRECT("'"&$C114&"'"&"!$Q$10:$Q$10000"),#REF!,INDIRECT("'"&$C114&"'"&"!$M$10:$M$10000"))=0,"",SUMIF(INDIRECT("'"&$C114&"'"&"!$Q$10:$Q$10000"),#REF!,INDIRECT("'"&$C114&"'"&"!$M$10:$M$10000"))))) -> 
I115: =IF($C115="","",IF($F115="LUMP",IF(ISERROR(MATCH(#REF!,INDIRECT("'"&$C115&"'"&"!$Q$5:$V$5"),0)),"","LUMP"),IF(SUMIF(INDIRECT("'"&$C115&"'"&"!$Q$10:$Q$10000"),#REF!,INDIRECT("'"&$C115&"'"&"!$M$10:$M$10000"))=0,"",SUMIF(INDIRECT("'"&$C115&"'"&"!$Q$10:$Q$10000"),#REF!,INDIRECT("'"&$C115&"'"&"!$M$10:$M$10000"))))) -> 
I116: =IF($C116="","",IF($F116="LUMP",IF(ISERROR(MATCH(#REF!,INDIRECT("'"&$C116&"'"&"!$Q$5:$V$5"),0)),"","LUMP"),IF(SUMIF(INDIRECT("'"&$C116&"'"&"!$Q$10:$Q$10000"),#REF!,INDIRECT("'"&$C116&"'"&"!$M$10:$M$10000"))=0,"",SUMIF(INDIRECT("'"&$C116&"'"&"!$Q$10:$Q$10000"),#REF!,INDIRECT("'"&$C116&"'"&"!$M$10:$M$10000"))))) -> 
I117: =IF($C117="","",IF($F117="LUMP",IF(ISERROR(MATCH(#REF!,INDIRECT("'"&$C117&"'"&"!$Q$5:$V$5"),0)),"","LUMP"),IF(SUMIF(INDIRECT("'"&$C117&"'"&"!$Q$10:$Q$10000"),#REF!,INDIRECT("'"&$C117&"'"&"!$M$10:$M$10000"))=0,"",SUMIF(INDIRECT("'"&$C117&"'"&"!$Q$10:$Q$10000"),#REF!,INDIRECT("'"&$C117&"'"&"!$M$10:$M$10000"))))) -> 
I118: =IF($C118="","",IF($F118="LUMP",IF(ISERROR(MATCH(#REF!,INDIRECT("'"&$C118&"'"&"!$Q$5:$V$5"),0)),"","LUMP"),IF(SUMIF(INDIRECT("'"&$C118&"'"&"!$Q$10:$Q$10000"),#REF!,INDIRECT("'"&$C118&"'"&"!$M$10:$M$10000"))=0,"",SUMIF(INDIRECT("'"&$C118&"'"&"!$Q$10:$Q$10000"),#REF!,INDIRECT("'"&$C118&"'"&"!$M$10:$M$10000"))))) -> 
I119: =IF($C119="","",IF($F119="LUMP",IF(ISERROR(MATCH(#REF!,INDIRECT("'"&$C119&"'"&"!$Q$5:$V$5"),0)),"","LUMP"),IF(SUMIF(INDIRECT("'"&$C119&"'"&"!$Q$10:$Q$10000"),#REF!,INDIRECT("'"&$C119&"'"&"!$M$10:$M$10000"))=0,"",SUMIF(INDIRECT("'"&$C119&"'"&"!$Q$10:$Q$10000"),#REF!,INDIRECT("'"&$C119&"'"&"!$M$10:$M$10000"))))) -> 
I120: =IF($C120="","",IF($F120="LUMP",IF(ISERROR(MATCH(#REF!,INDIRECT("'"&$C120&"'"&"!$Q$5:$V$5"),0)),"","LUMP"),IF(SUMIF(INDIRECT("'"&$C120&"'"&"!$Q$10:$Q$10000"),#REF!,INDIRECT("'"&$C120&"'"&"!$M$10:$M$10000"))=0,"",SUMIF(INDIRECT("'"&$C120&"'"&"!$Q$10:$Q$10000"),#REF!,INDIRECT("'"&$C120&"'"&"!$M$10:$M$10000"))))) -> 
I121: =IF($C121="","",IF($F121="LUMP",IF(ISERROR(MATCH(#REF!,INDIRECT("'"&$C121&"'"&"!$Q$5:$V$5"),0)),"","LUMP"),IF(SUMIF(INDIRECT("'"&$C121&"'"&"!$Q$10:$Q$10000"),#REF!,INDIRECT("'"&$C121&"'"&"!$M$10:$M$10000"))=0,"",SUMIF(INDIRECT("'"&$C121&"'"&"!$Q$10:$Q$10000"),#REF!,INDIRECT("'"&$C121&"'"&"!$M$10:$M$10000"))))) -> 
I122: =IF($C122="","",IF($F122="LUMP",IF(ISERROR(MATCH(#REF!,INDIRECT("'"&$C122&"'"&"!$Q$5:$V$5"),0)),"","LUMP"),IF(SUMIF(INDIRECT("'"&$C122&"'"&"!$Q$10:$Q$10000"),#REF!,INDIRECT("'"&$C122&"'"&"!$M$10:$M$10000"))=0,"",SUMIF(INDIRECT("'"&$C122&"'"&"!$Q$10:$Q$10000"),#REF!,INDIRECT("'"&$C122&"'"&"!$M$10:$M$10000"))))) ->  | L122: =IF($C122="","",IF($F122="LUMP",IF(ISERROR(MATCH(I$2,INDIRECT("'"&$C122&"'"&"!$Q$5:$V$5"),0)),"","LUMP"),IF(SUMIF(INDIRECT("'"&$C122&"'"&"!$Q$10:$Q$10000"),I$2,INDIRECT("'"&$C122&"'"&"!$M$10:$M$10000"))=0,"",SUMIF(INDIRECT("'"&$C122&"'"&"!$Q$10:$Q$10000"),I$2,INDIRECT("'"&$C122&"'"&"!$M$10:$M$10000"))))) -> 
I123: =IF($C123="","",IF($F123="LUMP",IF(ISERROR(MATCH(#REF!,INDIRECT("'"&$C123&"'"&"!$Q$5:$V$5"),0)),"","LUMP"),IF(SUMIF(INDIRECT("'"&$C123&"'"&"!$Q$10:$Q$10000"),#REF!,INDIRECT("'"&$C123&"'"&"!$M$10:$M$10000"))=0,"",SUMIF(INDIRECT("'"&$C123&"'"&"!$Q$10:$Q$10000"),#REF!,INDIRECT("'"&$C123&"'"&"!$M$10:$M$10000"))))) -> 
I124: =IF($C124="","",IF($F124="LUMP",IF(ISERROR(MATCH(#REF!,INDIRECT("'"&$C124&"'"&"!$Q$5:$V$5"),0)),"","LUMP"),IF(SUMIF(INDIRECT("'"&$C124&"'"&"!$Q$10:$Q$10000"),#REF!,INDIRECT("'"&$C124&"'"&"!$M$10:$M$10000"))=0,"",SUMIF(INDIRECT("'"&$C124&"'"&"!$Q$10:$Q$10000"),#REF!,INDIRECT("'"&$C124&"'"&"!$M$10:$M$10000"))))) -> 
I125: =IF($C125="","",IF($F125="LUMP",IF(ISERROR(MATCH(#REF!,INDIRECT("'"&$C125&"'"&"!$Q$5:$V$5"),0)),"","LUMP"),IF(SUMIF(INDIRECT("'"&$C125&"'"&"!$Q$10:$Q$10000"),#REF!,INDIRECT("'"&$C125&"'"&"!$M$10:$M$10000"))=0,"",SUMIF(INDIRECT("'"&$C125&"'"&"!$Q$10:$Q$10000"),#REF!,INDIRECT("'"&$C125&"'"&"!$M$10:$M$10000"))))) -> 
I126: =IF($C126="","",IF($F126="LUMP",IF(ISERROR(MATCH(#REF!,INDIRECT("'"&$C126&"'"&"!$Q$5:$V$5"),0)),"","LUMP"),IF(SUMIF(INDIRECT("'"&$C126&"'"&"!$Q$10:$Q$10000"),#REF!,INDIRECT("'"&$C126&"'"&"!$M$10:$M$10000"))=0,"",SUMIF(INDIRECT("'"&$C126&"'"&"!$Q$10:$Q$10000"),#REF!,INDIRECT("'"&$C126&"'"&"!$M$10:$M$10000"))))) -> 
I127: =IF($C127="","",IF($F127="LUMP",IF(ISERROR(MATCH(#REF!,INDIRECT("'"&$C127&"'"&"!$Q$5:$V$5"),0)),"","LUMP"),IF(SUMIF(INDIRECT("'"&$C127&"'"&"!$Q$10:$Q$10000"),#REF!,INDIRECT("'"&$C127&"'"&"!$M$10:$M$10000"))=0,"",SUMIF(INDIRECT("'"&$C127&"'"&"!$Q$10:$Q$10000"),#REF!,INDIRECT("'"&$C127&"'"&"!$M$10:$M$10000"))))) -> 
I128: =IF($C128="","",IF($F128="LUMP",IF(ISERROR(MATCH(#REF!,INDIRECT("'"&$C128&"'"&"!$Q$5:$V$5"),0)),"","LUMP"),IF(SUMIF(INDIRECT("'"&$C128&"'"&"!$Q$10:$Q$10000"),#REF!,INDIRECT("'"&$C128&"'"&"!$M$10:$M$10000"))=0,"",SUMIF(INDIRECT("'"&$C128&"'"&"!$Q$10:$Q$10000"),#REF!,INDIRECT("'"&$C128&"'"&"!$M$10:$M$10000"))))) -> 
I129: =IF($C129="","",IF($F129="LUMP",IF(ISERROR(MATCH(#REF!,INDIRECT("'"&$C129&"'"&"!$Q$5:$V$5"),0)),"","LUMP"),IF(SUMIF(INDIRECT("'"&$C129&"'"&"!$Q$10:$Q$10000"),#REF!,INDIRECT("'"&$C129&"'"&"!$M$10:$M$10000"))=0,"",SUMIF(INDIRECT("'"&$C129&"'"&"!$Q$10:$Q$10000"),#REF!,INDIRECT("'"&$C129&"'"&"!$M$10:$M$10000"))))) -> 
I130: =IF($C130="","",IF($F130="LUMP",IF(ISERROR(MATCH(#REF!,INDIRECT("'"&$C130&"'"&"!$Q$5:$V$5"),0)),"","LUMP"),IF(SUMIF(INDIRECT("'"&$C130&"'"&"!$Q$10:$Q$10000"),#REF!,INDIRECT("'"&$C130&"'"&"!$M$10:$M$10000"))=0,"",SUMIF(INDIRECT("'"&$C130&"'"&"!$Q$10:$Q$10000"),#REF!,INDIRECT("'"&$C130&"'"&"!$M$10:$M$10000"))))) -> 
I131: =IF($C131="","",IF($F131="LUMP",IF(ISERROR(MATCH(#REF!,INDIRECT("'"&$C131&"'"&"!$Q$5:$V$5"),0)),"","LUMP"),IF(SUMIF(INDIRECT("'"&$C131&"'"&"!$Q$10:$Q$10000"),#REF!,INDIRECT("'"&$C131&"'"&"!$M$10:$M$10000"))=0,"",SUMIF(INDIRECT("'"&$C131&"'"&"!$Q$10:$Q$10000"),#REF!,INDIRECT("'"&$C131&"'"&"!$M$10:$M$10000"))))) ->  | K131: =IF($C131="","",IF($F131="LUMP",IF(ISERROR(MATCH(K$2,INDIRECT("'"&$C131&"'"&"!$Q$5:$V$5"),0)),"","LUMP"),IF(SUMIF(INDIRECT("'"&$C131&"'"&"!$Q$10:$Q$10000"),K$2,INDIRECT("'"&$C131&"'"&"!$M$10:$M$10000"))=0,"",SUMIF(INDIRECT("'"&$C131&"'"&"!$Q$10:$Q$10000"),K$2,INDIRECT("'"&$C131&"'"&"!$M$10:$M$10000"))))) -> 
I132: =IF($C132="","",IF($F132="LUMP",IF(ISERROR(MATCH(#REF!,INDIRECT("'"&$C132&"'"&"!$Q$5:$V$5"),0)),"","LUMP"),IF(SUMIF(INDIRECT("'"&$C132&"'"&"!$Q$10:$Q$10000"),#REF!,INDIRECT("'"&$C132&"'"&"!$M$10:$M$10000"))=0,"",SUMIF(INDIRECT("'"&$C132&"'"&"!$Q$10:$Q$10000"),#REF!,INDIRECT("'"&$C132&"'"&"!$M$10:$M$10000"))))) -> 
I133: =IF($C133="","",IF($F133="LUMP",IF(ISERROR(MATCH(#REF!,INDIRECT("'"&$C133&"'"&"!$Q$5:$V$5"),0)),"","LUMP"),IF(SUMIF(INDIRECT("'"&$C133&"'"&"!$Q$10:$Q$10000"),#REF!,INDIRECT("'"&$C133&"'"&"!$M$10:$M$10000"))=0,"",SUMIF(INDIRECT("'"&$C133&"'"&"!$Q$10:$Q$10000"),#REF!,INDIRECT("'"&$C133&"'"&"!$M$10:$M$10000"))))) -> 
I134: =IF($C134="","",IF($F134="LUMP",IF(ISERROR(MATCH(#REF!,INDIRECT("'"&$C134&"'"&"!$Q$5:$V$5"),0)),"","LUMP"),IF(SUMIF(INDIRECT("'"&$C134&"'"&"!$Q$10:$Q$10000"),#REF!,INDIRECT("'"&$C134&"'"&"!$M$10:$M$10000"))=0,"",SUMIF(INDIRECT("'"&$C134&"'"&"!$Q$10:$Q$10000"),#REF!,INDIRECT("'"&$C134&"'"&"!$M$10:$M$10000"))))) -> 
I135: =IF($C135="","",IF($F135="LUMP",IF(ISERROR(MATCH(#REF!,INDIRECT("'"&$C135&"'"&"!$Q$5:$V$5"),0)),"","LUMP"),IF(SUMIF(INDIRECT("'"&$C135&"'"&"!$Q$10:$Q$10000"),#REF!,INDIRECT("'"&$C135&"'"&"!$M$10:$M$10000"))=0,"",SUMIF(INDIRECT("'"&$C135&"'"&"!$Q$10:$Q$10000"),#REF!,INDIRECT("'"&$C135&"'"&"!$M$10:$M$10000"))))) -> 
I136: =IF($C136="","",IF($F136="LUMP",IF(ISERROR(MATCH(#REF!,INDIRECT("'"&$C136&"'"&"!$Q$5:$V$5"),0)),"","LUMP"),IF(SUMIF(INDIRECT("'"&$C136&"'"&"!$Q$10:$Q$10000"),#REF!,INDIRECT("'"&$C136&"'"&"!$M$10:$M$10000"))=0,"",SUMIF(INDIRECT("'"&$C136&"'"&"!$Q$10:$Q$10000"),#REF!,INDIRECT("'"&$C136&"'"&"!$M$10:$M$10000"))))) -> 
I137: =IF($C137="","",IF($F137="LUMP",IF(ISERROR(MATCH(#REF!,INDIRECT("'"&$C137&"'"&"!$Q$5:$V$5"),0)),"","LUMP"),IF(SUMIF(INDIRECT("'"&$C137&"'"&"!$Q$10:$Q$10000"),#REF!,INDIRECT("'"&$C137&"'"&"!$M$10:$M$10000"))=0,"",SUMIF(INDIRECT("'"&$C137&"'"&"!$Q$10:$Q$10000"),#REF!,INDIRECT("'"&$C137&"'"&"!$M$10:$M$10000"))))) -> 
I138: =IF($C138="","",IF($F138="LUMP",IF(ISERROR(MATCH(#REF!,INDIRECT("'"&$C138&"'"&"!$Q$5:$V$5"),0)),"","LUMP"),IF(SUMIF(INDIRECT("'"&$C138&"'"&"!$Q$10:$Q$10000"),#REF!,INDIRECT("'"&$C138&"'"&"!$M$10:$M$10000"))=0,"",SUMIF(INDIRECT("'"&$C138&"'"&"!$Q$10:$Q$10000"),#REF!,INDIRECT("'"&$C138&"'"&"!$M$10:$M$10000"))))) -> 
I139: =IF($C139="","",IF($F139="LUMP",IF(ISERROR(MATCH(#REF!,INDIRECT("'"&$C139&"'"&"!$Q$5:$V$5"),0)),"","LUMP"),IF(SUMIF(INDIRECT("'"&$C139&"'"&"!$Q$10:$Q$10000"),#REF!,INDIRECT("'"&$C139&"'"&"!$M$10:$M$10000"))=0,"",SUMIF(INDIRECT("'"&$C139&"'"&"!$Q$10:$Q$10000"),#REF!,INDIRECT("'"&$C139&"'"&"!$M$10:$M$10000"))))) ->  | AA139: =IF(ISERROR(FIND("AS PER PLAN",H151)),"","NOTE: AS PER PLAN ITEM") -> 
I140: =IF($C140="","",IF($F140="LUMP",IF(ISERROR(MATCH(#REF!,INDIRECT("'"&$C140&"'"&"!$Q$5:$V$5"),0)),"","LUMP"),IF(SUMIF(INDIRECT("'"&$C140&"'"&"!$Q$10:$Q$10000"),#REF!,INDIRECT("'"&$C140&"'"&"!$M$10:$M$10000"))=0,"",SUMIF(INDIRECT("'"&$C140&"'"&"!$Q$10:$Q$10000"),#REF!,INDIRECT("'"&$C140&"'"&"!$M$10:$M$10000"))))) -> 
I141: =IF($C141="","",IF($F141="LUMP",IF(ISERROR(MATCH(#REF!,INDIRECT("'"&$C141&"'"&"!$Q$5:$V$5"),0)),"","LUMP"),IF(SUMIF(INDIRECT("'"&$C141&"'"&"!$Q$10:$Q$10000"),#REF!,INDIRECT("'"&$C141&"'"&"!$M$10:$M$10000"))=0,"",SUMIF(INDIRECT("'"&$C141&"'"&"!$Q$10:$Q$10000"),#REF!,INDIRECT("'"&$C141&"'"&"!$M$10:$M$10000"))))) -> 
I142: =IF($C142="","",IF($F142="LUMP",IF(ISERROR(MATCH(#REF!,INDIRECT("'"&$C142&"'"&"!$Q$5:$V$5"),0)),"","LUMP"),IF(SUMIF(INDIRECT("'"&$C142&"'"&"!$Q$10:$Q$10000"),#REF!,INDIRECT("'"&$C142&"'"&"!$M$10:$M$10000"))=0,"",SUMIF(INDIRECT("'"&$C142&"'"&"!$Q$10:$Q$10000"),#REF!,INDIRECT("'"&$C142&"'"&"!$M$10:$M$10000"))))) -> 
I143: =IF($C143="","",IF($F143="LUMP",IF(ISERROR(MATCH(#REF!,INDIRECT("'"&$C143&"'"&"!$Q$5:$V$5"),0)),"","LUMP"),IF(SUMIF(INDIRECT("'"&$C143&"'"&"!$Q$10:$Q$10000"),#REF!,INDIRECT("'"&$C143&"'"&"!$M$10:$M$10000"))=0,"",SUMIF(INDIRECT("'"&$C143&"'"&"!$Q$10:$Q$10000"),#REF!,INDIRECT("'"&$C143&"'"&"!$M$10:$M$10000"))))) -> 
I144: =IF($C144="","",IF($F144="LUMP",IF(ISERROR(MATCH(#REF!,INDIRECT("'"&$C144&"'"&"!$Q$5:$V$5"),0)),"","LUMP"),IF(SUMIF(INDIRECT("'"&$C144&"'"&"!$Q$10:$Q$10000"),#REF!,INDIRECT("'"&$C144&"'"&"!$M$10:$M$10000"))=0,"",SUMIF(INDIRECT("'"&$C144&"'"&"!$Q$10:$Q$10000"),#REF!,INDIRECT("'"&$C144&"'"&"!$M$10:$M$10000"))))) -> 
I145: =IF($C145="","",IF($F145="LUMP",IF(ISERROR(MATCH(#REF!,INDIRECT("'"&$C145&"'"&"!$Q$5:$V$5"),0)),"","LUMP"),IF(SUMIF(INDIRECT("'"&$C145&"'"&"!$Q$10:$Q$10000"),#REF!,INDIRECT("'"&$C145&"'"&"!$M$10:$M$10000"))=0,"",SUMIF(INDIRECT("'"&$C145&"'"&"!$Q$10:$Q$10000"),#REF!,INDIRECT("'"&$C145&"'"&"!$M$10:$M$10000"))))) -> 
I146: =IF($C146="","",IF($F146="LUMP",IF(ISERROR(MATCH(#REF!,INDIRECT("'"&$C146&"'"&"!$Q$5:$V$5"),0)),"","LUMP"),IF(SUMIF(INDIRECT("'"&$C146&"'"&"!$Q$10:$Q$10000"),#REF!,INDIRECT("'"&$C146&"'"&"!$M$10:$M$10000"))=0,"",SUMIF(INDIRECT("'"&$C146&"'"&"!$Q$10:$Q$10000"),#REF!,INDIRECT("'"&$C146&"'"&"!$M$10:$M$10000"))))) -> 
I147: =IF($C147="","",IF($F147="LUMP",IF(ISERROR(MATCH(#REF!,INDIRECT("'"&$C147&"'"&"!$Q$5:$V$5"),0)),"","LUMP"),IF(SUMIF(INDIRECT("'"&$C147&"'"&"!$Q$10:$Q$10000"),#REF!,INDIRECT("'"&$C147&"'"&"!$M$10:$M$10000"))=0,"",SUMIF(INDIRECT("'"&$C147&"'"&"!$Q$10:$Q$10000"),#REF!,INDIRECT("'"&$C147&"'"&"!$M$10:$M$10000"))))) -> 
I148: =IF($C148="","",IF($F148="LUMP",IF(ISERROR(MATCH(#REF!,INDIRECT("'"&$C148&"'"&"!$Q$5:$V$5"),0)),"","LUMP"),IF(SUMIF(INDIRECT("'"&$C148&"'"&"!$Q$10:$Q$10000"),#REF!,INDIRECT("'"&$C148&"'"&"!$M$10:$M$10000"))=0,"",SUMIF(INDIRECT("'"&$C148&"'"&"!$Q$10:$Q$10000"),#REF!,INDIRECT("'"&$C148&"'"&"!$M$10:$M$10000"))))) -> 
I149: =IF($C149="","",IF($F149="LUMP",IF(ISERROR(MATCH(#REF!,INDIRECT("'"&$C149&"'"&"!$Q$5:$V$5"),0)),"","LUMP"),IF(SUMIF(INDIRECT("'"&$C149&"'"&"!$Q$10:$Q$10000"),#REF!,INDIRECT("'"&$C149&"'"&"!$M$10:$M$10000"))=0,"",SUMIF(INDIRECT("'"&$C149&"'"&"!$Q$10:$Q$10000"),#REF!,INDIRECT("'"&$C149&"'"&"!$M$10:$M$10000"))))) -> 
I150: =IF($C150="","",IF($F150="LUMP",IF(ISERROR(MATCH(#REF!,INDIRECT("'"&$C150&"'"&"!$Q$5:$V$5"),0)),"","LUMP"),IF(SUMIF(INDIRECT("'"&$C150&"'"&"!$Q$10:$Q$10000"),#REF!,INDIRECT("'"&$C150&"'"&"!$M$10:$M$10000"))=0,"",SUMIF(INDIRECT("'"&$C150&"'"&"!$Q$10:$Q$10000"),#REF!,INDIRECT("'"&$C150&"'"&"!$M$10:$M$10000"))))) -> 
I151: =IF($C151="","",IF($F151="LUMP",IF(ISERROR(MATCH(#REF!,INDIRECT("'"&$C151&"'"&"!$Q$5:$V$5"),0)),"","LUMP"),IF(SUMIF(INDIRECT("'"&$C151&"'"&"!$Q$10:$Q$10000"),#REF!,INDIRECT("'"&$C151&"'"&"!$M$10:$M$10000"))=0,"",SUMIF(INDIRECT("'"&$C151&"'"&"!$Q$10:$Q$10000"),#REF!,INDIRECT("'"&$C151&"'"&"!$M$10:$M$10000"))))) -> 
I152: =IF($C152="","",IF($F152="LUMP",IF(ISERROR(MATCH(#REF!,INDIRECT("'"&$C152&"'"&"!$Q$5:$V$5"),0)),"","LUMP"),IF(SUMIF(INDIRECT("'"&$C152&"'"&"!$Q$10:$Q$10000"),#REF!,INDIRECT("'"&$C152&"'"&"!$M$10:$M$10000"))=0,"",SUMIF(INDIRECT("'"&$C152&"'"&"!$Q$10:$Q$10000"),#REF!,INDIRECT("'"&$C152&"'"&"!$M$10:$M$10000"))))) -> 
I153: =IF($C153="","",IF($F153="LUMP",IF(ISERROR(MATCH(#REF!,INDIRECT("'"&$C153&"'"&"!$Q$5:$V$5"),0)),"","LUMP"),IF(SUMIF(INDIRECT("'"&$C153&"'"&"!$Q$10:$Q$10000"),#REF!,INDIRECT("'"&$C153&"'"&"!$M$10:$M$10000"))=0,"",SUMIF(INDIRECT("'"&$C153&"'"&"!$Q$10:$Q$10000"),#REF!,INDIRECT("'"&$C153&"'"&"!$M$10:$M$10000"))))) -> 
I154: =IF($C154="","",IF($F154="LUMP",IF(ISERROR(MATCH(#REF!,INDIRECT("'"&$C154&"'"&"!$Q$5:$V$5"),0)),"","LUMP"),IF(SUMIF(INDIRECT("'"&$C154&"'"&"!$Q$10:$Q$10000"),#REF!,INDIRECT("'"&$C154&"'"&"!$M$10:$M$10000"))=0,"",SUMIF(INDIRECT("'"&$C154&"'"&"!$Q$10:$Q$10000"),#REF!,INDIRECT("'"&$C154&"'"&"!$M$10:$M$10000"))))) ->  | L154: =IF($C154="","",IF($F154="LUMP",IF(ISERROR(MATCH(I$2,INDIRECT("'"&$C154&"'"&"!$Q$5:$V$5"),0)),"","LUMP"),IF(SUMIF(INDIRECT("'"&$C154&"'"&"!$Q$10:$Q$10000"),I$2,INDIRECT("'"&$C154&"'"&"!$M$10:$M$10000"))=0,"",SUMIF(INDIRECT("'"&$C154&"'"&"!$Q$10:$Q$10000"),I$2,INDIRECT("'"&$C154&"'"&"!$M$10:$M$10000"))))) -> 
I155: =IF($C155="","",IF($F155="LUMP",IF(ISERROR(MATCH(#REF!,INDIRECT("'"&$C155&"'"&"!$Q$5:$V$5"),0)),"","LUMP"),IF(SUMIF(INDIRECT("'"&$C155&"'"&"!$Q$10:$Q$10000"),#REF!,INDIRECT("'"&$C155&"'"&"!$M$10:$M$10000"))=0,"",SUMIF(INDIRECT("'"&$C155&"'"&"!$Q$10:$Q$10000"),#REF!,INDIRECT("'"&$C155&"'"&"!$M$10:$M$10000"))))) -> 
I156: =IF($C156="","",IF($F156="LUMP",IF(ISERROR(MATCH(#REF!,INDIRECT("'"&$C156&"'"&"!$Q$5:$V$5"),0)),"","LUMP"),IF(SUMIF(INDIRECT("'"&$C156&"'"&"!$Q$10:$Q$10000"),#REF!,INDIRECT("'"&$C156&"'"&"!$M$10:$M$10000"))=0,"",SUMIF(INDIRECT("'"&$C156&"'"&"!$Q$10:$Q$10000"),#REF!,INDIRECT("'"&$C156&"'"&"!$M$10:$M$10000"))))) -> 
I157: =IF($C157="","",IF($F157="LUMP",IF(ISERROR(MATCH(#REF!,INDIRECT("'"&$C157&"'"&"!$Q$5:$V$5"),0)),"","LUMP"),IF(SUMIF(INDIRECT("'"&$C157&"'"&"!$Q$10:$Q$10000"),#REF!,INDIRECT("'"&$C157&"'"&"!$M$10:$M$10000"))=0,"",SUMIF(INDIRECT("'"&$C157&"'"&"!$Q$10:$Q$10000"),#REF!,INDIRECT("'"&$C157&"'"&"!$M$10:$M$10000"))))) -> 
I158: =IF($C158="","",IF($F158="LUMP",IF(ISERROR(MATCH(#REF!,INDIRECT("'"&$C158&"'"&"!$Q$5:$V$5"),0)),"","LUMP"),IF(SUMIF(INDIRECT("'"&$C158&"'"&"!$Q$10:$Q$10000"),#REF!,INDIRECT("'"&$C158&"'"&"!$M$10:$M$10000"))=0,"",SUMIF(INDIRECT("'"&$C158&"'"&"!$Q$10:$Q$10000"),#REF!,INDIRECT("'"&$C158&"'"&"!$M$10:$M$10000"))))) -> 
I159: =IF($C159="","",IF($F159="LUMP",IF(ISERROR(MATCH(#REF!,INDIRECT("'"&$C159&"'"&"!$Q$5:$V$5"),0)),"","LUMP"),IF(SUMIF(INDIRECT("'"&$C159&"'"&"!$Q$10:$Q$10000"),#REF!,INDIRECT("'"&$C159&"'"&"!$M$10:$M$10000"))=0,"",SUMIF(INDIRECT("'"&$C159&"'"&"!$Q$10:$Q$10000"),#REF!,INDIRECT("'"&$C159&"'"&"!$M$10:$M$10000"))))) -> 
F160: =IF($C160="","",IF(INDIRECT("'"&$C160&"'"&"!K5")="LS","LUMP",MAX(INDIRECT("'"&$C160&"'"&"!N10:N1000")))) ->  | G160: =IF($C160="","",IF(INDIRECT("'"&$C160&"'"&"!K5")="LS","",INDIRECT("'"&$C160&"'"&"!K5"))) ->  | H160: =IF($C160="","",IF(INDIRECT("'"&$C160&"'"&"!E8")="",INDIRECT("'"&$C160&"'"&"!E7"),CONCATENATE(INDIRECT("'"&$C160&"'"&"!E7")," (",INDIRECT("'"&$C160&"'"&"!E8"),")"))) ->  | I160: =IF($C160="","",IF($F160="LUMP",IF(ISERROR(MATCH(#REF!,INDIRECT("'"&$C160&"'"&"!$Q$5:$V$5"),0)),"","LUMP"),IF(SUMIF(INDIRECT("'"&$C160&"'"&"!$Q$10:$Q$10000"),#REF!,INDIRECT("'"&$C160&"'"&"!$M$10:$M$10000"))=0,"",SUMIF(INDIRECT("'"&$C160&"'"&"!$Q$10:$Q$10000"),#REF!,INDIRECT("'"&$C160&"'"&"!$M$10:$M$10000"))))) -> 
I161: =IF($C161="","",IF($F161="LUMP",IF(ISERROR(MATCH(#REF!,INDIRECT("'"&$C161&"'"&"!$Q$5:$V$5"),0)),"","LUMP"),IF(SUMIF(INDIRECT("'"&$C161&"'"&"!$Q$10:$Q$10000"),#REF!,INDIRECT("'"&$C161&"'"&"!$M$10:$M$10000"))=0,"",SUMIF(INDIRECT("'"&$C161&"'"&"!$Q$10:$Q$10000"),#REF!,INDIRECT("'"&$C161&"'"&"!$M$10:$M$10000"))))) -> 
I162: =IF($C162="","",IF($F162="LUMP",IF(ISERROR(MATCH(#REF!,INDIRECT("'"&$C162&"'"&"!$Q$5:$V$5"),0)),"","LUMP"),IF(SUMIF(INDIRECT("'"&$C162&"'"&"!$Q$10:$Q$10000"),#REF!,INDIRECT("'"&$C162&"'"&"!$M$10:$M$10000"))=0,"",SUMIF(INDIRECT("'"&$C162&"'"&"!$Q$10:$Q$10000"),#REF!,INDIRECT("'"&$C162&"'"&"!$M$10:$M$10000"))))) -> 
D163: =IF($C163="","",MID($C163,1,3)) ->  | E163: =IF($C163="","",MID($C163,5,5)) ->  | I163: =IF($C163="","",IF($F163="LUMP",IF(ISERROR(MATCH(#REF!,INDIRECT("'"&$C163&"'"&"!$Q$5:$V$5"),0)),"","LUMP"),IF(SUMIF(INDIRECT("'"&$C163&"'"&"!$Q$10:$Q$10000"),#REF!,INDIRECT("'"&$C163&"'"&"!$M$10:$M$10000"))=0,"",SUMIF(INDIRECT("'"&$C163&"'"&"!$Q$10:$Q$10000"),#REF!,INDIRECT("'"&$C163&"'"&"!$M$10:$M$10000"))))) ->  | K163: =IF($C163="","",IF($F163="LUMP",IF(ISERROR(MATCH(K$2,INDIRECT("'"&$C163&"'"&"!$Q$5:$V$5"),0)),"","LUMP"),IF(SUMIF(INDIRECT("'"&$C163&"'"&"!$Q$10:$Q$10000"),K$2,INDIRECT("'"&$C163&"'"&"!$M$10:$M$10000"))=0,"",SUMIF(INDIRECT("'"&$C163&"'"&"!$Q$10:$Q$10000"),K$2,INDIRECT("'"&$C163&"'"&"!$M$10:$M$10000"))))) -> 
I164: =IF($C164="","",IF($F164="LUMP",IF(ISERROR(MATCH(#REF!,INDIRECT("'"&$C164&"'"&"!$Q$5:$V$5"),0)),"","LUMP"),IF(SUMIF(INDIRECT("'"&$C164&"'"&"!$Q$10:$Q$10000"),#REF!,INDIRECT("'"&$C164&"'"&"!$M$10:$M$10000"))=0,"",SUMIF(INDIRECT("'"&$C164&"'"&"!$Q$10:$Q$10000"),#REF!,INDIRECT("'"&$C164&"'"&"!$M$10:$M$10000"))))) -> 
I165: =IF($C165="","",IF($F165="LUMP",IF(ISERROR(MATCH(#REF!,INDIRECT("'"&$C165&"'"&"!$Q$5:$V$5"),0)),"","LUMP"),IF(SUMIF(INDIRECT("'"&$C165&"'"&"!$Q$10:$Q$10000"),#REF!,INDIRECT("'"&$C165&"'"&"!$M$10:$M$10000"))=0,"",SUMIF(INDIRECT("'"&$C165&"'"&"!$Q$10:$Q$10000"),#REF!,INDIRECT("'"&$C165&"'"&"!$M$10:$M$10000"))))) -> 
I166: =IF($C166="","",IF($F166="LUMP",IF(ISERROR(MATCH(#REF!,INDIRECT("'"&$C166&"'"&"!$Q$5:$V$5"),0)),"","LUMP"),IF(SUMIF(INDIRECT("'"&$C166&"'"&"!$Q$10:$Q$10000"),#REF!,INDIRECT("'"&$C166&"'"&"!$M$10:$M$10000"))=0,"",SUMIF(INDIRECT("'"&$C166&"'"&"!$Q$10:$Q$10000"),#REF!,INDIRECT("'"&$C166&"'"&"!$M$10:$M$10000"))))) -> 
I167: =IF($C167="","",IF($F167="LUMP",IF(ISERROR(MATCH(#REF!,INDIRECT("'"&$C167&"'"&"!$Q$5:$V$5"),0)),"","LUMP"),IF(SUMIF(INDIRECT("'"&$C167&"'"&"!$Q$10:$Q$10000"),#REF!,INDIRECT("'"&$C167&"'"&"!$M$10:$M$10000"))=0,"",SUMIF(INDIRECT("'"&$C167&"'"&"!$Q$10:$Q$10000"),#REF!,INDIRECT("'"&$C167&"'"&"!$M$10:$M$10000"))))) -> 
I168: =IF($C168="","",IF($F168="LUMP",IF(ISERROR(MATCH(#REF!,INDIRECT("'"&$C168&"'"&"!$Q$5:$V$5"),0)),"","LUMP"),IF(SUMIF(INDIRECT("'"&$C168&"'"&"!$Q$10:$Q$10000"),#REF!,INDIRECT("'"&$C168&"'"&"!$M$10:$M$10000"))=0,"",SUMIF(INDIRECT("'"&$C168&"'"&"!$Q$10:$Q$10000"),#REF!,INDIRECT("'"&$C168&"'"&"!$M$10:$M$10000"))))) -> 
I169: =IF($C169="","",IF($F169="LUMP",IF(ISERROR(MATCH(#REF!,INDIRECT("'"&$C169&"'"&"!$Q$5:$V$5"),0)),"","LUMP"),IF(SUMIF(INDIRECT("'"&$C169&"'"&"!$Q$10:$Q$10000"),#REF!,INDIRECT("'"&$C169&"'"&"!$M$10:$M$10000"))=0,"",SUMIF(INDIRECT("'"&$C169&"'"&"!$Q$10:$Q$10000"),#REF!,INDIRECT("'"&$C169&"'"&"!$M$10:$M$10000"))))) -> 
I170: =IF($C170="","",IF($F170="LUMP",IF(ISERROR(MATCH(#REF!,INDIRECT("'"&$C170&"'"&"!$Q$5:$V$5"),0)),"","LUMP"),IF(SUMIF(INDIRECT("'"&$C170&"'"&"!$Q$10:$Q$10000"),#REF!,INDIRECT("'"&$C170&"'"&"!$M$10:$M$10000"))=0,"",SUMIF(INDIRECT("'"&$C170&"'"&"!$Q$10:$Q$10000"),#REF!,INDIRECT("'"&$C170&"'"&"!$M$10:$M$10000"))))) -> 
I171: =IF($C171="","",IF($F171="LUMP",IF(ISERROR(MATCH(#REF!,INDIRECT("'"&$C171&"'"&"!$Q$5:$V$5"),0)),"","LUMP"),IF(SUMIF(INDIRECT("'"&$C171&"'"&"!$Q$10:$Q$10000"),#REF!,INDIRECT("'"&$C171&"'"&"!$M$10:$M$10000"))=0,"",SUMIF(INDIRECT("'"&$C171&"'"&"!$Q$10:$Q$10000"),#REF!,INDIRECT("'"&$C171&"'"&"!$M$10:$M$10000"))))) -> 
I172: =IF($C172="","",IF($F172="LUMP",IF(ISERROR(MATCH(#REF!,INDIRECT("'"&$C172&"'"&"!$Q$5:$V$5"),0)),"","LUMP"),IF(SUMIF(INDIRECT("'"&$C172&"'"&"!$Q$10:$Q$10000"),#REF!,INDIRECT("'"&$C172&"'"&"!$M$10:$M$10000"))=0,"",SUMIF(INDIRECT("'"&$C172&"'"&"!$Q$10:$Q$10000"),#REF!,INDIRECT("'"&$C172&"'"&"!$M$10:$M$10000"))))) -> 
I173: =IF($C173="","",IF($F173="LUMP",IF(ISERROR(MATCH(#REF!,INDIRECT("'"&$C173&"'"&"!$Q$5:$V$5"),0)),"","LUMP"),IF(SUMIF(INDIRECT("'"&$C173&"'"&"!$Q$10:$Q$10000"),#REF!,INDIRECT("'"&$C173&"'"&"!$M$10:$M$10000"))=0,"",SUMIF(INDIRECT("'"&$C173&"'"&"!$Q$10:$Q$10000"),#REF!,INDIRECT("'"&$C173&"'"&"!$M$10:$M$10000"))))) -> 
I174: =IF($C174="","",IF($F174="LUMP",IF(ISERROR(MATCH(#REF!,INDIRECT("'"&$C174&"'"&"!$Q$5:$V$5"),0)),"","LUMP"),IF(SUMIF(INDIRECT("'"&$C174&"'"&"!$Q$10:$Q$10000"),#REF!,INDIRECT("'"&$C174&"'"&"!$M$10:$M$10000"))=0,"",SUMIF(INDIRECT("'"&$C174&"'"&"!$Q$10:$Q$10000"),#REF!,INDIRECT("'"&$C174&"'"&"!$M$10:$M$10000"))))) -> 
I175: =IF($C175="","",IF($F175="LUMP",IF(ISERROR(MATCH(#REF!,INDIRECT("'"&$C175&"'"&"!$Q$5:$V$5"),0)),"","LUMP"),IF(SUMIF(INDIRECT("'"&$C175&"'"&"!$Q$10:$Q$10000"),#REF!,INDIRECT("'"&$C175&"'"&"!$M$10:$M$10000"))=0,"",SUMIF(INDIRECT("'"&$C175&"'"&"!$Q$10:$Q$10000"),#REF!,INDIRECT("'"&$C175&"'"&"!$M$10:$M$10000"))))) -> 
I176: =IF($C176="","",IF($F176="LUMP",IF(ISERROR(MATCH(#REF!,INDIRECT("'"&$C176&"'"&"!$Q$5:$V$5"),0)),"","LUMP"),IF(SUMIF(INDIRECT("'"&$C176&"'"&"!$Q$10:$Q$10000"),#REF!,INDIRECT("'"&$C176&"'"&"!$M$10:$M$10000"))=0,"",SUMIF(INDIRECT("'"&$C176&"'"&"!$Q$10:$Q$10000"),#REF!,INDIRECT("'"&$C176&"'"&"!$M$10:$M$10000"))))) -> 
I177: =IF($C177="","",IF($F177="LUMP",IF(ISERROR(MATCH(#REF!,INDIRECT("'"&$C177&"'"&"!$Q$5:$V$5"),0)),"","LUMP"),IF(SUMIF(INDIRECT("'"&$C177&"'"&"!$Q$10:$Q$10000"),#REF!,INDIRECT("'"&$C177&"'"&"!$M$10:$M$10000"))=0,"",SUMIF(INDIRECT("'"&$C177&"'"&"!$Q$10:$Q$10000"),#REF!,INDIRECT("'"&$C177&"'"&"!$M$10:$M$10000"))))) -> 
I178: =IF($C178="","",IF($F178="LUMP",IF(ISERROR(MATCH(#REF!,INDIRECT("'"&$C178&"'"&"!$Q$5:$V$5"),0)),"","LUMP"),IF(SUMIF(INDIRECT("'"&$C178&"'"&"!$Q$10:$Q$10000"),#REF!,INDIRECT("'"&$C178&"'"&"!$M$10:$M$10000"))=0,"",SUMIF(INDIRECT("'"&$C178&"'"&"!$Q$10:$Q$10000"),#REF!,INDIRECT("'"&$C178&"'"&"!$M$10:$M$10000"))))) -> 
I179: =IF($C179="","",IF($F179="LUMP",IF(ISERROR(MATCH(#REF!,INDIRECT("'"&$C179&"'"&"!$Q$5:$V$5"),0)),"","LUMP"),IF(SUMIF(INDIRECT("'"&$C179&"'"&"!$Q$10:$Q$10000"),#REF!,INDIRECT("'"&$C179&"'"&"!$M$10:$M$10000"))=0,"",SUMIF(INDIRECT("'"&$C179&"'"&"!$Q$10:$Q$10000"),#REF!,INDIRECT("'"&$C179&"'"&"!$M$10:$M$10000"))))) -> 
I180: =IF($C180="","",IF($F180="LUMP",IF(ISERROR(MATCH(#REF!,INDIRECT("'"&$C180&"'"&"!$Q$5:$V$5"),0)),"","LUMP"),IF(SUMIF(INDIRECT("'"&$C180&"'"&"!$Q$10:$Q$10000"),#REF!,INDIRECT("'"&$C180&"'"&"!$M$10:$M$10000"))=0,"",SUMIF(INDIRECT("'"&$C180&"'"&"!$Q$10:$Q$10000"),#REF!,INDIRECT("'"&$C180&"'"&"!$M$10:$M$10000"))))) -> 
I181: =IF($C181="","",IF($F181="LUMP",IF(ISERROR(MATCH(#REF!,INDIRECT("'"&$C181&"'"&"!$Q$5:$V$5"),0)),"","LUMP"),IF(SUMIF(INDIRECT("'"&$C181&"'"&"!$Q$10:$Q$10000"),#REF!,INDIRECT("'"&$C181&"'"&"!$M$10:$M$10000"))=0,"",SUMIF(INDIRECT("'"&$C181&"'"&"!$Q$10:$Q$10000"),#REF!,INDIRECT("'"&$C181&"'"&"!$M$10:$M$10000"))))) -> 
I182: =IF($C182="","",IF($F182="LUMP",IF(ISERROR(MATCH(#REF!,INDIRECT("'"&$C182&"'"&"!$Q$5:$V$5"),0)),"","LUMP"),IF(SUMIF(INDIRECT("'"&$C182&"'"&"!$Q$10:$Q$10000"),#REF!,INDIRECT("'"&$C182&"'"&"!$M$10:$M$10000"))=0,"",SUMIF(INDIRECT("'"&$C182&"'"&"!$Q$10:$Q$10000"),#REF!,INDIRECT("'"&$C182&"'"&"!$M$10:$M$10000"))))) -> 
I183: =IF($C183="","",IF($F183="LUMP",IF(ISERROR(MATCH(#REF!,INDIRECT("'"&$C183&"'"&"!$Q$5:$V$5"),0)),"","LUMP"),IF(SUMIF(INDIRECT("'"&$C183&"'"&"!$Q$10:$Q$10000"),#REF!,INDIRECT("'"&$C183&"'"&"!$M$10:$M$10000"))=0,"",SUMIF(INDIRECT("'"&$C183&"'"&"!$Q$10:$Q$10000"),#REF!,INDIRECT("'"&$C183&"'"&"!$M$10:$M$10000"))))) -> 
F224: =IF($C224="","",IF(INDIRECT("'"&$C224&"'"&"!K5")="LS","LUMP",MAX(INDIRECT("'"&$C224&"'"&"!N10:N1000")))) ->  | G224: =IF($C224="","",IF(INDIRECT("'"&$C224&"'"&"!K5")="LS","",INDIRECT("'"&$C224&"'"&"!K5"))) ->  | H224: =IF($C224="","",IF(INDIRECT("'"&$C224&"'"&"!E8")="",INDIRECT("'"&$C224&"'"&"!E7"),CONCATENATE(INDIRECT("'"&$C224&"'"&"!E7")," (",INDIRECT("'"&$C224&"'"&"!E8"),")"))) -> 

Sheet For Sheets
I2: Quantity Categories
D3: =CONCATENATE("MADE BY: ",'Calc Cover Sheet'!B11) -> MADE BY: BMV | F3: DATE: | G3: ='Calc Cover Sheet'!D11 -> 2024-04-19 | H3: ESTIMATED QUANTITIES
D4: =CONCATENATE("CHECKED BY: ",'Calc Cover Sheet'!B12) -> CHECKED BY: TLC | F4: DATE: | G4: ='Calc Cover Sheet'!D12 -> 2024-04-25
D5: ITEM | E5: EXTENSION | F5: 01/IMS/10 | G5: UNIT | H5: DESCRIPTION | I5: ABUT. | J5: PIER | K5: SUPER. | L5: GEN. | M5: REFERENCE SHEET NO.
D8: =IF('Estimated Quantities'!D31="","",'Estimated Quantities'!D31) -> 202 | E8: =IF('Estimated Quantities'!E31="","",'Estimated Quantities'!E31) -> 11003 | F8: =IF('Estimated Quantities'!F31="","",'Estimated Quantities'!F31) -> LUMP | G8: =IF('Estimated Quantities'!G31="","",'Estimated Quantities'!G31) ->  | H8: =IF('Estimated Quantities'!H31="","",'Estimated Quantities'!H31) -> STRUCTURE REMOVED, OVER 20 FOOT SPAN, AS PER PLAN | I8: =IF('Estimated Quantities'!I31="","",'Estimated Quantities'!I31) ->  | J8: =IF('Estimated Quantities'!J31="","",'Estimated Quantities'!J31) ->  | K8: =IF('Estimated Quantities'!K31="","",'Estimated Quantities'!K31) ->  | L8: =IF('Estimated Quantities'!L31="","",'Estimated Quantities'!L31) ->  | M8: =IF('Estimated Quantities'!M31="","",'Estimated Quantities'!M31) -> S.02/45
D9: =IF('Estimated Quantities'!D32="","",'Estimated Quantities'!D32) -> 202 | E9: =IF('Estimated Quantities'!E32="","",'Estimated Quantities'!E32) -> 22900 | F9: =IF('Estimated Quantities'!F32="","",'Estimated Quantities'!F32) -> 167 | G9: =IF('Estimated Quantities'!G32="","",'Estimated Quantities'!G32) -> SY | H9: =IF('Estimated Quantities'!H32="","",'Estimated Quantities'!H32) -> APPROACH SLAB REMOVED | I9: =IF('Estimated Quantities'!I32="","",'Estimated Quantities'!I32) ->  | J9: =IF('Estimated Quantities'!J32="","",'Estimated Quantities'!J32) ->  | K9: =IF('Estimated Quantities'!K32="","",'Estimated Quantities'!K32) ->  | L9: =IF('Estimated Quantities'!L32="","",'Estimated Quantities'!L32) -> 167 | M9: =IF('Estimated Quantities'!M32="","",'Estimated Quantities'!M32) -> 
D10: =IF('Estimated Quantities'!D33="","",'Estimated Quantities'!D33) -> 202 | E10: =IF('Estimated Quantities'!E33="","",'Estimated Quantities'!E33) -> 23500 | F10: =IF('Estimated Quantities'!F33="","",'Estimated Quantities'!F33) -> 167 | G10: =IF('Estimated Quantities'!G33="","",'Estimated Quantities'!G33) -> SY | H10: =IF('Estimated Quantities'!H33="","",'Estimated Quantities'!H33) -> WEARING COURSE REMOVED | I10: =IF('Estimated Quantities'!I33="","",'Estimated Quantities'!I33) ->  | J10: =IF('Estimated Quantities'!J33="","",'Estimated Quantities'!J33) ->  | K10: =IF('Estimated Quantities'!K33="","",'Estimated Quantities'!K33) ->  | L10: =IF('Estimated Quantities'!L33="","",'Estimated Quantities'!L33) -> 167 | M10: =IF('Estimated Quantities'!M33="","",'Estimated Quantities'!M33) -> 
D11: =IF('Estimated Quantities'!D34="","",'Estimated Quantities'!D34) ->  | E11: =IF('Estimated Quantities'!E34="","",'Estimated Quantities'!E34) ->  | F11: =IF('Estimated Quantities'!F34="","",'Estimated Quantities'!F34) ->  | G11: =IF('Estimated Quantities'!G34="","",'Estimated Quantities'!G34) ->  | H11: =IF('Estimated Quantities'!H34="","",'Estimated Quantities'!H34) ->  | I11: =IF('Estimated Quantities'!I34="","",'Estimated Quantities'!I34) ->  | J11: =IF('Estimated Quantities'!J34="","",'Estimated Quantities'!J34) ->  | K11: =IF('Estimated Quantities'!K34="","",'Estimated Quantities'!K34) ->  | L11: =IF('Estimated Quantities'!L34="","",'Estimated Quantities'!L34) ->  | M11: =IF('Estimated Quantities'!M34="","",'Estimated Quantities'!M34) -> 
D12: =IF('Estimated Quantities'!D35="","",'Estimated Quantities'!D35) -> 203 | E12: =IF('Estimated Quantities'!E35="","",'Estimated Quantities'!E35) -> 35111 | F12: =IF('Estimated Quantities'!F35="","",'Estimated Quantities'!F35) -> 479 | G12: =IF('Estimated Quantities'!G35="","",'Estimated Quantities'!G35) -> CY | H12: =IF('Estimated Quantities'!H35="","",'Estimated Quantities'!H35) -> GRANULAR MATERIAL, TYPE B, AS PER PLAN | I12: =IF('Estimated Quantities'!I35="","",'Estimated Quantities'!I35) -> 479 | J12: =IF('Estimated Quantities'!J35="","",'Estimated Quantities'!J35) ->  | K12: =IF('Estimated Quantities'!K35="","",'Estimated Quantities'!K35) ->  | L12: =IF('Estimated Quantities'!L35="","",'Estimated Quantities'!L35) ->  | M12: =IF('Estimated Quantities'!M35="","",'Estimated Quantities'!M35) -> S.02/45
D13: =IF('Estimated Quantities'!D36="","",'Estimated Quantities'!D36) -> 203 | E13: =IF('Estimated Quantities'!E36="","",'Estimated Quantities'!E36) -> 35120 | F13: =IF('Estimated Quantities'!F36="","",'Estimated Quantities'!F36) -> 189 | G13: =IF('Estimated Quantities'!G36="","",'Estimated Quantities'!G36) -> CY | H13: =IF('Estimated Quantities'!H36="","",'Estimated Quantities'!H36) -> GRANULAR MATERIAL, TYPE C | I13: =IF('Estimated Quantities'!I36="","",'Estimated Quantities'!I36) -> 189 | J13: =IF('Estimated Quantities'!J36="","",'Estimated Quantities'!J36) ->  | K13: =IF('Estimated Quantities'!K36="","",'Estimated Quantities'!K36) ->  | L13: =IF('Estimated Quantities'!L36="","",'Estimated Quantities'!L36) ->  | M13: =IF('Estimated Quantities'!M36="","",'Estimated Quantities'!M36) -> 
D14: =IF('Estimated Quantities'!D37="","",'Estimated Quantities'!D37) ->  | E14: =IF('Estimated Quantities'!E37="","",'Estimated Quantities'!E37) ->  | F14: =IF('Estimated Quantities'!F37="","",'Estimated Quantities'!F37) ->  | G14: =IF('Estimated Quantities'!G37="","",'Estimated Quantities'!G37) ->  | H14: =IF('Estimated Quantities'!H37="","",'Estimated Quantities'!H37) ->  | I14: =IF('Estimated Quantities'!I37="","",'Estimated Quantities'!I37) ->  | J14: =IF('Estimated Quantities'!J37="","",'Estimated Quantities'!J37) ->  | K14: =IF('Estimated Quantities'!K37="","",'Estimated Quantities'!K37) ->  | L14: =IF('Estimated Quantities'!L37="","",'Estimated Quantities'!L37) ->  | M14: =IF('Estimated Quantities'!M37="","",'Estimated Quantities'!M37) -> 
D15: =IF('Estimated Quantities'!D38="","",'Estimated Quantities'!D38) -> 503 | E15: =IF('Estimated Quantities'!E38="","",'Estimated Quantities'!E38) -> 11101 | F15: =IF('Estimated Quantities'!F38="","",'Estimated Quantities'!F38) -> LUMP | G15: =IF('Estimated Quantities'!G38="","",'Estimated Quantities'!G38) ->  | H15: =IF('Estimated Quantities'!H38="","",'Estimated Quantities'!H38) -> COFFERDAMS AND EXCAVATION BRACING, AS PER PLAN | I15: =IF('Estimated Quantities'!I38="","",'Estimated Quantities'!I38) ->  | J15: =IF('Estimated Quantities'!J38="","",'Estimated Quantities'!J38) ->  | K15: =IF('Estimated Quantities'!K38="","",'Estimated Quantities'!K38) ->  | L15: =IF('Estimated Quantities'!L38="","",'Estimated Quantities'!L38) ->  | M15: =IF('Estimated Quantities'!M38="","",'Estimated Quantities'!M38) -> S.04/45
D16: =IF('Estimated Quantities'!D39="","",'Estimated Quantities'!D39) -> 503 | E16: =IF('Estimated Quantities'!E39="","",'Estimated Quantities'!E39) -> 21300 | F16: =IF('Estimated Quantities'!F39="","",'Estimated Quantities'!F39) -> LUMP | G16: =IF('Estimated Quantities'!G39="","",'Estimated Quantities'!G39) ->  | H16: =IF('Estimated Quantities'!H39="","",'Estimated Quantities'!H39) -> UNCLASSIFIED EXCAVATION | I16: =IF('Estimated Quantities'!I39="","",'Estimated Quantities'!I39) ->  | J16: =IF('Estimated Quantities'!J39="","",'Estimated Quantities'!J39) ->  | K16: =IF('Estimated Quantities'!K39="","",'Estimated Quantities'!K39) ->  | L16: =IF('Estimated Quantities'!L39="","",'Estimated Quantities'!L39) ->  | M16: =IF('Estimated Quantities'!M39="","",'Estimated Quantities'!M39) -> 
D17: =IF('Estimated Quantities'!D40="","",'Estimated Quantities'!D40) ->  | E17: =IF('Estimated Quantities'!E40="","",'Estimated Quantities'!E40) ->  | F17: =IF('Estimated Quantities'!F40="","",'Estimated Quantities'!F40) ->  | G17: =IF('Estimated Quantities'!G40="","",'Estimated Quantities'!G40) ->  | H17: =IF('Estimated Quantities'!H40="","",'Estimated Quantities'!H40) ->  | I17: =IF('Estimated Quantities'!I40="","",'Estimated Quantities'!I40) ->  | J17: =IF('Estimated Quantities'!J40="","",'Estimated Quantities'!J40) ->  | K17: =IF('Estimated Quantities'!K40="","",'Estimated Quantities'!K40) ->  | L17: =IF('Estimated Quantities'!L40="","",'Estimated Quantities'!L40) ->  | M17: =IF('Estimated Quantities'!M40="","",'Estimated Quantities'!M40) -> 
D18: =IF('Estimated Quantities'!D41="","",'Estimated Quantities'!D41) -> 507 | E18: =IF('Estimated Quantities'!E41="","",'Estimated Quantities'!E41) -> 00101 | F18: =IF('Estimated Quantities'!F41="","",'Estimated Quantities'!F41) -> 900 | G18: =IF('Estimated Quantities'!G41="","",'Estimated Quantities'!G41) -> FT | H18: =IF('Estimated Quantities'!H41="","",'Estimated Quantities'!H41) -> STEEL PILES HP10X42, FURNISHED, AS PER PLAN | I18: =IF('Estimated Quantities'!I41="","",'Estimated Quantities'!I41) -> 900 | J18: =IF('Estimated Quantities'!J41="","",'Estimated Quantities'!J41) ->  | K18: =IF('Estimated Quantities'!K41="","",'Estimated Quantities'!K41) ->  | L18: =IF('Estimated Quantities'!L41="","",'Estimated Quantities'!L41) ->  | M18: =IF('Estimated Quantities'!M41="","",'Estimated Quantities'!M41) -> S.02/45
D19: =IF('Estimated Quantities'!D42="","",'Estimated Quantities'!D42) -> 507 | E19: =IF('Estimated Quantities'!E42="","",'Estimated Quantities'!E42) -> 92201 | F19: =IF('Estimated Quantities'!F42="","",'Estimated Quantities'!F42) -> 262 | G19: =IF('Estimated Quantities'!G42="","",'Estimated Quantities'!G42) -> FT | H19: =IF('Estimated Quantities'!H42="","",'Estimated Quantities'!H42) -> PREBORED HOLES, AS PER PLAN | I19: =IF('Estimated Quantities'!I42="","",'Estimated Quantities'!I42) -> 262 | J19: =IF('Estimated Quantities'!J42="","",'Estimated Quantities'!J42) ->  | K19: =IF('Estimated Quantities'!K42="","",'Estimated Quantities'!K42) ->  | L19: =IF('Estimated Quantities'!L42="","",'Estimated Quantities'!L42) ->  | M19: =IF('Estimated Quantities'!M42="","",'Estimated Quantities'!M42) -> S.02/45
